Workbook

Sheet Age profile chart

Sheet Forecast Ch1

Sheet Age profile summary
A1: Asset calcs | R1: Remaining life | W1: RC ($ millions) | AB1: RC (%)
R2: Very old | S2: Old | T2: moderate | U2: young | V2: new | W2: =R2 -> Very old | X2: =S2 -> Old | Y2: moderate | Z2: young | AA2: new | AB2: Very old | AC2: Old | AD2: moderate | AE2: young | AF2: new
M3: WARL | O3: WAL | Q3: WAA | R3: > | S3: > | T3: > | U3: > | V3: <=0.2 | W3: =R3 -> > | X3: > | Y3: > | Z3: > | AA3: <=0.2 | AB3: > | AC3: > | AD3: > | AE3: > | AF3: <=0.2
F4: Quantity | G4: Unit | H4: RC | I4: prop total | J4: Rank | K4: prop cat | L4: RC / unit | M4: (Rep life) | O4: Rep life | Q4: % Rep life | R4: =W4 -> 0.9 | S4: =X4 -> 0.8 | T4: =Y4 -> 0.4 | U4: =Z4 -> 0.2 | W4: 0.9 | X4: 0.8 | Y4: 0.4 | Z4: 0.2 | AA4: 0 | AB4: 0.9 | AC4: 0.8 | AD4: 0.4 | AE4: 0.2 | AF4: 0 | AG4: Std life | AH4: Std life | AI4: rep life
G5: Cost | H5: $ millions | I5: % | J5: total | K5: % | L5: $ ('000) | AG5: max | AH5: min
A6: 1 | D6: =VLOOKUP(A6,IDtable,2) -> POLES | F6: =SUMIF($A$21:$A$205,$A6,F$21:F$205) -> 959977.0106 | H6: =SUMIF($A$21:$A$205,$A6,H$21:H$205)/1000 -> 5503.629929 | I6: =H6/($H$18) -> 0.2413089814 | J6: =RANK(I6,I$6:I$17) -> 2 | L6: =H6*1000/(F6+0.001) -> 5.733085128 | M6: =SUMIF($A$21:$A$205,$A6,N$21:N$205)/(H6*1000+0.000001) -> 33.86395469 | O6: =SUMIF($A$21:$A$205,$A6,P$21:P$205)/(H6*1000+0.000001) -> 59.02203541 | Q6: =(O6-M6)/(O6+0.000001) -> 0.4262489444 | R6: =$O6-R$4*$O6 -> 5.902203541 | S6: =$O6-S$4*$O6 -> 11.80440708 | T6: =$O6-T$4*$O6 -> 35.41322124 | U6: =$O6-U$4*$O6 -> 47.21762833 | V6: =$O6-V$4*$O6 -> 59.02203541 | W6: =SUMIF($A$21:$A$205,$A6,W$21:W$205)/1000 -> 165.3925814 | X6: 196.1984945 | Y6: 2414.045944 | Z6: 1502.176192 | AA6: 1225.816717 | AB6: =IF($H6=0,0,W6/$H6) -> 0.03005154482 | AC6: =IF($H6=0,0,X6/$H6) -> 0.03564892571 | AD6: =IF($H6=0,0,Y6/$H6) -> 0.4386279555 | AE6: =IF($H6=0,0,Z6/$H6) -> 0.2729428054 | AF6: =IF($H6=0,0,AA6/$H6) -> 0.2227287686 | AG6: =MAX(IF($A$21:$A$205=$A6,$O$21:$O$205)) -> 92.06183048 | AH6: =MIN(IF($A$21:$A$205=$A6,$O$21:$O$205)) -> 10.31213953 | AI6: =IF(H6=0,0,SUMIF($A$21:$A$205,$A6,$AJ$21:$AJ$205)/(H6*1000)) -> 59.02203541
A7: 2 | D7: OVERHEAD CONDUCTORS | F7: =SUMIF($A$21:$A$205,$A7,F$21:F$205) -> 154712.935 | H7: =SUMIF($A$21:$A$205,$A7,H$21:H$205)/1000 -> 10230.26814 | I7: =H7/($H$18) -> 0.4485504323 | J7: 1 | L7: 66.12419365 | M7: 43.15077168 | O7: 79.66584895 | Q7: 0.4583529491 | R7: =$O7-R$4*$O7 -> 7.966584895 | S7: 15.93316979 | T7: 47.79950937 | U7: 63.73267916 | V7: 79.66584895 | W7: 14.69402495 | X7: 630.3331531 | Y7: 5272.881375 | Z7: 2916.7571 | AA7: 1395.602487 | AB7: =IF($H7=0,0,W7/$H7) -> 0.001436328428 | AC7: =IF($H7=0,0,X7/$H7) -> 0.06161452901 | AD7: =IF($H7=0,0,Y7/$H7) -> 0.5154196647 | AE7: =IF($H7=0,0,Z7/$H7) -> 0.285110523 | AF7: =IF($H7=0,0,AA7/$H7) -> 0.1364189548 | AG7: =MAX(IF($A$21:$A$205=$A7,$O$21:$O$205)) -> 87.94502172 | AH7: =MIN(IF($A$21:$A$205=$A7,$O$21:$O$205)) -> 61.67866068 | AI7: =IF(H7=0,0,SUMIF($A$21:$A$205,$A7,$AJ$21:$AJ$205)/(H7*1000)) -> 79.66584895
A8: 3 | D8: UNDERGROUND CABLES | F8: 8503.544 | H8: 2627.950445 | I8: 0.1152235985 | J8: 3 | L8: 309.041752 | M8: 62.18007289 | O8: 71.21446575 | Q8: 0.1268617638 | R8: 7.121446575 | S8: 14.24289315 | T8: 42.72867945 | U8: 56.9715726 | V8: 71.21446575 | W8: 0.8637966667 | X8: 1.383909298 | Y8: 134.9173268 | Z8: 292.7467384 | AA8: 2198.038674 | AB8: 0.0003286959495 | AC8: 0.0005266116415 | AD8: 0.05133937248 | AE8: 0.1113973587 | AF8: 0.8364079612 | AG8: =MAX(IF($A$21:$A$205=$A8,$O$21:$O$205)) -> 75.24821662 | AH8: =MIN(IF($A$21:$A$205=$A8,$O$21:$O$205)) -> 45.08567255 | AI8: 71.21446575
A9: 4 | D9: SERVICE LINES | F9: 403053 | H9: 328.5687282 | I9: 0.01440623482 | J9: 6 | L9: 0.815199806 | M9: 31.6276416 | O9: 62.176753 | Q9: 0.4913268936 | R9: 6.2176753 | S9: 12.4353506 | T9: 37.3060518 | U9: 49.7414024 | V9: 62.176753 | W9: 20.46031593 | X9: 16.11484904 | Y9: 162.0951631 | Z9: 79.365019 | AA9: 50.53338116 | AB9: 0.06227103852 | AC9: 0.0490455958 | AD9: 0.4933371596 | AE9: 0.2415476951 | AF9: 0.153798511 | AG9: =MAX(IF($A$21:$A$205=$A9,$O$21:$O$205)) -> 62.45972627 | AH9: =MIN(IF($A$21:$A$205=$A9,$O$21:$O$205)) -> 59.76908414 | AI9: 62.176753
A10: 5 | D10: TRANSFORMERS | F10: 98473.019 | H10: 1852.538951 | I10: 0.08122535364 | J10: 5 | L10: 18.81265499 | M10: 34.02622438 | O10: 54.75794694 | Q10: 0.3786066378 | R10: 5.475794694 | S10: 10.95158939 | T10: 32.85476816 | U10: 43.80635755 | V10: 54.75794694 | W10: 84.49333657 | X10: 74.29493546 | Y10: 602.0468989 | Z10: 438.5491606 | AA10: 653.1546199 | AB10: 0.04560947909 | AC10: 0.04010438507 | AD10: 0.3249847451 | AE10: 0.2367287124 | AF10: 0.3525726784 | AG10: =MAX(IF($A$21:$A$205=$A10,$O$21:$O$205)) -> 106.4590609 | AH10: =MIN(IF($A$21:$A$205=$A10,$O$21:$O$205)) -> 30.19434888 | AI10: 54.75794694
A11: 6 | D11: SWITCHGEAR | F11: 157513.007 | H11: 2264.441599 | I11: 0.0992853994 | J11: 4 | L11: 14.37621964 | M11: 43.34156088 | O11: 58.47055056 | Q11: 0.2587454587 | R11: 5.847055056 | S11: 11.69411011 | T11: 35.08233034 | U11: 46.77644045 | V11: 58.47055056 | W11: 78.58648492 | X11: 67.2354896 | Y11: 421.2537279 | Z11: 341.3258488 | AA11: 1356.040048 | AB11: 0.03470457571 | AC11: 0.02969186294 | AD11: 0.1860298486 | AE11: 0.1507328999 | AF11: 0.5988408129 | AG11: =MAX(IF($A$21:$A$205=$A11,$O$21:$O$205)) -> 66.73175532 | AH11: =MIN(IF($A$21:$A$205=$A11,$O$21:$O$205)) -> 44.97781879 | AI11: 58.47055056
A12: 7 | D12: PUBLIC LIGHTING | F12: 0 | H12: 0 | I12: 0 | J12: 7 | L12: 0 | M12: 0 | O12: 0 | Q12: 0 | R12: 0 | S12: 0 | T12: 0 | U12: 0 | V12: 0 | W12: 0 | X12: 0 | Y12: 0 | Z12: 0 | AA12: 0 | AB12: 0 | AC12: 0 | AD12: 0 | AE12: 0 | AF12: 0 | AG12: =MAX(IF($A$21:$A$205=$A12,$O$21:$O$205)) -> 0 | AH12: =MIN(IF($A$21:$A$205=$A12,$O$21:$O$205)) -> 0 | AI12: 0
A13: 8 | D13: SCADA, NETWORK CONTROL AND PROTECTION | F13: 0 | H13: 0 | I13: 0 | J13: 7 | L13: 0 | M13: 0 | O13: 0 | Q13: 0 | R13: 0 | S13: 0 | T13: 0 | U13: 0 | V13: 0 | W13: 0 | X13: 0 | Y13: 0 | Z13: 0 | AA13: 0 | AB13: 0 | AC13: 0 | AD13: 0 | AE13: 0 | AF13: 0 | AG13: =MAX(IF($A$21:$A$205=$A13,$O$21:$O$205)) -> 0 | AH13: =MIN(IF($A$21:$A$205=$A13,$O$21:$O$205)) -> 0 | AI13: 0
A14: 9 | D14: =VLOOKUP(A14,IDtable,2) -> OTHER | F14: =SUMIF($A$21:$A$205,$A14,F$21:F$205) -> 0 | H14: =SUMIF($A$21:$A$205,$A14,H$21:H$205)/1000 -> 0 | I14: =H14/($H$18) -> 0 | J14: 7 | L14: 0 | M14: 0 | O14: 0 | Q14: 0 | R14: =$O14-R$4*$O14 -> 0 | S14: 0 | T14: 0 | U14: 0 | V14: 0 | W14: 0 | X14: 0 | Y14: 0 | Z14: 0 | AA14: 0 | AB14: 0 | AC14: 0 | AD14: 0 | AE14: 0 | AF14: 0 | AG14: =MAX(IF($A$21:$A$205=$A14,$O$21:$O$205)) -> 0 | AH14: =MIN(IF($A$21:$A$205=$A14,$O$21:$O$205)) -> 0 | AI14: 0
A15: 10 | D15: =VLOOKUP(A15,IDtable,2) -> unused | F15: =SUMIF($A$21:$A$205,$A15,F$21:F$205) -> 0 | H15: =SUMIF($A$21:$A$205,$A15,H$21:H$205)/1000 -> 0 | I15: =H15/($H$18) -> 0 | J15: 7 | L15: 0 | M15: 0 | O15: 0 | Q15: 0 | R15: 0 | S15: 0 | T15: 0 | U15: 0 | V15: 0 | W15: 0 | X15: 0 | Y15: 0 | Z15: 0 | AA15: 0 | AB15: 0 | AC15: 0 | AD15: 0 | AE15: 0 | AF15: 0 | AG15: =MAX(IF($A$21:$A$205=$A15,$O$21:$O$205)) -> 0 | AH15: =MIN(IF($A$21:$A$205=$A15,$O$21:$O$205)) -> 0 | AI15: 0
A16: 11 | D16: =VLOOKUP(A16,IDtable,2) -> unused | F16: =SUMIF($A$21:$A$205,$A16,F$21:F$205) -> 0 | H16: =SUMIF($A$21:$A$205,$A16,H$21:H$205)/1000 -> 0 | I16: =H16/($H$18) -> 0 | J16: 7 | L16: 0 | M16: 0 | O16: 0 | Q16: 0 | R16: 0 | S16: 0 | T16: 0 | U16: 0 | V16: 0 | W16: 0 | X16: 0 | Y16: 0 | Z16: 0 | AA16: 0 | AB16: 0 | AC16: 0 | AD16: 0 | AE16: 0 | AF16: 0 | AG16: =MAX(IF($A$21:$A$205=$A16,$O$21:$O$205)) -> 0 | AH16: =MIN(IF($A$21:$A$205=$A16,$O$21:$O$205)) -> 0 | AI16: 0
A17: 12 | D17: =VLOOKUP(A17,IDtable,2) -> unused | F17: =SUMIF($A$21:$A$205,$A17,F$21:F$205) -> 0 | H17: =SUMIF($A$21:$A$205,$A17,H$21:H$205)/1000 -> 0 | I17: =H17/($H$18) -> 0 | J17: =RANK(I17,I$6:I$17) -> 7 | L17: =H17*1000/(F17+0.001) -> 0 | M17: =SUMIF($A$21:$A$205,$A17,N$21:N$205)/(H17*1000+0.000001) -> 0 | O17: =SUMIF($A$21:$A$205,$A17,P$21:P$205)/(H17*1000+0.000001) -> 0 | Q17: =(O17-M17)/(O17+0.000001) -> 0 | R17: 0 | S17: 0 | T17: 0 | U17: 0 | V17: 0 | W17: 0 | X17: 0 | Y17: 0 | Z17: 0 | AA17: 0 | AB17: 0 | AC17: 0 | AD17: 0 | AE17: 0 | AF17: 0 | AG17: =MAX(IF($A$21:$A$205=$A17,$O$21:$O$205)) -> 0 | AH17: =MIN(IF($A$21:$A$205=$A17,$O$21:$O$205)) -> 0 | AI17: 0
D18: Total | H18: =SUM(H6:H17) -> 22807.39779 | M18: =SUMPRODUCT(M6:M17,$H6:$H17)/$H18 -> 42.21419698 | O18: =SUMPRODUCT(O6:O17,$H6:$H17)/$H18 -> 69.33102371 | Q18: =SUMPRODUCT(Q6:Q17,$H6:$H17)/$H18 -> 0.3865898558 | W18: =SUM(W6:W17) -> 364.4905405 | X18: =SUM(X6:X17) -> 985.560831 | Y18: =SUM(Y6:Y17) -> 9007.240435 | Z18: =SUM(Z6:Z17) -> 5570.920059 | AA18: =SUM(AA6:AA17) -> 6879.185927 | AB18: =W18/$H18 -> 0.01598124187 | AC18: =X18/$H18 -> 0.04321233137 | AD18: =Y18/$H18 -> 0.3949262655 | AE18: =Z18/$H18 -> 0.2442593456 | AF18: =AA18/$H18 -> 0.3016208157
D20: EDB categories
A21: ='Asset data'!A21 -> 0 | B21: ='Asset data'!B21 -> 0 | C21: ='Asset data'!C21 -> 0 | D21: ='Asset data'!E21 -> 0 | E21: =IF(A21>0,VLOOKUP(A21,IDtable,2),0) -> 0 | F21: =IF(A21>0,SUM('Asset data'!J21:CV21),0) -> 0 | G21: =IF(A21>0,'Asset data'!F21,0) -> 0 | H21: =IF(A21>0,SUM('Asset data'!CX21:GJ21),0) -> 0 | I21: =H21/$H$18/1000 -> 0 | J21: =IF(RANK(0,I$21:I$205)=RANK(I21,I$21:I$205),0,RANK(I21,I$21:I$205)) -> 0 | K21: =IF(A21>0,H21/(VLOOKUP(A21,$A$6:$H$17,8)*1000),0) -> 0 | L21: =IF($A21>0,H21/F21,0) -> 0 | M21: =IF($A21>0,SUMPRODUCT('Age profile (years)'!$CT21:$GF21,'Asset data'!$CX21:$GJ21)/H21-0.5,0) -> 0 | N21: =IF($A21>0,M21*H21,0) -> 0 | O21: =IF($A21>0,'Asset data'!G21,0) -> 0 | P21: =IF($A21>0,H21*O21,0) -> 0 | Q21: =IF($A21>0,(O21-M21)/O21,0) -> 0 | R21: =IF($A21>0,$O21-R$4*$O21,0) -> 0 | S21: 0 | T21: 0 | U21: 0 | W21: =IF($A21>0,SUMIF('Age profile (years)'!$CT21:$GF21,"<" & R21+0.5,'Asset data'!$CX21:$GJ21),0) -> 0 | X21: =IF($A21>0,SUMIF('Age profile (years)'!$CT21:$GF21,"<" & S21+0.5,'Asset data'!$CX21:$GJ21)-W21,0) -> 0 | Y21: =IF($A21>0,SUMIF('Age profile (years)'!$CT21:$GF21,"<" & T21+0.5,'Asset data'!$CX21:$GJ21)-X21-W21,0) -> 0 | Z21: =IF($A21>0,SUMIF('Age profile (years)'!$CT21:$GF21,"<" & U21+0.5,'Asset data'!$CX21:$GJ21)-Y21-X21-W21,0) -> 0 | AA21: =IF($A21>0,H21-Z21-Y21-X21-W21,0) -> 0 | AB21: =IF($A21>0,W21/$H21,0) -> 0 | AC21: 0 | AD21: 0 | AE21: 0 | AF21: 0 | AI21: =IF($A21>0,'RRR hist-forc'!K21,0) -> 0 | AJ21: =IF($A21>0,AI21*H21,0) -> 0
A22: ='Asset data'!A22 -> 1 | B22: ='Asset data'!B22 -> 0 | C22: ='Asset data'!C22 -> 0 | D22: ='Asset data'!E22 -> staking of a wooden pole | E22: POLES | F22: =IF(A22>0,SUM('Asset data'!J22:CV22),0) -> 45890 | G22: =IF(A22>0,'Asset data'!F22,0) -> 8.253577624 | H22: =IF(A22>0,SUM('Asset data'!CX22:GJ22),0) -> 378756.6772 | I22: 0.01660674666 | J22: 17 | K22: =IF(A22>0,H22/(VLOOKUP(A22,$A$6:$H$17,8)*1000),0) -> 0.06881943046 | L22: =IF($A22>0,H22/F22,0) -> 8.253577624 | M22: =IF($A22>0,SUMPRODUCT('Age profile (years)'!$CT22:$GF22,'Asset data'!$CX22:$GJ22)/H22-0.5,0) -> 13.17781652 | N22: =IF($A22>0,M22*H22,0) -> 4991185.997 | O22: =IF($A22>0,'Asset data'!G22,0) -> 21.69235126 | P22: =IF($A22>0,H22*O22,0) -> 8216122.884 | Q22: =IF($A22>0,(O22-M22)/O22,0) -> 0.3925132247 | R22: 2.169235126 | S22: 4.338470252 | T22: 13.01541076 | U22: 17.35388101 | W22: =IF($A22>0,SUMIF('Age profile (years)'!$CT22:$GF22,"<" & R22+0.5,'Asset data'!$CX22:$GJ22),0) -> 27236.80616 | X22: =IF($A22>0,SUMIF('Age profile (years)'!$CT22:$GF22,"<" & S22+0.5,'Asset data'!$CX22:$GJ22)-W22,0) -> 13205.7242 | Y22: =IF($A22>0,SUMIF('Age profile (years)'!$CT22:$GF22,"<" & T22+0.5,'Asset data'!$CX22:$GJ22)-X22-W22,0) -> 113899.3712 | Z22: =IF($A22>0,SUMIF('Age profile (years)'!$CT22:$GF22,"<" & U22+0.5,'Asset data'!$CX22:$GJ22)-Y22-X22-W22,0) -> 100132.4037 | AA22: =IF($A22>0,H22-Z22-Y22-X22-W22,0) -> 124282.3719 | AB22: 0.07191109174 | AC22: 0.03486598387 | AD22: 0.3007191109 | AE22: 0.2643713227 | AF22: 0.3281324907 | AI22: =IF($A22>0,'RRR hist-forc'!K22,0) -> 21.69235126 | AJ22: =IF($A22>0,AI22*H22,0) -> 8216122.884
A23: ='Asset data'!A23 -> 1 | B23: ='Asset data'!B23 -> 0 | C23: ='Asset data'!C23 -> 0 | D23: ='Asset data'!E23 -> ˂ = 1 kv; wood | E23: =IF(A23>0,VLOOKUP(A23,IDtable,2),0) -> POLES | F23: =IF(A23>0,SUM('Asset data'!J23:CV23),0) -> 217723.1605 | G23: =IF(A23>0,'Asset data'!F23,0) -> 4.437974333 | H23: =IF(A23>0,SUM('Asset data'!CX23:GJ23),0) -> 966249.798 | I23: =H23/$H$18/1000 -> 0.04236563096 | J23: =IF(RANK(0,I$21:I$205)=RANK(I23,I$21:I$205),0,RANK(I23,I$21:I$205)) -> 9 | K23: =IF(A23>0,H23/(VLOOKUP(A23,$A$6:$H$17,8)*1000),0) -> 0.1755659102 | L23: =IF($A23>0,H23/F23,0) -> 4.437974333 | M23: =IF($A23>0,SUMPRODUCT('Age profile (years)'!$CT23:$GF23,'Asset data'!$CX23:$GJ23)/H23-0.5,0) -> 39.2560367 | N23: =IF($A23>0,M23*H23,0) -> 37931137.53 | O23: =IF($A23>0,'Asset data'!G23,0) -> 68.39366777 | P23: =IF($A23>0,H23*O23,0) -> 66085367.66 | Q23: =IF($A23>0,(O23-M23)/O23,0) -> 0.4260281985 | R23: 6.839366777 | S23: 13.67873355 | T23: 41.03620066 | U23: 54.71493421 | W23: =IF($A23>0,SUMIF('Age profile (years)'!$CT23:$GF23,"<" & R23+0.5,'Asset data'!$CX23:$GJ23),0) -> 27920.25871 | X23: =IF($A23>0,SUMIF('Age profile (years)'!$CT23:$GF23,"<" & S23+0.5,'Asset data'!$CX23:$GJ23)-W23,0) -> 48858.46469 | Y23: =IF($A23>0,SUMIF('Age profile (years)'!$CT23:$GF23,"<" & T23+0.5,'Asset data'!$CX23:$GJ23)-X23-W23,0) -> 404693.3862 | Z23: =IF($A23>0,SUMIF('Age profile (years)'!$CT23:$GF23,"<" & U23+0.5,'Asset data'!$CX23:$GJ23)-Y23-X23-W23,0) -> 303264.5381 | AA23: =IF($A23>0,H23-Z23-Y23-X23-W23,0) -> 181513.1502 | AB23: =IF($A23>0,W23/$H23,0) -> 0.02889548724 | AC23: =IF($A23>0,X23/$H23,0) -> 0.05056504518 | AD23: =IF($A23>0,Y23/$H23,0) -> 0.4188289478 | AE23: =IF($A23>0,Z23/$H23,0) -> 0.3138572849 | AF23: =IF($A23>0,AA23/$H23,0) -> 0.1878532349 | AI23: =IF($A23>0,'RRR hist-forc'!K23,0) -> 68.39366777 | AJ23: =IF($A23>0,AI23*H23,0) -> 66085367.66
A24: ='Asset data'!A24 -> 1 | B24: ='Asset data'!B24 -> 0 | C24: ='Asset data'!C24 -> 0 | D24: ='Asset data'!E24 -> > 1 kv & < = 11 kv; wood | E24: POLES | F24: =IF(A24>0,SUM('Asset data'!J24:CV24),0) -> 249707.7451 | G24: =IF(A24>0,'Asset data'!F24,0) -> 4.0968571 | H24: =IF(A24>0,SUM('Asset data'!CX24:GJ24),0) -> 1023016.948 | I24: 0.04485461067 | J24: 7 | K24: 0.1858804029 | L24: 4.0968571 | M24: =IF($A24>0,SUMPRODUCT('Age profile (years)'!$CT24:$GF24,'Asset data'!$CX24:$GJ24)/H24-0.5,0) -> 42.52177265 | N24: 43500494.1 | O24: =IF($A24>0,'Asset data'!G24,0) -> 70.6195931 | P24: 72245040.63 | Q24: 0.3978757058 | R24: 7.06195931 | S24: 14.12391862 | T24: 42.37175586 | U24: 56.49567448 | W24: =IF($A24>0,SUMIF('Age profile (years)'!$CT24:$GF24,"<" & R24+0.5,'Asset data'!$CX24:$GJ24),0) -> 8555.923962 | X24: =IF($A24>0,SUMIF('Age profile (years)'!$CT24:$GF24,"<" & S24+0.5,'Asset data'!$CX24:$GJ24)-W24,0) -> 59579.47565 | Y24: =IF($A24>0,SUMIF('Age profile (years)'!$CT24:$GF24,"<" & T24+0.5,'Asset data'!$CX24:$GJ24)-X24-W24,0) -> 406492.6448 | Z24: =IF($A24>0,SUMIF('Age profile (years)'!$CT24:$GF24,"<" & U24+0.5,'Asset data'!$CX24:$GJ24)-Y24-X24-W24,0) -> 283244.4093 | AA24: 265144.4947 | AB24: 0.008363423475 | AC24: 0.05823899178 | AD24: 0.397346931 | AE24: 0.2768716684 | AF24: 0.2591789853 | AI24: =IF($A24>0,'RRR hist-forc'!K24,0) -> 70.6195931 | AJ24: 72245040.63
A25: ='Asset data'!A25 -> 1 | B25: ='Asset data'!B25 -> 0 | C25: ='Asset data'!C25 -> 0 | D25: ='Asset data'!E25 -> ˃ 11 kv & < = 22 kv; wood | E25: POLES | F25: =IF(A25>0,SUM('Asset data'!J25:CV25),0) -> 293351.501 | G25: =IF(A25>0,'Asset data'!F25,0) -> 5.456895246 | H25: =IF(A25>0,SUM('Asset data'!CX25:GJ25),0) -> 1600788.411 | I25: 0.07018724476 | J25: 4 | K25: 0.2908604743 | L25: 5.456895246 | M25: =IF($A25>0,SUMPRODUCT('Age profile (years)'!$CT25:$GF25,'Asset data'!$CX25:$GJ25)/H25-0.5,0) -> 35.34887837 | N25: 56586074.84 | O25: =IF($A25>0,'Asset data'!G25,0) -> 63.50996647 | P25: 101666018.3 | Q25: 0.4434121078 | R25: 6.350996647 | S25: 12.70199329 | T25: 38.10597988 | U25: 50.80797318 | W25: =IF($A25>0,SUMIF('Age profile (years)'!$CT25:$GF25,"<" & R25+0.5,'Asset data'!$CX25:$GJ25),0) -> 35049.1931 | X25: =IF($A25>0,SUMIF('Age profile (years)'!$CT25:$GF25,"<" & S25+0.5,'Asset data'!$CX25:$GJ25)-W25,0) -> 50459.30004 | Y25: =IF($A25>0,SUMIF('Age profile (years)'!$CT25:$GF25,"<" & T25+0.5,'Asset data'!$CX25:$GJ25)-X25-W25,0) -> 880315.5872 | Z25: =IF($A25>0,SUMIF('Age profile (years)'!$CT25:$GF25,"<" & U25+0.5,'Asset data'!$CX25:$GJ25)-Y25-X25-W25,0) -> 351194.8642 | AA25: 283769.4666 | AB25: 0.02189495679 | AC25: 0.03152153007 | AD25: 0.549926262 | AE25: 0.2193886848 | AF25: 0.1772685663 | AI25: =IF($A25>0,'RRR hist-forc'!K25,0) -> 63.50996647 | AJ25: 101666018.3
A26: ='Asset data'!A26 -> 1 | B26: ='Asset data'!B26 -> 0 | C26: ='Asset data'!C26 -> 0 | D26: ='Asset data'!E26 -> > 22 kv & < = 66 kv; wood | E26: POLES | F26: =IF(A26>0,SUM('Asset data'!J26:CV26),0) -> 50149.60402 | G26: =IF(A26>0,'Asset data'!F26,0) -> 8.221012496 | H26: =IF(A26>0,SUM('Asset data'!CX26:GJ26),0) -> 412280.5213 | I26: 0.01807661378 | J26: 15 | K26: 0.07491065472 | L26: 8.221012496 | M26: =IF($A26>0,SUMPRODUCT('Age profile (years)'!$CT26:$GF26,'Asset data'!$CX26:$GJ26)/H26-0.5,0) -> 32.35677747 | N26: 13340069.08 | O26: =IF($A26>0,'Asset data'!G26,0) -> 65.03434649 | P26: 26812394.27 | Q26: 0.502466324 | R26: 6.503434649 | S26: 13.0068693 | T26: 39.02060789 | U26: 52.02747719 | W26: =IF($A26>0,SUMIF('Age profile (years)'!$CT26:$GF26,"<" & R26+0.5,'Asset data'!$CX26:$GJ26),0) -> 22184.72771 | X26: =IF($A26>0,SUMIF('Age profile (years)'!$CT26:$GF26,"<" & S26+0.5,'Asset data'!$CX26:$GJ26)-W26,0) -> 19032.3162 | Y26: =IF($A26>0,SUMIF('Age profile (years)'!$CT26:$GF26,"<" & T26+0.5,'Asset data'!$CX26:$GJ26)-X26-W26,0) -> 219229.5976 | Z26: =IF($A26>0,SUMIF('Age profile (years)'!$CT26:$GF26,"<" & U26+0.5,'Asset data'!$CX26:$GJ26)-Y26-X26-W26,0) -> 90759.97795 | AA26: 61073.90183 | AB26: 0.05380978864 | AC26: 0.04616351058 | AD26: 0.5317486184 | AE26: 0.2201413195 | AF26: 0.1481367629 | AI26: =IF($A26>0,'RRR hist-forc'!K26,0) -> 65.03434649 | AJ26: 26812394.27
A27: ='Asset data'!A27 -> 1 | B27: ='Asset data'!B27 -> 0 | C27: ='Asset data'!C27 -> 0 | D27: ='Asset data'!E27 -> > 66 kv & < = 132 kv; wood | E27: POLES | F27: =IF(A27>0,SUM('Asset data'!J27:CV27),0) -> 4615 | G27: =IF(A27>0,'Asset data'!F27,0) -> 9.5042 | H27: =IF(A27>0,SUM('Asset data'!CX27:GJ27),0) -> 43861.883 | I27: 0.001923142807 | J27: 38 | K27: 0.007969627967 | L27: 9.5042 | M27: =IF($A27>0,SUMPRODUCT('Age profile (years)'!$CT27:$GF27,'Asset data'!$CX27:$GJ27)/H27-0.5,0) -> 20.41614301 | N27: 895490.4761 | O27: =IF($A27>0,'Asset data'!G27,0) -> 61.23787164 | P27: 2686008.361 | Q27: 0.6666092001 | R27: 6.123787164 | S27: 12.24757433 | T27: 36.74272298 | U27: 48.99029731 | W27: =IF($A27>0,SUMIF('Age profile (years)'!$CT27:$GF27,"<" & R27+0.5,'Asset data'!$CX27:$GJ27),0) -> 2452.0836 | X27: =IF($A27>0,SUMIF('Age profile (years)'!$CT27:$GF27,"<" & S27+0.5,'Asset data'!$CX27:$GJ27)-W27,0) -> 1482.6552 | Y27: =IF($A27>0,SUMIF('Age profile (years)'!$CT27:$GF27,"<" & T27+0.5,'Asset data'!$CX27:$GJ27)-X27-W27,0) -> 34452.725 | Z27: =IF($A27>0,SUMIF('Age profile (years)'!$CT27:$GF27,"<" & U27+0.5,'Asset data'!$CX27:$GJ27)-Y27-X27-W27,0) -> 3602.0918 | AA27: 1872.3274 | AB27: 0.05590465872 | AC27: 0.0338028169 | AD27: 0.7854821235 | AE27: 0.08212351029 | AF27: 0.04268689057 | AI27: =IF($A27>0,'RRR hist-forc'!K27,0) -> 61.23787164 | AJ27: 2686008.361
A28: ='Asset data'!A28 -> 0 | B28: ='Asset data'!B28 -> 0 | C28: ='Asset data'!C28 -> 0 | D28: ='Asset data'!E28 -> > 132 kv; wood | E28: 0 | F28: =IF(A28>0,SUM('Asset data'!J28:CV28),0) -> 0 | G28: =IF(A28>0,'Asset data'!F28,0) -> 0 | H28: =IF(A28>0,SUM('Asset data'!CX28:GJ28),0) -> 0 | I28: 0 | J28: 0 | K28: 0 | L28: 0 | M28: =IF($A28>0,SUMPRODUCT('Age profile (years)'!$CT28:$GF28,'Asset data'!$CX28:$GJ28)/H28-0.5,0) -> 0 | N28: 0 | O28: =IF($A28>0,'Asset data'!G28,0) -> 0 | P28: 0 | Q28: 0 | R28: 0 | S28: 0 | T28: 0 | U28: 0 | W28: =IF($A28>0,SUMIF('Age profile (years)'!$CT28:$GF28,"<" & R28+0.5,'Asset data'!$CX28:$GJ28),0) -> 0 | X28: =IF($A28>0,SUMIF('Age profile (years)'!$CT28:$GF28,"<" & S28+0.5,'Asset data'!$CX28:$GJ28)-W28,0) -> 0 | Y28: =IF($A28>0,SUMIF('Age profile (years)'!$CT28:$GF28,"<" & T28+0.5,'Asset data'!$CX28:$GJ28)-X28-W28,0) -> 0 | Z28: =IF($A28>0,SUMIF('Age profile (years)'!$CT28:$GF28,"<" & U28+0.5,'Asset data'!$CX28:$GJ28)-Y28-X28-W28,0) -> 0 | AA28: 0 | AB28: 0 | AC28: 0 | AD28: 0 | AE28: 0 | AF28: 0 | AI28: =IF($A28>0,'RRR hist-forc'!K28,0) -> 0 | AJ28: 0
A29: ='Asset data'!A29 -> 1 | B29: ='Asset data'!B29 -> 0 | C29: ='Asset data'!C29 -> 0 | D29: ='Asset data'!E29 -> ˂ = 1 kv; concrete | E29: POLES | F29: =IF(A29>0,SUM('Asset data'!J29:CV29),0) -> 3165 | G29: =IF(A29>0,'Asset data'!F29,0) -> 9.6433 | H29: =IF(A29>0,SUM('Asset data'!CX29:GJ29),0) -> 30521.0445 | I29: 0.001338208102 | J29: 42 | K29: 0.00554562078 | L29: 9.6433 | M29: =IF($A29>0,SUMPRODUCT('Age profile (years)'!$CT29:$GF29,'Asset data'!$CX29:$GJ29)/H29-0.5,0) -> 27.91105845 | N29: 851874.6571 | O29: =IF($A29>0,'Asset data'!G29,0) -> 46.68537118 | P29: 1424886.291 | Q29: 0.402145517 | R29: 4.668537118 | S29: 9.337074237 | T29: 28.01122271 | U29: 37.34829695 | W29: =IF($A29>0,SUMIF('Age profile (years)'!$CT29:$GF29,"<" & R29+0.5,'Asset data'!$CX29:$GJ29),0) -> 684.6743 | X29: =IF($A29>0,SUMIF('Age profile (years)'!$CT29:$GF29,"<" & S29+0.5,'Asset data'!$CX29:$GJ29)-W29,0) -> 135.0062 | Y29: =IF($A29>0,SUMIF('Age profile (years)'!$CT29:$GF29,"<" & T29+0.5,'Asset data'!$CX29:$GJ29)-X29-W29,0) -> 15188.1975 | Z29: =IF($A29>0,SUMIF('Age profile (years)'!$CT29:$GF29,"<" & U29+0.5,'Asset data'!$CX29:$GJ29)-Y29-X29-W29,0) -> 9267.2113 | AA29: 5245.9552 | AB29: 0.0224328594 | AC29: 0.004423380727 | AD29: 0.4976303318 | AE29: 0.3036334913 | AF29: 0.1718799368 | AI29: =IF($A29>0,'RRR hist-forc'!K29,0) -> 46.68537118 | AJ29: 1424886.291
A30: ='Asset data'!A30 -> 1 | B30: ='Asset data'!B30 -> 0 | C30: ='Asset data'!C30 -> 0 | D30: ='Asset data'!E30 -> > 1 kv & < = 11 kv; concrete | E30: POLES | F30: =IF(A30>0,SUM('Asset data'!J30:CV30),0) -> 1298 | G30: =IF(A30>0,'Asset data'!F30,0) -> 11.451 | H30: =IF(A30>0,SUM('Asset data'!CX30:GJ30),0) -> 14863.398 | I30: 0.0006516919701 | J30: 46 | K30: 0.002700653604 | L30: 11.451 | M30: =IF($A30>0,SUMPRODUCT('Age profile (years)'!$CT30:$GF30,'Asset data'!$CX30:$GJ30)/H30-0.5,0) -> 29.04930663 | N30: 431771.406 | O30: =IF($A30>0,'Asset data'!G30,0) -> 48.86816162 | P30: 726346.9357 | Q30: 0.4055576133 | R30: 4.886816162 | S30: 9.773632324 | T30: 29.32089697 | U30: 39.0945293 | W30: =IF($A30>0,SUMIF('Age profile (years)'!$CT30:$GF30,"<" & R30+0.5,'Asset data'!$CX30:$GJ30),0) -> 114.51 | X30: =IF($A30>0,SUMIF('Age profile (years)'!$CT30:$GF30,"<" & S30+0.5,'Asset data'!$CX30:$GJ30)-W30,0) -> 91.608 | Y30: =IF($A30>0,SUMIF('Age profile (years)'!$CT30:$GF30,"<" & T30+0.5,'Asset data'!$CX30:$GJ30)-X30-W30,0) -> 7065.267 | Z30: =IF($A30>0,SUMIF('Age profile (years)'!$CT30:$GF30,"<" & U30+0.5,'Asset data'!$CX30:$GJ30)-Y30-X30-W30,0) -> 4981.185 | AA30: 2610.828 | AB30: 0.007704160247 | AC30: 0.006163328197 | AD30: 0.4753466872 | AE30: 0.3351309707 | AF30: 0.1756548536 | AI30: =IF($A30>0,'RRR hist-forc'!K30,0) -> 48.86816162 | AJ30: 726346.9357
A31: ='Asset data'!A31 -> 1 | B31: ='Asset data'!B31 -> 0 | C31: ='Asset data'!C31 -> 0 | D31: ='Asset data'!E31 -> ˃ 11 kv & < = 22 kv; concrete | E31: POLES | F31: =IF(A31>0,SUM('Asset data'!J31:CV31),0) -> 8201 | G31: =IF(A31>0,'Asset data'!F31,0) -> 12.0464 | H31: =IF(A31>0,SUM('Asset data'!CX31:GJ31),0) -> 98792.5264 | I31: 0.004331600093 | J31: 32 | K31: 0.01795043048 | L31: 12.0464 | M31: =IF($A31>0,SUMPRODUCT('Age profile (years)'!$CT31:$GF31,'Asset data'!$CX31:$GJ31)/H31-0.5,0) -> 26.5781612 | N31: 2625723.692 | O31: =IF($A31>0,'Asset data'!G31,0) -> 44.45196021 | P31: 4391521.453 | Q31: 0.402092482 | R31: 4.445196021 | S31: 8.890392043 | T31: 26.67117613 | U31: 35.56156817 | W31: =IF($A31>0,SUMIF('Age profile (years)'!$CT31:$GF31,"<" & R31+0.5,'Asset data'!$CX31:$GJ31),0) -> 120.464 | X31: =IF($A31>0,SUMIF('Age profile (years)'!$CT31:$GF31,"<" & S31+0.5,'Asset data'!$CX31:$GJ31)-W31,0) -> 84.3248 | Y31: =IF($A31>0,SUMIF('Age profile (years)'!$CT31:$GF31,"<" & T31+0.5,'Asset data'!$CX31:$GJ31)-X31-W31,0) -> 27526.024 | Z31: =IF($A31>0,SUMIF('Age profile (years)'!$CT31:$GF31,"<" & U31+0.5,'Asset data'!$CX31:$GJ31)-Y31-X31-W31,0) -> 70567.8112 | AA31: 493.9024 | AB31: 0.001219363492 | AC31: 0.0008535544446 | AD31: 0.278624558 | AE31: 0.7143031338 | AF31: 0.004999390318 | AI31: =IF($A31>0,'RRR hist-forc'!K31,0) -> 44.45196021 | AJ31: 4391521.453
A32: ='Asset data'!A32 -> 1 | B32: ='Asset data'!B32 -> 0 | C32: ='Asset data'!C32 -> 0 | D32: ='Asset data'!E32 -> > 22 kv & < = 66 kv; concrete | E32: POLES | F32: =IF(A32>0,SUM('Asset data'!J32:CV32),0) -> 13371 | G32: =IF(A32>0,'Asset data'!F32,0) -> 20.1887 | H32: =IF(A32>0,SUM('Asset data'!CX32:GJ32),0) -> 269943.1077 | I32: 0.0118357697 | J32: 19 | K32: 0.04904819387 | L32: 20.1887 | M32: =IF($A32>0,SUMPRODUCT('Age profile (years)'!$CT32:$GF32,'Asset data'!$CX32:$GJ32)/H32-0.5,0) -> 21.91889163 | N32: 5916853.724 | O32: =IF($A32>0,'Asset data'!G32,0) -> 43.63518228 | P32: 11779016.71 | Q32: 0.4976784676 | R32: 4.363518228 | S32: 8.727036456 | T32: 26.18110937 | U32: 34.90814583 | W32: =IF($A32>0,SUMIF('Age profile (years)'!$CT32:$GF32,"<" & R32+0.5,'Asset data'!$CX32:$GJ32),0) -> 222.0757 | X32: =IF($A32>0,SUMIF('Age profile (years)'!$CT32:$GF32,"<" & S32+0.5,'Asset data'!$CX32:$GJ32)-W32,0) -> 181.6983 | Y32: =IF($A32>0,SUMIF('Age profile (years)'!$CT32:$GF32,"<" & T32+0.5,'Asset data'!$CX32:$GJ32)-X32-W32,0) -> 174268.8584 | Z32: =IF($A32>0,SUMIF('Age profile (years)'!$CT32:$GF32,"<" & U32+0.5,'Asset data'!$CX32:$GJ32)-Y32-X32-W32,0) -> 76353.6634 | AA32: 18916.8119 | AB32: 0.0008226759405 | AC32: 0.0006730984967 | AD32: 0.6455762471 | AE32: 0.2828509461 | AF32: 0.07007703238 | AI32: =IF($A32>0,'RRR hist-forc'!K32,0) -> 43.63518228 | AJ32: 11779016.71
A33: ='Asset data'!A33 -> 1 | B33: ='Asset data'!B33 -> 0 | C33: ='Asset data'!C33 -> 0 | D33: ='Asset data'!E33 -> > 66 kv & < = 132 kv; concrete | E33: POLES | F33: =IF(A33>0,SUM('Asset data'!J33:CV33),0) -> 4862 | G33: =IF(A33>0,'Asset data'!F33,0) -> 14.4174 | H33: =IF(A33>0,SUM('Asset data'!CX33:GJ33),0) -> 70097.3988 | I33: 0.00307345009 | J33: 35 | K33: 0.01273657563 | L33: 14.4174 | M33: =IF($A33>0,SUMPRODUCT('Age profile (years)'!$CT33:$GF33,'Asset data'!$CX33:$GJ33)/H33-0.5,0) -> 18.44529 | N33: 1292966.849 | O33: =IF($A33>0,'Asset data'!G33,0) -> 38.67900718 | P33: 2711297.792 | Q33: 0.5231188351 | R33: 3.867900718 | S33: 7.735801437 | T33: 23.20740431 | U33: 30.94320575 | W33: =IF($A33>0,SUMIF('Age profile (years)'!$CT33:$GF33,"<" & R33+0.5,'Asset data'!$CX33:$GJ33),0) -> 0 | X33: =IF($A33>0,SUMIF('Age profile (years)'!$CT33:$GF33,"<" & S33+0.5,'Asset data'!$CX33:$GJ33)-W33,0) -> 562.2786 | Y33: =IF($A33>0,SUMIF('Age profile (years)'!$CT33:$GF33,"<" & T33+0.5,'Asset data'!$CX33:$GJ33)-X33-W33,0) -> 41291.4336 | Z33: =IF($A33>0,SUMIF('Age profile (years)'!$CT33:$GF33,"<" & U33+0.5,'Asset data'!$CX33:$GJ33)-Y33-X33-W33,0) -> 21582.8478 | AA33: 6660.8388 | AB33: 0 | AC33: 0.008021390374 | AD33: 0.5890580008 | AE33: 0.3078979844 | AF33: 0.09502262443 | AI33: =IF($A33>0,'RRR hist-forc'!K33,0) -> 38.67900718 | AJ33: 2711297.792
A34: ='Asset data'!A34 -> 0 | B34: ='Asset data'!B34 -> 0 | C34: ='Asset data'!C34 -> 0 | D34: ='Asset data'!E34 -> > 132 kv; concrete | E34: 0 | F34: =IF(A34>0,SUM('Asset data'!J34:CV34),0) -> 0 | G34: =IF(A34>0,'Asset data'!F34,0) -> 0 | H34: =IF(A34>0,SUM('Asset data'!CX34:GJ34),0) -> 0 | I34: 0 | J34: 0 | K34: 0 | L34: 0 | M34: =IF($A34>0,SUMPRODUCT('Age profile (years)'!$CT34:$GF34,'Asset data'!$CX34:$GJ34)/H34-0.5,0) -> 0 | N34: 0 | O34: =IF($A34>0,'Asset data'!G34,0) -> 0 | P34: 0 | Q34: 0 | R34: 0 | S34: 0 | T34: 0 | U34: 0 | W34: =IF($A34>0,SUMIF('Age profile (years)'!$CT34:$GF34,"<" & R34+0.5,'Asset data'!$CX34:$GJ34),0) -> 0 | X34: =IF($A34>0,SUMIF('Age profile (years)'!$CT34:$GF34,"<" & S34+0.5,'Asset data'!$CX34:$GJ34)-W34,0) -> 0 | Y34: =IF($A34>0,SUMIF('Age profile (years)'!$CT34:$GF34,"<" & T34+0.5,'Asset data'!$CX34:$GJ34)-X34-W34,0) -> 0 | Z34: =IF($A34>0,SUMIF('Age profile (years)'!$CT34:$GF34,"<" & U34+0.5,'Asset data'!$CX34:$GJ34)-Y34-X34-W34,0) -> 0 | AA34: 0 | AB34: 0 | AC34: 0 | AD34: 0 | AE34: 0 | AF34: 0 | AI34: =IF($A34>0,'RRR hist-forc'!K34,0) -> 0 | AJ34: 0
A35: ='Asset data'!A35 -> 1 | B35: ='Asset data'!B35 -> 0 | C35: ='Asset data'!C35 -> 0 | D35: ='Asset data'!E35 -> ˂ = 1 kv; steel | E35: POLES | F35: =IF(A35>0,SUM('Asset data'!J35:CV35),0) -> 63247 | G35: =IF(A35>0,'Asset data'!F35,0) -> 8.3532 | H35: =IF(A35>0,SUM('Asset data'!CX35:GJ35),0) -> 528314.8404 | I35: 0.02316418757 | J35: 12 | K35: 0.09599388899 | L35: 8.3532 | M35: =IF($A35>0,SUMPRODUCT('Age profile (years)'!$CT35:$GF35,'Asset data'!$CX35:$GJ35)/H35-0.5,0) -> 34.44708049 | N35: 18198903.83 | O35: =IF($A35>0,'Asset data'!G35,0) -> 45.56550809 | P35: 24072934.13 | Q35: 0.2440097359 | R35: 4.556550809 | S35: 9.113101618 | T35: 27.33930485 | U35: 36.45240647 | W35: =IF($A35>0,SUMIF('Age profile (years)'!$CT35:$GF35,"<" & R35+0.5,'Asset data'!$CX35:$GJ35),0) -> 3048.918 | X35: =IF($A35>0,SUMIF('Age profile (years)'!$CT35:$GF35,"<" & S35+0.5,'Asset data'!$CX35:$GJ35)-W35,0) -> 1319.8056 | Y35: =IF($A35>0,SUMIF('Age profile (years)'!$CT35:$GF35,"<" & T35+0.5,'Asset data'!$CX35:$GJ35)-X35-W35,0) -> 81811.2408 | Z35: =IF($A35>0,SUMIF('Age profile (years)'!$CT35:$GF35,"<" & U35+0.5,'Asset data'!$CX35:$GJ35)-Y35-X35-W35,0) -> 171482.8428 | AA35: 270652.0332 | AB35: 0.005771024713 | AC35: 0.002498142204 | AD35: 0.1548531946 | AE35: 0.3245845653 | AF35: 0.5122930732 | AI35: =IF($A35>0,'RRR hist-forc'!K35,0) -> 45.56550809 | AJ35: 24072934.13
A36: ='Asset data'!A36 -> 1 | B36: ='Asset data'!B36 -> 0 | C36: ='Asset data'!C36 -> 0 | D36: ='Asset data'!E36 -> > 1 kv & < = 11 kv; steel | E36: POLES | F36: =IF(A36>0,SUM('Asset data'!J36:CV36),0) -> 1361 | G36: =IF(A36>0,'Asset data'!F36,0) -> 8.5021 | H36: =IF(A36>0,SUM('Asset data'!CX36:GJ36),0) -> 11571.3581 | I36: 0.0005073510887 | J36: 50 | K36: 0.002102495671 | L36: 8.5021 | M36: =IF($A36>0,SUMPRODUCT('Age profile (years)'!$CT36:$GF36,'Asset data'!$CX36:$GJ36)/H36-0.5,0) -> 20.18772961 | N36: 233599.4486 | O36: =IF($A36>0,'Asset data'!G36,0) -> 39.12798294 | P36: 452763.9023 | Q36: 0.4840590264 | R36: 3.912798294 | S36: 7.825596588 | T36: 23.47678976 | U36: 31.30238635 | W36: =IF($A36>0,SUMIF('Age profile (years)'!$CT36:$GF36,"<" & R36+0.5,'Asset data'!$CX36:$GJ36),0) -> 1547.3822 | X36: =IF($A36>0,SUMIF('Age profile (years)'!$CT36:$GF36,"<" & S36+0.5,'Asset data'!$CX36:$GJ36)-W36,0) -> 476.1176 | Y36: =IF($A36>0,SUMIF('Age profile (years)'!$CT36:$GF36,"<" & T36+0.5,'Asset data'!$CX36:$GJ36)-X36-W36,0) -> 3936.4723 | Z36: =IF($A36>0,SUMIF('Age profile (years)'!$CT36:$GF36,"<" & U36+0.5,'Asset data'!$CX36:$GJ36)-Y36-X36-W36,0) -> 3273.3085 | AA36: 2338.0775 | AB36: 0.1337252021 | AC36: 0.04114621602 | AD36: 0.340191036 | AE36: 0.2828802351 | AF36: 0.2020573108 | AI36: =IF($A36>0,'RRR hist-forc'!K36,0) -> 39.12798294 | AJ36: 452763.9023
A37: ='Asset data'!A37 -> 1 | B37: ='Asset data'!B37 -> 0 | C37: ='Asset data'!C37 -> 0 | D37: ='Asset data'!E37 -> ˃ 11 kv & < = 22 kv; steel | E37: POLES | F37: =IF(A37>0,SUM('Asset data'!J37:CV37),0) -> 170 | G37: =IF(A37>0,'Asset data'!F37,0) -> 9.2244 | H37: =IF(A37>0,SUM('Asset data'!CX37:GJ37),0) -> 1568.148 | I37: 6.875611213e-05 | J37: 53 | K37: 0.0002849297682 | L37: 9.2244 | M37: =IF($A37>0,SUMPRODUCT('Age profile (years)'!$CT37:$GF37,'Asset data'!$CX37:$GJ37)/H37-0.5,0) -> 2.876470588 | N37: 4510.7316 | O37: =IF($A37>0,'Asset data'!G37,0) -> 17.80820018 | P37: 27925.8935 | Q37: 0.8384749408 | R37: =IF($A37>0,$O37-R$4*$O37,0) -> 1.780820018 | S37: 3.561640037 | T37: 10.68492011 | U37: 14.24656015 | W37: =IF($A37>0,SUMIF('Age profile (years)'!$CT37:$GF37,"<" & R37+0.5,'Asset data'!$CX37:$GJ37),0) -> 553.464 | X37: =IF($A37>0,SUMIF('Age profile (years)'!$CT37:$GF37,"<" & S37+0.5,'Asset data'!$CX37:$GJ37)-W37,0) -> 55.3464 | Y37: =IF($A37>0,SUMIF('Age profile (years)'!$CT37:$GF37,"<" & T37+0.5,'Asset data'!$CX37:$GJ37)-X37-W37,0) -> 276.732 | Z37: =IF($A37>0,SUMIF('Age profile (years)'!$CT37:$GF37,"<" & U37+0.5,'Asset data'!$CX37:$GJ37)-Y37-X37-W37,0) -> 507.342 | AA37: 175.2636 | AB37: 0.3529411765 | AC37: 0.03529411765 | AD37: 0.1764705882 | AE37: 0.3235294118 | AF37: 0.1117647059 | AI37: =IF($A37>0,'RRR hist-forc'!K37,0) -> 17.80820018 | AJ37: 27925.8935
A38: ='Asset data'!A38 -> 1 | B38: ='Asset data'!B38 -> 0 | C38: ='Asset data'!C38 -> 0 | D38: ='Asset data'!E38 -> > 22 kv & < = 66 kv; steel | E38: POLES | F38: =IF(A38>0,SUM('Asset data'!J38:CV38),0) -> 2061 | G38: =IF(A38>0,'Asset data'!F38,0) -> 19.8345 | H38: =IF(A38>0,SUM('Asset data'!CX38:GJ38),0) -> 40878.9045 | I38: 0.001792352853 | J38: 40 | K38: 0.007427625954 | L38: 19.8345 | M38: =IF($A38>0,SUMPRODUCT('Age profile (years)'!$CT38:$GF38,'Asset data'!$CX38:$GJ38)/H38-0.5,0) -> -29.37869966 | N38: -1200969.058 | O38: =IF($A38>0,'Asset data'!G38,0) -> 10.31213953 | P38: 421548.967 | Q38: 3.848943187 | R38: 1.031213953 | S38: 2.062427906 | T38: 6.187283718 | U38: 8.249711624 | W38: =IF($A38>0,SUMIF('Age profile (years)'!$CT38:$GF38,"<" & R38+0.5,'Asset data'!$CX38:$GJ38),0) -> 35702.1 | X38: =IF($A38>0,SUMIF('Age profile (years)'!$CT38:$GF38,"<" & S38+0.5,'Asset data'!$CX38:$GJ38)-W38,0) -> 674.373 | Y38: =IF($A38>0,SUMIF('Age profile (years)'!$CT38:$GF38,"<" & T38+0.5,'Asset data'!$CX38:$GJ38)-X38-W38,0) -> 2618.154 | Z38: =IF($A38>0,SUMIF('Age profile (years)'!$CT38:$GF38,"<" & U38+0.5,'Asset data'!$CX38:$GJ38)-Y38-X38-W38,0) -> 1269.408 | AA38: 614.8695 | AB38: 0.8733624454 | AC38: 0.01649684619 | AD38: 0.06404657933 | AE38: 0.03105288695 | AF38: 0.01504124212 | AI38: =IF($A38>0,'RRR hist-forc'!K38,0) -> 10.31213953 | AJ38: 421548.967
A39: ='Asset data'!A39 -> 1 | B39: ='Asset data'!B39 -> 0 | C39: ='Asset data'!C39 -> 0 | D39: ='Asset data'!E39 -> > 66 kv & < = 132 kv; steel | E39: POLES | F39: =IF(A39>0,SUM('Asset data'!J39:CV39),0) -> 804 | G39: =IF(A39>0,'Asset data'!F39,0) -> 15.0808 | H39: =IF(A39>0,SUM('Asset data'!CX39:GJ39),0) -> 12124.9632 | I39: 0.0005316241384 | J39: 49 | K39: 0.002203084756 | L39: 15.0808 | M39: =IF($A39>0,SUMPRODUCT('Age profile (years)'!$CT39:$GF39,'Asset data'!$CX39:$GJ39)/H39-0.5,0) -> 63.91666667 | N39: 774987.2312 | O39: =IF($A39>0,'Asset data'!G39,0) -> 92.06183048 | P39: 1116246.307 | Q39: 0.3057202281 | R39: 9.206183048 | S39: 18.4123661 | T39: 55.23709829 | U39: 73.64946438 | W39: =IF($A39>0,SUMIF('Age profile (years)'!$CT39:$GF39,"<" & R39+0.5,'Asset data'!$CX39:$GJ39),0) -> 0 | X39: =IF($A39>0,SUMIF('Age profile (years)'!$CT39:$GF39,"<" & S39+0.5,'Asset data'!$CX39:$GJ39)-W39,0) -> 0 | Y39: =IF($A39>0,SUMIF('Age profile (years)'!$CT39:$GF39,"<" & T39+0.5,'Asset data'!$CX39:$GJ39)-X39-W39,0) -> 980.252 | Z39: =IF($A39>0,SUMIF('Age profile (years)'!$CT39:$GF39,"<" & U39+0.5,'Asset data'!$CX39:$GJ39)-Y39-X39-W39,0) -> 10692.2872 | AA39: 452.424 | AB39: 0 | AC39: 0 | AD39: 0.08084577114 | AE39: 0.881840796 | AF39: 0.03731343284 | AI39: =IF($A39>0,'RRR hist-forc'!K39,0) -> 92.06183048 | AJ39: 1116246.307
A40: ='Asset data'!A40 -> 0 | B40: ='Asset data'!B40 -> 0 | C40: ='Asset data'!C40 -> 0 | D40: ='Asset data'!E40 -> > 132 kv; steel | E40: 0 | F40: =IF(A40>0,SUM('Asset data'!J40:CV40),0) -> 0 | G40: =IF(A40>0,'Asset data'!F40,0) -> 0 | H40: =IF(A40>0,SUM('Asset data'!CX40:GJ40),0) -> 0 | I40: 0 | J40: 0 | K40: 0 | L40: 0 | M40: =IF($A40>0,SUMPRODUCT('Age profile (years)'!$CT40:$GF40,'Asset data'!$CX40:$GJ40)/H40-0.5,0) -> 0 | N40: 0 | O40: =IF($A40>0,'Asset data'!G40,0) -> 0 | P40: 0 | Q40: 0 | R40: 0 | S40: 0 | T40: 0 | U40: 0 | W40: =IF($A40>0,SUMIF('Age profile (years)'!$CT40:$GF40,"<" & R40+0.5,'Asset data'!$CX40:$GJ40),0) -> 0 | X40: =IF($A40>0,SUMIF('Age profile (years)'!$CT40:$GF40,"<" & S40+0.5,'Asset data'!$CX40:$GJ40)-W40,0) -> 0 | Y40: =IF($A40>0,SUMIF('Age profile (years)'!$CT40:$GF40,"<" & T40+0.5,'Asset data'!$CX40:$GJ40)-X40-W40,0) -> 0 | Z40: =IF($A40>0,SUMIF('Age profile (years)'!$CT40:$GF40,"<" & U40+0.5,'Asset data'!$CX40:$GJ40)-Y40-X40-W40,0) -> 0 | AA40: 0 | AB40: 0 | AC40: 0 | AD40: 0 | AE40: 0 | AF40: 0 | AI40: =IF($A40>0,'RRR hist-forc'!K40,0) -> 0 | AJ40: 0
A41: ='Asset data'!A41 -> 0 | B41: ='Asset data'!B41 -> 0 | C41: ='Asset data'!C41 -> 0 | D41: ='Asset data'!E41 -> other | E41: 0 | F41: =IF(A41>0,SUM('Asset data'!J41:CV41),0) -> 0 | G41: =IF(A41>0,'Asset data'!F41,0) -> 0 | H41: =IF(A41>0,SUM('Asset data'!CX41:GJ41),0) -> 0 | I41: 0 | J41: 0 | K41: 0 | L41: 0 | M41: =IF($A41>0,SUMPRODUCT('Age profile (years)'!$CT41:$GF41,'Asset data'!$CX41:$GJ41)/H41-0.5,0) -> 0 | N41: 0 | O41: =IF($A41>0,'Asset data'!G41,0) -> 0 | P41: 0 | Q41: 0 | R41: 0 | S41: 0 | T41: 0 | U41: 0 | W41: =IF($A41>0,SUMIF('Age profile (years)'!$CT41:$GF41,"<" & R41+0.5,'Asset data'!$CX41:$GJ41),0) -> 0 | X41: =IF($A41>0,SUMIF('Age profile (years)'!$CT41:$GF41,"<" & S41+0.5,'Asset data'!$CX41:$GJ41)-W41,0) -> 0 | Y41: =IF($A41>0,SUMIF('Age profile (years)'!$CT41:$GF41,"<" & T41+0.5,'Asset data'!$CX41:$GJ41)-X41-W41,0) -> 0 | Z41: =IF($A41>0,SUMIF('Age profile (years)'!$CT41:$GF41,"<" & U41+0.5,'Asset data'!$CX41:$GJ41)-Y41-X41-W41,0) -> 0 | AA41: 0 | AB41: 0 | AC41: 0 | AD41: 0 | AE41: 0 | AF41: 0 | AI41: =IF($A41>0,'RRR hist-forc'!K41,0) -> 0 | AJ41: 0
A42: ='Asset data'!A42 -> 0 | B42: ='Asset data'!B42 -> 0 | C42: ='Asset data'!C42 -> 0 | D42: ='Asset data'!E42 -> ˂ = 1 kv | E42: 0 | F42: =IF(A42>0,SUM('Asset data'!J42:CV42),0) -> 0 | G42: =IF(A42>0,'Asset data'!F42,0) -> 0 | H42: =IF(A42>0,SUM('Asset data'!CX42:GJ42),0) -> 0 | I42: 0 | J42: 0 | K42: 0 | L42: 0 | M42: =IF($A42>0,SUMPRODUCT('Age profile (years)'!$CT42:$GF42,'Asset data'!$CX42:$GJ42)/H42-0.5,0) -> 0 | N42: 0 | O42: =IF($A42>0,'Asset data'!G42,0) -> 0 | P42: 0 | Q42: 0 | R42: 0 | S42: 0 | T42: 0 | U42: 0 | W42: =IF($A42>0,SUMIF('Age profile (years)'!$CT42:$GF42,"<" & R42+0.5,'Asset data'!$CX42:$GJ42),0) -> 0 | X42: =IF($A42>0,SUMIF('Age profile (years)'!$CT42:$GF42,"<" & S42+0.5,'Asset data'!$CX42:$GJ42)-W42,0) -> 0 | Y42: =IF($A42>0,SUMIF('Age profile (years)'!$CT42:$GF42,"<" & T42+0.5,'Asset data'!$CX42:$GJ42)-X42-W42,0) -> 0 | Z42: =IF($A42>0,SUMIF('Age profile (years)'!$CT42:$GF42,"<" & U42+0.5,'Asset data'!$CX42:$GJ42)-Y42-X42-W42,0) -> 0 | AA42: 0 | AB42: 0 | AC42: 0 | AD42: 0 | AE42: 0 | AF42: 0 | AI42: =IF($A42>0,'RRR hist-forc'!K42,0) -> 0 | AJ42: 0
A43: ='Asset data'!A43 -> 0 | B43: ='Asset data'!B43 -> 0 | C43: ='Asset data'!C43 -> 0 | D43: ='Asset data'!E43 -> > 1 kv & < = 11 kv | E43: 0 | F43: =IF(A43>0,SUM('Asset data'!J43:CV43),0) -> 0 | G43: =IF(A43>0,'Asset data'!F43,0) -> 0 | H43: =IF(A43>0,SUM('Asset data'!CX43:GJ43),0) -> 0 | I43: 0 | J43: 0 | K43: 0 | L43: 0 | M43: =IF($A43>0,SUMPRODUCT('Age profile (years)'!$CT43:$GF43,'Asset data'!$CX43:$GJ43)/H43-0.5,0) -> 0 | N43: 0 | O43: =IF($A43>0,'Asset data'!G43,0) -> 0 | P43: 0 | Q43: 0 | R43: 0 | S43: 0 | T43: 0 | U43: 0 | W43: =IF($A43>0,SUMIF('Age profile (years)'!$CT43:$GF43,"<" & R43+0.5,'Asset data'!$CX43:$GJ43),0) -> 0 | X43: =IF($A43>0,SUMIF('Age profile (years)'!$CT43:$GF43,"<" & S43+0.5,'Asset data'!$CX43:$GJ43)-W43,0) -> 0 | Y43: =IF($A43>0,SUMIF('Age profile (years)'!$CT43:$GF43,"<" & T43+0.5,'Asset data'!$CX43:$GJ43)-X43-W43,0) -> 0 | Z43: =IF($A43>0,SUMIF('Age profile (years)'!$CT43:$GF43,"<" & U43+0.5,'Asset data'!$CX43:$GJ43)-Y43-X43-W43,0) -> 0 | AA43: 0 | AB43: 0 | AC43: 0 | AD43: 0 | AE43: 0 | AF43: 0 | AI43: =IF($A43>0,'RRR hist-forc'!K43,0) -> 0 | AJ43: 0
A44: ='Asset data'!A44 -> 0 | B44: ='Asset data'!B44 -> 0 | C44: ='Asset data'!C44 -> 0 | D44: ='Asset data'!E44 -> ˃ 11 kv & < = 22 kv | E44: 0 | F44: =IF(A44>0,SUM('Asset data'!J44:CV44),0) -> 0 | G44: =IF(A44>0,'Asset data'!F44,0) -> 0 | H44: =IF(A44>0,SUM('Asset data'!CX44:GJ44),0) -> 0 | I44: 0 | J44: 0 | K44: 0 | L44: 0 | M44: =IF($A44>0,SUMPRODUCT('Age profile (years)'!$CT44:$GF44,'Asset data'!$CX44:$GJ44)/H44-0.5,0) -> 0 | N44: 0 | O44: =IF($A44>0,'Asset data'!G44,0) -> 0 | P44: 0 | Q44: 0 | R44: 0 | S44: 0 | T44: 0 | U44: 0 | W44: =IF($A44>0,SUMIF('Age profile (years)'!$CT44:$GF44,"<" & R44+0.5,'Asset data'!$CX44:$GJ44),0) -> 0 | X44: =IF($A44>0,SUMIF('Age profile (years)'!$CT44:$GF44,"<" & S44+0.5,'Asset data'!$CX44:$GJ44)-W44,0) -> 0 | Y44: =IF($A44>0,SUMIF('Age profile (years)'!$CT44:$GF44,"<" & T44+0.5,'Asset data'!$CX44:$GJ44)-X44-W44,0) -> 0 | Z44: =IF($A44>0,SUMIF('Age profile (years)'!$CT44:$GF44,"<" & U44+0.5,'Asset data'!$CX44:$GJ44)-Y44-X44-W44,0) -> 0 | AA44: 0 | AB44: 0 | AC44: 0 | AD44: 0 | AE44: 0 | AF44: 0 | AI44: =IF($A44>0,'RRR hist-forc'!K44,0) -> 0 | AJ44: 0
A45: ='Asset data'!A45 -> 0 | B45: ='Asset data'!B45 -> 0 | C45: ='Asset data'!C45 -> 0 | D45: ='Asset data'!E45 -> > 22 kv & < = 66 kv | E45: 0 | F45: =IF(A45>0,SUM('Asset data'!J45:CV45),0) -> 0 | G45: =IF(A45>0,'Asset data'!F45,0) -> 0 | H45: =IF(A45>0,SUM('Asset data'!CX45:GJ45),0) -> 0 | I45: 0 | J45: 0 | K45: 0 | L45: 0 | M45: =IF($A45>0,SUMPRODUCT('Age profile (years)'!$CT45:$GF45,'Asset data'!$CX45:$GJ45)/H45-0.5,0) -> 0 | N45: 0 | O45: =IF($A45>0,'Asset data'!G45,0) -> 0 | P45: 0 | Q45: 0 | R45: 0 | S45: 0 | T45: 0 | U45: 0 | W45: =IF($A45>0,SUMIF('Age profile (years)'!$CT45:$GF45,"<" & R45+0.5,'Asset data'!$CX45:$GJ45),0) -> 0 | X45: =IF($A45>0,SUMIF('Age profile (years)'!$CT45:$GF45,"<" & S45+0.5,'Asset data'!$CX45:$GJ45)-W45,0) -> 0 | Y45: =IF($A45>0,SUMIF('Age profile (years)'!$CT45:$GF45,"<" & T45+0.5,'Asset data'!$CX45:$GJ45)-X45-W45,0) -> 0 | Z45: =IF($A45>0,SUMIF('Age profile (years)'!$CT45:$GF45,"<" & U45+0.5,'Asset data'!$CX45:$GJ45)-Y45-X45-W45,0) -> 0 | AA45: 0 | AB45: 0 | AC45: 0 | AD45: 0 | AE45: 0 | AF45: 0 | AI45: =IF($A45>0,'RRR hist-forc'!K45,0) -> 0 | AJ45: 0
A46: ='Asset data'!A46 -> 0 | B46: ='Asset data'!B46 -> 0 | C46: ='Asset data'!C46 -> 0 | D46: ='Asset data'!E46 -> > 66 kv & < = 132 kv | E46: 0 | F46: =IF(A46>0,SUM('Asset data'!J46:CV46),0) -> 0 | G46: =IF(A46>0,'Asset data'!F46,0) -> 0 | H46: =IF(A46>0,SUM('Asset data'!CX46:GJ46),0) -> 0 | I46: 0 | J46: 0 | K46: 0 | L46: 0 | M46: =IF($A46>0,SUMPRODUCT('Age profile (years)'!$CT46:$GF46,'Asset data'!$CX46:$GJ46)/H46-0.5,0) -> 0 | N46: 0 | O46: =IF($A46>0,'Asset data'!G46,0) -> 0 | P46: 0 | Q46: 0 | R46: 0 | S46: 0 | T46: 0 | U46: 0 | W46: =IF($A46>0,SUMIF('Age profile (years)'!$CT46:$GF46,"<" & R46+0.5,'Asset data'!$CX46:$GJ46),0) -> 0 | X46: =IF($A46>0,SUMIF('Age profile (years)'!$CT46:$GF46,"<" & S46+0.5,'Asset data'!$CX46:$GJ46)-W46,0) -> 0 | Y46: =IF($A46>0,SUMIF('Age profile (years)'!$CT46:$GF46,"<" & T46+0.5,'Asset data'!$CX46:$GJ46)-X46-W46,0) -> 0 | Z46: =IF($A46>0,SUMIF('Age profile (years)'!$CT46:$GF46,"<" & U46+0.5,'Asset data'!$CX46:$GJ46)-Y46-X46-W46,0) -> 0 | AA46: 0 | AB46: 0 | AC46: 0 | AD46: 0 | AE46: 0 | AF46: 0 | AI46: =IF($A46>0,'RRR hist-forc'!K46,0) -> 0 | AJ46: 0
A47: ='Asset data'!A47 -> 0 | B47: ='Asset data'!B47 -> 0 | C47: ='Asset data'!C47 -> 0 | D47: ='Asset data'!E47 -> > 132 kv | E47: 0 | F47: =IF(A47>0,SUM('Asset data'!J47:CV47),0) -> 0 | G47: =IF(A47>0,'Asset data'!F47,0) -> 0 | H47: =IF(A47>0,SUM('Asset data'!CX47:GJ47),0) -> 0 | I47: 0 | J47: 0 | K47: 0 | L47: 0 | M47: =IF($A47>0,SUMPRODUCT('Age profile (years)'!$CT47:$GF47,'Asset data'!$CX47:$GJ47)/H47-0.5,0) -> 0 | N47: 0 | O47: =IF($A47>0,'Asset data'!G47,0) -> 0 | P47: 0 | Q47: 0 | R47: 0 | S47: 0 | T47: 0 | U47: 0 | W47: =IF($A47>0,SUMIF('Age profile (years)'!$CT47:$GF47,"<" & R47+0.5,'Asset data'!$CX47:$GJ47),0) -> 0 | X47: =IF($A47>0,SUMIF('Age profile (years)'!$CT47:$GF47,"<" & S47+0.5,'Asset data'!$CX47:$GJ47)-W47,0) -> 0 | Y47: =IF($A47>0,SUMIF('Age profile (years)'!$CT47:$GF47,"<" & T47+0.5,'Asset data'!$CX47:$GJ47)-X47-W47,0) -> 0 | Z47: =IF($A47>0,SUMIF('Age profile (years)'!$CT47:$GF47,"<" & U47+0.5,'Asset data'!$CX47:$GJ47)-Y47-X47-W47,0) -> 0 | AA47: 0 | AB47: 0 | AC47: 0 | AD47: 0 | AE47: 0 | AF47: 0 | AI47: =IF($A47>0,'RRR hist-forc'!K47,0) -> 0 | AJ47: 0
A48: ='Asset data'!A48 -> 0 | B48: ='Asset data'!B48 -> 0 | C48: ='Asset data'!C48 -> 0 | D48: ='Asset data'!E48 -> other | E48: 0 | F48: =IF(A48>0,SUM('Asset data'!J48:CV48),0) -> 0 | G48: =IF(A48>0,'Asset data'!F48,0) -> 0 | H48: =IF(A48>0,SUM('Asset data'!CX48:GJ48),0) -> 0 | I48: 0 | J48: 0 | K48: 0 | L48: 0 | M48: =IF($A48>0,SUMPRODUCT('Age profile (years)'!$CT48:$GF48,'Asset data'!$CX48:$GJ48)/H48-0.5,0) -> 0 | N48: 0 | O48: =IF($A48>0,'Asset data'!G48,0) -> 0 | P48: 0 | Q48: 0 | R48: 0 | S48: 0 | T48: 0 | U48: 0 | W48: =IF($A48>0,SUMIF('Age profile (years)'!$CT48:$GF48,"<" & R48+0.5,'Asset data'!$CX48:$GJ48),0) -> 0 | X48: =IF($A48>0,SUMIF('Age profile (years)'!$CT48:$GF48,"<" & S48+0.5,'Asset data'!$CX48:$GJ48)-W48,0) -> 0 | Y48: =IF($A48>0,SUMIF('Age profile (years)'!$CT48:$GF48,"<" & T48+0.5,'Asset data'!$CX48:$GJ48)-X48-W48,0) -> 0 | Z48: =IF($A48>0,SUMIF('Age profile (years)'!$CT48:$GF48,"<" & U48+0.5,'Asset data'!$CX48:$GJ48)-Y48-X48-W48,0) -> 0 | AA48: 0 | AB48: 0 | AC48: 0 | AD48: 0 | AE48: 0 | AF48: 0 | AI48: =IF($A48>0,'RRR hist-forc'!K48,0) -> 0 | AJ48: 0
A49: ='Asset data'!A49 -> 2 | B49: ='Asset data'!B49 -> 0 | C49: ='Asset data'!C49 -> 0 | D49: ='Asset data'!E49 -> ˂ = 1 kv | E49: OVERHEAD CONDUCTORS | F49: =IF(A49>0,SUM('Asset data'!J49:CV49),0) -> 22090.255 | G49: =IF(A49>0,'Asset data'!F49,0) -> 58.8903 | H49: =IF(A49>0,SUM('Asset data'!CX49:GJ49),0) -> 1300901.744 | I49: 0.05703858704 | J49: 5 | K49: 0.1271620378 | L49: 58.8903 | M49: =IF($A49>0,SUMPRODUCT('Age profile (years)'!$CT49:$GF49,'Asset data'!$CX49:$GJ49)/H49-0.5,0) -> 42.44185794 | N49: 55212687.01 | O49: =IF($A49>0,'Asset data'!G49,0) -> 77.71918519 | P49: 101105023.6 | Q49: 0.4539075798 | R49: 7.771918519 | S49: 15.54383704 | T49: 46.63151111 | U49: 62.17534815 | W49: =IF($A49>0,SUMIF('Age profile (years)'!$CT49:$GF49,"<" & R49+0.5,'Asset data'!$CX49:$GJ49),0) -> 0 | X49: =IF($A49>0,SUMIF('Age profile (years)'!$CT49:$GF49,"<" & S49+0.5,'Asset data'!$CX49:$GJ49)-W49,0) -> 80591.96445 | Y49: =IF($A49>0,SUMIF('Age profile (years)'!$CT49:$GF49,"<" & T49+0.5,'Asset data'!$CX49:$GJ49)-X49-W49,0) -> 720085.6189 | Z49: =IF($A49>0,SUMIF('Age profile (years)'!$CT49:$GF49,"<" & U49+0.5,'Asset data'!$CX49:$GJ49)-Y49-X49-W49,0) -> 281356.2996 | AA49: 218867.8611 | AB49: 0 | AC49: 0.06195084665 | AD49: 0.5535280602 | AE49: 0.2162779017 | AF49: 0.1682431914 | AI49: =IF($A49>0,'RRR hist-forc'!K49,0) -> 77.71918519 | AJ49: 101105023.6
A50: ='Asset data'!A50 -> 2 | B50: ='Asset data'!B50 -> 0 | C50: ='Asset data'!C50 -> 0 | D50: ='Asset data'!E50 -> > 1 kv & < = 11 kv | E50: OVERHEAD CONDUCTORS | F50: =IF(A50>0,SUM('Asset data'!J50:CV50),0) -> 36236.952 | G50: =IF(A50>0,'Asset data'!F50,0) -> 70.1647 | H50: =IF(A50>0,SUM('Asset data'!CX50:GJ50),0) -> 2542554.866 | I50: 0.1114793932 | J50: 2 | K50: 0.2485325733 | L50: 70.1647 | M50: =IF($A50>0,SUMPRODUCT('Age profile (years)'!$CT50:$GF50,'Asset data'!$CX50:$GJ50)/H50-0.5,0) -> 35.18704073 | N50: 89464981.63 | O50: =IF($A50>0,'Asset data'!G50,0) -> 72.96604648 | P50: 185520176.5 | Q50: 0.5177614462 | R50: 7.296604648 | S50: 14.5932093 | T50: 43.77962789 | U50: 58.37283719 | W50: =IF($A50>0,SUMIF('Age profile (years)'!$CT50:$GF50,"<" & R50+0.5,'Asset data'!$CX50:$GJ50),0) -> 1578.074268 | X50: =IF($A50>0,SUMIF('Age profile (years)'!$CT50:$GF50,"<" & S50+0.5,'Asset data'!$CX50:$GJ50)-W50,0) -> 464055.6437 | Y50: =IF($A50>0,SUMIF('Age profile (years)'!$CT50:$GF50,"<" & T50+0.5,'Asset data'!$CX50:$GJ50)-X50-W50,0) -> 1292701.803 | Z50: =IF($A50>0,SUMIF('Age profile (years)'!$CT50:$GF50,"<" & U50+0.5,'Asset data'!$CX50:$GJ50)-Y50-X50-W50,0) -> 411935.4101 | AA50: 372283.9348 | AB50: 0.0006206647844 | AC50: 0.1825154886 | AD50: 0.5084263158 | AE50: 0.1620163307 | AF50: 0.1464212001 | AI50: =IF($A50>0,'RRR hist-forc'!K50,0) -> 72.96604648 | AJ50: 185520176.5
A51: ='Asset data'!A51 -> 2 | B51: ='Asset data'!B51 -> 0 | C51: ='Asset data'!C51 -> 0 | D51: ='Asset data'!E51 -> ˃ 11 kv & < = 22 kv ; swer | E51: OVERHEAD CONDUCTORS | F51: =IF(A51>0,SUM('Asset data'!J51:CV51),0) -> 65741.788 | G51: =IF(A51>0,'Asset data'!F51,0) -> 36.2408 | H51: =IF(A51>0,SUM('Asset data'!CX51:GJ51),0) -> 2382534.991 | I51: 0.1044632541 | J51: 3 | K51: 0.2328907667 | L51: 36.2408 | M51: =IF($A51>0,SUMPRODUCT('Age profile (years)'!$CT51:$GF51,'Asset data'!$CX51:$GJ51)/H51-0.5,0) -> 52.19989794 | N51: 124368083.3 | O51: =IF($A51>0,'Asset data'!G51,0) -> 87.94502172 | P51: 209532091.5 | Q51: 0.4064485184 | R51: 8.794502172 | S51: 17.58900434 | T51: 52.76701303 | U51: 70.35601738 | W51: =IF($A51>0,SUMIF('Age profile (years)'!$CT51:$GF51,"<" & R51+0.5,'Asset data'!$CX51:$GJ51),0) -> 0 | X51: =IF($A51>0,SUMIF('Age profile (years)'!$CT51:$GF51,"<" & S51+0.5,'Asset data'!$CX51:$GJ51)-W51,0) -> 0 | Y51: =IF($A51>0,SUMIF('Age profile (years)'!$CT51:$GF51,"<" & T51+0.5,'Asset data'!$CX51:$GJ51)-X51-W51,0) -> 1087930.116 | Z51: =IF($A51>0,SUMIF('Age profile (years)'!$CT51:$GF51,"<" & U51+0.5,'Asset data'!$CX51:$GJ51)-Y51-X51-W51,0) -> 1075149.326 | AA51: 219455.5483 | AB51: 0 | AC51: 0 | AD51: 0.4566271304 | AE51: 0.4512627646 | AF51: 0.09211010507 | AI51: =IF($A51>0,'RRR hist-forc'!K51,0) -> 87.94502172 | AJ51: 209532091.5
A52: ='Asset data'!A52 -> 2 | B52: ='Asset data'!B52 -> 0 | C52: ='Asset data'!C52 -> 0 | D52: ='Asset data'!E52 -> ˃ 11 kv & < = 22 kv ; single-phase | E52: OVERHEAD CONDUCTORS | F52: =IF(A52>0,SUM('Asset data'!J52:CV52),0) -> 2824.686 | G52: =IF(A52>0,'Asset data'!F52,0) -> 73.2346 | H52: =IF(A52>0,SUM('Asset data'!CX52:GJ52),0) -> 206864.7493 | I52: 0.009070072405 | J52: 24 | K52: 0.02022085311 | L52: 73.2346 | M52: =IF($A52>0,SUMPRODUCT('Age profile (years)'!$CT52:$GF52,'Asset data'!$CX52:$GJ52)/H52-0.5,0) -> 31.06624418 | N52: 6426510.815 | O52: =IF($A52>0,'Asset data'!G52,0) -> 61.67866068 | P52: 12759140.68 | Q52: 0.4963210317 | R52: 6.167866068 | S52: 12.33573214 | T52: 37.00719641 | U52: 49.34292855 | W52: =IF($A52>0,SUMIF('Age profile (years)'!$CT52:$GF52,"<" & R52+0.5,'Asset data'!$CX52:$GJ52),0) -> 13115.95069 | X52: =IF($A52>0,SUMIF('Age profile (years)'!$CT52:$GF52,"<" & S52+0.5,'Asset data'!$CX52:$GJ52)-W52,0) -> 10071.07572 | Y52: =IF($A52>0,SUMIF('Age profile (years)'!$CT52:$GF52,"<" & T52+0.5,'Asset data'!$CX52:$GJ52)-X52-W52,0) -> 115983.1739 | Z52: =IF($A52>0,SUMIF('Age profile (years)'!$CT52:$GF52,"<" & U52+0.5,'Asset data'!$CX52:$GJ52)-Y52-X52-W52,0) -> 30372.29272 | AA52: 37322.25626 | AB52: 0.0634035075 | AC52: 0.04868434934 | AD52: 0.5606715224 | AE52: 0.146821983 | AF52: 0.1804186377 | AI52: =IF($A52>0,'RRR hist-forc'!K52,0) -> 61.67866068 | AJ52: 12759140.68
A53: ='Asset data'!A53 -> 2 | B53: ='Asset data'!B53 -> 0 | C53: ='Asset data'!C53 -> 0 | D53: ='Asset data'!E53 -> ˃ 11 kv & < = 22 kv ; multiple-phase | E53: OVERHEAD CONDUCTORS | F53: =IF(A53>0,SUM('Asset data'!J53:CV53),0) -> 12280.641 | G53: =IF(A53>0,'Asset data'!F53,0) -> 62.5223 | H53: =IF(A53>0,SUM('Asset data'!CX53:GJ53),0) -> 767813.9208 | I53: 0.03366512602 | J53: 11 | K53: 0.07505315699 | L53: 62.5223 | M53: =IF($A53>0,SUMPRODUCT('Age profile (years)'!$CT53:$GF53,'Asset data'!$CX53:$GJ53)/H53-0.5,0) -> 39.8814502 | N53: 30621532.65 | O53: =IF($A53>0,'Asset data'!G53,0) -> 75.61549736 | P53: 58058631.5 | Q53: 0.4725757074 | R53: 7.561549736 | S53: 15.12309947 | T53: 45.36929841 | U53: 60.49239789 | W53: =IF($A53>0,SUMIF('Age profile (years)'!$CT53:$GF53,"<" & R53+0.5,'Asset data'!$CX53:$GJ53),0) -> 0 | X53: =IF($A53>0,SUMIF('Age profile (years)'!$CT53:$GF53,"<" & S53+0.5,'Asset data'!$CX53:$GJ53)-W53,0) -> 61899.8905 | Y53: =IF($A53>0,SUMIF('Age profile (years)'!$CT53:$GF53,"<" & T53+0.5,'Asset data'!$CX53:$GJ53)-X53-W53,0) -> 415443.865 | Z53: =IF($A53>0,SUMIF('Age profile (years)'!$CT53:$GF53,"<" & U53+0.5,'Asset data'!$CX53:$GJ53)-Y53-X53-W53,0) -> 179699.1563 | AA53: 110771.009 | AB53: 0 | AC53: 0.08061834883 | AD53: 0.5410736296 | AE53: 0.2340399821 | AF53: 0.1442680394 | AI53: =IF($A53>0,'RRR hist-forc'!K53,0) -> 75.61549736 | AJ53: 58058631.5
A54: ='Asset data'!A54 -> 2 | B54: ='Asset data'!B54 -> 0 | C54: ='Asset data'!C54 -> 0 | D54: ='Asset data'!E54 -> > 22 kv & < = 66 kv | E54: OVERHEAD CONDUCTORS | F54: =IF(A54>0,SUM('Asset data'!J54:CV54),0) -> 12484.397 | G54: =IF(A54>0,'Asset data'!F54,0) -> 228.5222 | H54: =IF(A54>0,SUM('Asset data'!CX54:GJ54),0) -> 2852961.868 | I54: 0.1250893194 | J54: 1 | K54: 0.2788745934 | L54: 228.5222 | M54: =IF($A54>0,SUMPRODUCT('Age profile (years)'!$CT54:$GF54,'Asset data'!$CX54:$GJ54)/H54-0.5,0) -> 44.54160633 | N54: 127075504.4 | O54: =IF($A54>0,'Asset data'!G54,0) -> 82.18034612 | P54: 234457393.8 | Q54: 0.4580017189 | R54: 8.218034612 | S54: 16.43606922 | T54: 49.30820767 | U54: 65.74427689 | W54: =IF($A54>0,SUMIF('Age profile (years)'!$CT54:$GF54,"<" & R54+0.5,'Asset data'!$CX54:$GJ54),0) -> 0 | X54: =IF($A54>0,SUMIF('Age profile (years)'!$CT54:$GF54,"<" & S54+0.5,'Asset data'!$CX54:$GJ54)-W54,0) -> 7562.713687 | Y54: =IF($A54>0,SUMIF('Age profile (years)'!$CT54:$GF54,"<" & T54+0.5,'Asset data'!$CX54:$GJ54)-X54-W54,0) -> 1570588.29 | Z54: =IF($A54>0,SUMIF('Age profile (years)'!$CT54:$GF54,"<" & U54+0.5,'Asset data'!$CX54:$GJ54)-Y54-X54-W54,0) -> 875882.1734 | AA54: 398928.6908 | AB54: 0 | AC54: 0.002650828871 | AD54: 0.5505114905 | AE54: 0.3070080197 | AF54: 0.139829661 | AI54: =IF($A54>0,'RRR hist-forc'!K54,0) -> 82.18034612 | AJ54: 234457393.8
A55: ='Asset data'!A55 -> 2 | B55: ='Asset data'!B55 -> 0 | C55: ='Asset data'!C55 -> 0 | D55: ='Asset data'!E55 -> > 66 kv & < = 132 kv | E55: OVERHEAD CONDUCTORS | F55: =IF(A55>0,SUM('Asset data'!J55:CV55),0) -> 3054.216 | G55: =IF(A55>0,'Asset data'!F55,0) -> 57.8335 | H55: =IF(A55>0,SUM('Asset data'!CX55:GJ55),0) -> 176636.001 | I55: 0.007744680154 | J55: 26 | K55: 0.0172660187 | L55: 57.8335 | M55: =IF($A55>0,SUMPRODUCT('Age profile (years)'!$CT55:$GF55,'Asset data'!$CX55:$GJ55)/H55-0.5,0) -> 46.84585733 | N55: 8274664.904 | O55: =IF($A55>0,'Asset data'!G55,0) -> 76.8277065 | P55: 13570538.85 | Q55: 0.3902478746 | R55: 7.68277065 | S55: 15.3655413 | T55: 46.0966239 | U55: 61.4621652 | W55: =IF($A55>0,SUMIF('Age profile (years)'!$CT55:$GF55,"<" & R55+0.5,'Asset data'!$CX55:$GJ55),0) -> 0 | X55: =IF($A55>0,SUMIF('Age profile (years)'!$CT55:$GF55,"<" & S55+0.5,'Asset data'!$CX55:$GJ55)-W55,0) -> 6151.865062 | Y55: =IF($A55>0,SUMIF('Age profile (years)'!$CT55:$GF55,"<" & T55+0.5,'Asset data'!$CX55:$GJ55)-X55-W55,0) -> 70148.50766 | Z55: =IF($A55>0,SUMIF('Age profile (years)'!$CT55:$GF55,"<" & U55+0.5,'Asset data'!$CX55:$GJ55)-Y55-X55-W55,0) -> 62362.44138 | AA55: 37973.18693 | AB55: 0 | AC55: 0.03482792311 | AD55: 0.3971359589 | AE55: 0.3530562344 | AF55: 0.2149798835 | AI55: =IF($A55>0,'RRR hist-forc'!K55,0) -> 76.8277065 | AJ55: 13570538.85
A56: ='Asset data'!A56 -> 0 | B56: ='Asset data'!B56 -> 0 | C56: ='Asset data'!C56 -> 0 | D56: ='Asset data'!E56 -> > 132 kv | E56: 0 | F56: =IF(A56>0,SUM('Asset data'!J56:CV56),0) -> 0 | G56: =IF(A56>0,'Asset data'!F56,0) -> 0 | H56: =IF(A56>0,SUM('Asset data'!CX56:GJ56),0) -> 0 | I56: 0 | J56: 0 | K56: 0 | L56: 0 | M56: =IF($A56>0,SUMPRODUCT('Age profile (years)'!$CT56:$GF56,'Asset data'!$CX56:$GJ56)/H56-0.5,0) -> 0 | N56: 0 | O56: =IF($A56>0,'Asset data'!G56,0) -> 0 | P56: 0 | Q56: 0 | R56: 0 | S56: 0 | T56: 0 | U56: 0 | W56: =IF($A56>0,SUMIF('Age profile (years)'!$CT56:$GF56,"<" & R56+0.5,'Asset data'!$CX56:$GJ56),0) -> 0 | X56: =IF($A56>0,SUMIF('Age profile (years)'!$CT56:$GF56,"<" & S56+0.5,'Asset data'!$CX56:$GJ56)-W56,0) -> 0 | Y56: =IF($A56>0,SUMIF('Age profile (years)'!$CT56:$GF56,"<" & T56+0.5,'Asset data'!$CX56:$GJ56)-X56-W56,0) -> 0 | Z56: =IF($A56>0,SUMIF('Age profile (years)'!$CT56:$GF56,"<" & U56+0.5,'Asset data'!$CX56:$GJ56)-Y56-X56-W56,0) -> 0 | AA56: 0 | AB56: 0 | AC56: 0 | AD56: 0 | AE56: 0 | AF56: 0 | AI56: =IF($A56>0,'RRR hist-forc'!K56,0) -> 0 | AJ56: 0
A57: ='Asset data'!A57 -> 0 | B57: ='Asset data'!B57 -> 0 | C57: ='Asset data'!C57 -> 0 | D57: ='Asset data'!E57 -> other | E57: 0 | F57: =IF(A57>0,SUM('Asset data'!J57:CV57),0) -> 0 | G57: =IF(A57>0,'Asset data'!F57,0) -> 0 | H57: =IF(A57>0,SUM('Asset data'!CX57:GJ57),0) -> 0 | I57: 0 | J57: 0 | K57: 0 | L57: 0 | M57: =IF($A57>0,SUMPRODUCT('Age profile (years)'!$CT57:$GF57,'Asset data'!$CX57:$GJ57)/H57-0.5,0) -> 0 | N57: 0 | O57: =IF($A57>0,'Asset data'!G57,0) -> 0 | P57: 0 | Q57: 0 | R57: 0 | S57: 0 | T57: 0 | U57: 0 | W57: =IF($A57>0,SUMIF('Age profile (years)'!$CT57:$GF57,"<" & R57+0.5,'Asset data'!$CX57:$GJ57),0) -> 0 | X57: =IF($A57>0,SUMIF('Age profile (years)'!$CT57:$GF57,"<" & S57+0.5,'Asset data'!$CX57:$GJ57)-W57,0) -> 0 | Y57: =IF($A57>0,SUMIF('Age profile (years)'!$CT57:$GF57,"<" & T57+0.5,'Asset data'!$CX57:$GJ57)-X57-W57,0) -> 0 | Z57: =IF($A57>0,SUMIF('Age profile (years)'!$CT57:$GF57,"<" & U57+0.5,'Asset data'!$CX57:$GJ57)-Y57-X57-W57,0) -> 0 | AA57: 0 | AB57: 0 | AC57: 0 | AD57: 0 | AE57: 0 | AF57: 0 | AI57: =IF($A57>0,'RRR hist-forc'!K57,0) -> 0 | AJ57: 0
A58: ='Asset data'!A58 -> 3 | B58: ='Asset data'!B58 -> 0 | C58: ='Asset data'!C58 -> 0 | D58: ='Asset data'!E58 -> ˂ = 1 kv | E58: UNDERGROUND CABLES | F58: =IF(A58>0,SUM('Asset data'!J58:CV58),0) -> 6101.488 | G58: =IF(A58>0,'Asset data'!F58,0) -> 206.7606 | H58: =IF(A58>0,SUM('Asset data'!CX58:GJ58),0) -> 1261547.32 | I58: 0.05531307566 | J58: 6 | K58: 0.4800498891 | L58: 206.7606 | M58: =IF($A58>0,SUMPRODUCT('Age profile (years)'!$CT58:$GF58,'Asset data'!$CX58:$GJ58)/H58-0.5,0) -> 64.11707898 | N58: 80886729.14 | O58: =IF($A58>0,'Asset data'!G58,0) -> 69.81082087 | P58: 88069653.96 | Q58: 0.08155958945 | R58: 6.981082087 | S58: 13.96216417 | T58: 41.88649252 | U58: 55.8486567 | W58: =IF($A58>0,SUMIF('Age profile (years)'!$CT58:$GF58,"<" & R58+0.5,'Asset data'!$CX58:$GJ58),0) -> 0 | X58: =IF($A58>0,SUMIF('Age profile (years)'!$CT58:$GF58,"<" & S58+0.5,'Asset data'!$CX58:$GJ58)-W58,0) -> 0 | Y58: =IF($A58>0,SUMIF('Age profile (years)'!$CT58:$GF58,"<" & T58+0.5,'Asset data'!$CX58:$GJ58)-X58-W58,0) -> 538.4046024 | Z58: =IF($A58>0,SUMIF('Age profile (years)'!$CT58:$GF58,"<" & U58+0.5,'Asset data'!$CX58:$GJ58)-Y58-X58-W58,0) -> 9975.785429 | AA58: 1251033.13 | AB58: 0 | AC58: 0 | AD58: 0.0004267811393 | AE58: 0.007907579266 | AF58: 0.9916656396 | AI58: =IF($A58>0,'RRR hist-forc'!K58,0) -> 69.81082087 | AJ58: 88069653.96
A59: ='Asset data'!A59 -> 3 | B59: ='Asset data'!B59 -> 0 | C59: ='Asset data'!C59 -> 0 | D59: ='Asset data'!E59 -> > 1 kv & < = 11 kv | E59: UNDERGROUND CABLES | F59: =IF(A59>0,SUM('Asset data'!J59:CV59),0) -> 1651.633 | G59: =IF(A59>0,'Asset data'!F59,0) -> 572.7903 | H59: =IF(A59>0,SUM('Asset data'!CX59:GJ59),0) -> 946039.3616 | I59: 0.04147949583 | J59: 10 | K59: 0.3599913245 | L59: 572.7903 | M59: =IF($A59>0,SUMPRODUCT('Age profile (years)'!$CT59:$GF59,'Asset data'!$CX59:$GJ59)/H59-0.5,0) -> 63.75621854 | N59: 60315892.29 | O59: =IF($A59>0,'Asset data'!G59,0) -> 75.24821662 | P59: 71187774.81 | Q59: 0.1527212018 | R59: 7.524821662 | S59: 15.04964332 | T59: 45.14892997 | U59: 60.19857329 | W59: =IF($A59>0,SUMIF('Age profile (years)'!$CT59:$GF59,"<" & R59+0.5,'Asset data'!$CX59:$GJ59),0) -> 211.932411 | X59: =IF($A59>0,SUMIF('Age profile (years)'!$CT59:$GF59,"<" & S59+0.5,'Asset data'!$CX59:$GJ59)-W59,0) -> 87.0641256 | Y59: =IF($A59>0,SUMIF('Age profile (years)'!$CT59:$GF59,"<" & T59+0.5,'Asset data'!$CX59:$GJ59)-X59-W59,0) -> 64393.08553 | Z59: =IF($A59>0,SUMIF('Age profile (years)'!$CT59:$GF59,"<" & U59+0.5,'Asset data'!$CX59:$GJ59)-Y59-X59-W59,0) -> 185063.9636 | AA59: 696283.3159 | AB59: 0.0002240207116 | AC59: 9.203013018e-05 | AD59: 0.06806596865 | AE59: 0.1956197291 | AF59: 0.7359982514 | AI59: =IF($A59>0,'RRR hist-forc'!K59,0) -> 75.24821662 | AJ59: 71187774.81
A60: ='Asset data'!A60 -> 3 | B60: ='Asset data'!B60 -> 0 | C60: ='Asset data'!C60 -> 0 | D60: ='Asset data'!E60 -> > 11 kv & < = 22 kv | E60: UNDERGROUND CABLES | F60: =IF(A60>0,SUM('Asset data'!J60:CV60),0) -> 671.524 | G60: =IF(A60>0,'Asset data'!F60,0) -> 588.1384 | H60: =IF(A60>0,SUM('Asset data'!CX60:GJ60),0) -> 394949.0509 | I60: 0.01731670814 | J60: 16 | K60: 0.1502878609 | L60: 588.1384 | M60: =IF($A60>0,SUMPRODUCT('Age profile (years)'!$CT60:$GF60,'Asset data'!$CX60:$GJ60)/H60-0.5,0) -> 53.03629059 | N60: 20946632.63 | O60: =IF($A60>0,'Asset data'!G60,0) -> 66.509986 | P60: 26268055.85 | Q60: 0.2025815403 | R60: 6.6509986 | S60: 13.3019972 | T60: 39.9059916 | U60: 53.2079888 | W60: =IF($A60>0,SUMIF('Age profile (years)'!$CT60:$GF60,"<" & R60+0.5,'Asset data'!$CX60:$GJ60),0) -> 626.9555344 | X60: =IF($A60>0,SUMIF('Age profile (years)'!$CT60:$GF60,"<" & S60+0.5,'Asset data'!$CX60:$GJ60)-W60,0) -> 1296.845172 | Y60: =IF($A60>0,SUMIF('Age profile (years)'!$CT60:$GF60,"<" & T60+0.5,'Asset data'!$CX60:$GJ60)-X60-W60,0) -> 64247.06254 | Z60: =IF($A60>0,SUMIF('Age profile (years)'!$CT60:$GF60,"<" & U60+0.5,'Asset data'!$CX60:$GJ60)-Y60-X60-W60,0) -> 96123.57568 | AA60: 232654.612 | AB60: 0.001587433956 | AC60: 0.003283575866 | AD60: 0.1626717735 | AE60: 0.2433822172 | AF60: 0.5890749996 | AI60: =IF($A60>0,'RRR hist-forc'!K60,0) -> 66.509986 | AJ60: 26268055.85
A61: ='Asset data'!A61 -> 3 | B61: ='Asset data'!B61 -> 0 | C61: ='Asset data'!C61 -> 0 | D61: ='Asset data'!E61 -> > 22 kv & < = 33 kv | E61: UNDERGROUND CABLES | F61: =IF(A61>0,SUM('Asset data'!J61:CV61),0) -> 52.036 | G61: =IF(A61>0,'Asset data'!F61,0) -> 488.4063 | H61: =IF(A61>0,SUM('Asset data'!CX61:GJ61),0) -> 25414.71023 | I61: 0.001114318716 | J61: 43 | K61: 0.009670924455 | L61: 488.4063 | M61: =IF($A61>0,SUMPRODUCT('Age profile (years)'!$CT61:$GF61,'Asset data'!$CX61:$GJ61)/H61-0.5,0) -> 49.45545392 | N61: 1256896.03 | O61: =IF($A61>0,'Asset data'!G61,0) -> 63.84500055 | P61: 1622602.188 | Q61: 0.2253825125 | R61: 6.384500055 | S61: 12.76900011 | T61: 38.30700033 | U61: 51.07600044 | W61: =IF($A61>0,SUMIF('Age profile (years)'!$CT61:$GF61,"<" & R61+0.5,'Asset data'!$CX61:$GJ61),0) -> 24.9087213 | X61: =IF($A61>0,SUMIF('Age profile (years)'!$CT61:$GF61,"<" & S61+0.5,'Asset data'!$CX61:$GJ61)-W61,0) -> 0 | Y61: =IF($A61>0,SUMIF('Age profile (years)'!$CT61:$GF61,"<" & T61+0.5,'Asset data'!$CX61:$GJ61)-X61-W61,0) -> 5738.774025 | Z61: =IF($A61>0,SUMIF('Age profile (years)'!$CT61:$GF61,"<" & U61+0.5,'Asset data'!$CX61:$GJ61)-Y61-X61-W61,0) -> 1583.413225 | AA61: 18067.61426 | AB61: 0.0009800907064 | AC61: 0 | AD61: 0.2258052118 | AE61: 0.06230302099 | AF61: 0.7109116765 | AI61: =IF($A61>0,'RRR hist-forc'!K61,0) -> 63.84500055 | AJ61: 1622602.188
A62: ='Asset data'!A62 -> 3 | B62: ='Asset data'!B62 -> 0 | C62: ='Asset data'!C62 -> 0 | D62: ='Asset data'!E62 -> > 33 kv & < = 66 kv | E62: UNDERGROUND CABLES | F62: =IF(A62>0,SUM('Asset data'!J62:CV62),0) -> 17.692 | G62: =IF(A62>0,'Asset data'!F62,0) -> 0.0001 | H62: =IF(A62>0,SUM('Asset data'!CX62:GJ62),0) -> 0.0017692 | I62: 7.757132208e-11 | J62: 58 | K62: 6.732242624e-10 | L62: 0.0001 | M62: =IF($A62>0,SUMPRODUCT('Age profile (years)'!$CT62:$GF62,'Asset data'!$CX62:$GJ62)/H62-0.5,0) -> 61.05183134 | N62: 0.1080129 | O62: =IF($A62>0,'Asset data'!G62,0) -> 71.72855854 | P62: 0.1269021658 | Q62: 0.1488490418 | R62: 7.172855854 | S62: 14.34571171 | T62: 43.03713512 | U62: 57.38284683 | W62: =IF($A62>0,SUMIF('Age profile (years)'!$CT62:$GF62,"<" & R62+0.5,'Asset data'!$CX62:$GJ62),0) -> 0 | X62: =IF($A62>0,SUMIF('Age profile (years)'!$CT62:$GF62,"<" & S62+0.5,'Asset data'!$CX62:$GJ62)-W62,0) -> 0 | Y62: =IF($A62>0,SUMIF('Age profile (years)'!$CT62:$GF62,"<" & T62+0.5,'Asset data'!$CX62:$GJ62)-X62-W62,0) -> 7.59e-05 | Z62: =IF($A62>0,SUMIF('Age profile (years)'!$CT62:$GF62,"<" & U62+0.5,'Asset data'!$CX62:$GJ62)-Y62-X62-W62,0) -> 0.0004617 | AA62: 0.0012316 | AB62: 0 | AC62: 0 | AD62: 0.0429007461 | AE62: 0.2609654081 | AF62: 0.6961338458 | AI62: =IF($A62>0,'RRR hist-forc'!K62,0) -> 71.72855854 | AJ62: 0.1269021658
A63: ='Asset data'!A63 -> 3 | B63: ='Asset data'!B63 -> 0 | C63: ='Asset data'!C63 -> 0 | D63: ='Asset data'!E63 -> > 66 kv & < = 132 kv | E63: UNDERGROUND CABLES | F63: =IF(A63>0,SUM('Asset data'!J63:CV63),0) -> 9.171 | G63: =IF(A63>0,'Asset data'!F63,0) -> 0.0001 | H63: =IF(A63>0,SUM('Asset data'!CX63:GJ63),0) -> 0.0009171 | I63: 4.021063728e-11 | J63: 60 | K63: 3.489791833e-10 | L63: 0.0001 | M63: =IF($A63>0,SUMPRODUCT('Age profile (years)'!$CT63:$GF63,'Asset data'!$CX63:$GJ63)/H63-0.5,0) -> 39.49509323 | N63: 0.03622095 | O63: =IF($A63>0,'Asset data'!G63,0) -> 45.08567255 | P63: 0.0413480703 | Q63: 0.1239990225 | R63: 4.508567255 | S63: 9.017134511 | T63: 27.05140353 | U63: 36.06853804 | W63: =IF($A63>0,SUMIF('Age profile (years)'!$CT63:$GF63,"<" & R63+0.5,'Asset data'!$CX63:$GJ63),0) -> 0 | X63: =IF($A63>0,SUMIF('Age profile (years)'!$CT63:$GF63,"<" & S63+0.5,'Asset data'!$CX63:$GJ63)-W63,0) -> 0 | Y63: =IF($A63>0,SUMIF('Age profile (years)'!$CT63:$GF63,"<" & T63+0.5,'Asset data'!$CX63:$GJ63)-X63-W63,0) -> 0 | Z63: =IF($A63>0,SUMIF('Age profile (years)'!$CT63:$GF63,"<" & U63+0.5,'Asset data'!$CX63:$GJ63)-Y63-X63-W63,0) -> 0 | AA63: 0.0009171 | AB63: 0 | AC63: 0 | AD63: 0 | AE63: 0 | AF63: 1 | AI63: =IF($A63>0,'RRR hist-forc'!K63,0) -> 45.08567255 | AJ63: 0.0413480703
A64: ='Asset data'!A64 -> 0 | B64: ='Asset data'!B64 -> 0 | C64: ='Asset data'!C64 -> 0 | D64: ='Asset data'!E64 -> > 132 kv | E64: 0 | F64: =IF(A64>0,SUM('Asset data'!J64:CV64),0) -> 0 | G64: =IF(A64>0,'Asset data'!F64,0) -> 0 | H64: =IF(A64>0,SUM('Asset data'!CX64:GJ64),0) -> 0 | I64: 0 | J64: 0 | K64: 0 | L64: 0 | M64: =IF($A64>0,SUMPRODUCT('Age profile (years)'!$CT64:$GF64,'Asset data'!$CX64:$GJ64)/H64-0.5,0) -> 0 | N64: 0 | O64: =IF($A64>0,'Asset data'!G64,0) -> 0 | P64: 0 | Q64: 0 | R64: 0 | S64: 0 | T64: 0 | U64: 0 | W64: =IF($A64>0,SUMIF('Age profile (years)'!$CT64:$GF64,"<" & R64+0.5,'Asset data'!$CX64:$GJ64),0) -> 0 | X64: =IF($A64>0,SUMIF('Age profile (years)'!$CT64:$GF64,"<" & S64+0.5,'Asset data'!$CX64:$GJ64)-W64,0) -> 0 | Y64: =IF($A64>0,SUMIF('Age profile (years)'!$CT64:$GF64,"<" & T64+0.5,'Asset data'!$CX64:$GJ64)-X64-W64,0) -> 0 | Z64: =IF($A64>0,SUMIF('Age profile (years)'!$CT64:$GF64,"<" & U64+0.5,'Asset data'!$CX64:$GJ64)-Y64-X64-W64,0) -> 0 | AA64: 0 | AB64: 0 | AC64: 0 | AD64: 0 | AE64: 0 | AF64: 0 | AI64: =IF($A64>0,'RRR hist-forc'!K64,0) -> 0 | AJ64: 0
A65: ='Asset data'!A65 -> 0 | B65: ='Asset data'!B65 -> 0 | C65: ='Asset data'!C65 -> 0 | D65: ='Asset data'!E65 -> other | E65: 0 | F65: =IF(A65>0,SUM('Asset data'!J65:CV65),0) -> 0 | G65: =IF(A65>0,'Asset data'!F65,0) -> 0 | H65: =IF(A65>0,SUM('Asset data'!CX65:GJ65),0) -> 0 | I65: 0 | J65: 0 | K65: 0 | L65: 0 | M65: =IF($A65>0,SUMPRODUCT('Age profile (years)'!$CT65:$GF65,'Asset data'!$CX65:$GJ65)/H65-0.5,0) -> 0 | N65: 0 | O65: =IF($A65>0,'Asset data'!G65,0) -> 0 | P65: 0 | Q65: 0 | R65: 0 | S65: 0 | T65: 0 | U65: 0 | W65: =IF($A65>0,SUMIF('Age profile (years)'!$CT65:$GF65,"<" & R65+0.5,'Asset data'!$CX65:$GJ65),0) -> 0 | X65: =IF($A65>0,SUMIF('Age profile (years)'!$CT65:$GF65,"<" & S65+0.5,'Asset data'!$CX65:$GJ65)-W65,0) -> 0 | Y65: =IF($A65>0,SUMIF('Age profile (years)'!$CT65:$GF65,"<" & T65+0.5,'Asset data'!$CX65:$GJ65)-X65-W65,0) -> 0 | Z65: =IF($A65>0,SUMIF('Age profile (years)'!$CT65:$GF65,"<" & U65+0.5,'Asset data'!$CX65:$GJ65)-Y65-X65-W65,0) -> 0 | AA65: 0 | AB65: 0 | AC65: 0 | AD65: 0 | AE65: 0 | AF65: 0 | AI65: =IF($A65>0,'RRR hist-forc'!K65,0) -> 0 | AJ65: 0
A66: ='Asset data'!A66 -> 4 | B66: ='Asset data'!B66 -> 0 | C66: ='Asset data'!C66 -> 0 | D66: ='Asset data'!E66 -> ˂ = 11 kv ; residential ; simple type | E66: SERVICE LINES | F66: =IF(A66>0,SUM('Asset data'!J66:CV66),0) -> 362129.999 | G66: =IF(A66>0,'Asset data'!F66,0) -> 0.8119 | H66: =IF(A66>0,SUM('Asset data'!CX66:GJ66),0) -> 294013.3462 | I66: 0.01289113948 | J66: 18 | K66: 0.8948305816 | L66: 0.8119 | M66: =IF($A66>0,SUMPRODUCT('Age profile (years)'!$CT66:$GF66,'Asset data'!$CX66:$GJ66)/H66-0.5,0) -> 31.53750743 | N66: 9272448.091 | O66: =IF($A66>0,'Asset data'!G66,0) -> 62.45972627 | P66: 18363993.12 | Q66: 0.4950745173 | R66: 6.245972627 | S66: 12.49194525 | T66: 37.47583576 | U66: 49.96778102 | W66: =IF($A66>0,SUMIF('Age profile (years)'!$CT66:$GF66,"<" & R66+0.5,'Asset data'!$CX66:$GJ66),0) -> 18232.03046 | X66: =IF($A66>0,SUMIF('Age profile (years)'!$CT66:$GF66,"<" & S66+0.5,'Asset data'!$CX66:$GJ66)-W66,0) -> 14473.71288 | Y66: =IF($A66>0,SUMIF('Age profile (years)'!$CT66:$GF66,"<" & T66+0.5,'Asset data'!$CX66:$GJ66)-X66-W66,0) -> 147146.1563 | Z66: =IF($A66>0,SUMIF('Age profile (years)'!$CT66:$GF66,"<" & U66+0.5,'Asset data'!$CX66:$GJ66)-Y66-X66-W66,0) -> 70160.41725 | AA66: 44001.02929 | AB66: 0.06201089405 | AC66: 0.04922808121 | AD66: 0.5004744111 | AE66: 0.2386300424 | AF66: 0.1496565713 | AI66: =IF($A66>0,'RRR hist-forc'!K66,0) -> 62.45972627 | AJ66: 18363993.12
A67: ='Asset data'!A67 -> 4 | B67: ='Asset data'!B67 -> 0 | C67: ='Asset data'!C67 -> 0 | D67: ='Asset data'!E67 -> ˂ = 11 kv ; commercial & industrial ; simple type | E67: SERVICE LINES | F67: =IF(A67>0,SUM('Asset data'!J67:CV67),0) -> 40923.001 | G67: =IF(A67>0,'Asset data'!F67,0) -> 0.8444 | H67: =IF(A67>0,SUM('Asset data'!CX67:GJ67),0) -> 34555.38204 | I67: 0.001515095337 | J67: 41 | K67: 0.1051694184 | L67: 0.8444 | M67: =IF($A67>0,SUMPRODUCT('Age profile (years)'!$CT67:$GF67,'Asset data'!$CX67:$GJ67)/H67-0.5,0) -> 32.39454525 | N67: 1119405.887 | O67: =IF($A67>0,'Asset data'!G67,0) -> 59.76908414 | P67: 2065343.537 | Q67: 0.4580049918 | R67: 5.976908414 | S67: 11.95381683 | T67: 35.86145048 | U67: 47.81526731 | W67: =IF($A67>0,SUMIF('Age profile (years)'!$CT67:$GF67,"<" & R67+0.5,'Asset data'!$CX67:$GJ67),0) -> 2228.285471 | X67: =IF($A67>0,SUMIF('Age profile (years)'!$CT67:$GF67,"<" & S67+0.5,'Asset data'!$CX67:$GJ67)-W67,0) -> 1641.136153 | Y67: =IF($A67>0,SUMIF('Age profile (years)'!$CT67:$GF67,"<" & T67+0.5,'Asset data'!$CX67:$GJ67)-X67-W67,0) -> 14949.00681 | Z67: =IF($A67>0,SUMIF('Age profile (years)'!$CT67:$GF67,"<" & U67+0.5,'Asset data'!$CX67:$GJ67)-Y67-X67-W67,0) -> 9204.601744 | AA67: 6532.351863 | AB67: 0.06448446926 | AC67: 0.04749292458 | AD67: 0.4326100864 | AE67: 0.2663724491 | AF67: 0.1890400706 | AI67: =IF($A67>0,'RRR hist-forc'!K67,0) -> 59.76908414 | AJ67: 2065343.537
A68: ='Asset data'!A68 -> 0 | B68: ='Asset data'!B68 -> 0 | C68: ='Asset data'!C68 -> 0 | D68: ='Asset data'!E68 -> ˂ = 11 kv ; residential ; complex type | E68: 0 | F68: =IF(A68>0,SUM('Asset data'!J68:CV68),0) -> 0 | G68: =IF(A68>0,'Asset data'!F68,0) -> 0 | H68: =IF(A68>0,SUM('Asset data'!CX68:GJ68),0) -> 0 | I68: 0 | J68: 0 | K68: 0 | L68: 0 | M68: =IF($A68>0,SUMPRODUCT('Age profile (years)'!$CT68:$GF68,'Asset data'!$CX68:$GJ68)/H68-0.5,0) -> 0 | N68: 0 | O68: =IF($A68>0,'Asset data'!G68,0) -> 0 | P68: 0 | Q68: 0 | R68: 0 | S68: 0 | T68: 0 | U68: 0 | W68: =IF($A68>0,SUMIF('Age profile (years)'!$CT68:$GF68,"<" & R68+0.5,'Asset data'!$CX68:$GJ68),0) -> 0 | X68: =IF($A68>0,SUMIF('Age profile (years)'!$CT68:$GF68,"<" & S68+0.5,'Asset data'!$CX68:$GJ68)-W68,0) -> 0 | Y68: =IF($A68>0,SUMIF('Age profile (years)'!$CT68:$GF68,"<" & T68+0.5,'Asset data'!$CX68:$GJ68)-X68-W68,0) -> 0 | Z68: =IF($A68>0,SUMIF('Age profile (years)'!$CT68:$GF68,"<" & U68+0.5,'Asset data'!$CX68:$GJ68)-Y68-X68-W68,0) -> 0 | AA68: 0 | AB68: 0 | AC68: 0 | AD68: 0 | AE68: 0 | AF68: 0 | AI68: =IF($A68>0,'RRR hist-forc'!K68,0) -> 0 | AJ68: 0
A69: ='Asset data'!A69 -> 0 | B69: ='Asset data'!B69 -> 0 | C69: ='Asset data'!C69 -> 0 | D69: ='Asset data'!E69 -> ˂ = 11 kv ; commercial & industrial ; complex type | E69: 0 | F69: =IF(A69>0,SUM('Asset data'!J69:CV69),0) -> 0 | G69: =IF(A69>0,'Asset data'!F69,0) -> 0 | H69: =IF(A69>0,SUM('Asset data'!CX69:GJ69),0) -> 0 | I69: 0 | J69: 0 | K69: 0 | L69: 0 | M69: =IF($A69>0,SUMPRODUCT('Age profile (years)'!$CT69:$GF69,'Asset data'!$CX69:$GJ69)/H69-0.5,0) -> 0 | N69: 0 | O69: =IF($A69>0,'Asset data'!G69,0) -> 0 | P69: 0 | Q69: 0 | R69: 0 | S69: 0 | T69: 0 | U69: 0 | W69: =IF($A69>0,SUMIF('Age profile (years)'!$CT69:$GF69,"<" & R69+0.5,'Asset data'!$CX69:$GJ69),0) -> 0 | X69: =IF($A69>0,SUMIF('Age profile (years)'!$CT69:$GF69,"<" & S69+0.5,'Asset data'!$CX69:$GJ69)-W69,0) -> 0 | Y69: =IF($A69>0,SUMIF('Age profile (years)'!$CT69:$GF69,"<" & T69+0.5,'Asset data'!$CX69:$GJ69)-X69-W69,0) -> 0 | Z69: =IF($A69>0,SUMIF('Age profile (years)'!$CT69:$GF69,"<" & U69+0.5,'Asset data'!$CX69:$GJ69)-Y69-X69-W69,0) -> 0 | AA69: 0 | AB69: 0 | AC69: 0 | AD69: 0 | AE69: 0 | AF69: 0 | AI69: =IF($A69>0,'RRR hist-forc'!K69,0) -> 0 | AJ69: 0
A70: ='Asset data'!A70 -> 0 | B70: ='Asset data'!B70 -> 0 | C70: ='Asset data'!C70 -> 0 | D70: ='Asset data'!E70 -> ˂ = 11 kv ; subdivision ; complex type | E70: 0 | F70: =IF(A70>0,SUM('Asset data'!J70:CV70),0) -> 0 | G70: =IF(A70>0,'Asset data'!F70,0) -> 0 | H70: =IF(A70>0,SUM('Asset data'!CX70:GJ70),0) -> 0 | I70: 0 | J70: 0 | K70: 0 | L70: 0 | M70: =IF($A70>0,SUMPRODUCT('Age profile (years)'!$CT70:$GF70,'Asset data'!$CX70:$GJ70)/H70-0.5,0) -> 0 | N70: 0 | O70: =IF($A70>0,'Asset data'!G70,0) -> 0 | P70: 0 | Q70: 0 | R70: 0 | S70: 0 | T70: 0 | U70: 0 | W70: =IF($A70>0,SUMIF('Age profile (years)'!$CT70:$GF70,"<" & R70+0.5,'Asset data'!$CX70:$GJ70),0) -> 0 | X70: =IF($A70>0,SUMIF('Age profile (years)'!$CT70:$GF70,"<" & S70+0.5,'Asset data'!$CX70:$GJ70)-W70,0) -> 0 | Y70: =IF($A70>0,SUMIF('Age profile (years)'!$CT70:$GF70,"<" & T70+0.5,'Asset data'!$CX70:$GJ70)-X70-W70,0) -> 0 | Z70: =IF($A70>0,SUMIF('Age profile (years)'!$CT70:$GF70,"<" & U70+0.5,'Asset data'!$CX70:$GJ70)-Y70-X70-W70,0) -> 0 | AA70: 0 | AB70: 0 | AC70: 0 | AD70: 0 | AE70: 0 | AF70: 0 | AI70: =IF($A70>0,'RRR hist-forc'!K70,0) -> 0 | AJ70: 0
A71: ='Asset data'!A71 -> 0 | B71: ='Asset data'!B71 -> 0 | C71: ='Asset data'!C71 -> 0 | D71: ='Asset data'!E71 -> > 11 kv & < = 22 kv ; commercial & industrial | E71: 0 | F71: =IF(A71>0,SUM('Asset data'!J71:CV71),0) -> 0 | G71: =IF(A71>0,'Asset data'!F71,0) -> 0 | H71: =IF(A71>0,SUM('Asset data'!CX71:GJ71),0) -> 0 | I71: 0 | J71: 0 | K71: 0 | L71: 0 | M71: =IF($A71>0,SUMPRODUCT('Age profile (years)'!$CT71:$GF71,'Asset data'!$CX71:$GJ71)/H71-0.5,0) -> 0 | N71: 0 | O71: =IF($A71>0,'Asset data'!G71,0) -> 0 | P71: 0 | Q71: 0 | R71: 0 | S71: 0 | T71: 0 | U71: 0 | W71: =IF($A71>0,SUMIF('Age profile (years)'!$CT71:$GF71,"<" & R71+0.5,'Asset data'!$CX71:$GJ71),0) -> 0 | X71: =IF($A71>0,SUMIF('Age profile (years)'!$CT71:$GF71,"<" & S71+0.5,'Asset data'!$CX71:$GJ71)-W71,0) -> 0 | Y71: =IF($A71>0,SUMIF('Age profile (years)'!$CT71:$GF71,"<" & T71+0.5,'Asset data'!$CX71:$GJ71)-X71-W71,0) -> 0 | Z71: =IF($A71>0,SUMIF('Age profile (years)'!$CT71:$GF71,"<" & U71+0.5,'Asset data'!$CX71:$GJ71)-Y71-X71-W71,0) -> 0 | AA71: 0 | AB71: 0 | AC71: 0 | AD71: 0 | AE71: 0 | AF71: 0 | AI71: =IF($A71>0,'RRR hist-forc'!K71,0) -> 0 | AJ71: 0
A72: ='Asset data'!A72 -> 0 | B72: ='Asset data'!B72 -> 0 | C72: ='Asset data'!C72 -> 0 | D72: ='Asset data'!E72 -> > 11 kv & < = 22 kv ; subdivision | E72: 0 | F72: =IF(A72>0,SUM('Asset data'!J72:CV72),0) -> 0 | G72: =IF(A72>0,'Asset data'!F72,0) -> 0 | H72: =IF(A72>0,SUM('Asset data'!CX72:GJ72),0) -> 0 | I72: 0 | J72: 0 | K72: 0 | L72: 0 | M72: =IF($A72>0,SUMPRODUCT('Age profile (years)'!$CT72:$GF72,'Asset data'!$CX72:$GJ72)/H72-0.5,0) -> 0 | N72: 0 | O72: =IF($A72>0,'Asset data'!G72,0) -> 0 | P72: 0 | Q72: 0 | R72: 0 | S72: 0 | T72: 0 | U72: 0 | W72: =IF($A72>0,SUMIF('Age profile (years)'!$CT72:$GF72,"<" & R72+0.5,'Asset data'!$CX72:$GJ72),0) -> 0 | X72: =IF($A72>0,SUMIF('Age profile (years)'!$CT72:$GF72,"<" & S72+0.5,'Asset data'!$CX72:$GJ72)-W72,0) -> 0 | Y72: =IF($A72>0,SUMIF('Age profile (years)'!$CT72:$GF72,"<" & T72+0.5,'Asset data'!$CX72:$GJ72)-X72-W72,0) -> 0 | Z72: =IF($A72>0,SUMIF('Age profile (years)'!$CT72:$GF72,"<" & U72+0.5,'Asset data'!$CX72:$GJ72)-Y72-X72-W72,0) -> 0 | AA72: 0 | AB72: 0 | AC72: 0 | AD72: 0 | AE72: 0 | AF72: 0 | AI72: =IF($A72>0,'RRR hist-forc'!K72,0) -> 0 | AJ72: 0
A73: ='Asset data'!A73 -> 0 | B73: ='Asset data'!B73 -> 0 | C73: ='Asset data'!C73 -> 0 | D73: ='Asset data'!E73 -> > 22 kv & < = 33 kv ; commercial & industrial | E73: 0 | F73: =IF(A73>0,SUM('Asset data'!J73:CV73),0) -> 0 | G73: =IF(A73>0,'Asset data'!F73,0) -> 0 | H73: =IF(A73>0,SUM('Asset data'!CX73:GJ73),0) -> 0 | I73: 0 | J73: 0 | K73: 0 | L73: 0 | M73: =IF($A73>0,SUMPRODUCT('Age profile (years)'!$CT73:$GF73,'Asset data'!$CX73:$GJ73)/H73-0.5,0) -> 0 | N73: 0 | O73: =IF($A73>0,'Asset data'!G73,0) -> 0 | P73: 0 | Q73: 0 | R73: 0 | S73: 0 | T73: 0 | U73: 0 | W73: =IF($A73>0,SUMIF('Age profile (years)'!$CT73:$GF73,"<" & R73+0.5,'Asset data'!$CX73:$GJ73),0) -> 0 | X73: =IF($A73>0,SUMIF('Age profile (years)'!$CT73:$GF73,"<" & S73+0.5,'Asset data'!$CX73:$GJ73)-W73,0) -> 0 | Y73: =IF($A73>0,SUMIF('Age profile (years)'!$CT73:$GF73,"<" & T73+0.5,'Asset data'!$CX73:$GJ73)-X73-W73,0) -> 0 | Z73: =IF($A73>0,SUMIF('Age profile (years)'!$CT73:$GF73,"<" & U73+0.5,'Asset data'!$CX73:$GJ73)-Y73-X73-W73,0) -> 0 | AA73: 0 | AB73: 0 | AC73: 0 | AD73: 0 | AE73: 0 | AF73: 0 | AI73: =IF($A73>0,'RRR hist-forc'!K73,0) -> 0 | AJ73: 0
A74: ='Asset data'!A74 -> 0 | B74: ='Asset data'!B74 -> 0 | C74: ='Asset data'!C74 -> 0 | D74: ='Asset data'!E74 -> > 22 kv & < = 33 kv ; subdivision | E74: 0 | F74: =IF(A74>0,SUM('Asset data'!J74:CV74),0) -> 0 | G74: =IF(A74>0,'Asset data'!F74,0) -> 0 | H74: =IF(A74>0,SUM('Asset data'!CX74:GJ74),0) -> 0 | I74: 0 | J74: 0 | K74: 0 | L74: 0 | M74: =IF($A74>0,SUMPRODUCT('Age profile (years)'!$CT74:$GF74,'Asset data'!$CX74:$GJ74)/H74-0.5,0) -> 0 | N74: 0 | O74: =IF($A74>0,'Asset data'!G74,0) -> 0 | P74: 0 | Q74: 0 | R74: 0 | S74: 0 | T74: 0 | U74: 0 | W74: =IF($A74>0,SUMIF('Age profile (years)'!$CT74:$GF74,"<" & R74+0.5,'Asset data'!$CX74:$GJ74),0) -> 0 | X74: =IF($A74>0,SUMIF('Age profile (years)'!$CT74:$GF74,"<" & S74+0.5,'Asset data'!$CX74:$GJ74)-W74,0) -> 0 | Y74: =IF($A74>0,SUMIF('Age profile (years)'!$CT74:$GF74,"<" & T74+0.5,'Asset data'!$CX74:$GJ74)-X74-W74,0) -> 0 | Z74: =IF($A74>0,SUMIF('Age profile (years)'!$CT74:$GF74,"<" & U74+0.5,'Asset data'!$CX74:$GJ74)-Y74-X74-W74,0) -> 0 | AA74: 0 | AB74: 0 | AC74: 0 | AD74: 0 | AE74: 0 | AF74: 0 | AI74: =IF($A74>0,'RRR hist-forc'!K74,0) -> 0 | AJ74: 0
A75: ='Asset data'!A75 -> 0 | B75: ='Asset data'!B75 -> 0 | C75: ='Asset data'!C75 -> 0 | D75: ='Asset data'!E75 -> > 33 kv & < = 66 kv ; commercial & industrial | E75: 0 | F75: =IF(A75>0,SUM('Asset data'!J75:CV75),0) -> 0 | G75: =IF(A75>0,'Asset data'!F75,0) -> 0 | H75: =IF(A75>0,SUM('Asset data'!CX75:GJ75),0) -> 0 | I75: 0 | J75: 0 | K75: 0 | L75: 0 | M75: =IF($A75>0,SUMPRODUCT('Age profile (years)'!$CT75:$GF75,'Asset data'!$CX75:$GJ75)/H75-0.5,0) -> 0 | N75: 0 | O75: =IF($A75>0,'Asset data'!G75,0) -> 0 | P75: 0 | Q75: 0 | R75: 0 | S75: 0 | T75: 0 | U75: 0 | W75: =IF($A75>0,SUMIF('Age profile (years)'!$CT75:$GF75,"<" & R75+0.5,'Asset data'!$CX75:$GJ75),0) -> 0 | X75: =IF($A75>0,SUMIF('Age profile (years)'!$CT75:$GF75,"<" & S75+0.5,'Asset data'!$CX75:$GJ75)-W75,0) -> 0 | Y75: =IF($A75>0,SUMIF('Age profile (years)'!$CT75:$GF75,"<" & T75+0.5,'Asset data'!$CX75:$GJ75)-X75-W75,0) -> 0 | Z75: =IF($A75>0,SUMIF('Age profile (years)'!$CT75:$GF75,"<" & U75+0.5,'Asset data'!$CX75:$GJ75)-Y75-X75-W75,0) -> 0 | AA75: 0 | AB75: 0 | AC75: 0 | AD75: 0 | AE75: 0 | AF75: 0 | AI75: =IF($A75>0,'RRR hist-forc'!K75,0) -> 0 | AJ75: 0
A76: ='Asset data'!A76 -> 0 | B76: ='Asset data'!B76 -> 0 | C76: ='Asset data'!C76 -> 0 | D76: ='Asset data'!E76 -> > 33 kv & < = 66 kv ; subdivision | E76: 0 | F76: =IF(A76>0,SUM('Asset data'!J76:CV76),0) -> 0 | G76: =IF(A76>0,'Asset data'!F76,0) -> 0 | H76: =IF(A76>0,SUM('Asset data'!CX76:GJ76),0) -> 0 | I76: 0 | J76: 0 | K76: 0 | L76: 0 | M76: =IF($A76>0,SUMPRODUCT('Age profile (years)'!$CT76:$GF76,'Asset data'!$CX76:$GJ76)/H76-0.5,0) -> 0 | N76: 0 | O76: =IF($A76>0,'Asset data'!G76,0) -> 0 | P76: 0 | Q76: 0 | R76: 0 | S76: 0 | T76: 0 | U76: 0 | W76: =IF($A76>0,SUMIF('Age profile (years)'!$CT76:$GF76,"<" & R76+0.5,'Asset data'!$CX76:$GJ76),0) -> 0 | X76: =IF($A76>0,SUMIF('Age profile (years)'!$CT76:$GF76,"<" & S76+0.5,'Asset data'!$CX76:$GJ76)-W76,0) -> 0 | Y76: =IF($A76>0,SUMIF('Age profile (years)'!$CT76:$GF76,"<" & T76+0.5,'Asset data'!$CX76:$GJ76)-X76-W76,0) -> 0 | Z76: =IF($A76>0,SUMIF('Age profile (years)'!$CT76:$GF76,"<" & U76+0.5,'Asset data'!$CX76:$GJ76)-Y76-X76-W76,0) -> 0 | AA76: 0 | AB76: 0 | AC76: 0 | AD76: 0 | AE76: 0 | AF76: 0 | AI76: =IF($A76>0,'RRR hist-forc'!K76,0) -> 0 | AJ76: 0
A77: ='Asset data'!A77 -> 0 | B77: ='Asset data'!B77 -> 0 | C77: ='Asset data'!C77 -> 0 | D77: ='Asset data'!E77 -> > 66 kv & < = 132 kv ; commercial & industrial | E77: 0 | F77: =IF(A77>0,SUM('Asset data'!J77:CV77),0) -> 0 | G77: =IF(A77>0,'Asset data'!F77,0) -> 0 | H77: =IF(A77>0,SUM('Asset data'!CX77:GJ77),0) -> 0 | I77: 0 | J77: 0 | K77: 0 | L77: 0 | M77: =IF($A77>0,SUMPRODUCT('Age profile (years)'!$CT77:$GF77,'Asset data'!$CX77:$GJ77)/H77-0.5,0) -> 0 | N77: 0 | O77: =IF($A77>0,'Asset data'!G77,0) -> 0 | P77: 0 | Q77: 0 | R77: 0 | S77: 0 | T77: 0 | U77: 0 | W77: =IF($A77>0,SUMIF('Age profile (years)'!$CT77:$GF77,"<" & R77+0.5,'Asset data'!$CX77:$GJ77),0) -> 0 | X77: =IF($A77>0,SUMIF('Age profile (years)'!$CT77:$GF77,"<" & S77+0.5,'Asset data'!$CX77:$GJ77)-W77,0) -> 0 | Y77: =IF($A77>0,SUMIF('Age profile (years)'!$CT77:$GF77,"<" & T77+0.5,'Asset data'!$CX77:$GJ77)-X77-W77,0) -> 0 | Z77: =IF($A77>0,SUMIF('Age profile (years)'!$CT77:$GF77,"<" & U77+0.5,'Asset data'!$CX77:$GJ77)-Y77-X77-W77,0) -> 0 | AA77: 0 | AB77: 0 | AC77: 0 | AD77: 0 | AE77: 0 | AF77: 0 | AI77: =IF($A77>0,'RRR hist-forc'!K77,0) -> 0 | AJ77: 0
A78: ='Asset data'!A78 -> 0 | B78: ='Asset data'!B78 -> 0 | C78: ='Asset data'!C78 -> 0 | D78: ='Asset data'!E78 -> > 66 kv & < = 132 kv ; subdivision | E78: 0 | F78: =IF(A78>0,SUM('Asset data'!J78:CV78),0) -> 0 | G78: =IF(A78>0,'Asset data'!F78,0) -> 0 | H78: =IF(A78>0,SUM('Asset data'!CX78:GJ78),0) -> 0 | I78: 0 | J78: 0 | K78: 0 | L78: 0 | M78: =IF($A78>0,SUMPRODUCT('Age profile (years)'!$CT78:$GF78,'Asset data'!$CX78:$GJ78)/H78-0.5,0) -> 0 | N78: 0 | O78: =IF($A78>0,'Asset data'!G78,0) -> 0 | P78: 0 | Q78: 0 | R78: 0 | S78: 0 | T78: 0 | U78: 0 | W78: =IF($A78>0,SUMIF('Age profile (years)'!$CT78:$GF78,"<" & R78+0.5,'Asset data'!$CX78:$GJ78),0) -> 0 | X78: =IF($A78>0,SUMIF('Age profile (years)'!$CT78:$GF78,"<" & S78+0.5,'Asset data'!$CX78:$GJ78)-W78,0) -> 0 | Y78: =IF($A78>0,SUMIF('Age profile (years)'!$CT78:$GF78,"<" & T78+0.5,'Asset data'!$CX78:$GJ78)-X78-W78,0) -> 0 | Z78: =IF($A78>0,SUMIF('Age profile (years)'!$CT78:$GF78,"<" & U78+0.5,'Asset data'!$CX78:$GJ78)-Y78-X78-W78,0) -> 0 | AA78: 0 | AB78: 0 | AC78: 0 | AD78: 0 | AE78: 0 | AF78: 0 | AI78: =IF($A78>0,'RRR hist-forc'!K78,0) -> 0 | AJ78: 0
A79: ='Asset data'!A79 -> 0 | B79: ='Asset data'!B79 -> 0 | C79: ='Asset data'!C79 -> 0 | D79: ='Asset data'!E79 -> > 132 kv ; commercial & industrial | E79: 0 | F79: =IF(A79>0,SUM('Asset data'!J79:CV79),0) -> 0 | G79: =IF(A79>0,'Asset data'!F79,0) -> 0 | H79: =IF(A79>0,SUM('Asset data'!CX79:GJ79),0) -> 0 | I79: 0 | J79: 0 | K79: 0 | L79: 0 | M79: =IF($A79>0,SUMPRODUCT('Age profile (years)'!$CT79:$GF79,'Asset data'!$CX79:$GJ79)/H79-0.5,0) -> 0 | N79: 0 | O79: =IF($A79>0,'Asset data'!G79,0) -> 0 | P79: 0 | Q79: 0 | R79: 0 | S79: 0 | T79: 0 | U79: 0 | W79: =IF($A79>0,SUMIF('Age profile (years)'!$CT79:$GF79,"<" & R79+0.5,'Asset data'!$CX79:$GJ79),0) -> 0 | X79: =IF($A79>0,SUMIF('Age profile (years)'!$CT79:$GF79,"<" & S79+0.5,'Asset data'!$CX79:$GJ79)-W79,0) -> 0 | Y79: =IF($A79>0,SUMIF('Age profile (years)'!$CT79:$GF79,"<" & T79+0.5,'Asset data'!$CX79:$GJ79)-X79-W79,0) -> 0 | Z79: =IF($A79>0,SUMIF('Age profile (years)'!$CT79:$GF79,"<" & U79+0.5,'Asset data'!$CX79:$GJ79)-Y79-X79-W79,0) -> 0 | AA79: 0 | AB79: 0 | AC79: 0 | AD79: 0 | AE79: 0 | AF79: 0 | AI79: =IF($A79>0,'RRR hist-forc'!K79,0) -> 0 | AJ79: 0
A80: ='Asset data'!A80 -> 0 | B80: ='Asset data'!B80 -> 0 | C80: ='Asset data'!C80 -> 0 | D80: ='Asset data'!E80 -> > 132 kv ; subdivision | E80: 0 | F80: =IF(A80>0,SUM('Asset data'!J80:CV80),0) -> 0 | G80: =IF(A80>0,'Asset data'!F80,0) -> 0 | H80: =IF(A80>0,SUM('Asset data'!CX80:GJ80),0) -> 0 | I80: 0 | J80: 0 | K80: 0 | L80: 0 | M80: =IF($A80>0,SUMPRODUCT('Age profile (years)'!$CT80:$GF80,'Asset data'!$CX80:$GJ80)/H80-0.5,0) -> 0 | N80: 0 | O80: =IF($A80>0,'Asset data'!G80,0) -> 0 | P80: 0 | Q80: 0 | R80: 0 | S80: 0 | T80: 0 | U80: 0 | W80: =IF($A80>0,SUMIF('Age profile (years)'!$CT80:$GF80,"<" & R80+0.5,'Asset data'!$CX80:$GJ80),0) -> 0 | X80: =IF($A80>0,SUMIF('Age profile (years)'!$CT80:$GF80,"<" & S80+0.5,'Asset data'!$CX80:$GJ80)-W80,0) -> 0 | Y80: =IF($A80>0,SUMIF('Age profile (years)'!$CT80:$GF80,"<" & T80+0.5,'Asset data'!$CX80:$GJ80)-X80-W80,0) -> 0 | Z80: =IF($A80>0,SUMIF('Age profile (years)'!$CT80:$GF80,"<" & U80+0.5,'Asset data'!$CX80:$GJ80)-Y80-X80-W80,0) -> 0 | AA80: 0 | AB80: 0 | AC80: 0 | AD80: 0 | AE80: 0 | AF80: 0 | AI80: =IF($A80>0,'RRR hist-forc'!K80,0) -> 0 | AJ80: 0
A81: ='Asset data'!A81 -> 0 | B81: ='Asset data'!B81 -> 0 | C81: ='Asset data'!C81 -> 0 | D81: ='Asset data'!E81 -> other | E81: 0 | F81: =IF(A81>0,SUM('Asset data'!J81:CV81),0) -> 0 | G81: =IF(A81>0,'Asset data'!F81,0) -> 0 | H81: =IF(A81>0,SUM('Asset data'!CX81:GJ81),0) -> 0 | I81: 0 | J81: 0 | K81: 0 | L81: 0 | M81: =IF($A81>0,SUMPRODUCT('Age profile (years)'!$CT81:$GF81,'Asset data'!$CX81:$GJ81)/H81-0.5,0) -> 0 | N81: 0 | O81: =IF($A81>0,'Asset data'!G81,0) -> 0 | P81: 0 | Q81: 0 | R81: 0 | S81: 0 | T81: 0 | U81: 0 | W81: =IF($A81>0,SUMIF('Age profile (years)'!$CT81:$GF81,"<" & R81+0.5,'Asset data'!$CX81:$GJ81),0) -> 0 | X81: =IF($A81>0,SUMIF('Age profile (years)'!$CT81:$GF81,"<" & S81+0.5,'Asset data'!$CX81:$GJ81)-W81,0) -> 0 | Y81: =IF($A81>0,SUMIF('Age profile (years)'!$CT81:$GF81,"<" & T81+0.5,'Asset data'!$CX81:$GJ81)-X81-W81,0) -> 0 | Z81: =IF($A81>0,SUMIF('Age profile (years)'!$CT81:$GF81,"<" & U81+0.5,'Asset data'!$CX81:$GJ81)-Y81-X81-W81,0) -> 0 | AA81: 0 | AB81: 0 | AC81: 0 | AD81: 0 | AE81: 0 | AF81: 0 | AI81: =IF($A81>0,'RRR hist-forc'!K81,0) -> 0 | AJ81: 0
A82: ='Asset data'!A82 -> 5 | B82: ='Asset data'!B82 -> 0 | C82: ='Asset data'!C82 -> 0 | D82: ='Asset data'!E82 -> pole mounted ; < = 22kv ; < = 60 kva ; single phase | E82: TRANSFORMERS | F82: =IF(A82>0,SUM('Asset data'!J82:CV82),0) -> 46105.001 | G82: =IF(A82>0,'Asset data'!F82,0) -> 5.6766 | H82: =IF(A82>0,SUM('Asset data'!CX82:GJ82),0) -> 261719.6487 | I82: 0.01147520866 | J82: 20 | K82: 0.1412761921 | L82: 5.6766 | M82: =IF($A82>0,SUMPRODUCT('Age profile (years)'!$CT82:$GF82,'Asset data'!$CX82:$GJ82)/H82-0.5,0) -> 29.59760186 | N82: 7746273.961 | O82: =IF($A82>0,'Asset data'!G82,0) -> 52.4380686 | P82: 13724072.89 | Q82: 0.4355703279 | R82: 5.24380686 | S82: 10.48761372 | T82: 31.46284116 | U82: 41.95045488 | W82: =IF($A82>0,SUMIF('Age profile (years)'!$CT82:$GF82,"<" & R82+0.5,'Asset data'!$CX82:$GJ82),0) -> 13063.49146 | X82: =IF($A82>0,SUMIF('Age profile (years)'!$CT82:$GF82,"<" & S82+0.5,'Asset data'!$CX82:$GJ82)-W82,0) -> 14072.80797 | Y82: =IF($A82>0,SUMIF('Age profile (years)'!$CT82:$GF82,"<" & T82+0.5,'Asset data'!$CX82:$GJ82)-X82-W82,0) -> 108153.0014 | Z82: =IF($A82>0,SUMIF('Age profile (years)'!$CT82:$GF82,"<" & U82+0.5,'Asset data'!$CX82:$GJ82)-Y82-X82-W82,0) -> 60311.21835 | AA82: 66119.12946 | AB82: 0.04991406464 | AC82: 0.05377054433 | AD82: 0.4132398999 | AE82: 0.2304420729 | AF82: 0.2526334182 | AI82: =IF($A82>0,'RRR hist-forc'!K82,0) -> 52.4380686 | AJ82: 13724072.89
A83: ='Asset data'!A83 -> 5 | B83: ='Asset data'!B83 -> 0 | C83: ='Asset data'!C83 -> 0 | D83: ='Asset data'!E83 -> pole mounted ; < = 22kv ; > 600 kva ; single phase | E83: TRANSFORMERS | F83: =IF(A83>0,SUM('Asset data'!J83:CV83),0) -> 2 | G83: =IF(A83>0,'Asset data'!F83,0) -> 0.0001 | H83: =IF(A83>0,SUM('Asset data'!CX83:GJ83),0) -> 0.0002 | I83: 8.769084567e-12 | J83: 61 | K83: 1.079599432e-10 | L83: 0.0001 | M83: =IF($A83>0,SUMPRODUCT('Age profile (years)'!$CT83:$GF83,'Asset data'!$CX83:$GJ83)/H83-0.5,0) -> 41.5 | N83: 0.0083 | O83: =IF($A83>0,'Asset data'!G83,0) -> 48.6 | P83: 0.00972 | Q83: 0.146090535 | R83: 4.86 | S83: 9.72 | T83: 29.16 | U83: 38.88 | W83: =IF($A83>0,SUMIF('Age profile (years)'!$CT83:$GF83,"<" & R83+0.5,'Asset data'!$CX83:$GJ83),0) -> 0 | X83: =IF($A83>0,SUMIF('Age profile (years)'!$CT83:$GF83,"<" & S83+0.5,'Asset data'!$CX83:$GJ83)-W83,0) -> 0 | Y83: =IF($A83>0,SUMIF('Age profile (years)'!$CT83:$GF83,"<" & T83+0.5,'Asset data'!$CX83:$GJ83)-X83-W83,0) -> 0 | Z83: =IF($A83>0,SUMIF('Age profile (years)'!$CT83:$GF83,"<" & U83+0.5,'Asset data'!$CX83:$GJ83)-Y83-X83-W83,0) -> 0 | AA83: 0.0002 | AB83: 0 | AC83: 0 | AD83: 0 | AE83: 0 | AF83: 1 | AI83: =IF($A83>0,'RRR hist-forc'!K83,0) -> 48.6 | AJ83: 0.00972
A84: ='Asset data'!A84 -> 5 | B84: ='Asset data'!B84 -> 0 | C84: ='Asset data'!C84 -> 0 | D84: ='Asset data'!E84 -> pole mounted ; < = 22kv ; < = 60 kva ; multiple phase | E84: TRANSFORMERS | F84: =IF(A84>0,SUM('Asset data'!J84:CV84),0) -> 19824.002 | G84: =IF(A84>0,'Asset data'!F84,0) -> 8.3867 | H84: =IF(A84>0,SUM('Asset data'!CX84:GJ84),0) -> 166257.9576 | I84: 0.00728965045 | J84: 27 | K84: 0.0897459983 | L84: 8.3867 | M84: =IF($A84>0,SUMPRODUCT('Age profile (years)'!$CT84:$GF84,'Asset data'!$CX84:$GJ84)/H84-0.5,0) -> 36.3050201 | N84: 6035998.491 | O84: =IF($A84>0,'Asset data'!G84,0) -> 59.38957058 | P84: 9873988.705 | Q84: 0.3886970432 | R84: 5.938957058 | S84: 11.87791412 | T84: 35.63374235 | U84: 47.51165646 | W84: =IF($A84>0,SUMIF('Age profile (years)'!$CT84:$GF84,"<" & R84+0.5,'Asset data'!$CX84:$GJ84),0) -> 1007.209123 | X84: =IF($A84>0,SUMIF('Age profile (years)'!$CT84:$GF84,"<" & S84+0.5,'Asset data'!$CX84:$GJ84)-W84,0) -> 8328.563396 | Y84: =IF($A84>0,SUMIF('Age profile (years)'!$CT84:$GF84,"<" & T84+0.5,'Asset data'!$CX84:$GJ84)-X84-W84,0) -> 70352.59614 | Z84: =IF($A84>0,SUMIF('Age profile (years)'!$CT84:$GF84,"<" & U84+0.5,'Asset data'!$CX84:$GJ84)-Y84-X84-W84,0) -> 43970.37783 | AA84: 42599.21109 | AB84: 0.006058110769 | AC84: 0.05009422416 | AD84: 0.4231532563 | AE84: 0.2644708167 | AF84: 0.256223592 | AI84: =IF($A84>0,'RRR hist-forc'!K84,0) -> 59.38957058 | AJ84: 9873988.705
A85: ='Asset data'!A85 -> 5 | B85: ='Asset data'!B85 -> 0 | C85: ='Asset data'!C85 -> 0 | D85: ='Asset data'!E85 -> pole mounted ; < = 22kv ; > 60 kva and < = 600 kva ; multiple phase | E85: TRANSFORMERS | F85: =IF(A85>0,SUM('Asset data'!J85:CV85),0) -> 24377.999 | G85: =IF(A85>0,'Asset data'!F85,0) -> 17.9466 | H85: =IF(A85>0,SUM('Asset data'!CX85:GJ85),0) -> 437502.1969 | I85: 0.01918246881 | J85: 14 | K85: 0.2361635617 | L85: 17.9466 | M85: =IF($A85>0,SUMPRODUCT('Age profile (years)'!$CT85:$GF85,'Asset data'!$CX85:$GJ85)/H85-0.5,0) -> 34.45035725 | N85: 15072106.98 | O85: =IF($A85>0,'Asset data'!G85,0) -> 52.42265947 | P85: 22935028.68 | Q85: 0.3428346139 | R85: 5.242265947 | S85: 10.48453189 | T85: 31.45359568 | U85: 41.93812757 | W85: =IF($A85>0,SUMIF('Age profile (years)'!$CT85:$GF85,"<" & R85+0.5,'Asset data'!$CX85:$GJ85),0) -> 17134.58814 | X85: =IF($A85>0,SUMIF('Age profile (years)'!$CT85:$GF85,"<" & S85+0.5,'Asset data'!$CX85:$GJ85)-W85,0) -> 14299.94061 | Y85: =IF($A85>0,SUMIF('Age profile (years)'!$CT85:$GF85,"<" & T85+0.5,'Asset data'!$CX85:$GJ85)-X85-W85,0) -> 118281.4283 | Z85: =IF($A85>0,SUMIF('Age profile (years)'!$CT85:$GF85,"<" & U85+0.5,'Asset data'!$CX85:$GJ85)-Y85-X85-W85,0) -> 100677.3571 | AA85: 187108.8826 | AB85: 0.03916457622 | AC85: 0.03268541442 | AD85: 0.2703561929 | AE85: 0.2301185179 | AF85: 0.4276752985 | AI85: =IF($A85>0,'RRR hist-forc'!K85,0) -> 52.42265947 | AJ85: 22935028.68
A86: ='Asset data'!A86 -> 5 | B86: ='Asset data'!B86 -> 0 | C86: ='Asset data'!C86 -> 0 | D86: ='Asset data'!E86 -> pole mounted ; < = 22kv ; > 600 kva ; multiple phase | E86: TRANSFORMERS | F86: =IF(A86>0,SUM('Asset data'!J86:CV86),0) -> 51 | G86: =IF(A86>0,'Asset data'!F86,0) -> 73.1489 | H86: =IF(A86>0,SUM('Asset data'!CX86:GJ86),0) -> 3730.5939 | I86: 0.000163569467 | J86: 51 | K86: 0.002013773528 | L86: 73.1489 | M86: =IF($A86>0,SUMPRODUCT('Age profile (years)'!$CT86:$GF86,'Asset data'!$CX86:$GJ86)/H86-0.5,0) -> 10.02 | N86: 37380.55088 | O86: =IF($A86>0,'Asset data'!G86,0) -> 30.19434888 | P86: 112642.8538 | Q86: 0.6681498237 | R86: 3.019434888 | S86: 6.038869776 | T86: 18.11660933 | U86: 24.15547911 | W86: =IF($A86>0,SUMIF('Age profile (years)'!$CT86:$GF86,"<" & R86+0.5,'Asset data'!$CX86:$GJ86),0) -> 746.11878 | X86: =IF($A86>0,SUMIF('Age profile (years)'!$CT86:$GF86,"<" & S86+0.5,'Asset data'!$CX86:$GJ86)-W86,0) -> 0 | Y86: =IF($A86>0,SUMIF('Age profile (years)'!$CT86:$GF86,"<" & T86+0.5,'Asset data'!$CX86:$GJ86)-X86-W86,0) -> 2163.744462 | Z86: =IF($A86>0,SUMIF('Age profile (years)'!$CT86:$GF86,"<" & U86+0.5,'Asset data'!$CX86:$GJ86)-Y86-X86-W86,0) -> 447.671268 | AA86: 373.05939 | AB86: 0.2 | AC86: 0 | AD86: 0.58 | AE86: 0.12 | AF86: 0.1 | AI86: =IF($A86>0,'RRR hist-forc'!K86,0) -> 30.19434888 | AJ86: 112642.8538
A87: ='Asset data'!A87 -> 5 | B87: ='Asset data'!B87 -> 0 | C87: ='Asset data'!C87 -> 0 | D87: ='Asset data'!E87 -> kiosk mounted ; < = 22kv ; < = 60 kva ; single phase | E87: =IF(A87>0,VLOOKUP(A87,IDtable,2),0) -> TRANSFORMERS | F87: =IF(A87>0,SUM('Asset data'!J87:CV87),0) -> 186.005 | G87: =IF(A87>0,'Asset data'!F87,0) -> 1.7292 | H87: =IF(A87>0,SUM('Asset data'!CX87:GJ87),0) -> 321.639846 | I87: =H87/$H$18/1000 -> 1.410243505e-05 | J87: =IF(RANK(0,I$21:I$205)=RANK(I87,I$21:I$205),0,RANK(I87,I$21:I$205)) -> 55 | K87: =IF(A87>0,H87/(VLOOKUP(A87,$A$6:$H$17,8)*1000),0) -> 0.0001736210976 | L87: =IF($A87>0,H87/F87,0) -> 1.7292 | M87: =IF($A87>0,SUMPRODUCT('Age profile (years)'!$CT87:$GF87,'Asset data'!$CX87:$GJ87)/H87-0.5,0) -> 27.25264106 | N87: =IF($A87>0,M87*H87,0) -> 8765.535273 | O87: =IF($A87>0,'Asset data'!G87,0) -> 44.38240481 | P87: =IF($A87>0,H87*O87,0) -> 14275.14985 | Q87: =IF($A87>0,(O87-M87)/O87,0) -> 0.3859584406 | R87: 4.438240481 | S87: 8.876480962 | T87: 26.62944289 | U87: 35.50592385 | W87: =IF($A87>0,SUMIF('Age profile (years)'!$CT87:$GF87,"<" & R87+0.5,'Asset data'!$CX87:$GJ87),0) -> 25.298196 | X87: =IF($A87>0,SUMIF('Age profile (years)'!$CT87:$GF87,"<" & S87+0.5,'Asset data'!$CX87:$GJ87)-W87,0) -> 7.228056 | Y87: =IF($A87>0,SUMIF('Age profile (years)'!$CT87:$GF87,"<" & T87+0.5,'Asset data'!$CX87:$GJ87)-X87-W87,0) -> 90.3489708 | Z87: =IF($A87>0,SUMIF('Age profile (years)'!$CT87:$GF87,"<" & U87+0.5,'Asset data'!$CX87:$GJ87)-Y87-X87-W87,0) -> 57.8227188 | AA87: =IF($A87>0,H87-Z87-Y87-X87-W87,0) -> 140.9419044 | AB87: =IF($A87>0,W87/$H87,0) -> 0.07865379963 | AC87: =IF($A87>0,X87/$H87,0) -> 0.02247251418 | AD87: =IF($A87>0,Y87/$H87,0) -> 0.280901051 | AE87: =IF($A87>0,Z87/$H87,0) -> 0.1797747372 | AF87: =IF($A87>0,AA87/$H87,0) -> 0.4381978979 | AI87: =IF($A87>0,'RRR hist-forc'!K87,0) -> 44.38240481 | AJ87: =IF($A87>0,AI87*H87,0) -> 14275.14985
A88: ='Asset data'!A88 -> 0 | B88: ='Asset data'!B88 -> 0 | C88: ='Asset data'!C88 -> 0 | D88: ='Asset data'!E88 -> kiosk mounted ; < = 22kv ; > 60 kva and < = 600 kva ; single phase | E88: 0 | F88: =IF(A88>0,SUM('Asset data'!J88:CV88),0) -> 0 | G88: =IF(A88>0,'Asset data'!F88,0) -> 0 | H88: =IF(A88>0,SUM('Asset data'!CX88:GJ88),0) -> 0 | I88: 0 | J88: 0 | K88: 0 | L88: 0 | M88: =IF($A88>0,SUMPRODUCT('Age profile (years)'!$CT88:$GF88,'Asset data'!$CX88:$GJ88)/H88-0.5,0) -> 0 | N88: 0 | O88: =IF($A88>0,'Asset data'!G88,0) -> 0 | P88: 0 | Q88: 0 | R88: 0 | S88: 0 | T88: 0 | U88: 0 | W88: =IF($A88>0,SUMIF('Age profile (years)'!$CT88:$GF88,"<" & R88+0.5,'Asset data'!$CX88:$GJ88),0) -> 0 | X88: =IF($A88>0,SUMIF('Age profile (years)'!$CT88:$GF88,"<" & S88+0.5,'Asset data'!$CX88:$GJ88)-W88,0) -> 0 | Y88: =IF($A88>0,SUMIF('Age profile (years)'!$CT88:$GF88,"<" & T88+0.5,'Asset data'!$CX88:$GJ88)-X88-W88,0) -> 0 | Z88: =IF($A88>0,SUMIF('Age profile (years)'!$CT88:$GF88,"<" & U88+0.5,'Asset data'!$CX88:$GJ88)-Y88-X88-W88,0) -> 0 | AA88: 0 | AB88: 0 | AC88: 0 | AD88: 0 | AE88: 0 | AF88: 0 | AI88: =IF($A88>0,'RRR hist-forc'!K88,0) -> 0 | AJ88: 0
A89: ='Asset data'!A89 -> 0 | B89: ='Asset data'!B89 -> 0 | C89: ='Asset data'!C89 -> 0 | D89: ='Asset data'!E89 -> kiosk mounted ; < = 22kv ; > 600 kva ; single phase | E89: 0 | F89: =IF(A89>0,SUM('Asset data'!J89:CV89),0) -> 0 | G89: =IF(A89>0,'Asset data'!F89,0) -> 0 | H89: =IF(A89>0,SUM('Asset data'!CX89:GJ89),0) -> 0 | I89: 0 | J89: 0 | K89: 0 | L89: 0 | M89: =IF($A89>0,SUMPRODUCT('Age profile (years)'!$CT89:$GF89,'Asset data'!$CX89:$GJ89)/H89-0.5,0) -> 0 | N89: 0 | O89: =IF($A89>0,'Asset data'!G89,0) -> 0 | P89: 0 | Q89: 0 | R89: 0 | S89: 0 | T89: 0 | U89: 0 | W89: =IF($A89>0,SUMIF('Age profile (years)'!$CT89:$GF89,"<" & R89+0.5,'Asset data'!$CX89:$GJ89),0) -> 0 | X89: =IF($A89>0,SUMIF('Age profile (years)'!$CT89:$GF89,"<" & S89+0.5,'Asset data'!$CX89:$GJ89)-W89,0) -> 0 | Y89: =IF($A89>0,SUMIF('Age profile (years)'!$CT89:$GF89,"<" & T89+0.5,'Asset data'!$CX89:$GJ89)-X89-W89,0) -> 0 | Z89: =IF($A89>0,SUMIF('Age profile (years)'!$CT89:$GF89,"<" & U89+0.5,'Asset data'!$CX89:$GJ89)-Y89-X89-W89,0) -> 0 | AA89: 0 | AB89: 0 | AC89: 0 | AD89: 0 | AE89: 0 | AF89: 0 | AI89: =IF($A89>0,'RRR hist-forc'!K89,0) -> 0 | AJ89: 0
A90: ='Asset data'!A90 -> 5 | B90: ='Asset data'!B90 -> 0 | C90: ='Asset data'!C90 -> 0 | D90: ='Asset data'!E90 -> kiosk mounted ; < = 22kv ; < = 60 kva ; multiple phase | E90: TRANSFORMERS | F90: =IF(A90>0,SUM('Asset data'!J90:CV90),0) -> 689.997 | G90: =IF(A90>0,'Asset data'!F90,0) -> 20.4497 | H90: =IF(A90>0,SUM('Asset data'!CX90:GJ90),0) -> 14110.23165 | I90: 0.0006186690731 | J90: 47 | K90: 0.007616699039 | L90: 20.4497 | M90: =IF($A90>0,SUMPRODUCT('Age profile (years)'!$CT90:$GF90,'Asset data'!$CX90:$GJ90)/H90-0.5,0) -> 90.36205157 | N90: 1275029.48 | O90: =IF($A90>0,'Asset data'!G90,0) -> 106.4590609 | P90: 1502162.01 | Q90: 0.1512037507 | R90: 10.64590609 | S90: 21.29181218 | T90: 63.87543653 | U90: 85.1672487 | W90: =IF($A90>0,SUMIF('Age profile (years)'!$CT90:$GF90,"<" & R90+0.5,'Asset data'!$CX90:$GJ90),0) -> 0 | X90: =IF($A90>0,SUMIF('Age profile (years)'!$CT90:$GF90,"<" & S90+0.5,'Asset data'!$CX90:$GJ90)-W90,0) -> 0 | Y90: =IF($A90>0,SUMIF('Age profile (years)'!$CT90:$GF90,"<" & T90+0.5,'Asset data'!$CX90:$GJ90)-X90-W90,0) -> 1271.153352 | Z90: =IF($A90>0,SUMIF('Age profile (years)'!$CT90:$GF90,"<" & U90+0.5,'Asset data'!$CX90:$GJ90)-Y90-X90-W90,0) -> 2669.462939 | AA90: 10169.61536 | AB90: 0 | AC90: 0 | AD90: 0.09008734821 | AE90: 0.1891863298 | AF90: 0.720726322 | AI90: =IF($A90>0,'RRR hist-forc'!K90,0) -> 106.4590609 | AJ90: 1502162.01
A91: ='Asset data'!A91 -> 5 | B91: ='Asset data'!B91 -> 0 | C91: ='Asset data'!C91 -> 0 | D91: ='Asset data'!E91 -> kiosk mounted ; < = 22kv ; > 60 kva and < = 600 kva ; multiple phase | E91: TRANSFORMERS | F91: =IF(A91>0,SUM('Asset data'!J91:CV91),0) -> 5029.996 | G91: =IF(A91>0,'Asset data'!F91,0) -> 37.6797 | H91: =IF(A91>0,SUM('Asset data'!CX91:GJ91),0) -> 189528.7403 | I91: 0.008309967757 | J91: 25 | K91: 0.1023075602 | L91: 37.6797 | M91: =IF($A91>0,SUMPRODUCT('Age profile (years)'!$CT91:$GF91,'Asset data'!$CX91:$GJ91)/H91-0.5,0) -> 34.80908295 | N91: 6597321.642 | O91: =IF($A91>0,'Asset data'!G91,0) -> 46.99289544 | P91: 8906504.274 | Q91: 0.2592692443 | R91: 4.699289544 | S91: 9.398579087 | T91: 28.19573726 | U91: 37.59431635 | W91: =IF($A91>0,SUMIF('Age profile (years)'!$CT91:$GF91,"<" & R91+0.5,'Asset data'!$CX91:$GJ91),0) -> 3575.200655 | X91: =IF($A91>0,SUMIF('Age profile (years)'!$CT91:$GF91,"<" & S91+0.5,'Asset data'!$CX91:$GJ91)-W91,0) -> 2205.995716 | Y91: =IF($A91>0,SUMIF('Age profile (years)'!$CT91:$GF91,"<" & T91+0.5,'Asset data'!$CX91:$GJ91)-X91-W91,0) -> 33014.4633 | Z91: =IF($A91>0,SUMIF('Age profile (years)'!$CT91:$GF91,"<" & U91+0.5,'Asset data'!$CX91:$GJ91)-Y91-X91-W91,0) -> 57090.69889 | AA91: 93642.38171 | AB91: 0.01886363329 | AC91: 0.01163937307 | AD91: 0.174192385 | AE91: 0.301224494 | AF91: 0.4940801146 | AI91: =IF($A91>0,'RRR hist-forc'!K91,0) -> 46.99289544 | AJ91: 8906504.274
A92: ='Asset data'!A92 -> 5 | B92: ='Asset data'!B92 -> 0 | C92: ='Asset data'!C92 -> 0 | D92: ='Asset data'!E92 -> kiosk mounted ; < = 22kv ; > 600 kva ; multiple phase | E92: TRANSFORMERS | F92: =IF(A92>0,SUM('Asset data'!J92:CV92),0) -> 1603.997 | G92: =IF(A92>0,'Asset data'!F92,0) -> 74.5248 | H92: =IF(A92>0,SUM('Asset data'!CX92:GJ92),0) -> 119537.5556 | I92: 0.005241174671 | J92: 29 | K92: 0.06452633859 | L92: 74.5248 | M92: =IF($A92>0,SUMPRODUCT('Age profile (years)'!$CT92:$GF92,'Asset data'!$CX92:$GJ92)/H92-0.5,0) -> 27.43870687 | N92: 3279955.949 | O92: =IF($A92>0,'Asset data'!G92,0) -> 39.09907658 | P92: 4673808.042 | Q92: 0.2982262174 | R92: 3.909907658 | S92: 7.819815317 | T92: 23.45944595 | U92: 31.27926127 | W92: =IF($A92>0,SUMIF('Age profile (years)'!$CT92:$GF92,"<" & R92+0.5,'Asset data'!$CX92:$GJ92),0) -> 4715.40767 | X92: =IF($A92>0,SUMIF('Age profile (years)'!$CT92:$GF92,"<" & S92+0.5,'Asset data'!$CX92:$GJ92)-W92,0) -> 1946.140627 | Y92: =IF($A92>0,SUMIF('Age profile (years)'!$CT92:$GF92,"<" & T92+0.5,'Asset data'!$CX92:$GJ92)-X92-W92,0) -> 21856.70787 | Z92: =IF($A92>0,SUMIF('Age profile (years)'!$CT92:$GF92,"<" & U92+0.5,'Asset data'!$CX92:$GJ92)-Y92-X92-W92,0) -> 31213.07293 | AA92: 59806.22652 | AB92: 0.03944708126 | AC92: 0.01628057908 | AD92: 0.1828438582 | AE92: 0.2611152016 | AF92: 0.5003132799 | AI92: =IF($A92>0,'RRR hist-forc'!K92,0) -> 39.09907658 | AJ92: 4673808.042
A93: ='Asset data'!A93 -> 0 | B93: ='Asset data'!B93 -> 0 | C93: ='Asset data'!C93 -> 0 | D93: ='Asset data'!E93 -> ground outdoor / indoor chamber mounted; ˂ 22 kv ; < = 60 kva ; single phase | E93: 0 | F93: =IF(A93>0,SUM('Asset data'!J93:CV93),0) -> 0 | G93: =IF(A93>0,'Asset data'!F93,0) -> 0 | H93: =IF(A93>0,SUM('Asset data'!CX93:GJ93),0) -> 0 | I93: 0 | J93: 0 | K93: 0 | L93: 0 | M93: =IF($A93>0,SUMPRODUCT('Age profile (years)'!$CT93:$GF93,'Asset data'!$CX93:$GJ93)/H93-0.5,0) -> 0 | N93: 0 | O93: =IF($A93>0,'Asset data'!G93,0) -> 0 | P93: 0 | Q93: 0 | R93: 0 | S93: 0 | T93: 0 | U93: 0 | W93: =IF($A93>0,SUMIF('Age profile (years)'!$CT93:$GF93,"<" & R93+0.5,'Asset data'!$CX93:$GJ93),0) -> 0 | X93: =IF($A93>0,SUMIF('Age profile (years)'!$CT93:$GF93,"<" & S93+0.5,'Asset data'!$CX93:$GJ93)-W93,0) -> 0 | Y93: =IF($A93>0,SUMIF('Age profile (years)'!$CT93:$GF93,"<" & T93+0.5,'Asset data'!$CX93:$GJ93)-X93-W93,0) -> 0 | Z93: =IF($A93>0,SUMIF('Age profile (years)'!$CT93:$GF93,"<" & U93+0.5,'Asset data'!$CX93:$GJ93)-Y93-X93-W93,0) -> 0 | AA93: 0 | AB93: 0 | AC93: 0 | AD93: 0 | AE93: 0 | AF93: 0 | AI93: =IF($A93>0,'RRR hist-forc'!K93,0) -> 0 | AJ93: 0
A94: ='Asset data'!A94 -> 0 | B94: ='Asset data'!B94 -> 0 | C94: ='Asset data'!C94 -> 0 | D94: ='Asset data'!E94 -> ground outdoor / indoor chamber mounted; ˂ 22 kv ; > 60 kva and < = 600 kva ; single phase | E94: 0 | F94: =IF(A94>0,SUM('Asset data'!J94:CV94),0) -> 0 | G94: =IF(A94>0,'Asset data'!F94,0) -> 0 | H94: =IF(A94>0,SUM('Asset data'!CX94:GJ94),0) -> 0 | I94: 0 | J94: 0 | K94: 0 | L94: 0 | M94: =IF($A94>0,SUMPRODUCT('Age profile (years)'!$CT94:$GF94,'Asset data'!$CX94:$GJ94)/H94-0.5,0) -> 0 | N94: 0 | O94: =IF($A94>0,'Asset data'!G94,0) -> 0 | P94: 0 | Q94: 0 | R94: 0 | S94: 0 | T94: 0 | U94: 0 | W94: =IF($A94>0,SUMIF('Age profile (years)'!$CT94:$GF94,"<" & R94+0.5,'Asset data'!$CX94:$GJ94),0) -> 0 | X94: =IF($A94>0,SUMIF('Age profile (years)'!$CT94:$GF94,"<" & S94+0.5,'Asset data'!$CX94:$GJ94)-W94,0) -> 0 | Y94: =IF($A94>0,SUMIF('Age profile (years)'!$CT94:$GF94,"<" & T94+0.5,'Asset data'!$CX94:$GJ94)-X94-W94,0) -> 0 | Z94: =IF($A94>0,SUMIF('Age profile (years)'!$CT94:$GF94,"<" & U94+0.5,'Asset data'!$CX94:$GJ94)-Y94-X94-W94,0) -> 0 | AA94: 0 | AB94: 0 | AC94: 0 | AD94: 0 | AE94: 0 | AF94: 0 | AI94: =IF($A94>0,'RRR hist-forc'!K94,0) -> 0 | AJ94: 0
A95: ='Asset data'!A95 -> 0 | B95: ='Asset data'!B95 -> 0 | C95: ='Asset data'!C95 -> 0 | D95: ='Asset data'!E95 -> ground outdoor / indoor chamber mounted; ˂ 22 kv ; > 600 kva ; single phase | E95: 0 | F95: =IF(A95>0,SUM('Asset data'!J95:CV95),0) -> 0 | G95: =IF(A95>0,'Asset data'!F95,0) -> 0 | H95: =IF(A95>0,SUM('Asset data'!CX95:GJ95),0) -> 0 | I95: 0 | J95: 0 | K95: 0 | L95: 0 | M95: =IF($A95>0,SUMPRODUCT('Age profile (years)'!$CT95:$GF95,'Asset data'!$CX95:$GJ95)/H95-0.5,0) -> 0 | N95: 0 | O95: =IF($A95>0,'Asset data'!G95,0) -> 0 | P95: 0 | Q95: 0 | R95: 0 | S95: 0 | T95: 0 | U95: 0 | W95: =IF($A95>0,SUMIF('Age profile (years)'!$CT95:$GF95,"<" & R95+0.5,'Asset data'!$CX95:$GJ95),0) -> 0 | X95: =IF($A95>0,SUMIF('Age profile (years)'!$CT95:$GF95,"<" & S95+0.5,'Asset data'!$CX95:$GJ95)-W95,0) -> 0 | Y95: =IF($A95>0,SUMIF('Age profile (years)'!$CT95:$GF95,"<" & T95+0.5,'Asset data'!$CX95:$GJ95)-X95-W95,0) -> 0 | Z95: =IF($A95>0,SUMIF('Age profile (years)'!$CT95:$GF95,"<" & U95+0.5,'Asset data'!$CX95:$GJ95)-Y95-X95-W95,0) -> 0 | AA95: 0 | AB95: 0 | AC95: 0 | AD95: 0 | AE95: 0 | AF95: 0 | AI95: =IF($A95>0,'RRR hist-forc'!K95,0) -> 0 | AJ95: 0
A96: ='Asset data'!A96 -> 0 | B96: ='Asset data'!B96 -> 0 | C96: ='Asset data'!C96 -> 0 | D96: ='Asset data'!E96 -> ground outdoor / indoor chamber mounted; ˂ 22 kv ; < = 60 kva ; multiple phase | E96: 0 | F96: =IF(A96>0,SUM('Asset data'!J96:CV96),0) -> 0 | G96: =IF(A96>0,'Asset data'!F96,0) -> 0 | H96: =IF(A96>0,SUM('Asset data'!CX96:GJ96),0) -> 0 | I96: 0 | J96: 0 | K96: 0 | L96: 0 | M96: =IF($A96>0,SUMPRODUCT('Age profile (years)'!$CT96:$GF96,'Asset data'!$CX96:$GJ96)/H96-0.5,0) -> 0 | N96: 0 | O96: =IF($A96>0,'Asset data'!G96,0) -> 0 | P96: 0 | Q96: 0 | R96: 0 | S96: 0 | T96: 0 | U96: 0 | W96: =IF($A96>0,SUMIF('Age profile (years)'!$CT96:$GF96,"<" & R96+0.5,'Asset data'!$CX96:$GJ96),0) -> 0 | X96: =IF($A96>0,SUMIF('Age profile (years)'!$CT96:$GF96,"<" & S96+0.5,'Asset data'!$CX96:$GJ96)-W96,0) -> 0 | Y96: =IF($A96>0,SUMIF('Age profile (years)'!$CT96:$GF96,"<" & T96+0.5,'Asset data'!$CX96:$GJ96)-X96-W96,0) -> 0 | Z96: =IF($A96>0,SUMIF('Age profile (years)'!$CT96:$GF96,"<" & U96+0.5,'Asset data'!$CX96:$GJ96)-Y96-X96-W96,0) -> 0 | AA96: 0 | AB96: 0 | AC96: 0 | AD96: 0 | AE96: 0 | AF96: 0 | AI96: =IF($A96>0,'RRR hist-forc'!K96,0) -> 0 | AJ96: 0
A97: ='Asset data'!A97 -> 5 | B97: ='Asset data'!B97 -> 0 | C97: ='Asset data'!C97 -> 0 | D97: ='Asset data'!E97 -> ground outdoor / indoor chamber mounted; ˂ 22 kv ; > 60 kva and < = 600 kva ; multiple phase | E97: TRANSFORMERS | F97: =IF(A97>0,SUM('Asset data'!J97:CV97),0) -> 4 | G97: =IF(A97>0,'Asset data'!F97,0) -> 48.6674 | H97: =IF(A97>0,SUM('Asset data'!CX97:GJ97),0) -> 194.6696 | I97: 8.535370925e-06 | J97: 56 | K97: 0.0001050825948 | L97: 48.6674 | M97: =IF($A97>0,SUMPRODUCT('Age profile (years)'!$CT97:$GF97,'Asset data'!$CX97:$GJ97)/H97-0.5,0) -> 42.75 | N97: 8322.1254 | O97: =IF($A97>0,'Asset data'!G97,0) -> 63.46529205 | P97: 12354.76302 | Q97: 0.3264034778 | R97: 6.346529205 | S97: 12.69305841 | T97: 38.07917523 | U97: 50.77223364 | W97: =IF($A97>0,SUMIF('Age profile (years)'!$CT97:$GF97,"<" & R97+0.5,'Asset data'!$CX97:$GJ97),0) -> 0 | X97: =IF($A97>0,SUMIF('Age profile (years)'!$CT97:$GF97,"<" & S97+0.5,'Asset data'!$CX97:$GJ97)-W97,0) -> 0 | Y97: =IF($A97>0,SUMIF('Age profile (years)'!$CT97:$GF97,"<" & T97+0.5,'Asset data'!$CX97:$GJ97)-X97-W97,0) -> 97.3348 | Z97: =IF($A97>0,SUMIF('Age profile (years)'!$CT97:$GF97,"<" & U97+0.5,'Asset data'!$CX97:$GJ97)-Y97-X97-W97,0) -> 48.6674 | AA97: 48.6674 | AB97: 0 | AC97: 0 | AD97: 0.5 | AE97: 0.25 | AF97: 0.25 | AI97: =IF($A97>0,'RRR hist-forc'!K97,0) -> 63.46529205 | AJ97: 12354.76302
A98: ='Asset data'!A98 -> 5 | B98: ='Asset data'!B98 -> 0 | C98: ='Asset data'!C98 -> 0 | D98: ='Asset data'!E98 -> ground outdoor / indoor chamber mounted; ˂ 22 kv ; > 600 kva ; multiple phase | E98: TRANSFORMERS | F98: =IF(A98>0,SUM('Asset data'!J98:CV98),0) -> 36.003 | G98: =IF(A98>0,'Asset data'!F98,0) -> 65.734 | H98: =IF(A98>0,SUM('Asset data'!CX98:GJ98),0) -> 2366.621202 | I98: 0.0001037655073 | J98: 52 | K98: 0.001277501453 | L98: 65.734 | M98: =IF($A98>0,SUMPRODUCT('Age profile (years)'!$CT98:$GF98,'Asset data'!$CX98:$GJ98)/H98-0.5,0) -> 24.86363636 | N98: 58842.80898 | O98: =IF($A98>0,'Asset data'!G98,0) -> 55.88877735 | P98: 132267.5654 | Q98: 0.5551229148 | R98: 5.588877735 | S98: 11.17775547 | T98: 33.53326641 | U98: 44.71102188 | W98: =IF($A98>0,SUMIF('Age profile (years)'!$CT98:$GF98,"<" & R98+0.5,'Asset data'!$CX98:$GJ98),0) -> 358.57897 | X98: =IF($A98>0,SUMIF('Age profile (years)'!$CT98:$GF98,"<" & S98+0.5,'Asset data'!$CX98:$GJ98)-W98,0) -> 143.431588 | Y98: =IF($A98>0,SUMIF('Age profile (years)'!$CT98:$GF98,"<" & T98+0.5,'Asset data'!$CX98:$GJ98)-X98-W98,0) -> 1147.452704 | Z98: =IF($A98>0,SUMIF('Age profile (years)'!$CT98:$GF98,"<" & U98+0.5,'Asset data'!$CX98:$GJ98)-Y98-X98-W98,0) -> 215.147382 | AA98: 502.010558 | AB98: 0.1515151515 | AC98: 0.06060606061 | AD98: 0.4848484848 | AE98: 0.09090909091 | AF98: 0.2121212121 | AI98: =IF($A98>0,'RRR hist-forc'!K98,0) -> 55.88877735 | AJ98: 132267.5654
A99: ='Asset data'!A99 -> 5 | B99: ='Asset data'!B99 -> 0 | C99: ='Asset data'!C99 -> 0 | D99: ='Asset data'!E99 -> ground outdoor / indoor chamber mounted; > = 22 kv & < = 33 kv ; < = 15 mva | E99: TRANSFORMERS | F99: =IF(A99>0,SUM('Asset data'!J99:CV99),0) -> 131.01 | G99: =IF(A99>0,'Asset data'!F99,0) -> 371.4539 | H99: =IF(A99>0,SUM('Asset data'!CX99:GJ99),0) -> 48664.17544 | I99: 0.002133701349 | J99: 37 | K99: 0.02626890809 | L99: 371.4539 | M99: =IF($A99>0,SUMPRODUCT('Age profile (years)'!$CT99:$GF99,'Asset data'!$CX99:$GJ99)/H99-0.5,0) -> 26.02303641 | N99: 1266389.609 | O99: =IF($A99>0,'Asset data'!G99,0) -> 61.99645176 | P99: 3017006.205 | Q99: 0.5802495841 | R99: 6.199645176 | S99: 12.39929035 | T99: 37.19787105 | U99: 49.5971614 | W99: =IF($A99>0,SUMIF('Age profile (years)'!$CT99:$GF99,"<" & R99+0.5,'Asset data'!$CX99:$GJ99),0) -> 5803.967188 | X99: =IF($A99>0,SUMIF('Age profile (years)'!$CT99:$GF99,"<" & S99+0.5,'Asset data'!$CX99:$GJ99)-W99,0) -> 4018.38829 | Y99: =IF($A99>0,SUMIF('Age profile (years)'!$CT99:$GF99,"<" & T99+0.5,'Asset data'!$CX99:$GJ99)-X99-W99,0) -> 25447.93524 | Z99: =IF($A99>0,SUMIF('Age profile (years)'!$CT99:$GF99,"<" & U99+0.5,'Asset data'!$CX99:$GJ99)-Y99-X99-W99,0) -> 7143.058497 | AA99: 6250.826229 | AB99: 0.1192657049 | AC99: 0.08257384932 | AD99: 0.5229295474 | AE99: 0.1467826883 | AF99: 0.1284482101 | AI99: =IF($A99>0,'RRR hist-forc'!K99,0) -> 61.99645176 | AJ99: 3017006.205
A100: ='Asset data'!A100 -> 5 | B100: ='Asset data'!B100 -> 0 | C100: ='Asset data'!C100 -> 0 | D100: ='Asset data'!E100 -> ground outdoor / indoor chamber mounted; > = 22 kv & < = 33 kv ; > 15 mva and < = 40 mva | E100: TRANSFORMERS | F100: =IF(A100>0,SUM('Asset data'!J100:CV100),0) -> 22.002 | G100: =IF(A100>0,'Asset data'!F100,0) -> 706.17 | H100: =IF(A100>0,SUM('Asset data'!CX100:GJ100),0) -> 15537.15234 | I100: 0.000681233014 | J100: 45 | K100: 0.008386950422 | L100: 706.17 | M100: =IF($A100>0,SUMPRODUCT('Age profile (years)'!$CT100:$GF100,'Asset data'!$CX100:$GJ100)/H100-0.5,0) -> 24.5 | N100: 380660.2323 | O100: =IF($A100>0,'Asset data'!G100,0) -> 48.23877026 | P100: 749493.1223 | Q100: 0.4921097726 | R100: 4.823877026 | S100: 9.647754053 | T100: 28.94326216 | U100: =IF($A100>0,$O100-U$4*$O100,0) -> 38.59101621 | W100: =IF($A100>0,SUMIF('Age profile (years)'!$CT100:$GF100,"<" & R100+0.5,'Asset data'!$CX100:$GJ100),0) -> 3270.97944 | X100: =IF($A100>0,SUMIF('Age profile (years)'!$CT100:$GF100,"<" & S100+0.5,'Asset data'!$CX100:$GJ100)-W100,0) -> 0 | Y100: =IF($A100>0,SUMIF('Age profile (years)'!$CT100:$GF100,"<" & T100+0.5,'Asset data'!$CX100:$GJ100)-X100-W100,0) -> 2453.23458 | Z100: =IF($A100>0,SUMIF('Age profile (years)'!$CT100:$GF100,"<" & U100+0.5,'Asset data'!$CX100:$GJ100)-Y100-X100-W100,0) -> 4906.46916 | AA100: 4906.46916 | AB100: 0.2105263158 | AC100: 0 | AD100: 0.1578947368 | AE100: 0.3157894737 | AF100: 0.3157894737 | AI100: =IF($A100>0,'RRR hist-forc'!K100,0) -> 48.23877026 | AJ100: 749493.1223
A101: ='Asset data'!A101 -> 0 | B101: ='Asset data'!B101 -> 0 | C101: ='Asset data'!C101 -> 0 | D101: ='Asset data'!E101 -> ground outdoor / indoor chamber mounted; > = 22 kv & < = 33 kv ; > 40 mva | E101: 0 | F101: =IF(A101>0,SUM('Asset data'!J101:CV101),0) -> 0 | G101: =IF(A101>0,'Asset data'!F101,0) -> 0 | H101: =IF(A101>0,SUM('Asset data'!CX101:GJ101),0) -> 0 | I101: 0 | J101: 0 | K101: 0 | L101: 0 | M101: =IF($A101>0,SUMPRODUCT('Age profile (years)'!$CT101:$GF101,'Asset data'!$CX101:$GJ101)/H101-0.5,0) -> 0 | N101: 0 | O101: =IF($A101>0,'Asset data'!G101,0) -> 0 | P101: 0 | Q101: 0 | R101: 0 | S101: 0 | T101: 0 | U101: 0 | W101: =IF($A101>0,SUMIF('Age profile (years)'!$CT101:$GF101,"<" & R101+0.5,'Asset data'!$CX101:$GJ101),0) -> 0 | X101: =IF($A101>0,SUMIF('Age profile (years)'!$CT101:$GF101,"<" & S101+0.5,'Asset data'!$CX101:$GJ101)-W101,0) -> 0 | Y101: =IF($A101>0,SUMIF('Age profile (years)'!$CT101:$GF101,"<" & T101+0.5,'Asset data'!$CX101:$GJ101)-X101-W101,0) -> 0 | Z101: =IF($A101>0,SUMIF('Age profile (years)'!$CT101:$GF101,"<" & U101+0.5,'Asset data'!$CX101:$GJ101)-Y101-X101-W101,0) -> 0 | AA101: 0 | AB101: 0 | AC101: 0 | AD101: 0 | AE101: 0 | AF101: 0 | AI101: =IF($A101>0,'RRR hist-forc'!K101,0) -> 0 | AJ101: 0
A102: ='Asset data'!A102 -> 5 | B102: ='Asset data'!B102 -> 0 | C102: ='Asset data'!C102 -> 0 | D102: ='Asset data'!E102 -> ground outdoor / indoor chamber mounted; > 33 kv & < = 66 kv ; < = 15 mva | E102: TRANSFORMERS | F102: =IF(A102>0,SUM('Asset data'!J102:CV102),0) -> 227.008 | G102: =IF(A102>0,'Asset data'!F102,0) -> 1041.5611 | H102: =IF(A102>0,SUM('Asset data'!CX102:GJ102),0) -> 236442.7022 | I102: 0.01036693025 | J102: 22 | K102: 0.1276317035 | L102: 1041.5611 | M102: =IF($A102>0,SUMPRODUCT('Age profile (years)'!$CT102:$GF102,'Asset data'!$CX102:$GJ102)/H102-0.5,0) -> 36.64427685 | N102: 8664271.839 | O102: =IF($A102>0,'Asset data'!G102,0) -> 65.77612965 | P102: 15552285.83 | Q102: 0.4428939944 | R102: 6.577612965 | S102: 13.15522593 | T102: 39.46567779 | U102: 52.62090372 | W102: =IF($A102>0,SUMIF('Age profile (years)'!$CT102:$GF102,"<" & R102+0.5,'Asset data'!$CX102:$GJ102),0) -> 11380.09658 | X102: =IF($A102>0,SUMIF('Age profile (years)'!$CT102:$GF102,"<" & S102+0.5,'Asset data'!$CX102:$GJ102)-W102,0) -> 7586.731052 | Y102: =IF($A102>0,SUMIF('Age profile (years)'!$CT102:$GF102,"<" & T102+0.5,'Asset data'!$CX102:$GJ102)-X102-W102,0) -> 116322.5852 | Z102: =IF($A102>0,SUMIF('Age profile (years)'!$CT102:$GF102,"<" & U102+0.5,'Asset data'!$CX102:$GJ102)-Y102-X102-W102,0) -> 68278.49635 | AA102: 32874.793 | AB102: 0.04813046236 | AC102: 0.03208697491 | AD102: 0.491969446 | AE102: 0.2887739639 | AF102: 0.1390391528 | AI102: =IF($A102>0,'RRR hist-forc'!K102,0) -> 65.77612965 | AJ102: 15552285.83
A103: ='Asset data'!A103 -> 5 | B103: ='Asset data'!B103 -> 0 | C103: ='Asset data'!C103 -> 0 | D103: ='Asset data'!E103 -> ground outdoor / indoor chamber mounted; > 33 kv & < = 66 kv ; > 15 mva and < = 40 mva | E103: TRANSFORMERS | F103: =IF(A103>0,SUM('Asset data'!J103:CV103),0) -> 105 | G103: =IF(A103>0,'Asset data'!F103,0) -> 1417.4055 | H103: =IF(A103>0,SUM('Asset data'!CX103:GJ103),0) -> 148827.5775 | I103: 0.006525408065 | J103: 28 | K103: 0.08033708408 | L103: 1417.4055 | M103: =IF($A103>0,SUMPRODUCT('Age profile (years)'!$CT103:$GF103,'Asset data'!$CX103:$GJ103)/H103-0.5,0) -> 38.11114286 | N103: 5671989.067 | O103: =IF($A103>0,'Asset data'!G103,0) -> 57.76098775 | P103: 8596427.881 | Q103: 0.340192328 | R103: 5.776098775 | S103: 11.55219755 | T103: 34.65659265 | U103: 46.2087902 | W103: =IF($A103>0,SUMIF('Age profile (years)'!$CT103:$GF103,"<" & R103+0.5,'Asset data'!$CX103:$GJ103),0) -> 0 | X103: =IF($A103>0,SUMIF('Age profile (years)'!$CT103:$GF103,"<" & S103+0.5,'Asset data'!$CX103:$GJ103)-W103,0) -> 4960.91925 | Y103: =IF($A103>0,SUMIF('Age profile (years)'!$CT103:$GF103,"<" & T103+0.5,'Asset data'!$CX103:$GJ103)-X103-W103,0) -> 54570.11175 | Z103: =IF($A103>0,SUMIF('Age profile (years)'!$CT103:$GF103,"<" & U103+0.5,'Asset data'!$CX103:$GJ103)-Y103-X103-W103,0) -> 31419.62772 | AA103: 57876.91878 | AB103: 0 | AC103: 0.03333333333 | AD103: 0.3666666667 | AE103: 0.2111142857 | AF103: 0.3888857143 | AI103: =IF($A103>0,'RRR hist-forc'!K103,0) -> 57.76098775 | AJ103: 8596427.881
A104: ='Asset data'!A104 -> 5 | B104: ='Asset data'!B104 -> 0 | C104: ='Asset data'!C104 -> 0 | D104: ='Asset data'!E104 -> ground outdoor / indoor chamber mounted; > 33 kv & < = 66 kv ; > 40 mva | E104: TRANSFORMERS | F104: =IF(A104>0,SUM('Asset data'!J104:CV104),0) -> 4 | G104: =IF(A104>0,'Asset data'!F104,0) -> 108.1427 | H104: =IF(A104>0,SUM('Asset data'!CX104:GJ104),0) -> 432.5708 | I104: 1.896624963e-05 | J104: 54 | K104: 0.000233501595 | L104: 108.1427 | M104: =IF($A104>0,SUMPRODUCT('Age profile (years)'!$CT104:$GF104,'Asset data'!$CX104:$GJ104)/H104-0.5,0) -> 34.83375 | N104: 15068.0631 | O104: =IF($A104>0,'Asset data'!G104,0) -> 38.82668511 | P104: 16795.29024 | Q104: 0.1028399694 | R104: 3.882668511 | S104: 7.765337022 | T104: 23.29601107 | U104: 31.06134809 | W104: =IF($A104>0,SUMIF('Age profile (years)'!$CT104:$GF104,"<" & R104+0.5,'Asset data'!$CX104:$GJ104),0) -> 0 | X104: =IF($A104>0,SUMIF('Age profile (years)'!$CT104:$GF104,"<" & S104+0.5,'Asset data'!$CX104:$GJ104)-W104,0) -> 0 | Y104: =IF($A104>0,SUMIF('Age profile (years)'!$CT104:$GF104,"<" & T104+0.5,'Asset data'!$CX104:$GJ104)-X104-W104,0) -> 0 | Z104: =IF($A104>0,SUMIF('Age profile (years)'!$CT104:$GF104,"<" & U104+0.5,'Asset data'!$CX104:$GJ104)-Y104-X104-W104,0) -> 0 | AA104: 432.5708 | AB104: 0 | AC104: 0 | AD104: 0 | AE104: 0 | AF104: 1 | AI104: =IF($A104>0,'RRR hist-forc'!K104,0) -> 38.82668511 | AJ104: 16795.29024
A105: ='Asset data'!A105 -> 5 | B105: ='Asset data'!B105 -> 0 | C105: ='Asset data'!C105 -> 0 | D105: ='Asset data'!E105 -> ground outdoor / indoor chamber mounted; > 66 kv & < = 132 kv ; < = 100 mva | E105: TRANSFORMERS | F105: =IF(A105>0,SUM('Asset data'!J105:CV105),0) -> 71.999 | G105: =IF(A105>0,'Asset data'!F105,0) -> 2880.1083 | H105: =IF(A105>0,SUM('Asset data'!CX105:GJ105),0) -> 207364.9175 | I105: 0.009092002489 | J105: 23 | K105: 0.1119355236 | L105: 2880.1083 | M105: =IF($A105>0,SUMPRODUCT('Age profile (years)'!$CT105:$GF105,'Asset data'!$CX105:$GJ105)/H105-0.5,0) -> 33.35438687 | N105: 6916529.681 | O105: =IF($A105>0,'Asset data'!G105,0) -> 56.04668552 | P105: 11622116.32 | Q105: 0.4048820807 | R105: 5.604668552 | S105: 11.2093371 | T105: 33.62801131 | U105: 44.83734841 | W105: =IF($A105>0,SUMIF('Age profile (years)'!$CT105:$GF105,"<" & R105+0.5,'Asset data'!$CX105:$GJ105),0) -> 23412.40037 | X105: =IF($A105>0,SUMIF('Age profile (years)'!$CT105:$GF105,"<" & S105+0.5,'Asset data'!$CX105:$GJ105)-W105,0) -> 16724.7889 | Y105: =IF($A105>0,SUMIF('Age profile (years)'!$CT105:$GF105,"<" & T105+0.5,'Asset data'!$CX105:$GJ105)-X105-W105,0) -> 46824.80074 | Z105: =IF($A105>0,SUMIF('Age profile (years)'!$CT105:$GF105,"<" & U105+0.5,'Asset data'!$CX105:$GJ105)-Y105-X105-W105,0) -> 30100.01184 | AA105: 90302.91564 | AB105: 0.1129043459 | AC105: 0.08065389797 | AD105: 0.2258086918 | AE105: 0.1451547938 | AF105: 0.4354782705 | AI105: =IF($A105>0,'RRR hist-forc'!K105,0) -> 56.04668552 | AJ105: 11622116.32
A106: ='Asset data'!A106 -> 5 | B106: ='Asset data'!B106 -> 0 | C106: ='Asset data'!C106 -> 0 | D106: ='Asset data'!E106 -> ground outdoor / indoor chamber mounted; > 66 kv & < = 132 kv ; > 100 mva | E106: TRANSFORMERS | F106: =IF(A106>0,SUM('Asset data'!J106:CV106),0) -> 2 | G106: =IF(A106>0,'Asset data'!F106,0) -> 0.0001 | H106: =IF(A106>0,SUM('Asset data'!CX106:GJ106),0) -> 0.0002 | I106: 8.769084567e-12 | J106: 61 | K106: 1.079599432e-10 | L106: 0.0001 | M106: =IF($A106>0,SUMPRODUCT('Age profile (years)'!$CT106:$GF106,'Asset data'!$CX106:$GJ106)/H106-0.5,0) -> 34.5 | N106: 0.0069 | O106: =IF($A106>0,'Asset data'!G106,0) -> 53.5 | P106: 0.0107 | Q106: 0.3551401869 | R106: 5.35 | S106: 10.7 | T106: 32.1 | U106: 42.8 | W106: =IF($A106>0,SUMIF('Age profile (years)'!$CT106:$GF106,"<" & R106+0.5,'Asset data'!$CX106:$GJ106),0) -> 0 | X106: =IF($A106>0,SUMIF('Age profile (years)'!$CT106:$GF106,"<" & S106+0.5,'Asset data'!$CX106:$GJ106)-W106,0) -> 0 | Y106: =IF($A106>0,SUMIF('Age profile (years)'!$CT106:$GF106,"<" & T106+0.5,'Asset data'!$CX106:$GJ106)-X106-W106,0) -> 0 | Z106: =IF($A106>0,SUMIF('Age profile (years)'!$CT106:$GF106,"<" & U106+0.5,'Asset data'!$CX106:$GJ106)-Y106-X106-W106,0) -> 0.0002 | AA106: 0 | AB106: 0 | AC106: 0 | AD106: 0 | AE106: 1 | AF106: 0 | AI106: =IF($A106>0,'RRR hist-forc'!K106,0) -> 53.5 | AJ106: 0.0107
A107: ='Asset data'!A107 -> 0 | B107: ='Asset data'!B107 -> 0 | C107: ='Asset data'!C107 -> 0 | D107: ='Asset data'!E107 -> ground outdoor / indoor chamber mounted; > 132 kv ; < = 100 mva | E107: 0 | F107: =IF(A107>0,SUM('Asset data'!J107:CV107),0) -> 0 | G107: =IF(A107>0,'Asset data'!F107,0) -> 0 | H107: =IF(A107>0,SUM('Asset data'!CX107:GJ107),0) -> 0 | I107: 0 | J107: 0 | K107: 0 | L107: 0 | M107: =IF($A107>0,SUMPRODUCT('Age profile (years)'!$CT107:$GF107,'Asset data'!$CX107:$GJ107)/H107-0.5,0) -> 0 | N107: 0 | O107: =IF($A107>0,'Asset data'!G107,0) -> 0 | P107: 0 | Q107: 0 | R107: 0 | S107: 0 | T107: 0 | U107: 0 | W107: =IF($A107>0,SUMIF('Age profile (years)'!$CT107:$GF107,"<" & R107+0.5,'Asset data'!$CX107:$GJ107),0) -> 0 | X107: =IF($A107>0,SUMIF('Age profile (years)'!$CT107:$GF107,"<" & S107+0.5,'Asset data'!$CX107:$GJ107)-W107,0) -> 0 | Y107: =IF($A107>0,SUMIF('Age profile (years)'!$CT107:$GF107,"<" & T107+0.5,'Asset data'!$CX107:$GJ107)-X107-W107,0) -> 0 | Z107: =IF($A107>0,SUMIF('Age profile (years)'!$CT107:$GF107,"<" & U107+0.5,'Asset data'!$CX107:$GJ107)-Y107-X107-W107,0) -> 0 | AA107: 0 | AB107: 0 | AC107: 0 | AD107: 0 | AE107: 0 | AF107: 0 | AI107: =IF($A107>0,'RRR hist-forc'!K107,0) -> 0 | AJ107: 0
A108: ='Asset data'!A108 -> 0 | B108: ='Asset data'!B108 -> 0 | C108: ='Asset data'!C108 -> 0 | D108: ='Asset data'!E108 -> ground outdoor / indoor chamber mounted; > 132 kv ; > 100 mva | E108: 0 | F108: =IF(A108>0,SUM('Asset data'!J108:CV108),0) -> 0 | G108: =IF(A108>0,'Asset data'!F108,0) -> 0 | H108: =IF(A108>0,SUM('Asset data'!CX108:GJ108),0) -> 0 | I108: 0 | J108: 0 | K108: 0 | L108: 0 | M108: =IF($A108>0,SUMPRODUCT('Age profile (years)'!$CT108:$GF108,'Asset data'!$CX108:$GJ108)/H108-0.5,0) -> 0 | N108: 0 | O108: =IF($A108>0,'Asset data'!G108,0) -> 0 | P108: 0 | Q108: 0 | R108: 0 | S108: 0 | T108: 0 | U108: 0 | W108: =IF($A108>0,SUMIF('Age profile (years)'!$CT108:$GF108,"<" & R108+0.5,'Asset data'!$CX108:$GJ108),0) -> 0 | X108: =IF($A108>0,SUMIF('Age profile (years)'!$CT108:$GF108,"<" & S108+0.5,'Asset data'!$CX108:$GJ108)-W108,0) -> 0 | Y108: =IF($A108>0,SUMIF('Age profile (years)'!$CT108:$GF108,"<" & T108+0.5,'Asset data'!$CX108:$GJ108)-X108-W108,0) -> 0 | Z108: =IF($A108>0,SUMIF('Age profile (years)'!$CT108:$GF108,"<" & U108+0.5,'Asset data'!$CX108:$GJ108)-Y108-X108-W108,0) -> 0 | AA108: 0 | AB108: 0 | AC108: 0 | AD108: 0 | AE108: 0 | AF108: 0 | AI108: =IF($A108>0,'RRR hist-forc'!K108,0) -> 0 | AJ108: 0
A109: ='Asset data'!A109 -> 0 | B109: ='Asset data'!B109 -> 0 | C109: ='Asset data'!C109 -> 0 | D109: ='Asset data'!E109 -> other | E109: 0 | F109: =IF(A109>0,SUM('Asset data'!J109:CV109),0) -> 0 | G109: =IF(A109>0,'Asset data'!F109,0) -> 0 | H109: =IF(A109>0,SUM('Asset data'!CX109:GJ109),0) -> 0 | I109: 0 | J109: 0 | K109: 0 | L109: 0 | M109: =IF($A109>0,SUMPRODUCT('Age profile (years)'!$CT109:$GF109,'Asset data'!$CX109:$GJ109)/H109-0.5,0) -> 0 | N109: 0 | O109: =IF($A109>0,'Asset data'!G109,0) -> 0 | P109: 0 | Q109: 0 | R109: 0 | S109: 0 | T109: 0 | U109: 0 | W109: =IF($A109>0,SUMIF('Age profile (years)'!$CT109:$GF109,"<" & R109+0.5,'Asset data'!$CX109:$GJ109),0) -> 0 | X109: =IF($A109>0,SUMIF('Age profile (years)'!$CT109:$GF109,"<" & S109+0.5,'Asset data'!$CX109:$GJ109)-W109,0) -> 0 | Y109: =IF($A109>0,SUMIF('Age profile (years)'!$CT109:$GF109,"<" & T109+0.5,'Asset data'!$CX109:$GJ109)-X109-W109,0) -> 0 | Z109: =IF($A109>0,SUMIF('Age profile (years)'!$CT109:$GF109,"<" & U109+0.5,'Asset data'!$CX109:$GJ109)-Y109-X109-W109,0) -> 0 | AA109: 0 | AB109: 0 | AC109: 0 | AD109: 0 | AE109: 0 | AF109: 0 | AI109: =IF($A109>0,'RRR hist-forc'!K109,0) -> 0 | AJ109: 0
A110: ='Asset data'!A110 -> 6 | B110: ='Asset data'!B110 -> 0 | C110: ='Asset data'!C110 -> 0 | D110: ='Asset data'!E110 -> ˂ = 11 kv ; fuse | E110: SWITCHGEAR | F110: =IF(A110>0,SUM('Asset data'!J110:CV110),0) -> 65174.001 | G110: =IF(A110>0,'Asset data'!F110,0) -> 1.8146 | H110: =IF(A110>0,SUM('Asset data'!CX110:GJ110),0) -> 118264.7422 | I110: 0.005185367629 | J110: 31 | K110: 0.05222688996 | L110: 1.8146 | M110: =IF($A110>0,SUMPRODUCT('Age profile (years)'!$CT110:$GF110,'Asset data'!$CX110:$GJ110)/H110-0.5,0) -> 27.10067343 | N110: 3205054.158 | O110: =IF($A110>0,'Asset data'!G110,0) -> 44.97781879 | P110: 5319290.144 | Q110: 0.397465814 | R110: 4.497781879 | S110: 8.995563758 | T110: 26.98669127 | U110: 35.98225503 | W110: =IF($A110>0,SUMIF('Age profile (years)'!$CT110:$GF110,"<" & R110+0.5,'Asset data'!$CX110:$GJ110),0) -> 13431.90873 | X110: =IF($A110>0,SUMIF('Age profile (years)'!$CT110:$GF110,"<" & S110+0.5,'Asset data'!$CX110:$GJ110)-W110,0) -> 5570.439119 | Y110: =IF($A110>0,SUMIF('Age profile (years)'!$CT110:$GF110,"<" & T110+0.5,'Asset data'!$CX110:$GJ110)-X110-W110,0) -> 26970.45787 | Z110: =IF($A110>0,SUMIF('Age profile (years)'!$CT110:$GF110,"<" & U110+0.5,'Asset data'!$CX110:$GJ110)-Y110-X110-W110,0) -> 17831.12154 | AA110: 54460.81497 | AB110: 0.1135749208 | AC110: 0.04710143543 | AD110: 0.2280515508 | AE110: 0.1507729286 | AF110: 0.4604991644 | AI110: =IF($A110>0,'RRR hist-forc'!K110,0) -> 44.97781879 | AJ110: 5319290.144
A111: ='Asset data'!A111 -> 6 | B111: ='Asset data'!B111 -> 0 | C111: ='Asset data'!C111 -> 0 | D111: ='Asset data'!E111 -> ˂ = 11 kv ; switch | E111: SWITCHGEAR | F111: =IF(A111>0,SUM('Asset data'!J111:CV111),0) -> 57317.002 | G111: =IF(A111>0,'Asset data'!F111,0) -> 17.6189 | H111: =IF(A111>0,SUM('Asset data'!CX111:GJ111),0) -> 1009862.527 | I111: 0.04427784948 | J111: 8 | K111: 0.445965366 | L111: 17.6189 | M111: =IF($A111>0,SUMPRODUCT('Age profile (years)'!$CT111:$GF111,'Asset data'!$CX111:$GJ111)/H111-0.5,0) -> 51.78627462 | N111: 52297018.13 | O111: =IF($A111>0,'Asset data'!G111,0) -> 64.43669491 | P111: 65072203.52 | Q111: 0.1963232333 | R111: 6.443669491 | S111: 12.88733898 | T111: 38.66201694 | U111: 51.54935592 | W111: =IF($A111>0,SUMIF('Age profile (years)'!$CT111:$GF111,"<" & R111+0.5,'Asset data'!$CX111:$GJ111),0) -> 13272.70499 | X111: =IF($A111>0,SUMIF('Age profile (years)'!$CT111:$GF111,"<" & S111+0.5,'Asset data'!$CX111:$GJ111)-W111,0) -> 15053.37673 | Y111: =IF($A111>0,SUMIF('Age profile (years)'!$CT111:$GF111,"<" & T111+0.5,'Asset data'!$CX111:$GJ111)-X111-W111,0) -> 131698.8637 | Z111: =IF($A111>0,SUMIF('Age profile (years)'!$CT111:$GF111,"<" & U111+0.5,'Asset data'!$CX111:$GJ111)-Y111-X111-W111,0) -> 114828.027 | AA111: 735009.5541 | AB111: 0.013143081 | AC111: 0.01490636234 | AD111: 0.1304126653 | AE111: 0.1137065927 | AF111: 0.7278312986 | AI111: =IF($A111>0,'RRR hist-forc'!K111,0) -> 64.43669491 | AJ111: 65072203.52
A112: ='Asset data'!A112 -> 6 | B112: ='Asset data'!B112 -> 0 | C112: ='Asset data'!C112 -> 0 | D112: ='Asset data'!E112 -> ˂ = 11 kv ; circuit breaker | E112: SWITCHGEAR | F112: =IF(A112>0,SUM('Asset data'!J112:CV112),0) -> 2441.994 | G112: =IF(A112>0,'Asset data'!F112,0) -> 104.6403 | H112: =IF(A112>0,SUM('Asset data'!CX112:GJ112),0) -> 255530.9848 | I112: 0.01120386407 | J112: 21 | K112: 0.112845032 | L112: 104.6403 | M112: =IF($A112>0,SUMPRODUCT('Age profile (years)'!$CT112:$GF112,'Asset data'!$CX112:$GJ112)/H112-0.5,0) -> 35.96097329 | N112: 9189142.917 | O112: =IF($A112>0,'Asset data'!G112,0) -> 53.61288559 | P112: 13699753.45 | Q112: 0.32924757 | R112: 5.361288559 | S112: 10.72257712 | T112: 32.16773135 | U112: 42.89030847 | W112: =IF($A112>0,SUMIF('Age profile (years)'!$CT112:$GF112,"<" & R112+0.5,'Asset data'!$CX112:$GJ112),0) -> 11129.12375 | X112: =IF($A112>0,SUMIF('Age profile (years)'!$CT112:$GF112,"<" & S112+0.5,'Asset data'!$CX112:$GJ112)-W112,0) -> 14324.83851 | Y112: =IF($A112>0,SUMIF('Age profile (years)'!$CT112:$GF112,"<" & T112+0.5,'Asset data'!$CX112:$GJ112)-X112-W112,0) -> 59612.84643 | Z112: =IF($A112>0,SUMIF('Age profile (years)'!$CT112:$GF112,"<" & U112+0.5,'Asset data'!$CX112:$GJ112)-Y112-X112-W112,0) -> 60494.33632 | AA112: 109969.8398 | AB112: 0.04355293256 | AC112: 0.0560591058 | AD112: 0.23329009 | AE112: 0.2367397299 | AF112: 0.4303581417 | AI112: =IF($A112>0,'RRR hist-forc'!K112,0) -> 53.61288559 | AJ112: 13699753.45
A113: ='Asset data'!A113 -> 6 | B113: ='Asset data'!B113 -> 0 | C113: ='Asset data'!C113 -> 0 | D113: ='Asset data'!E113 -> > 11 kv & < = 22 kv ; switch | E113: SWITCHGEAR | F113: =IF(A113>0,SUM('Asset data'!J113:CV113),0) -> 25077 | G113: =IF(A113>0,'Asset data'!F113,0) -> 17.8036 | H113: =IF(A113>0,SUM('Asset data'!CX113:GJ113),0) -> 446460.8772 | I113: 0.01957526594 | J113: 13 | K113: 0.1971615772 | L113: 17.8036 | M113: =IF($A113>0,SUMPRODUCT('Age profile (years)'!$CT113:$GF113,'Asset data'!$CX113:$GJ113)/H113-0.5,0) -> 40.8359793 | N113: 18231667.14 | O113: =IF($A113>0,'Asset data'!G113,0) -> 55.34063928 | P113: 24707430.36 | Q113: 0.2620978031 | R113: 5.534063928 | S113: 11.06812786 | T113: 33.20438357 | U113: 44.27251142 | W113: =IF($A113>0,SUMIF('Age profile (years)'!$CT113:$GF113,"<" & R113+0.5,'Asset data'!$CX113:$GJ113),0) -> 15802.43975 | X113: =IF($A113>0,SUMIF('Age profile (years)'!$CT113:$GF113,"<" & S113+0.5,'Asset data'!$CX113:$GJ113)-W113,0) -> 13656.89231 | Y113: =IF($A113>0,SUMIF('Age profile (years)'!$CT113:$GF113,"<" & T113+0.5,'Asset data'!$CX113:$GJ113)-X113-W113,0) -> 78098.01951 | Z113: =IF($A113>0,SUMIF('Age profile (years)'!$CT113:$GF113,"<" & U113+0.5,'Asset data'!$CX113:$GJ113)-Y113-X113-W113,0) -> 62594.07492 | AA113: 276309.4507 | AB113: 0.0353949037 | AC113: 0.03058922519 | AD113: 0.1749269051 | AE113: 0.1402005822 | AF113: 0.6188883838 | AI113: =IF($A113>0,'RRR hist-forc'!K113,0) -> 55.34063928 | AJ113: 24707430.36
A114: ='Asset data'!A114 -> 6 | B114: ='Asset data'!B114 -> 0 | C114: ='Asset data'!C114 -> 0 | D114: ='Asset data'!E114 -> > 11 kv & < = 22 kv ; circuit breaker | E114: SWITCHGEAR | F114: =IF(A114>0,SUM('Asset data'!J114:CV114),0) -> 1735.007 | G114: =IF(A114>0,'Asset data'!F114,0) -> 46.5708 | H114: =IF(A114>0,SUM('Asset data'!CX114:GJ114),0) -> 80800.664 | I114: 0.003542739278 | J114: 34 | K114: 0.03568237928 | L114: 46.5708 | M114: =IF($A114>0,SUMPRODUCT('Age profile (years)'!$CT114:$GF114,'Asset data'!$CX114:$GJ114)/H114-0.5,0) -> 31.56544181 | N114: 2550508.658 | O114: =IF($A114>0,'Asset data'!G114,0) -> 47.95296508 | P114: 3874631.419 | Q114: 0.3417416054 | R114: 4.795296508 | S114: 9.590593016 | T114: 28.77177905 | U114: 38.36237206 | W114: =IF($A114>0,SUMIF('Age profile (years)'!$CT114:$GF114,"<" & R114+0.5,'Asset data'!$CX114:$GJ114),0) -> 3811.354272 | X114: =IF($A114>0,SUMIF('Age profile (years)'!$CT114:$GF114,"<" & S114+0.5,'Asset data'!$CX114:$GJ114)-W114,0) -> 1953.319064 | Y114: =IF($A114>0,SUMIF('Age profile (years)'!$CT114:$GF114,"<" & T114+0.5,'Asset data'!$CX114:$GJ114)-X114-W114,0) -> 20343.10343 | Z114: =IF($A114>0,SUMIF('Age profile (years)'!$CT114:$GF114,"<" & U114+0.5,'Asset data'!$CX114:$GJ114)-Y114-X114-W114,0) -> 21677.07742 | AA114: 33015.80981 | AB114: 0.04716983851 | AC114: 0.02417454224 | AD114: 0.251769013 | AE114: 0.2682784565 | AF114: 0.4086081497 | AI114: =IF($A114>0,'RRR hist-forc'!K114,0) -> 47.95296508 | AJ114: 3874631.419
A115: ='Asset data'!A115 -> 6 | B115: ='Asset data'!B115 -> 0 | C115: ='Asset data'!C115 -> 0 | D115: ='Asset data'!E115 -> > 22 kv & < = 33 kv ; switch | E115: SWITCHGEAR | F115: =IF(A115>0,SUM('Asset data'!J115:CV115),0) -> 2412.996 | G115: =IF(A115>0,'Asset data'!F115,0) -> 49.5297 | H115: =IF(A115>0,SUM('Asset data'!CX115:GJ115),0) -> 119514.968 | I115: 0.005240184306 | J115: 30 | K115: 0.05277900213 | L115: 49.5297 | M115: =IF($A115>0,SUMPRODUCT('Age profile (years)'!$CT115:$GF115,'Asset data'!$CX115:$GJ115)/H115-0.5,0) -> 38.27252925 | N115: 4574140.108 | O115: =IF($A115>0,'Asset data'!G115,0) -> 54.41918508 | P115: 6503907.163 | Q115: 0.2967088869 | R115: 5.441918508 | S115: 10.88383702 | T115: 32.65151105 | U115: 43.53534807 | W115: =IF($A115>0,SUMIF('Age profile (years)'!$CT115:$GF115,"<" & R115+0.5,'Asset data'!$CX115:$GJ115),0) -> 6461.694192 | X115: =IF($A115>0,SUMIF('Age profile (years)'!$CT115:$GF115,"<" & S115+0.5,'Asset data'!$CX115:$GJ115)-W115,0) -> 9356.457508 | Y115: =IF($A115>0,SUMIF('Age profile (years)'!$CT115:$GF115,"<" & T115+0.5,'Asset data'!$CX115:$GJ115)-X115-W115,0) -> 19901.82594 | Z115: =IF($A115>0,SUMIF('Age profile (years)'!$CT115:$GF115,"<" & U115+0.5,'Asset data'!$CX115:$GJ115)-Y115-X115-W115,0) -> 15042.71472 | AA115: 68752.27563 | AB115: 0.0540659827 | AC115: 0.07828690972 | AD115: 0.1665216188 | AE115: 0.1258646927 | AF115: 0.5752607961 | AI115: =IF($A115>0,'RRR hist-forc'!K115,0) -> 54.41918508 | AJ115: 6503907.163
A116: ='Asset data'!A116 -> 6 | B116: ='Asset data'!B116 -> 0 | C116: ='Asset data'!C116 -> 0 | D116: ='Asset data'!E116 -> > 22 kv & < = 33 kv ; circuit breaker | E116: SWITCHGEAR | F116: =IF(A116>0,SUM('Asset data'!J116:CV116),0) -> 357.999 | G116: =IF(A116>0,'Asset data'!F116,0) -> 118.999 | H116: =IF(A116>0,SUM('Asset data'!CX116:GJ116),0) -> 42601.523 | I116: 0.001867881789 | J116: 39 | K116: 0.01881325755 | L116: 118.999 | M116: =IF($A116>0,SUMPRODUCT('Age profile (years)'!$CT116:$GF116,'Asset data'!$CX116:$GJ116)/H116-0.5,0) -> 33.92668276 | N116: 1445328.356 | O116: =IF($A116>0,'Asset data'!G116,0) -> 53.26123813 | P116: 2269009.861 | Q116: 0.3630136297 | R116: 5.326123813 | S116: 10.65224763 | T116: 31.95674288 | U116: 42.6089905 | W116: =IF($A116>0,SUMIF('Age profile (years)'!$CT116:$GF116,"<" & R116+0.5,'Asset data'!$CX116:$GJ116),0) -> 4332.396593 | X116: =IF($A116>0,SUMIF('Age profile (years)'!$CT116:$GF116,"<" & S116+0.5,'Asset data'!$CX116:$GJ116)-W116,0) -> 3249.148696 | Y116: =IF($A116>0,SUMIF('Age profile (years)'!$CT116:$GF116,"<" & T116+0.5,'Asset data'!$CX116:$GJ116)-X116-W116,0) -> 5294.979504 | Z116: =IF($A116>0,SUMIF('Age profile (years)'!$CT116:$GF116,"<" & U116+0.5,'Asset data'!$CX116:$GJ116)-Y116-X116-W116,0) -> 11914.06088 | AA116: 17810.93733 | AB116: 0.1016958148 | AC116: 0.07626836946 | AD116: 0.12429085 | AE116: 0.2796627924 | AF116: 0.4180821734 | AI116: =IF($A116>0,'RRR hist-forc'!K116,0) -> 53.26123813 | AJ116: 2269009.861
A117: ='Asset data'!A117 -> 6 | B117: ='Asset data'!B117 -> 0 | C117: ='Asset data'!C117 -> 0 | D117: ='Asset data'!E117 -> > 33 kv & < = 66 kv ; switch | E117: SWITCHGEAR | F117: =IF(A117>0,SUM('Asset data'!J117:CV117),0) -> 1962.994 | G117: =IF(A117>0,'Asset data'!F117,0) -> 48.6759 | H117: =IF(A117>0,SUM('Asset data'!CX117:GJ117),0) -> 95550.49964 | I117: 0.004189452059 | J117: 33 | K117: 0.04219605385 | L117: 48.6759 | M117: =IF($A117>0,SUMPRODUCT('Age profile (years)'!$CT117:$GF117,'Asset data'!$CX117:$GJ117)/H117-0.5,0) -> 42.9298765 | N117: 4101971.15 | O117: =IF($A117>0,'Asset data'!G117,0) -> 66.73175532 | P117: 6376252.563 | Q117: 0.356679945 | R117: 6.673175532 | S117: 13.34635106 | T117: 40.03905319 | U117: 53.38540426 | W117: =IF($A117>0,SUMIF('Age profile (years)'!$CT117:$GF117,"<" & R117+0.5,'Asset data'!$CX117:$GJ117),0) -> 100.0289745 | X117: =IF($A117>0,SUMIF('Age profile (years)'!$CT117:$GF117,"<" & S117+0.5,'Asset data'!$CX117:$GJ117)-W117,0) -> 1550.765498 | Y117: =IF($A117>0,SUMIF('Age profile (years)'!$CT117:$GF117,"<" & T117+0.5,'Asset data'!$CX117:$GJ117)-X117-W117,0) -> 43172.8948 | Z117: =IF($A117>0,SUMIF('Age profile (years)'!$CT117:$GF117,"<" & U117+0.5,'Asset data'!$CX117:$GJ117)-Y117-X117-W117,0) -> 19260.12879 | AA117: 31466.68158 | AB117: 0.00104687024 | AC117: 0.01622979999 | AD117: 0.451833271 | AE117: 0.2015701525 | AF117: 0.3293199062 | AI117: =IF($A117>0,'RRR hist-forc'!K117,0) -> 66.73175532 | AJ117: 6376252.563
A118: ='Asset data'!A118 -> 6 | B118: ='Asset data'!B118 -> 0 | C118: ='Asset data'!C118 -> 0 | D118: ='Asset data'!E118 -> > 33 kv & < = 66 kv ; circuit breaker | E118: SWITCHGEAR | F118: =IF(A118>0,SUM('Asset data'!J118:CV118),0) -> 593.011 | G118: =IF(A118>0,'Asset data'!F118,0) -> 103.1587 | H118: =IF(A118>0,SUM('Asset data'!CX118:GJ118),0) -> 61174.24385 | I118: 0.002682210588 | J118: 36 | K118: 0.02701515635 | L118: 103.1587 | M118: =IF($A118>0,SUMPRODUCT('Age profile (years)'!$CT118:$GF118,'Asset data'!$CX118:$GJ118)/H118-0.5,0) -> 24.47271383 | N118: 1497099.763 | O118: =IF($A118>0,'Asset data'!G118,0) -> 47.74148458 | P118: 2920549.219 | Q118: 0.4873910176 | R118: 4.774148458 | S118: 9.548296916 | T118: 28.64489075 | U118: 38.19318767 | W118: =IF($A118>0,SUMIF('Age profile (years)'!$CT118:$GF118,"<" & R118+0.5,'Asset data'!$CX118:$GJ118),0) -> 7282.694744 | X118: =IF($A118>0,SUMIF('Age profile (years)'!$CT118:$GF118,"<" & S118+0.5,'Asset data'!$CX118:$GJ118)-W118,0) -> 2392.972364 | Y118: =IF($A118>0,SUMIF('Age profile (years)'!$CT118:$GF118,"<" & T118+0.5,'Asset data'!$CX118:$GJ118)-X118-W118,0) -> 24969.04754 | Z118: =IF($A118>0,SUMIF('Age profile (years)'!$CT118:$GF118,"<" & U118+0.5,'Asset data'!$CX118:$GJ118)-Y118-X118-W118,0) -> 11548.10067 | AA118: 14981.42852 | AB118: 0.1190483819 | AC118: 0.03911731823 | AD118: 0.4081627491 | AE118: 0.1887739013 | AF118: 0.2448976495 | AI118: =IF($A118>0,'RRR hist-forc'!K118,0) -> 47.74148458 | AJ118: 2920549.219
A119: ='Asset data'!A119 -> 6 | B119: ='Asset data'!B119 -> 0 | C119: ='Asset data'!C119 -> 0 | D119: ='Asset data'!E119 -> > 66 kv & < = 132 kv ; switch | E119: SWITCHGEAR | F119: =IF(A119>0,SUM('Asset data'!J119:CV119),0) -> 288.002 | G119: =IF(A119>0,'Asset data'!F119,0) -> 72.6882 | H119: =IF(A119>0,SUM('Asset data'!CX119:GJ119),0) -> 20934.34698 | I119: 0.000917875295 | J119: 44 | K119: 0.009244816464 | L119: 72.6882 | M119: =IF($A119>0,SUMPRODUCT('Age profile (years)'!$CT119:$GF119,'Asset data'!$CX119:$GJ119)/H119-0.5,0) -> 31.71427629 | N119: 663917.664 | O119: =IF($A119>0,'Asset data'!G119,0) -> 48.88809188 | P119: 1023440.278 | Q119: 0.3512883185 | R119: 4.888809188 | S119: 9.777618376 | T119: 29.33285513 | U119: 39.1104735 | W119: =IF($A119>0,SUMIF('Age profile (years)'!$CT119:$GF119,"<" & R119+0.5,'Asset data'!$CX119:$GJ119),0) -> 1943.900533 | X119: =IF($A119>0,SUMIF('Age profile (years)'!$CT119:$GF119,"<" & S119+0.5,'Asset data'!$CX119:$GJ119)-W119,0) -> 0 | Y119: =IF($A119>0,SUMIF('Age profile (years)'!$CT119:$GF119,"<" & T119+0.5,'Asset data'!$CX119:$GJ119)-X119-W119,0) -> 6355.056638 | Z119: =IF($A119>0,SUMIF('Age profile (years)'!$CT119:$GF119,"<" & U119+0.5,'Asset data'!$CX119:$GJ119)-Y119-X119-W119,0) -> 2317.808633 | AA119: 10317.58117 | AB119: 0.09285699405 | AC119: 0 | AD119: 0.3035708085 | AE119: 0.1107179811 | AF119: 0.4928542163 | AI119: =IF($A119>0,'RRR hist-forc'!K119,0) -> 48.88809188 | AJ119: 1023440.278
A120: ='Asset data'!A120 -> 6 | B120: ='Asset data'!B120 -> 0 | C120: ='Asset data'!C120 -> 0 | D120: ='Asset data'!E120 -> > 66 kv & < = 132 kv ; circuit breaker | E120: SWITCHGEAR | F120: =IF(A120>0,SUM('Asset data'!J120:CV120),0) -> 108 | G120: =IF(A120>0,'Asset data'!F120,0) -> 127.2798 | H120: =IF(A120>0,SUM('Asset data'!CX120:GJ120),0) -> 13746.2184 | I120: 0.0006027087581 | J120: 48 | K120: 0.006070467176 | L120: 127.2798 | M120: =IF($A120>0,SUMPRODUCT('Age profile (years)'!$CT120:$GF120,'Asset data'!$CX120:$GJ120)/H120-0.5,0) -> 28.26851852 | N120: 388585.2294 | O120: =IF($A120>0,'Asset data'!G120,0) -> 46.3166521 | P120: 636678.8153 | Q120: 0.3896683539 | R120: 4.63166521 | S120: 9.26333042 | T120: 27.78999126 | U120: 37.05332168 | W120: =IF($A120>0,SUMIF('Age profile (years)'!$CT120:$GF120,"<" & R120+0.5,'Asset data'!$CX120:$GJ120),0) -> 1018.2384 | X120: =IF($A120>0,SUMIF('Age profile (years)'!$CT120:$GF120,"<" & S120+0.5,'Asset data'!$CX120:$GJ120)-W120,0) -> 127.2798 | Y120: =IF($A120>0,SUMIF('Age profile (years)'!$CT120:$GF120,"<" & T120+0.5,'Asset data'!$CX120:$GJ120)-X120-W120,0) -> 4836.6324 | Z120: =IF($A120>0,SUMIF('Age profile (years)'!$CT120:$GF120,"<" & U120+0.5,'Asset data'!$CX120:$GJ120)-Y120-X120-W120,0) -> 3818.394 | AA120: 3945.6738 | AB120: 0.07407407407 | AC120: 0.009259259259 | AD120: 0.3518518519 | AE120: 0.2777777778 | AF120: 0.287037037 | AI120: =IF($A120>0,'RRR hist-forc'!K120,0) -> 46.3166521 | AJ120: 636678.8153
A121: ='Asset data'!A121 -> 6 | B121: ='Asset data'!B121 -> 0 | C121: ='Asset data'!C121 -> 0 | D121: ='Asset data'!E121 -> > 132 kv ; switch | E121: SWITCHGEAR | F121: =IF(A121>0,SUM('Asset data'!J121:CV121),0) -> 33.001 | G121: =IF(A121>0,'Asset data'!F121,0) -> 0.0001 | H121: =IF(A121>0,SUM('Asset data'!CX121:GJ121),0) -> 0.0033001 | I121: 1.446942799e-10 | J121: 57 | K121: 1.457357081e-09 | L121: 0.0001 | M121: =IF($A121>0,SUMPRODUCT('Age profile (years)'!$CT121:$GF121,'Asset data'!$CX121:$GJ121)/H121-0.5,0) -> 34.66160116 | N121: 0.11438675 | O121: =IF($A121>0,'Asset data'!G121,0) -> 49.9 | P121: 0.16467499 | Q121: 0.3053787342 | R121: 4.99 | S121: 9.98 | T121: 29.94 | U121: 39.92 | W121: =IF($A121>0,SUMIF('Age profile (years)'!$CT121:$GF121,"<" & R121+0.5,'Asset data'!$CX121:$GJ121),0) -> 0 | X121: =IF($A121>0,SUMIF('Age profile (years)'!$CT121:$GF121,"<" & S121+0.5,'Asset data'!$CX121:$GJ121)-W121,0) -> 0 | Y121: =IF($A121>0,SUMIF('Age profile (years)'!$CT121:$GF121,"<" & T121+0.5,'Asset data'!$CX121:$GJ121)-X121-W121,0) -> 0 | Z121: =IF($A121>0,SUMIF('Age profile (years)'!$CT121:$GF121,"<" & U121+0.5,'Asset data'!$CX121:$GJ121)-Y121-X121-W121,0) -> 0.0028742 | AA121: 0.0004259 | AB121: 0 | AC121: 0 | AD121: 0 | AE121: 0.8709433047 | AF121: 0.1290566953 | AI121: =IF($A121>0,'RRR hist-forc'!K121,0) -> 49.9 | AJ121: 0.16467499
A122: ='Asset data'!A122 -> 6 | B122: ='Asset data'!B122 -> 0 | C122: ='Asset data'!C122 -> 0 | D122: ='Asset data'!E122 -> > 132 kv ; circuit breaker | E122: SWITCHGEAR | F122: =IF(A122>0,SUM('Asset data'!J122:CV122),0) -> 12 | G122: =IF(A122>0,'Asset data'!F122,0) -> 0.0001 | H122: =IF(A122>0,SUM('Asset data'!CX122:GJ122),0) -> 0.0012 | I122: 5.26145074e-11 | J122: 59 | K122: 5.299319711e-10 | L122: 0.0001 | M122: =IF($A122>0,SUMPRODUCT('Age profile (years)'!$CT122:$GF122,'Asset data'!$CX122:$GJ122)/H122-0.5,0) -> 31.41666667 | N122: 0.0377 | O122: =IF($A122>0,'Asset data'!G122,0) -> 48.70630226 | P122: 0.05844756271 | Q122: 0.3549773806 | R122: 4.870630226 | S122: 9.741260452 | T122: 29.22378136 | U122: 38.96504181 | W122: =IF($A122>0,SUMIF('Age profile (years)'!$CT122:$GF122,"<" & R122+0.5,'Asset data'!$CX122:$GJ122),0) -> 0 | X122: =IF($A122>0,SUMIF('Age profile (years)'!$CT122:$GF122,"<" & S122+0.5,'Asset data'!$CX122:$GJ122)-W122,0) -> 0 | Y122: =IF($A122>0,SUMIF('Age profile (years)'!$CT122:$GF122,"<" & T122+0.5,'Asset data'!$CX122:$GJ122)-X122-W122,0) -> 0.0001 | Z122: =IF($A122>0,SUMIF('Age profile (years)'!$CT122:$GF122,"<" & U122+0.5,'Asset data'!$CX122:$GJ122)-Y122-X122-W122,0) -> 0.0011 | AA122: 4.065758147e-20 | AB122: 0 | AC122: 0 | AD122: 0.08333333333 | AE122: 0.9166666667 | AF122: 3.388131789e-17 | AI122: =IF($A122>0,'RRR hist-forc'!K122,0) -> 48.70630226 | AJ122: 0.05844756271
A123: ='Asset data'!A123 -> 0 | B123: ='Asset data'!B123 -> 0 | C123: ='Asset data'!C123 -> 0 | D123: ='Asset data'!E123 -> other | E123: 0 | F123: =IF(A123>0,SUM('Asset data'!J123:CV123),0) -> 0 | G123: =IF(A123>0,'Asset data'!F123,0) -> 0 | H123: =IF(A123>0,SUM('Asset data'!CX123:GJ123),0) -> 0 | I123: 0 | J123: 0 | K123: 0 | L123: 0 | M123: =IF($A123>0,SUMPRODUCT('Age profile (years)'!$CT123:$GF123,'Asset data'!$CX123:$GJ123)/H123-0.5,0) -> 0 | N123: 0 | O123: =IF($A123>0,'Asset data'!G123,0) -> 0 | P123: 0 | Q123: 0 | R123: 0 | S123: 0 | T123: 0 | U123: 0 | W123: =IF($A123>0,SUMIF('Age profile (years)'!$CT123:$GF123,"<" & R123+0.5,'Asset data'!$CX123:$GJ123),0) -> 0 | X123: =IF($A123>0,SUMIF('Age profile (years)'!$CT123:$GF123,"<" & S123+0.5,'Asset data'!$CX123:$GJ123)-W123,0) -> 0 | Y123: =IF($A123>0,SUMIF('Age profile (years)'!$CT123:$GF123,"<" & T123+0.5,'Asset data'!$CX123:$GJ123)-X123-W123,0) -> 0 | Z123: =IF($A123>0,SUMIF('Age profile (years)'!$CT123:$GF123,"<" & U123+0.5,'Asset data'!$CX123:$GJ123)-Y123-X123-W123,0) -> 0 | AA123: 0 | AB123: 0 | AC123: 0 | AD123: 0 | AE123: 0 | AF123: 0 | AI123: =IF($A123>0,'RRR hist-forc'!K123,0) -> 0 | AJ123: 0
A124: ='Asset data'!A124 -> 0 | B124: ='Asset data'!B124 -> 0 | C124: ='Asset data'!C124 -> 0 | D124: ='Asset data'!E124 -> luminaires ; major road | E124: 0 | F124: =IF(A124>0,SUM('Asset data'!J124:CV124),0) -> 0 | G124: =IF(A124>0,'Asset data'!F124,0) -> 0 | H124: =IF(A124>0,SUM('Asset data'!CX124:GJ124),0) -> 0 | I124: 0 | J124: 0 | K124: 0 | L124: 0 | M124: =IF($A124>0,SUMPRODUCT('Age profile (years)'!$CT124:$GF124,'Asset data'!$CX124:$GJ124)/H124-0.5,0) -> 0 | N124: 0 | O124: =IF($A124>0,'Asset data'!G124,0) -> 0 | P124: 0 | Q124: 0 | R124: 0 | S124: 0 | T124: 0 | U124: 0 | W124: =IF($A124>0,SUMIF('Age profile (years)'!$CT124:$GF124,"<" & R124+0.5,'Asset data'!$CX124:$GJ124),0) -> 0 | X124: =IF($A124>0,SUMIF('Age profile (years)'!$CT124:$GF124,"<" & S124+0.5,'Asset data'!$CX124:$GJ124)-W124,0) -> 0 | Y124: =IF($A124>0,SUMIF('Age profile (years)'!$CT124:$GF124,"<" & T124+0.5,'Asset data'!$CX124:$GJ124)-X124-W124,0) -> 0 | Z124: =IF($A124>0,SUMIF('Age profile (years)'!$CT124:$GF124,"<" & U124+0.5,'Asset data'!$CX124:$GJ124)-Y124-X124-W124,0) -> 0 | AA124: 0 | AB124: 0 | AC124: 0 | AD124: 0 | AE124: 0 | AF124: 0 | AI124: =IF($A124>0,'RRR hist-forc'!K124,0) -> 0 | AJ124: 0
A125: ='Asset data'!A125 -> 0 | B125: ='Asset data'!B125 -> 0 | C125: ='Asset data'!C125 -> 0 | D125: ='Asset data'!E125 -> luminaires ; minor road | E125: 0 | F125: =IF(A125>0,SUM('Asset data'!J125:CV125),0) -> 0 | G125: =IF(A125>0,'Asset data'!F125,0) -> 0 | H125: =IF(A125>0,SUM('Asset data'!CX125:GJ125),0) -> 0 | I125: 0 | J125: 0 | K125: 0 | L125: 0 | M125: =IF($A125>0,SUMPRODUCT('Age profile (years)'!$CT125:$GF125,'Asset data'!$CX125:$GJ125)/H125-0.5,0) -> 0 | N125: 0 | O125: =IF($A125>0,'Asset data'!G125,0) -> 0 | P125: 0 | Q125: 0 | R125: 0 | S125: 0 | T125: 0 | U125: 0 | W125: =IF($A125>0,SUMIF('Age profile (years)'!$CT125:$GF125,"<" & R125+0.5,'Asset data'!$CX125:$GJ125),0) -> 0 | X125: =IF($A125>0,SUMIF('Age profile (years)'!$CT125:$GF125,"<" & S125+0.5,'Asset data'!$CX125:$GJ125)-W125,0) -> 0 | Y125: =IF($A125>0,SUMIF('Age profile (years)'!$CT125:$GF125,"<" & T125+0.5,'Asset data'!$CX125:$GJ125)-X125-W125,0) -> 0 | Z125: =IF($A125>0,SUMIF('Age profile (years)'!$CT125:$GF125,"<" & U125+0.5,'Asset data'!$CX125:$GJ125)-Y125-X125-W125,0) -> 0 | AA125: 0 | AB125: 0 | AC125: 0 | AD125: 0 | AE125: 0 | AF125: 0 | AI125: =IF($A125>0,'RRR hist-forc'!K125,0) -> 0 | AJ125: 0
A126: ='Asset data'!A126 -> 0 | B126: ='Asset data'!B126 -> 0 | C126: ='Asset data'!C126 -> 0 | D126: ='Asset data'!E126 -> brackets ; major road | E126: 0 | F126: =IF(A126>0,SUM('Asset data'!J126:CV126),0) -> 0 | G126: =IF(A126>0,'Asset data'!F126,0) -> 0 | H126: =IF(A126>0,SUM('Asset data'!CX126:GJ126),0) -> 0 | I126: 0 | J126: 0 | K126: 0 | L126: 0 | M126: =IF($A126>0,SUMPRODUCT('Age profile (years)'!$CT126:$GF126,'Asset data'!$CX126:$GJ126)/H126-0.5,0) -> 0 | N126: 0 | O126: =IF($A126>0,'Asset data'!G126,0) -> 0 | P126: 0 | Q126: 0 | R126: 0 | S126: 0 | T126: 0 | U126: 0 | W126: =IF($A126>0,SUMIF('Age profile (years)'!$CT126:$GF126,"<" & R126+0.5,'Asset data'!$CX126:$GJ126),0) -> 0 | X126: =IF($A126>0,SUMIF('Age profile (years)'!$CT126:$GF126,"<" & S126+0.5,'Asset data'!$CX126:$GJ126)-W126,0) -> 0 | Y126: =IF($A126>0,SUMIF('Age profile (years)'!$CT126:$GF126,"<" & T126+0.5,'Asset data'!$CX126:$GJ126)-X126-W126,0) -> 0 | Z126: =IF($A126>0,SUMIF('Age profile (years)'!$CT126:$GF126,"<" & U126+0.5,'Asset data'!$CX126:$GJ126)-Y126-X126-W126,0) -> 0 | AA126: 0 | AB126: 0 | AC126: 0 | AD126: 0 | AE126: 0 | AF126: 0 | AI126: =IF($A126>0,'RRR hist-forc'!K126,0) -> 0 | AJ126: 0
A127: ='Asset data'!A127 -> 0 | B127: ='Asset data'!B127 -> 0 | C127: ='Asset data'!C127 -> 0 | D127: ='Asset data'!E127 -> brackets ; minor road | E127: 0 | F127: =IF(A127>0,SUM('Asset data'!J127:CV127),0) -> 0 | G127: =IF(A127>0,'Asset data'!F127,0) -> 0 | H127: =IF(A127>0,SUM('Asset data'!CX127:GJ127),0) -> 0 | I127: 0 | J127: 0 | K127: 0 | L127: 0 | M127: =IF($A127>0,SUMPRODUCT('Age profile (years)'!$CT127:$GF127,'Asset data'!$CX127:$GJ127)/H127-0.5,0) -> 0 | N127: 0 | O127: =IF($A127>0,'Asset data'!G127,0) -> 0 | P127: 0 | Q127: 0 | R127: 0 | S127: 0 | T127: 0 | U127: 0 | W127: =IF($A127>0,SUMIF('Age profile (years)'!$CT127:$GF127,"<" & R127+0.5,'Asset data'!$CX127:$GJ127),0) -> 0 | X127: =IF($A127>0,SUMIF('Age profile (years)'!$CT127:$GF127,"<" & S127+0.5,'Asset data'!$CX127:$GJ127)-W127,0) -> 0 | Y127: =IF($A127>0,SUMIF('Age profile (years)'!$CT127:$GF127,"<" & T127+0.5,'Asset data'!$CX127:$GJ127)-X127-W127,0) -> 0 | Z127: =IF($A127>0,SUMIF('Age profile (years)'!$CT127:$GF127,"<" & U127+0.5,'Asset data'!$CX127:$GJ127)-Y127-X127-W127,0) -> 0 | AA127: 0 | AB127: 0 | AC127: 0 | AD127: 0 | AE127: 0 | AF127: 0 | AI127: =IF($A127>0,'RRR hist-forc'!K127,0) -> 0 | AJ127: 0
A128: ='Asset data'!A128 -> 0 | B128: ='Asset data'!B128 -> 0 | C128: ='Asset data'!C128 -> 0 | D128: ='Asset data'!E128 -> lamps ; major road | E128: 0 | F128: =IF(A128>0,SUM('Asset data'!J128:CV128),0) -> 0 | G128: =IF(A128>0,'Asset data'!F128,0) -> 0 | H128: =IF(A128>0,SUM('Asset data'!CX128:GJ128),0) -> 0 | I128: 0 | J128: 0 | K128: 0 | L128: 0 | M128: =IF($A128>0,SUMPRODUCT('Age profile (years)'!$CT128:$GF128,'Asset data'!$CX128:$GJ128)/H128-0.5,0) -> 0 | N128: 0 | O128: =IF($A128>0,'Asset data'!G128,0) -> 0 | P128: 0 | Q128: 0 | R128: 0 | S128: 0 | T128: 0 | U128: 0 | W128: =IF($A128>0,SUMIF('Age profile (years)'!$CT128:$GF128,"<" & R128+0.5,'Asset data'!$CX128:$GJ128),0) -> 0 | X128: =IF($A128>0,SUMIF('Age profile (years)'!$CT128:$GF128,"<" & S128+0.5,'Asset data'!$CX128:$GJ128)-W128,0) -> 0 | Y128: =IF($A128>0,SUMIF('Age profile (years)'!$CT128:$GF128,"<" & T128+0.5,'Asset data'!$CX128:$GJ128)-X128-W128,0) -> 0 | Z128: =IF($A128>0,SUMIF('Age profile (years)'!$CT128:$GF128,"<" & U128+0.5,'Asset data'!$CX128:$GJ128)-Y128-X128-W128,0) -> 0 | AA128: 0 | AB128: 0 | AC128: 0 | AD128: 0 | AE128: 0 | AF128: 0 | AI128: =IF($A128>0,'RRR hist-forc'!K128,0) -> 0 | AJ128: 0
A129: ='Asset data'!A129 -> 0 | B129: ='Asset data'!B129 -> 0 | C129: ='Asset data'!C129 -> 0 | D129: ='Asset data'!E129 -> lamps ; minor road | E129: 0 | F129: =IF(A129>0,SUM('Asset data'!J129:CV129),0) -> 0 | G129: =IF(A129>0,'Asset data'!F129,0) -> 0 | H129: =IF(A129>0,SUM('Asset data'!CX129:GJ129),0) -> 0 | I129: 0 | J129: 0 | K129: 0 | L129: 0 | M129: =IF($A129>0,SUMPRODUCT('Age profile (years)'!$CT129:$GF129,'Asset data'!$CX129:$GJ129)/H129-0.5,0) -> 0 | N129: 0 | O129: =IF($A129>0,'Asset data'!G129,0) -> 0 | P129: 0 | Q129: 0 | R129: 0 | S129: 0 | T129: 0 | U129: 0 | W129: =IF($A129>0,SUMIF('Age profile (years)'!$CT129:$GF129,"<" & R129+0.5,'Asset data'!$CX129:$GJ129),0) -> 0 | X129: =IF($A129>0,SUMIF('Age profile (years)'!$CT129:$GF129,"<" & S129+0.5,'Asset data'!$CX129:$GJ129)-W129,0) -> 0 | Y129: =IF($A129>0,SUMIF('Age profile (years)'!$CT129:$GF129,"<" & T129+0.5,'Asset data'!$CX129:$GJ129)-X129-W129,0) -> 0 | Z129: =IF($A129>0,SUMIF('Age profile (years)'!$CT129:$GF129,"<" & U129+0.5,'Asset data'!$CX129:$GJ129)-Y129-X129-W129,0) -> 0 | AA129: 0 | AB129: 0 | AC129: 0 | AD129: 0 | AE129: 0 | AF129: 0 | AI129: =IF($A129>0,'RRR hist-forc'!K129,0) -> 0 | AJ129: 0
A130: ='Asset data'!A130 -> 0 | B130: ='Asset data'!B130 -> 0 | C130: ='Asset data'!C130 -> 0 | D130: ='Asset data'!E130 -> poles / columns ; major road | E130: 0 | F130: =IF(A130>0,SUM('Asset data'!J130:CV130),0) -> 0 | G130: =IF(A130>0,'Asset data'!F130,0) -> 0 | H130: =IF(A130>0,SUM('Asset data'!CX130:GJ130),0) -> 0 | I130: 0 | J130: 0 | K130: 0 | L130: 0 | M130: =IF($A130>0,SUMPRODUCT('Age profile (years)'!$CT130:$GF130,'Asset data'!$CX130:$GJ130)/H130-0.5,0) -> 0 | N130: 0 | O130: =IF($A130>0,'Asset data'!G130,0) -> 0 | P130: 0 | Q130: 0 | R130: 0 | S130: 0 | T130: 0 | U130: 0 | W130: =IF($A130>0,SUMIF('Age profile (years)'!$CT130:$GF130,"<" & R130+0.5,'Asset data'!$CX130:$GJ130),0) -> 0 | X130: =IF($A130>0,SUMIF('Age profile (years)'!$CT130:$GF130,"<" & S130+0.5,'Asset data'!$CX130:$GJ130)-W130,0) -> 0 | Y130: =IF($A130>0,SUMIF('Age profile (years)'!$CT130:$GF130,"<" & T130+0.5,'Asset data'!$CX130:$GJ130)-X130-W130,0) -> 0 | Z130: =IF($A130>0,SUMIF('Age profile (years)'!$CT130:$GF130,"<" & U130+0.5,'Asset data'!$CX130:$GJ130)-Y130-X130-W130,0) -> 0 | AA130: 0 | AB130: 0 | AC130: 0 | AD130: 0 | AE130: 0 | AF130: 0 | AI130: =IF($A130>0,'RRR hist-forc'!K130,0) -> 0 | AJ130: 0
A131: ='Asset data'!A131 -> 0 | B131: ='Asset data'!B131 -> 0 | C131: ='Asset data'!C131 -> 0 | D131: ='Asset data'!E131 -> poles / columns ; minor road | E131: 0 | F131: =IF(A131>0,SUM('Asset data'!J131:CV131),0) -> 0 | G131: =IF(A131>0,'Asset data'!F131,0) -> 0 | H131: =IF(A131>0,SUM('Asset data'!CX131:GJ131),0) -> 0 | I131: 0 | J131: 0 | K131: 0 | L131: 0 | M131: =IF($A131>0,SUMPRODUCT('Age profile (years)'!$CT131:$GF131,'Asset data'!$CX131:$GJ131)/H131-0.5,0) -> 0 | N131: 0 | O131: =IF($A131>0,'Asset data'!G131,0) -> 0 | P131: 0 | Q131: 0 | R131: 0 | S131: 0 | T131: 0 | U131: 0 | W131: =IF($A131>0,SUMIF('Age profile (years)'!$CT131:$GF131,"<" & R131+0.5,'Asset data'!$CX131:$GJ131),0) -> 0 | X131: =IF($A131>0,SUMIF('Age profile (years)'!$CT131:$GF131,"<" & S131+0.5,'Asset data'!$CX131:$GJ131)-W131,0) -> 0 | Y131: =IF($A131>0,SUMIF('Age profile (years)'!$CT131:$GF131,"<" & T131+0.5,'Asset data'!$CX131:$GJ131)-X131-W131,0) -> 0 | Z131: =IF($A131>0,SUMIF('Age profile (years)'!$CT131:$GF131,"<" & U131+0.5,'Asset data'!$CX131:$GJ131)-Y131-X131-W131,0) -> 0 | AA131: 0 | AB131: 0 | AC131: 0 | AD131: 0 | AE131: 0 | AF131: 0 | AI131: =IF($A131>0,'RRR hist-forc'!K131,0) -> 0 | AJ131: 0
A132: ='Asset data'!A132 -> 0 | B132: ='Asset data'!B132 -> 0 | C132: ='Asset data'!C132 -> 0 | D132: ='Asset data'!E132 -> other | E132: 0 | F132: =IF(A132>0,SUM('Asset data'!J132:CV132),0) -> 0 | G132: =IF(A132>0,'Asset data'!F132,0) -> 0 | H132: =IF(A132>0,SUM('Asset data'!CX132:GJ132),0) -> 0 | I132: 0 | J132: 0 | K132: 0 | L132: 0 | M132: =IF($A132>0,SUMPRODUCT('Age profile (years)'!$CT132:$GF132,'Asset data'!$CX132:$GJ132)/H132-0.5,0) -> 0 | N132: 0 | O132: =IF($A132>0,'Asset data'!G132,0) -> 0 | P132: 0 | Q132: 0 | R132: 0 | S132: 0 | T132: 0 | U132: 0 | W132: =IF($A132>0,SUMIF('Age profile (years)'!$CT132:$GF132,"<" & R132+0.5,'Asset data'!$CX132:$GJ132),0) -> 0 | X132: =IF($A132>0,SUMIF('Age profile (years)'!$CT132:$GF132,"<" & S132+0.5,'Asset data'!$CX132:$GJ132)-W132,0) -> 0 | Y132: =IF($A132>0,SUMIF('Age profile (years)'!$CT132:$GF132,"<" & T132+0.5,'Asset data'!$CX132:$GJ132)-X132-W132,0) -> 0 | Z132: =IF($A132>0,SUMIF('Age profile (years)'!$CT132:$GF132,"<" & U132+0.5,'Asset data'!$CX132:$GJ132)-Y132-X132-W132,0) -> 0 | AA132: 0 | AB132: 0 | AC132: 0 | AD132: 0 | AE132: 0 | AF132: 0 | AI132: =IF($A132>0,'RRR hist-forc'!K132,0) -> 0 | AJ132: 0
A133: ='Asset data'!A133 -> 0 | B133: ='Asset data'!B133 -> 0 | C133: ='Asset data'!C133 -> 0 | D133: ='Asset data'!E133 -> field devices | E133: 0 | F133: =IF(A133>0,SUM('Asset data'!J133:CV133),0) -> 0 | G133: =IF(A133>0,'Asset data'!F133,0) -> 0 | H133: =IF(A133>0,SUM('Asset data'!CX133:GJ133),0) -> 0 | I133: 0 | J133: 0 | K133: 0 | L133: 0 | M133: =IF($A133>0,SUMPRODUCT('Age profile (years)'!$CT133:$GF133,'Asset data'!$CX133:$GJ133)/H133-0.5,0) -> 0 | N133: 0 | O133: =IF($A133>0,'Asset data'!G133,0) -> 0 | P133: 0 | Q133: 0 | R133: 0 | S133: 0 | T133: 0 | U133: 0 | W133: =IF($A133>0,SUMIF('Age profile (years)'!$CT133:$GF133,"<" & R133+0.5,'Asset data'!$CX133:$GJ133),0) -> 0 | X133: =IF($A133>0,SUMIF('Age profile (years)'!$CT133:$GF133,"<" & S133+0.5,'Asset data'!$CX133:$GJ133)-W133,0) -> 0 | Y133: =IF($A133>0,SUMIF('Age profile (years)'!$CT133:$GF133,"<" & T133+0.5,'Asset data'!$CX133:$GJ133)-X133-W133,0) -> 0 | Z133: =IF($A133>0,SUMIF('Age profile (years)'!$CT133:$GF133,"<" & U133+0.5,'Asset data'!$CX133:$GJ133)-Y133-X133-W133,0) -> 0 | AA133: 0 | AB133: 0 | AC133: 0 | AD133: 0 | AE133: 0 | AF133: 0 | AI133: =IF($A133>0,'RRR hist-forc'!K133,0) -> 0 | AJ133: 0
A134: ='Asset data'!A134 -> 0 | B134: ='Asset data'!B134 -> 0 | C134: ='Asset data'!C134 -> 0 | D134: ='Asset data'!E134 -> local network wiring assets | E134: 0 | F134: =IF(A134>0,SUM('Asset data'!J134:CV134),0) -> 0 | G134: =IF(A134>0,'Asset data'!F134,0) -> 0 | H134: =IF(A134>0,SUM('Asset data'!CX134:GJ134),0) -> 0 | I134: 0 | J134: 0 | K134: 0 | L134: 0 | M134: =IF($A134>0,SUMPRODUCT('Age profile (years)'!$CT134:$GF134,'Asset data'!$CX134:$GJ134)/H134-0.5,0) -> 0 | N134: 0 | O134: =IF($A134>0,'Asset data'!G134,0) -> 0 | P134: 0 | Q134: 0 | R134: 0 | S134: 0 | T134: 0 | U134: 0 | W134: =IF($A134>0,SUMIF('Age profile (years)'!$CT134:$GF134,"<" & R134+0.5,'Asset data'!$CX134:$GJ134),0) -> 0 | X134: =IF($A134>0,SUMIF('Age profile (years)'!$CT134:$GF134,"<" & S134+0.5,'Asset data'!$CX134:$GJ134)-W134,0) -> 0 | Y134: =IF($A134>0,SUMIF('Age profile (years)'!$CT134:$GF134,"<" & T134+0.5,'Asset data'!$CX134:$GJ134)-X134-W134,0) -> 0 | Z134: =IF($A134>0,SUMIF('Age profile (years)'!$CT134:$GF134,"<" & U134+0.5,'Asset data'!$CX134:$GJ134)-Y134-X134-W134,0) -> 0 | AA134: 0 | AB134: 0 | AC134: 0 | AD134: 0 | AE134: 0 | AF134: 0 | AI134: =IF($A134>0,'RRR hist-forc'!K134,0) -> 0 | AJ134: 0
A135: ='Asset data'!A135 -> 0 | B135: ='Asset data'!B135 -> 0 | C135: ='Asset data'!C135 -> 0 | D135: ='Asset data'!E135 -> communications network assets | E135: 0 | F135: =IF(A135>0,SUM('Asset data'!J135:CV135),0) -> 0 | G135: =IF(A135>0,'Asset data'!F135,0) -> 0 | H135: =IF(A135>0,SUM('Asset data'!CX135:GJ135),0) -> 0 | I135: 0 | J135: 0 | K135: 0 | L135: 0 | M135: =IF($A135>0,SUMPRODUCT('Age profile (years)'!$CT135:$GF135,'Asset data'!$CX135:$GJ135)/H135-0.5,0) -> 0 | N135: 0 | O135: =IF($A135>0,'Asset data'!G135,0) -> 0 | P135: 0 | Q135: 0 | R135: 0 | S135: 0 | T135: 0 | U135: 0 | W135: =IF($A135>0,SUMIF('Age profile (years)'!$CT135:$GF135,"<" & R135+0.5,'Asset data'!$CX135:$GJ135),0) -> 0 | X135: =IF($A135>0,SUMIF('Age profile (years)'!$CT135:$GF135,"<" & S135+0.5,'Asset data'!$CX135:$GJ135)-W135,0) -> 0 | Y135: =IF($A135>0,SUMIF('Age profile (years)'!$CT135:$GF135,"<" & T135+0.5,'Asset data'!$CX135:$GJ135)-X135-W135,0) -> 0 | Z135: =IF($A135>0,SUMIF('Age profile (years)'!$CT135:$GF135,"<" & U135+0.5,'Asset data'!$CX135:$GJ135)-Y135-X135-W135,0) -> 0 | AA135: 0 | AB135: 0 | AC135: 0 | AD135: 0 | AE135: 0 | AF135: 0 | AI135: =IF($A135>0,'RRR hist-forc'!K135,0) -> 0 | AJ135: 0
A136: ='Asset data'!A136 -> 0 | B136: ='Asset data'!B136 -> 0 | C136: ='Asset data'!C136 -> 0 | D136: ='Asset data'!E136 -> master station assets | E136: 0 | F136: =IF(A136>0,SUM('Asset data'!J136:CV136),0) -> 0 | G136: =IF(A136>0,'Asset data'!F136,0) -> 0 | H136: =IF(A136>0,SUM('Asset data'!CX136:GJ136),0) -> 0 | I136: 0 | J136: 0 | K136: 0 | L136: 0 | M136: =IF($A136>0,SUMPRODUCT('Age profile (years)'!$CT136:$GF136,'Asset data'!$CX136:$GJ136)/H136-0.5,0) -> 0 | N136: 0 | O136: =IF($A136>0,'Asset data'!G136,0) -> 0 | P136: 0 | Q136: 0 | R136: 0 | S136: 0 | T136: 0 | U136: 0 | W136: =IF($A136>0,SUMIF('Age profile (years)'!$CT136:$GF136,"<" & R136+0.5,'Asset data'!$CX136:$GJ136),0) -> 0 | X136: =IF($A136>0,SUMIF('Age profile (years)'!$CT136:$GF136,"<" & S136+0.5,'Asset data'!$CX136:$GJ136)-W136,0) -> 0 | Y136: =IF($A136>0,SUMIF('Age profile (years)'!$CT136:$GF136,"<" & T136+0.5,'Asset data'!$CX136:$GJ136)-X136-W136,0) -> 0 | Z136: =IF($A136>0,SUMIF('Age profile (years)'!$CT136:$GF136,"<" & U136+0.5,'Asset data'!$CX136:$GJ136)-Y136-X136-W136,0) -> 0 | AA136: 0 | AB136: 0 | AC136: 0 | AD136: 0 | AE136: 0 | AF136: 0 | AI136: =IF($A136>0,'RRR hist-forc'!K136,0) -> 0 | AJ136: 0
A137: ='Asset data'!A137 -> 0 | B137: ='Asset data'!B137 -> 0 | C137: ='Asset data'!C137 -> 0 | D137: ='Asset data'!E137 -> other | E137: 0 | F137: =IF(A137>0,SUM('Asset data'!J137:CV137),0) -> 0 | G137: =IF(A137>0,'Asset data'!F137,0) -> 0 | H137: =IF(A137>0,SUM('Asset data'!CX137:GJ137),0) -> 0 | I137: 0 | J137: 0 | K137: 0 | L137: 0 | M137: =IF($A137>0,SUMPRODUCT('Age profile (years)'!$CT137:$GF137,'Asset data'!$CX137:$GJ137)/H137-0.5,0) -> 0 | N137: 0 | O137: =IF($A137>0,'Asset data'!G137,0) -> 0 | P137: 0 | Q137: 0 | R137: 0 | S137: 0 | T137: 0 | U137: 0 | W137: =IF($A137>0,SUMIF('Age profile (years)'!$CT137:$GF137,"<" & R137+0.5,'Asset data'!$CX137:$GJ137),0) -> 0 | X137: =IF($A137>0,SUMIF('Age profile (years)'!$CT137:$GF137,"<" & S137+0.5,'Asset data'!$CX137:$GJ137)-W137,0) -> 0 | Y137: =IF($A137>0,SUMIF('Age profile (years)'!$CT137:$GF137,"<" & T137+0.5,'Asset data'!$CX137:$GJ137)-X137-W137,0) -> 0 | Z137: =IF($A137>0,SUMIF('Age profile (years)'!$CT137:$GF137,"<" & U137+0.5,'Asset data'!$CX137:$GJ137)-Y137-X137-W137,0) -> 0 | AA137: 0 | AB137: 0 | AC137: 0 | AD137: 0 | AE137: 0 | AF137: 0 | AI137: =IF($A137>0,'RRR hist-forc'!K137,0) -> 0 | AJ137: 0
A138: ='Asset data'!A138 -> 0 | B138: ='Asset data'!B138 -> 0 | C138: ='Asset data'!C138 -> 0 | D138: ='Asset data'!E138 -> capacitor banks | E138: 0 | F138: =IF(A138>0,SUM('Asset data'!J138:CV138),0) -> 0 | G138: =IF(A138>0,'Asset data'!F138,0) -> 0 | H138: =IF(A138>0,SUM('Asset data'!CX138:GJ138),0) -> 0 | I138: 0 | J138: 0 | K138: 0 | L138: 0 | M138: =IF($A138>0,SUMPRODUCT('Age profile (years)'!$CT138:$GF138,'Asset data'!$CX138:$GJ138)/H138-0.5,0) -> 0 | N138: 0 | O138: =IF($A138>0,'Asset data'!G138,0) -> 0 | P138: 0 | Q138: 0 | R138: 0 | S138: 0 | T138: 0 | U138: 0 | W138: =IF($A138>0,SUMIF('Age profile (years)'!$CT138:$GF138,"<" & R138+0.5,'Asset data'!$CX138:$GJ138),0) -> 0 | X138: =IF($A138>0,SUMIF('Age profile (years)'!$CT138:$GF138,"<" & S138+0.5,'Asset data'!$CX138:$GJ138)-W138,0) -> 0 | Y138: =IF($A138>0,SUMIF('Age profile (years)'!$CT138:$GF138,"<" & T138+0.5,'Asset data'!$CX138:$GJ138)-X138-W138,0) -> 0 | Z138: =IF($A138>0,SUMIF('Age profile (years)'!$CT138:$GF138,"<" & U138+0.5,'Asset data'!$CX138:$GJ138)-Y138-X138-W138,0) -> 0 | AA138: 0 | AB138: 0 | AC138: 0 | AD138: 0 | AE138: 0 | AF138: 0 | AI138: =IF($A138>0,'RRR hist-forc'!K138,0) -> 0 | AJ138: 0
A139: ='Asset data'!A139 -> 0 | B139: ='Asset data'!B139 -> 0 | C139: ='Asset data'!C139 -> 0 | D139: ='Asset data'!E139 -> current transformers | E139: 0 | F139: =IF(A139>0,SUM('Asset data'!J139:CV139),0) -> 0 | G139: =IF(A139>0,'Asset data'!F139,0) -> 0 | H139: =IF(A139>0,SUM('Asset data'!CX139:GJ139),0) -> 0 | I139: 0 | J139: 0 | K139: 0 | L139: 0 | M139: =IF($A139>0,SUMPRODUCT('Age profile (years)'!$CT139:$GF139,'Asset data'!$CX139:$GJ139)/H139-0.5,0) -> 0 | N139: 0 | O139: =IF($A139>0,'Asset data'!G139,0) -> 0 | P139: 0 | Q139: 0 | R139: 0 | S139: 0 | T139: 0 | U139: 0 | W139: =IF($A139>0,SUMIF('Age profile (years)'!$CT139:$GF139,"<" & R139+0.5,'Asset data'!$CX139:$GJ139),0) -> 0 | X139: =IF($A139>0,SUMIF('Age profile (years)'!$CT139:$GF139,"<" & S139+0.5,'Asset data'!$CX139:$GJ139)-W139,0) -> 0 | Y139: =IF($A139>0,SUMIF('Age profile (years)'!$CT139:$GF139,"<" & T139+0.5,'Asset data'!$CX139:$GJ139)-X139-W139,0) -> 0 | Z139: =IF($A139>0,SUMIF('Age profile (years)'!$CT139:$GF139,"<" & U139+0.5,'Asset data'!$CX139:$GJ139)-Y139-X139-W139,0) -> 0 | AA139: 0 | AB139: 0 | AC139: 0 | AD139: 0 | AE139: 0 | AF139: 0 | AI139: =IF($A139>0,'RRR hist-forc'!K139,0) -> 0 | AJ139: 0
A140: ='Asset data'!A140 -> 0 | B140: ='Asset data'!B140 -> 0 | C140: ='Asset data'!C140 -> 0 | D140: ='Asset data'!E140 -> static var compensator | E140: 0 | F140: =IF(A140>0,SUM('Asset data'!J140:CV140),0) -> 0 | G140: =IF(A140>0,'Asset data'!F140,0) -> 0 | H140: =IF(A140>0,SUM('Asset data'!CX140:GJ140),0) -> 0 | I140: 0 | J140: 0 | K140: 0 | L140: 0 | M140: =IF($A140>0,SUMPRODUCT('Age profile (years)'!$CT140:$GF140,'Asset data'!$CX140:$GJ140)/H140-0.5,0) -> 0 | N140: 0 | O140: =IF($A140>0,'Asset data'!G140,0) -> 0 | P140: 0 | Q140: 0 | R140: 0 | S140: 0 | T140: 0 | U140: 0 | W140: =IF($A140>0,SUMIF('Age profile (years)'!$CT140:$GF140,"<" & R140+0.5,'Asset data'!$CX140:$GJ140),0) -> 0 | X140: =IF($A140>0,SUMIF('Age profile (years)'!$CT140:$GF140,"<" & S140+0.5,'Asset data'!$CX140:$GJ140)-W140,0) -> 0 | Y140: =IF($A140>0,SUMIF('Age profile (years)'!$CT140:$GF140,"<" & T140+0.5,'Asset data'!$CX140:$GJ140)-X140-W140,0) -> 0 | Z140: =IF($A140>0,SUMIF('Age profile (years)'!$CT140:$GF140,"<" & U140+0.5,'Asset data'!$CX140:$GJ140)-Y140-X140-W140,0) -> 0 | AA140: 0 | AB140: 0 | AC140: 0 | AD140: 0 | AE140: 0 | AF140: 0 | AI140: =IF($A140>0,'RRR hist-forc'!K140,0) -> 0 | AJ140: 0
A141: ='Asset data'!A141 -> 0 | B141: ='Asset data'!B141 -> 0 | C141: ='Asset data'!C141 -> 0 | D141: ='Asset data'!E141 -> voltage transformers | E141: 0 | F141: =IF(A141>0,SUM('Asset data'!J141:CV141),0) -> 0 | G141: =IF(A141>0,'Asset data'!F141,0) -> 0 | H141: =IF(A141>0,SUM('Asset data'!CX141:GJ141),0) -> 0 | I141: 0 | J141: 0 | K141: 0 | L141: 0 | M141: =IF($A141>0,SUMPRODUCT('Age profile (years)'!$CT141:$GF141,'Asset data'!$CX141:$GJ141)/H141-0.5,0) -> 0 | N141: 0 | O141: =IF($A141>0,'Asset data'!G141,0) -> 0 | P141: 0 | Q141: 0 | R141: 0 | S141: 0 | T141: 0 | U141: 0 | W141: =IF($A141>0,SUMIF('Age profile (years)'!$CT141:$GF141,"<" & R141+0.5,'Asset data'!$CX141:$GJ141),0) -> 0 | X141: =IF($A141>0,SUMIF('Age profile (years)'!$CT141:$GF141,"<" & S141+0.5,'Asset data'!$CX141:$GJ141)-W141,0) -> 0 | Y141: =IF($A141>0,SUMIF('Age profile (years)'!$CT141:$GF141,"<" & T141+0.5,'Asset data'!$CX141:$GJ141)-X141-W141,0) -> 0 | Z141: =IF($A141>0,SUMIF('Age profile (years)'!$CT141:$GF141,"<" & U141+0.5,'Asset data'!$CX141:$GJ141)-Y141-X141-W141,0) -> 0 | AA141: 0 | AB141: 0 | AC141: 0 | AD141: 0 | AE141: 0 | AF141: 0 | AI141: =IF($A141>0,'RRR hist-forc'!K141,0) -> 0 | AJ141: 0
A142: ='Asset data'!A142 -> 0 | B142: ='Asset data'!B142 -> 0 | C142: ='Asset data'!C142 -> 0 | D142: ='Asset data'!E142 -> aflc | E142: 0 | F142: =IF(A142>0,SUM('Asset data'!J142:CV142),0) -> 0 | G142: =IF(A142>0,'Asset data'!F142,0) -> 0 | H142: =IF(A142>0,SUM('Asset data'!CX142:GJ142),0) -> 0 | I142: 0 | J142: 0 | K142: 0 | L142: 0 | M142: =IF($A142>0,SUMPRODUCT('Age profile (years)'!$CT142:$GF142,'Asset data'!$CX142:$GJ142)/H142-0.5,0) -> 0 | N142: 0 | O142: =IF($A142>0,'Asset data'!G142,0) -> 0 | P142: 0 | Q142: 0 | R142: 0 | S142: 0 | T142: 0 | U142: 0 | W142: =IF($A142>0,SUMIF('Age profile (years)'!$CT142:$GF142,"<" & R142+0.5,'Asset data'!$CX142:$GJ142),0) -> 0 | X142: =IF($A142>0,SUMIF('Age profile (years)'!$CT142:$GF142,"<" & S142+0.5,'Asset data'!$CX142:$GJ142)-W142,0) -> 0 | Y142: =IF($A142>0,SUMIF('Age profile (years)'!$CT142:$GF142,"<" & T142+0.5,'Asset data'!$CX142:$GJ142)-X142-W142,0) -> 0 | Z142: =IF($A142>0,SUMIF('Age profile (years)'!$CT142:$GF142,"<" & U142+0.5,'Asset data'!$CX142:$GJ142)-Y142-X142-W142,0) -> 0 | AA142: 0 | AB142: 0 | AC142: 0 | AD142: 0 | AE142: 0 | AF142: 0 | AI142: =IF($A142>0,'RRR hist-forc'!K142,0) -> 0 | AJ142: 0
AI206: =IF($A206>0,'RRR hist-forc'!K206,0) -> 0 | AJ206: =IF($A206>0,AI206*H206,0) -> 0

Sheet Asset data
A1: Meth all | D1: 3 | E1: =IF(D1=2,"all normal",IF(D1=1,"all deterministic","individual")) -> individual | L1: Profile type: | M1: 3 | N1: =VLOOKUP(APtype,IDtable,4) -> Installation date
F3: Unit | J3: Quantities | CX3: Replacement Cost (NOT depreciated)
F4: Cost | G4: Replacement life | I4: Rep | J4: =VLOOKUP(APtype,IDtable,4) -> Installation date | CX4: =VLOOKUP(APtype,IDtable,4) -> Installation date
A5: ID | B5: ID | C5: ID | D5: Asset category | E5: Asset ID | F5: $ ('000) | G5: mean | H5: SD | I5: Meth | J5: =IF(OR(APtype=1,APtype=2),0,IF(APtype=3,Now,9999)) -> 2013 | K5: =IF(OR(APtype=1,APtype=2),J5+1,IF(APtype=3,J5-1,9999)) -> 2012 | L5: 2011 | M5: 2010 | N5: 2009 | O5: 2008 | P5: 2007 | Q5: 2006 | R5: 2005 | S5: 2004 | T5: 2003 | U5: 2002 | V5: 2001 | W5: 2000 | X5: 1999 | Y5: 1998 | Z5: 1997 | AA5: 1996 | AB5: 1995 | AC5: 1994 | AD5: 1993 | AE5: 1992 | AF5: 1991 | AG5: 1990 | AH5: 1989 | AI5: 1988 | AJ5: 1987 | AK5: 1986 | AL5: 1985 | AM5: 1984 | AN5: 1983 | AO5: 1982 | AP5: 1981 | AQ5: =IF(OR(APtype=1,APtype=2),AP5+1,IF(APtype=3,AP5-1,9999)) -> 1980 | AR5: 1979 | AS5: 1978 | AT5: 1977 | AU5: 1976 | AV5: 1975 | AW5: 1974 | AX5: 1973 | AY5: 1972 | AZ5: 1971 | BA5: 1970 | BB5: 1969 | BC5: 1968 | BD5: 1967 | BE5: 1966 | BF5: 1965 | BG5: 1964 | BH5: 1963 | BI5: 1962 | BJ5: 1961 | BK5: 1960 | BL5: 1959 | BM5: 1958 | BN5: 1957 | BO5: 1956 | BP5: 1955 | BQ5: 1954 | BR5: 1953 | BS5: 1952 | BT5: 1951 | BU5: 1950 | BV5: 1949 | BW5: =IF(OR(APtype=1,APtype=2),BV5+1,IF(APtype=3,BV5-1,9999)) -> 1948 | BX5: 1947 | BY5: 1946 | BZ5: 1945 | CA5: 1944 | CB5: 1943 | CC5: 1942 | CD5: 1941 | CE5: 1940 | CF5: 1939 | CG5: 1938 | CH5: 1937 | CI5: 1936 | CJ5: 1935 | CK5: 1934 | CL5: 1933 | CM5: 1932 | CN5: 1931 | CO5: 1930 | CP5: 1929 | CQ5: 1928 | CR5: 1927 | CS5: 1926 | CT5: 1925 | CU5: 1924 | CV5: 1923 | CX5: =J5 -> 2013 | CY5: =K5 -> 2012 | CZ5: 2011 | DA5: 2010 | DB5: 2009 | DC5: 2008 | DD5: 2007 | DE5: 2006 | DF5: 2005 | DG5: 2004 | DH5: 2003 | DI5: 2002 | DJ5: 2001 | DK5: 2000 | DL5: 1999 | DM5: 1998 | DN5: 1997 | DO5: 1996 | DP5: 1995 | DQ5: 1994 | DR5: 1993 | DS5: 1992 | DT5: 1991 | DU5: 1990 | DV5: 1989 | DW5: 1988 | DX5: 1987 | DY5: 1986 | DZ5: 1985 | EA5: 1984 | EB5: 1983 | EC5: 1982 | ED5: 1981 | EE5: 1980 | EF5: 1979 | EG5: 1978 | EH5: 1977 | EI5: 1976 | EJ5: 1975 | EK5: 1974 | EL5: 1973 | EM5: 1972 | EN5: 1971 | EO5: 1970 | EP5: 1969 | EQ5: 1968 | ER5: 1967 | ES5: 1966 | ET5: 1965 | EU5: 1964 | EV5: 1963 | EW5: 1962 | EX5: 1961 | EY5: 1960 | EZ5: 1959 | FA5: 1958 | FB5: 1957 | FC5: 1956 | FD5: 1955 | FE5: 1954 | FF5: 1953 | FG5: 1952 | FH5: 1951 | FI5: 1950 | FJ5: 1949 | FK5: =BW5 -> 1948 | FL5: 1947 | FM5: 1946 | FN5: 1945 | FO5: 1944 | FP5: 1943 | FQ5: 1942 | FR5: 1941 | FS5: 1940 | FT5: 1939 | FU5: 1938 | FV5: 1937 | FW5: 1936 | FX5: 1935 | FY5: 1934 | FZ5: 1933 | GA5: 1932 | GB5: 1931 | GC5: 1930 | GD5: 1929 | GE5: 1928 | GF5: 1927 | GG5: 1926 | GH5: 1925 | GI5: 1924 | GJ5: 1923
CX21: =$F21*J21 -> 0 | CY21: =$F21*K21 -> 0 | CZ21: 0 | DA21: 0 | DB21: 0 | DC21: 0 | DD21: 0 | DE21: 0 | DF21: 0 | DG21: 0 | DH21: 0 | DI21: 0 | DJ21: 0 | DK21: 0 | DL21: 0 | DM21: 0 | DN21: 0 | DO21: 0 | DP21: 0 | DQ21: 0 | DR21: 0 | DS21: 0 | DT21: 0 | DU21: 0 | DV21: 0 | DW21: 0 | DX21: 0 | DY21: 0 | DZ21: 0 | EA21: 0 | EB21: 0 | EC21: 0 | ED21: 0 | EE21: 0 | EF21: 0 | EG21: 0 | EH21: 0 | EI21: 0 | EJ21: 0 | EK21: 0 | EL21: 0 | EM21: 0 | EN21: 0 | EO21: 0 | EP21: 0 | EQ21: 0 | ER21: 0 | ES21: 0 | ET21: 0 | EU21: 0 | EV21: 0 | EW21: 0 | EX21: 0 | EY21: 0 | EZ21: 0 | FA21: 0 | FB21: 0 | FC21: 0 | FD21: 0 | FE21: 0 | FF21: 0 | FG21: 0 | FH21: 0 | FI21: 0 | FJ21: 0 | FK21: =$F21*BW21 -> 0 | FL21: 0 | FM21: 0 | FN21: 0 | FO21: 0 | FP21: 0 | FQ21: 0 | FR21: 0 | FS21: 0 | FT21: 0 | FU21: 0 | FV21: 0 | FW21: 0 | FX21: 0 | FY21: 0 | FZ21: 0 | GA21: 0 | GB21: 0 | GC21: 0 | GD21: 0 | GE21: 0 | GF21: 0 | GG21: 0 | GH21: 0 | GI21: 0 | GJ21: 0
A22: 1 | D22: POLES | E22: staking of a wooden pole | F22: 8.253577624 | G22: 21.69235126 | H22: 4.657504832 | I22: 2 | J22: 2546 | K22: 4061 | L22: 2958 | M22: 2699 | N22: 2794 | O22: 2774 | P22: 2616 | Q22: 2547 | R22: 4195 | S22: 2500 | T22: 2000 | U22: 1700 | V22: 1500 | W22: 1500 | X22: 1500 | Y22: 1500 | Z22: 800 | AA22: 800 | AB22: 800 | AC22: 800 | AD22: 800 | AE22: 800 | AF22: 400 | AG22: 400 | AH22: 400 | AI22: 200 | AJ22: 100 | AK22: 100 | AL22: 100 | AM22: 0 | AN22: 0 | AO22: 0 | AP22: 0 | AQ22: 0 | AR22: 0 | AS22: 0 | AT22: 0 | AU22: 0 | AV22: 0 | AW22: 0 | AX22: 0 | AY22: 0 | AZ22: 0 | BA22: 0 | BB22: 0 | BC22: 0 | BD22: 0 | BE22: 0 | BF22: 0 | BG22: 0 | BH22: 0 | BI22: 0 | BJ22: 0 | BK22: 0 | BL22: 0 | BM22: 0 | BN22: 0 | BO22: 0 | BP22: 0 | BQ22: 0 | BR22: 0 | BS22: 0 | BT22: 0 | BU22: 0 | BV22: 0 | BW22: 0 | BX22: 0 | BY22: 0 | BZ22: 0 | CA22: 0 | CB22: 0 | CC22: 0 | CD22: 0 | CE22: 0 | CF22: 0 | CG22: 0 | CH22: 0 | CI22: 0 | CJ22: 0 | CK22: 0 | CL22: 0 | CM22: 0 | CN22: 0 | CO22: 0 | CP22: 0 | CQ22: 0 | CR22: 0 | CS22: 0 | CT22: 0 | CU22: 0 | CV22: 0 | CX22: =$F22*J22 -> 21013.60863 | CY22: =$F22*K22 -> 33517.77873 | CZ22: =$F22*L22 -> 24414.08261 | DA22: =$F22*M22 -> 22276.40601 | DB22: =$F22*N22 -> 23060.49588 | DC22: =$F22*O22 -> 22895.42433 | DD22: =$F22*P22 -> 21591.35906 | DE22: =$F22*Q22 -> 21021.86221 | DF22: =$F22*R22 -> 34623.75813 | DG22: =$F22*S22 -> 20633.94406 | DH22: =$F22*T22 -> 16507.15525 | DI22: =$F22*U22 -> 14031.08196 | DJ22: =$F22*V22 -> 12380.36644 | DK22: =$F22*W22 -> 12380.36644 | DL22: =$F22*X22 -> 12380.36644 | DM22: =$F22*Y22 -> 12380.36644 | DN22: =$F22*Z22 -> 6602.862099 | DO22: =$F22*AA22 -> 6602.862099 | DP22: =$F22*AB22 -> 6602.862099 | DQ22: =$F22*AC22 -> 6602.862099 | DR22: =$F22*AD22 -> 6602.862099 | DS22: =$F22*AE22 -> 6602.862099 | DT22: =$F22*AF22 -> 3301.43105 | DU22: =$F22*AG22 -> 3301.43105 | DV22: =$F22*AH22 -> 3301.43105 | DW22: =$F22*AI22 -> 1650.715525 | DX22: =$F22*AJ22 -> 825.3577624 | DY22: =$F22*AK22 -> 825.3577624 | DZ22: =$F22*AL22 -> 825.3577624 | EA22: =$F22*AM22 -> 0 | EB22: =$F22*AN22 -> 0 | EC22: =$F22*AO22 -> 0 | ED22: =$F22*AP22 -> 0 | EE22: =$F22*AQ22 -> 0 | EF22: =$F22*AR22 -> 0 | EG22: =$F22*AS22 -> 0 | EH22: =$F22*AT22 -> 0 | EI22: =$F22*AU22 -> 0 | EJ22: =$F22*AV22 -> 0 | EK22: =$F22*AW22 -> 0 | EL22: =$F22*AX22 -> 0 | EM22: =$F22*AY22 -> 0 | EN22: =$F22*AZ22 -> 0 | EO22: =$F22*BA22 -> 0 | EP22: =$F22*BB22 -> 0 | EQ22: =$F22*BC22 -> 0 | ER22: =$F22*BD22 -> 0 | ES22: =$F22*BE22 -> 0 | ET22: =$F22*BF22 -> 0 | EU22: =$F22*BG22 -> 0 | EV22: =$F22*BH22 -> 0 | EW22: =$F22*BI22 -> 0 | EX22: =$F22*BJ22 -> 0 | EY22: =$F22*BK22 -> 0 | EZ22: =$F22*BL22 -> 0 | FA22: =$F22*BM22 -> 0 | FB22: =$F22*BN22 -> 0 | FC22: =$F22*BO22 -> 0 | FD22: =$F22*BP22 -> 0 | FE22: =$F22*BQ22 -> 0 | FF22: =$F22*BR22 -> 0 | FG22: =$F22*BS22 -> 0 | FH22: =$F22*BT22 -> 0 | FI22: =$F22*BU22 -> 0 | FJ22: =$F22*BV22 -> 0 | FK22: =$F22*BW22 -> 0 | FL22: =$F22*BX22 -> 0 | FM22: =$F22*BY22 -> 0 | FN22: =$F22*BZ22 -> 0 | FO22: =$F22*CA22 -> 0 | FP22: =$F22*CB22 -> 0 | FQ22: =$F22*CC22 -> 0 | FR22: =$F22*CD22 -> 0 | FS22: =$F22*CE22 -> 0 | FT22: =$F22*CF22 -> 0 | FU22: =$F22*CG22 -> 0 | FV22: =$F22*CH22 -> 0 | FW22: =$F22*CI22 -> 0 | FX22: =$F22*CJ22 -> 0 | FY22: =$F22*CK22 -> 0 | FZ22: =$F22*CL22 -> 0 | GA22: =$F22*CM22 -> 0 | GB22: =$F22*CN22 -> 0 | GC22: =$F22*CO22 -> 0 | GD22: =$F22*CP22 -> 0 | GE22: =$F22*CQ22 -> 0 | GF22: =$F22*CR22 -> 0 | GG22: =$F22*CS22 -> 0 | GH22: =$F22*CT22 -> 0 | GI22: =$F22*CU22 -> 0 | GJ22: =$F22*CV22 -> 0
A23: 1 | D23: POLES | E23: ˂ = 1 kv; wood | F23: 4.437974333 | G23: 68.39366777 | H23: 8.270046419 | I23: 2 | J23: 130 | K23: 1102 | L23: 1960 | M23: 1605 | N23: 1969 | O23: 2029 | P23: 2244 | Q23: 4484 | R23: 4580 | S23: 5577 | T23: 5504 | U23: 4811 | V23: 4905 | W23: 4739 | X23: 4379 | Y23: 3987 | Z23: 4418 | AA23: 4449 | AB23: 4911 | AC23: 5786 | AD23: 5311 | AE23: 5176 | AF23: 5762 | AG23: 5351 | AH23: 5218 | AI23: 4993 | AJ23: 3854 | AK23: 3401 | AL23: 4779 | AM23: 4887.295312 | AN23: 4641.810634 | AO23: 4046.91346 | AP23: 5370.201301 | AQ23: 4499.357847 | AR23: 4120.379677 | AS23: 3142.024685 | AT23: 3846.225256 | AU23: 3873.103141 | AV23: 3903.564743 | AW23: 3685.853879 | AX23: 3870.415352 | AY23: 3100.811929 | AZ23: 3214.594973 | BA23: 3249.536223 | BB23: 3762.903815 | BC23: 3120.522378 | BD23: 2693.164016 | BE23: 2037.343637 | BF23: 2112.601713 | BG23: 2035.551778 | BH23: 1755.125851 | BI23: 2815.906355 | BJ23: 1594.754474 | BK23: 1628.799794 | BL23: 1674.492198 | BM23: 1587.587038 | BN23: 1598.338192 | BO23: 1532.93534 | BP23: 1506.057455 | BQ23: 1550.853929 | BR23: 1558.917295 | BS23: 1594.754474 | BT23: 1558.917295 | BU23: 1553.541718 | BV23: 1580.419602 | BW23: 0.8959294797 | BX23: 0 | BY23: 2.687788439 | BZ23: 0 | CA23: 0 | CB23: 0 | CC23: 0 | CD23: 0 | CE23: 0 | CF23: 0 | CG23: 0 | CH23: 0 | CI23: 0 | CJ23: 0 | CK23: 0 | CL23: 0 | CM23: 0 | CN23: 0 | CO23: 0 | CP23: 0 | CQ23: 0 | CR23: 0 | CS23: 0 | CT23: 0 | CU23: 0 | CV23: 0 | CX23: 576.9366633 | CY23: 4890.647715 | CZ23: 8698.429693 | DA23: 7122.948805 | DB23: 8738.371462 | DC23: 9004.649922 | DD23: 9958.814404 | DE23: 19899.87691 | DF23: 20325.92245 | DG23: 24750.58286 | DH23: 24426.61073 | DI23: 21351.09452 | DJ23: 21768.26411 | DK23: 21031.56037 | DL23: 19433.88961 | DM23: 17694.20367 | DN23: 19606.9706 | DO23: 19744.54781 | DP23: 21794.89195 | DQ23: 25678.11949 | DR23: 23570.08168 | DS23: 22970.95515 | DT23: 25571.60811 | DU23: 23747.60066 | DV23: 23157.35007 | DW23: 22158.80585 | DX23: 17103.95308 | DY23: 15093.55071 | DZ23: 21209.07934 | EA23: 21689.69115 | EB23: 20600.23646 | EC23: 17960.09806 | ED23: 23832.81554 | EE23: 19968.03464 | EF23: 18286.13925 | EG23: 13944.22491 | EH23: 17069.44897 | EI23: 17188.73233 | EJ23: 17323.92014 | EK23: 16357.72491 | EL23: 17176.80399 | EM23: 13761.32375 | EN23: 14266.28998 | EO23: 14421.35835 | EP23: 16699.67055 | EQ23: 13848.79822 | ER23: 11952.19278 | ES23: 9041.678768 | ET23: 9375.672179 | EU23: 9033.726544 | EV23: 7789.203477 | EW23: 12496.92013 | EX23: 7077.479423 | EY23: 7228.57168 | EZ23: 7431.353394 | FA23: 7045.670527 | FB23: 7093.383871 | FC23: 6803.127693 | FD23: 6683.844331 | FE23: 6882.649933 | FF23: 6918.434942 | FG23: 7077.479423 | FH23: 6918.434942 | FI23: 6894.578269 | FJ23: 7013.86163 | FK23: 3.976112035 | FL23: 0 | FM23: 11.92833611 | FN23: 0 | FO23: 0 | FP23: 0 | FQ23: 0 | FR23: 0 | FS23: 0 | FT23: 0 | FU23: 0 | FV23: 0 | FW23: 0 | FX23: 0 | FY23: 0 | FZ23: 0 | GA23: 0 | GB23: 0 | GC23: 0 | GD23: 0 | GE23: 0 | GF23: 0 | GG23: 0 | GH23: 0 | GI23: 0 | GJ23: 0
A24: 1 | D24: POLES | E24: > 1 kv & < = 11 kv; wood | F24: 4.0968571 | G24: 70.6195931 | H24: 8.40354646 | I24: 2 | J24: 125 | K24: 2101 | L24: 4054 | M24: 3366 | N24: 3270 | O24: 3843 | P24: 5315 | Q24: 7412 | R24: 6370 | S24: 5767 | T24: 5380 | U24: 4396 | V24: 4515 | W24: 4435 | X24: 4370 | Y24: 4002 | Z24: 4604 | AA24: 4913 | AB24: 5387 | AC24: 7017 | AD24: 5735 | AE24: 5245 | AF24: 5543 | AG24: 5169 | AH24: 4959 | AI24: 4346 | AJ24: 3131 | AK24: 4008 | AL24: 5078 | AM24: 5438.291942 | AN24: 5462.482038 | AO24: 4582.679289 | AP24: 6654.068246 | AQ24: 5306.590308 | AR24: 5338.843769 | AS24: 3422.450612 | AT24: 3995.845479 | AU24: 3838.161891 | AV24: 3622.242886 | AW24: 3186.821159 | AX24: 3641.057405 | AY24: 2246.095206 | AZ24: 2862.494688 | BA24: 3228.033915 | BB24: 3823.827019 | BC24: 3450.224426 | BD24: 3267.454812 | BE24: 2722.729689 | BF24: 2467.389787 | BG24: 3042.576513 | BH24: 3404.532023 | BI24: 3751.256731 | BJ24: 2150.230751 | BK24: 2087.515688 | BL24: 2109.017995 | BM24: 2093.787194 | BN24: 2023.904695 | BO24: 2099.162771 | BP24: 2099.162771 | BQ24: 2072.284887 | BR24: 2059.741874 | BS24: 2076.764534 | BT24: 2064.221521 | BU24: 2071.388957 | BV24: 2084.827899 | BW24: 0.8959294797 | BX24: 0 | BY24: 2.687788439 | BZ24: 0 | CA24: 0 | CB24: 0 | CC24: 0 | CD24: 0 | CE24: 0 | CF24: 0 | CG24: 0 | CH24: 0 | CI24: 0 | CJ24: 0 | CK24: 0 | CL24: 0 | CM24: 0 | CN24: 0 | CO24: 0 | CP24: 0 | CQ24: 0 | CR24: 0 | CS24: 0 | CT24: 0 | CU24: 0 | CV24: 0 | CX24: 512.1071375 | CY24: 8607.496767 | CZ24: 16608.65868 | DA24: 13790.021 | DB24: 13396.72272 | DC24: 15744.22184 | DD24: 21774.79549 | DE24: 30365.90483 | DF24: 26096.97973 | DG24: 23626.5749 | DH24: 22041.0912 | DI24: 18009.78381 | DJ24: 18497.30981 | DK24: 18169.56124 | DL24: 17903.26553 | DM24: 16395.62211 | DN24: 18861.93009 | DO24: 20127.85893 | DP24: 22069.7692 | DQ24: 28747.64627 | DR24: 23495.47547 | DS24: 21488.01549 | DT24: 22708.87891 | DU24: 21176.65435 | DV24: 20316.31436 | DW24: 17804.94096 | DX24: 12827.25958 | DY24: 16420.20326 | DZ24: 20803.84035 | EA24: 22279.90495 | EB24: 22379.00832 | EC24: 18774.58218 | ED24: 27260.76674 | EE24: 21740.34218 | EF24: 21872.48 | EG24: 14021.29109 | EH24: 16370.40792 | EI24: 15724.40079 | EJ24: 14839.81149 | EK24: 13055.95089 | EL24: 14916.89188 | EM24: 9201.93109 | EN24: 11727.23168 | EO24: 13224.79367 | EP24: 15665.67287 | EQ24: 14135.07644 | ER24: 13386.29545 | ES24: 11154.63446 | ET24: 10108.54337 | EU24: 12465.00119 | EV24: 13947.88119 | EW24: 15368.36277 | EX24: 8809.18812 | EY24: 8552.253466 | EZ24: 8640.345348 | FA24: 8577.946932 | FB24: 8291.648318 | FC24: 8599.969902 | FD24: 8599.969902 | FE24: 8489.855051 | FF24: 8438.46812 | FG24: 8508.207526 | FH24: 8456.820595 | FI24: 8486.184556 | FJ24: 8541.241981 | FK24: 3.67049505 | FL24: 0 | FM24: 11.01148515 | FN24: 0 | FO24: 0 | FP24: 0 | FQ24: 0 | FR24: 0 | FS24: 0 | FT24: 0 | FU24: 0 | FV24: 0 | FW24: 0 | FX24: 0 | FY24: 0 | FZ24: 0 | GA24: 0 | GB24: 0 | GC24: 0 | GD24: 0 | GE24: 0 | GF24: 0 | GG24: 0 | GH24: 0 | GI24: 0 | GJ24: 0
A25: 1 | D25: POLES | E25: ˃ 11 kv & < = 22 kv; wood | F25: 5.456895246 | G25: 63.50996647 | H25: 7.969314053 | I25: 2 | J25: 150 | K25: 1744 | L25: 3349 | M25: 2960 | N25: 2281 | O25: 3469 | P25: 3985 | Q25: 5254 | R25: 5172 | S25: 6306 | T25: 5757 | U25: 5312 | V25: 6263 | W25: 6245 | X25: 5893 | Y25: 5975 | Z25: 3842 | AA25: 3194 | AB25: 3408 | AC25: 4076 | AD25: 3916 | AE25: 4028 | AF25: 4197 | AG25: 5398 | AH25: 5995 | AI25: 8191 | AJ25: 7214 | AK25: 10218 | AL25: 13368 | AM25: 7844.758524 | AN25: 8514.913775 | AO25: 8031.111856 | AP25: 11906.00686 | AQ25: 12887.94557 | AR25: 7900.306152 | AS25: 3595.365002 | AT25: 2450.367127 | AU25: 4287.91849 | AV25: 4687.503038 | AW25: 8914.498323 | AX25: 8084.867625 | AY25: 3224.450197 | AZ25: 3577.446412 | BA25: 4899.838324 | BB25: 6418.438793 | BC25: 4549.529898 | BD25: 4240.434227 | BE25: 3539.817374 | BF25: 3779.030545 | BG25: 3938.505993 | BH25: 3248.640293 | BI25: 3019.282347 | BJ25: 1367.188386 | BK25: 1147.685663 | BL25: 991.793934 | BM25: 919.2236462 | BN25: 904.8887745 | BO25: 896.8254092 | BP25: 928.182941 | BQ25: 921.0155051 | BR25: 929.9747999 | BS25: 895.0335502 | BT25: 941.6218832 | BU25: 920.1195756 | BV25: 886.9701849 | BW25: 0 | BX25: 0 | BY25: 0 | BZ25: 0 | CA25: 0 | CB25: 0 | CC25: 0 | CD25: 0 | CE25: 0 | CF25: 0 | CG25: 0 | CH25: 0 | CI25: 0 | CJ25: 0 | CK25: 0 | CL25: 0 | CM25: 0 | CN25: 0 | CO25: 0 | CP25: 0 | CQ25: 0 | CR25: 0 | CS25: 0 | CT25: 0 | CU25: 0 | CV25: 0 | CX25: 818.5342869 | CY25: 9516.825309 | CZ25: 18275.14218 | DA25: 16152.40993 | DB25: 12447.17806 | DC25: 18929.96961 | DD25: 21745.72756 | DE25: 28670.52762 | DF25: 28223.06221 | DG25: 34411.18142 | DH25: 31415.34593 | DI25: 28987.02755 | DJ25: 34176.53493 | DK25: 34078.31081 | DL25: 32157.48369 | DM25: 32604.9491 | DN25: 20965.39154 | DO25: 17429.32342 | DP25: 18597.099 | DQ25: 22242.30502 | DR25: 21369.20178 | DS25: 21980.37405 | DT25: 22902.58935 | DU25: 29456.32054 | DV25: 32714.087 | DW25: 44697.42896 | DX25: 39366.04231 | DY25: 55758.55562 | DZ25: 72947.77565 | EA25: 42808.0255 | EB25: 46464.9925 | EC25: 43824.93611 | ED25: 64969.83221 | EE25: 70328.16889 | EF25: 43111.14308 | EG25: 19619.53019 | EH25: 13371.39673 | EI25: 23398.72202 | EJ25: 25579.21304 | EK25: 48645.48352 | EL25: 44118.27571 | EM25: 17595.48695 | EN25: 19521.75032 | EO25: 26737.90446 | EP25: 35024.74813 | EQ25: 24826.30807 | ER25: 23139.60538 | ES25: 19316.4126 | ET25: 20621.77382 | EU25: 21492.01463 | EV25: 17727.48977 | EW25: 16475.90748 | EX25: 7460.603804 | EY25: 6262.800441 | EZ25: 5412.115604 | FA25: 5016.107145 | FB25: 4937.883252 | FC25: 4893.882312 | FD25: 5064.997078 | FE25: 5025.885131 | FF25: 5074.775065 | FG25: 4884.104325 | FH25: 5138.331978 | FI25: 5020.996138 | FJ25: 4840.103385 | FK25: 0 | FL25: 0 | FM25: 0 | FN25: 0 | FO25: 0 | FP25: 0 | FQ25: 0 | FR25: 0 | FS25: 0 | FT25: 0 | FU25: 0 | FV25: 0 | FW25: 0 | FX25: 0 | FY25: 0 | FZ25: 0 | GA25: 0 | GB25: 0 | GC25: 0 | GD25: 0 | GE25: 0 | GF25: 0 | GG25: 0 | GH25: 0 | GI25: 0 | GJ25: 0
A26: 1 | D26: POLES | E26: > 22 kv & < = 66 kv; wood | F26: 8.221012496 | G26: 65.03434649 | H26: 8.064387546 | I26: 2 | J26: 3 | K26: 282 | L26: 467 | M26: 432 | N26: 336 | O26: 417 | P26: 389 | Q26: 802 | R26: 779 | S26: 763 | T26: 783 | U26: 917 | V26: 1059 | W26: 1176 | X26: 1363 | Y26: 806 | Z26: 903 | AA26: 682 | AB26: 504 | AC26: 724 | AD26: 966 | AE26: 576 | AF26: 771 | AG26: 952 | AH26: 960 | AI26: 657 | AJ26: 653 | AK26: 929 | AL26: 980 | AM26: 855.6126531 | AN26: 1327.767489 | AO26: 996.2735814 | AP26: 1434.383097 | AQ26: 886.0742554 | AR26: 779.4586473 | AS26: 559.9559248 | AT26: 495.4490023 | AU26: 650.4448023 | AV26: 996.2735814 | AW26: 842.1737109 | AX26: 522.3268867 | AY26: 1243.550118 | AZ26: 1029.422972 | BA26: 484.6978485 | BB26: 1301.785534 | BC26: 1122.599638 | BD26: 1789.171171 | BE26: 2046.302932 | BF26: 545.6210531 | BG26: 1733.623543 | BH26: 946.1015306 | BI26: 1515.91268 | BJ26: 228.4620173 | BK26: 463.195541 | BL26: 260.7154786 | BM26: 345.8287792 | BN26: 789.3138716 | BO26: 227.5660878 | BP26: 257.1317607 | BQ26: 382.5618878 | BR26: 307.3038115 | BS26: 561.7477838 | BT26: 320.7427537 | BU26: 272.3625618 | BV26: 450.6525283 | BW26: 40.31682659 | BX26: 55.54762774 | BY26: 50.17205086 | BZ26: 0 | CA26: 0 | CB26: 0 | CC26: 0 | CD26: 0 | CE26: 0 | CF26: 0 | CG26: 0 | CH26: 0 | CI26: 0 | CJ26: 0 | CK26: 0 | CL26: 0 | CM26: 0 | CN26: 0 | CO26: 0 | CP26: 0 | CQ26: 0 | CR26: 0 | CS26: 0 | CT26: 0 | CU26: 0 | CV26: 0 | CX26: 24.66303749 | CY26: 2318.325524 | CZ26: 3839.212835 | DA26: 3551.477398 | DB26: 2762.260199 | DC26: 3428.162211 | DD26: 3197.973861 | DE26: 6593.252021 | DF26: 6404.168734 | DG26: 6272.632534 | DH26: 6437.052784 | DI26: 7538.668458 | DJ26: 8706.052233 | DK26: 9667.910695 | DL26: 11205.24003 | DM26: 6626.136071 | DN26: 7423.574283 | DO26: 5606.730522 | DP26: 4143.390298 | DQ26: 5952.013047 | DR26: 7941.498071 | DS26: 4735.303197 | DT26: 6338.400634 | DU26: 7826.403896 | DV26: 7892.171996 | DW26: 5401.20521 | DX26: 5368.32116 | DY26: 7637.320608 | DZ26: 8056.592246 | EA26: 7034.002313 | EB26: 10915.59312 | EC26: 8190.377562 | ED26: 11792.08136 | EE26: 7284.427526 | EF26: 6407.93928 | EG26: 4603.404655 | EH26: 4073.092439 | EI26: 5347.314847 | EJ26: 8190.377562 | EK26: 6923.520601 | EL26: 4294.055862 | EM26: 10223.24106 | EN26: 8462.899117 | EO26: 3984.707069 | EP26: 10701.99514 | EQ26: 9228.905652 | ER26: 14708.79855 | ES26: 16822.68197 | ET26: 4485.557496 | EU26: 14252.14081 | EV26: 7777.912505 | EW26: 12462.33708 | EX26: 1878.189099 | EY26: 3807.93633 | EZ26: 2143.345207 | FA26: 2843.062715 | FB26: 6488.959201 | FC26: 1870.823652 | FD26: 2113.883417 | FE26: 3145.04606 | FF26: 2526.348475 | FG26: 4618.13555 | FH26: 2636.830186 | FI26: 2239.096024 | FJ26: 3704.820066 | FK26: 331.4451351 | FL26: 456.6577418 | FM26: 412.4650571 | FN26: 0 | FO26: 0 | FP26: 0 | FQ26: 0 | FR26: 0 | FS26: 0 | FT26: 0 | FU26: 0 | FV26: 0 | FW26: 0 | FX26: 0 | FY26: 0 | FZ26: 0 | GA26: 0 | GB26: 0 | GC26: 0 | GD26: 0 | GE26: 0 | GF26: 0 | GG26: 0 | GH26: 0 | GI26: 0 | GJ26: 0
A27: 1 | D27: POLES | E27: > 66 kv & < = 132 kv; wood | F27: 9.5042 | G27: 61.23787164 | H27: 7.82546303 | I27: 2 | J27: 0 | K27: 4 | L27: 3 | M27: 3 | N27: 35 | O27: 18 | P27: 18 | Q27: 46 | R27: 28 | S27: 13 | T27: 10 | U27: 19 | V27: 104 | W27: 44 | X27: 10 | Y27: 11 | Z27: 8 | AA27: 11 | AB27: 7 | AC27: 8 | AD27: 7 | AE27: 143 | AF27: 14 | AG27: 12 | AH27: 5 | AI27: 4 | AJ27: 5 | AK27: 13 | AL27: 5 | AM27: 19 | AN27: 11 | AO27: 6 | AP27: 206 | AQ27: 22 | AR27: 6 | AS27: 148 | AT27: 39 | AU27: 277 | AV27: 93 | AW27: 271 | AX27: 79 | AY27: 10 | AZ27: 7 | BA27: 271 | BB27: 79 | BC27: 473 | BD27: 633 | BE27: 14 | BF27: 929 | BG27: 146 | BH27: 3 | BI27: 5 | BJ27: 1 | BK27: 1 | BL27: 0 | BM27: 1 | BN27: 236 | BO27: 4 | BP27: 2 | BQ27: 4 | BR27: 0 | BS27: 3 | BT27: 3 | BU27: 3 | BV27: 2 | BW27: 0 | BX27: 0 | BY27: 0 | BZ27: 0 | CA27: 0 | CB27: 0 | CC27: 0 | CD27: 0 | CE27: 0 | CF27: 0 | CG27: 0 | CH27: 0 | CI27: 0 | CJ27: 0 | CK27: 0 | CL27: 0 | CM27: 0 | CN27: 0 | CO27: 0 | CP27: 0 | CQ27: 0 | CR27: 0 | CS27: 0 | CT27: 0 | CU27: 0 | CV27: 0 | CX27: 0 | CY27: 38.0168 | CZ27: 28.5126 | DA27: 28.5126 | DB27: 332.647 | DC27: 171.0756 | DD27: 171.0756 | DE27: 437.1932 | DF27: 266.1176 | DG27: 123.5546 | DH27: 95.042 | DI27: 180.5798 | DJ27: 988.4368 | DK27: 418.1848 | DL27: 95.042 | DM27: 104.5462 | DN27: 76.0336 | DO27: 104.5462 | DP27: 66.5294 | DQ27: 76.0336 | DR27: 66.5294 | DS27: 1359.1006 | DT27: 133.0588 | DU27: 114.0504 | DV27: 47.521 | DW27: 38.0168 | DX27: 47.521 | DY27: 123.5546 | DZ27: 47.521 | EA27: 180.5798 | EB27: 104.5462 | EC27: 57.0252 | ED27: 1957.8652 | EE27: 209.0924 | EF27: 57.0252 | EG27: 1406.6216 | EH27: 370.6638 | EI27: 2632.6634 | EJ27: 883.8906 | EK27: 2575.6382 | EL27: 750.8318 | EM27: 95.042 | EN27: 66.5294 | EO27: 2575.6382 | EP27: 750.8318 | EQ27: 4495.4866 | ER27: 6016.1586 | ES27: 133.0588 | ET27: 8829.4018 | EU27: 1387.6132 | EV27: 28.5126 | EW27: 47.521 | EX27: 9.5042 | EY27: 9.5042 | EZ27: 0 | FA27: 9.5042 | FB27: 2242.9912 | FC27: 38.0168 | FD27: 19.0084 | FE27: 38.0168 | FF27: 0 | FG27: 28.5126 | FH27: 28.5126 | FI27: 28.5126 | FJ27: 19.0084 | FK27: 0 | FL27: 0 | FM27: 0 | FN27: 0 | FO27: 0 | FP27: 0 | FQ27: 0 | FR27: 0 | FS27: 0 | FT27: 0 | FU27: 0 | FV27: 0 | FW27: 0 | FX27: 0 | FY27: 0 | FZ27: 0 | GA27: 0 | GB27: 0 | GC27: 0 | GD27: 0 | GE27: 0 | GF27: 0 | GG27: 0 | GH27: 0 | GI27: 0 | GJ27: 0
E28: > 132 kv; wood | F28: 0 | G28: 47.5 | H28: 6.892024376 | I28: 2 | J28: 0 | K28: 0 | L28: 0 | M28: 0 | N28: 0 | O28: 0 | P28: 0 | Q28: 0 | R28: 0 | S28: 0 | T28: 0 | U28: 0 | V28: 0 | W28: 0 | X28: 0 | Y28: 0 | Z28: 0 | AA28: 0 | AB28: 0 | AC28: 0 | AD28: 0 | AE28: 0 | AF28: 0 | AG28: 0 | AH28: 0 | AI28: 0 | AJ28: 0 | AK28: 0 | AL28: 0 | AM28: 0 | AN28: 0 | AO28: 0 | AP28: 0 | AQ28: 0 | AR28: 0 | AS28: 0 | AT28: 0 | AU28: 0 | AV28: 0 | AW28: 0 | AX28: 0 | AY28: 0 | AZ28: 0 | BA28: 0 | BB28: 0 | BC28: 0 | BD28: 0 | BE28: 0 | BF28: 0 | BG28: 0 | BH28: 0 | BI28: 0 | BJ28: 0 | BK28: 0 | BL28: 0 | BM28: 0 | BN28: 0 | BO28: 0 | BP28: 0 | BQ28: 0 | BR28: 0 | BS28: 0 | BT28: 0 | BU28: 0 | BV28: 0 | BW28: 0 | BX28: 0 | BY28: 0 | BZ28: 0 | CA28: 0 | CB28: 0 | CC28: 0 | CD28: 0 | CE28: 0 | CF28: 0 | CG28: 0 | CH28: 0 | CI28: 0 | CJ28: 0 | CK28: 0 | CL28: 0 | CM28: 0 | CN28: 0 | CO28: 0 | CP28: 0 | CQ28: 0 | CR28: 0 | CS28: 0 | CT28: 0 | CU28: 0 | CV28: 0 | CX28: 0 | CY28: 0 | CZ28: 0 | DA28: 0 | DB28: 0 | DC28: 0 | DD28: 0 | DE28: 0 | DF28: 0 | DG28: 0 | DH28: 0 | DI28: 0 | DJ28: 0 | DK28: 0 | DL28: 0 | DM28: 0 | DN28: 0 | DO28: 0 | DP28: 0 | DQ28: 0 | DR28: 0 | DS28: 0 | DT28: 0 | DU28: 0 | DV28: 0 | DW28: 0 | DX28: 0 | DY28: 0 | DZ28: 0 | EA28: 0 | EB28: 0 | EC28: 0 | ED28: 0 | EE28: 0 | EF28: 0 | EG28: 0 | EH28: 0 | EI28: 0 | EJ28: 0 | EK28: 0 | EL28: 0 | EM28: 0 | EN28: 0 | EO28: 0 | EP28: 0 | EQ28: 0 | ER28: 0 | ES28: 0 | ET28: 0 | EU28: 0 | EV28: 0 | EW28: 0 | EX28: 0 | EY28: 0 | EZ28: 0 | FA28: 0 | FB28: 0 | FC28: 0 | FD28: 0 | FE28: 0 | FF28: 0 | FG28: 0 | FH28: 0 | FI28: 0 | FJ28: 0 | FK28: 0 | FL28: 0 | FM28: 0 | FN28: 0 | FO28: 0 | FP28: 0 | FQ28: 0 | FR28: 0 | FS28: 0 | FT28: 0 | FU28: 0 | FV28: 0 | FW28: 0 | FX28: 0 | FY28: 0 | FZ28: 0 | GA28: 0 | GB28: 0 | GC28: 0 | GD28: 0 | GE28: 0 | GF28: 0 | GG28: 0 | GH28: 0 | GI28: 0 | GJ28: 0
A29: 1 | D29: POLES | E29: ˂ = 1 kv; concrete | F29: 9.6433 | G29: 46.68537118 | H29: 6.832669404 | I29: 2 | J29: 0 | K29: 35 | L29: 34 | M29: 49 | N29: 69 | O29: 66 | P29: 68 | Q29: 54 | R29: 101 | S29: 68 | T29: 53 | U29: 72 | V29: 147 | W29: 99 | X29: 179 | Y29: 123 | Z29: 81 | AA29: 108 | AB29: 99 | AC29: 181 | AD29: 170 | AE29: 102 | AF29: 188 | AG29: 55 | AH29: 106 | AI29: 189 | AJ29: 219 | AK29: 49 | AL29: 69 | AM29: 48 | AN29: 40 | AO29: 36 | AP29: 39 | AQ29: 36 | AR29: 32 | AS29: 2 | AT29: 7 | AU29: 7 | AV29: 4 | AW29: 2 | AX29: 4 | AY29: 4 | AZ29: 7 | BA29: 12 | BB29: 20 | BC29: 14 | BD29: 5 | BE29: 8 | BF29: 4 | BG29: 1 | BH29: 0 | BI29: 0 | BJ29: 0 | BK29: 0 | BL29: 0 | BM29: 0 | BN29: 0 | BO29: 0 | BP29: 0 | BQ29: 0 | BR29: 0 | BS29: 0 | BT29: 0 | BU29: 0 | BV29: 0 | BW29: 0 | BX29: 0 | BY29: 0 | BZ29: 0 | CA29: 0 | CB29: 0 | CC29: 0 | CD29: 0 | CE29: 0 | CF29: 0 | CG29: 0 | CH29: 0 | CI29: 0 | CJ29: 0 | CK29: 0 | CL29: 0 | CM29: 0 | CN29: 0 | CO29: 0 | CP29: 0 | CQ29: 0 | CR29: 0 | CS29: 0 | CT29: 0 | CU29: 0 | CV29: 0 | CX29: 0 | CY29: 337.5155 | CZ29: 327.8722 | DA29: 472.5217 | DB29: 665.3877 | DC29: 636.4578 | DD29: 655.7444 | DE29: 520.7382 | DF29: 973.9733 | DG29: 655.7444 | DH29: 511.0949 | DI29: 694.3176 | DJ29: 1417.5651 | DK29: 954.6867 | DL29: 1726.1507 | DM29: 1186.1259 | DN29: 781.1073 | DO29: 1041.4764 | DP29: 954.6867 | DQ29: 1745.4373 | DR29: 1639.361 | DS29: 983.6166 | DT29: 1812.9404 | DU29: 530.3815 | DV29: 1022.1898 | DW29: 1822.5837 | DX29: 2111.8827 | DY29: 472.5217 | DZ29: 665.3877 | EA29: 462.8784 | EB29: 385.732 | EC29: 347.1588 | ED29: 376.0887 | EE29: 347.1588 | EF29: 308.5856 | EG29: 19.2866 | EH29: 67.5031 | EI29: 67.5031 | EJ29: 38.5732 | EK29: 19.2866 | EL29: 38.5732 | EM29: 38.5732 | EN29: 67.5031 | EO29: 115.7196 | EP29: 192.866 | EQ29: 135.0062 | ER29: 48.2165 | ES29: 77.1464 | ET29: 38.5732 | EU29: 9.6433 | EV29: 0 | EW29: 0 | EX29: 0 | EY29: 0 | EZ29: 0 | FA29: 0 | FB29: 0 | FC29: 0 | FD29: 0 | FE29: 0 | FF29: 0 | FG29: 0 | FH29: 0 | FI29: 0 | FJ29: 0 | FK29: 0 | FL29: 0 | FM29: 0 | FN29: 0 | FO29: 0 | FP29: 0 | FQ29: 0 | FR29: 0 | FS29: 0 | FT29: 0 | FU29: 0 | FV29: 0 | FW29: 0 | FX29: 0 | FY29: 0 | FZ29: 0 | GA29: 0 | GB29: 0 | GC29: 0 | GD29: 0 | GE29: 0 | GF29: 0 | GG29: 0 | GH29: 0 | GI29: 0 | GJ29: 0
A30: 1 | D30: POLES | E30: > 1 kv & < = 11 kv; concrete | F30: 11.451 | G30: 48.86816162 | H30: 6.99057663 | I30: 2 | J30: 1 | K30: 0 | L30: 2 | M30: 6 | N30: 9 | O30: 0 | P30: 6 | Q30: 47 | R30: 155 | S30: 2 | T30: 4 | U30: 2 | V30: 8 | W30: 5 | X30: 119 | Y30: 19 | Z30: 241 | AA30: 5 | AB30: 16 | AC30: 16 | AD30: 31 | AE30: 36 | AF30: 81 | AG30: 43 | AH30: 24 | AI30: 30 | AJ30: 45 | AK30: 47 | AL30: 97 | AM30: 135 | AN30: 19 | AO30: 16 | AP30: 2 | AQ30: 0 | AR30: 4 | AS30: 2 | AT30: 2 | AU30: 1 | AV30: 2 | AW30: 2 | AX30: 2 | AY30: 0 | AZ30: 1 | BA30: 3 | BB30: 0 | BC30: 4 | BD30: 2 | BE30: 1 | BF30: 1 | BG30: 1 | BH30: 1 | BI30: 0 | BJ30: 0 | BK30: 0 | BL30: 0 | BM30: 0 | BN30: 0 | BO30: 0 | BP30: 0 | BQ30: 0 | BR30: 0 | BS30: 0 | BT30: 0 | BU30: 0 | BV30: 0 | BW30: 0 | BX30: 0 | BY30: 0 | BZ30: 0 | CA30: 0 | CB30: 0 | CC30: 0 | CD30: 0 | CE30: 0 | CF30: 0 | CG30: 0 | CH30: 0 | CI30: 0 | CJ30: 0 | CK30: 0 | CL30: 0 | CM30: 0 | CN30: 0 | CO30: 0 | CP30: 0 | CQ30: 0 | CR30: 0 | CS30: 0 | CT30: 0 | CU30: 0 | CV30: 0 | CX30: 11.451 | CY30: 0 | CZ30: 22.902 | DA30: 68.706 | DB30: 103.059 | DC30: 0 | DD30: 68.706 | DE30: 538.197 | DF30: 1774.905 | DG30: 22.902 | DH30: 45.804 | DI30: 22.902 | DJ30: 91.608 | DK30: 57.255 | DL30: 1362.669 | DM30: 217.569 | DN30: 2759.691 | DO30: 57.255 | DP30: 183.216 | DQ30: 183.216 | DR30: 354.981 | DS30: 412.236 | DT30: 927.531 | DU30: 492.393 | DV30: 274.824 | DW30: 343.53 | DX30: 515.295 | DY30: 538.197 | DZ30: 1110.747 | EA30: 1545.885 | EB30: 217.569 | EC30: 183.216 | ED30: 22.902 | EE30: 0 | EF30: 45.804 | EG30: 22.902 | EH30: 22.902 | EI30: 11.451 | EJ30: 22.902 | EK30: 22.902 | EL30: 22.902 | EM30: 0 | EN30: 11.451 | EO30: 34.353 | EP30: 0 | EQ30: 45.804 | ER30: 22.902 | ES30: 11.451 | ET30: 11.451 | EU30: 11.451 | EV30: 11.451 | EW30: 0 | EX30: 0 | EY30: 0 | EZ30: 0 | FA30: 0 | FB30: 0 | FC30: 0 | FD30: 0 | FE30: 0 | FF30: 0 | FG30: 0 | FH30: 0 | FI30: 0 | FJ30: 0 | FK30: 0 | FL30: 0 | FM30: 0 | FN30: 0 | FO30: 0 | FP30: 0 | FQ30: 0 | FR30: 0 | FS30: 0 | FT30: 0 | FU30: 0 | FV30: 0 | FW30: 0 | FX30: 0 | FY30: 0 | FZ30: 0 | GA30: 0 | GB30: 0 | GC30: 0 | GD30: 0 | GE30: 0 | GF30: 0 | GG30: 0 | GH30: 0 | GI30: 0 | GJ30: 0
A31: 1 | D31: POLES | E31: ˃ 11 kv & < = 22 kv; concrete | F31: 12.0464 | G31: 44.45196021 | H31: 6.667230326 | I31: 2 | J31: 0 | K31: 1 | L31: 2 | M31: 17 | N31: 5 | O31: 9 | P31: 5 | Q31: 2 | R31: 14 | S31: 19 | T31: 0 | U31: 0 | V31: 16 | W31: 5 | X31: 3373 | Y31: 2409 | Z31: 22 | AA31: 13 | AB31: 56 | AC31: 205 | AD31: 154 | AE31: 123 | AF31: 188 | AG31: 217 | AH31: 279 | AI31: 742 | AJ31: 118 | AK31: 31 | AL31: 71 | AM31: 69 | AN31: 6 | AO31: 4 | AP31: 2 | AQ31: 4 | AR31: 3 | AS31: 1 | AT31: 2 | AU31: 1 | AV31: 1 | AW31: 2 | AX31: 1 | AY31: 1 | AZ31: 2 | BA31: 0 | BB31: 0 | BC31: 2 | BD31: 1 | BE31: 0 | BF31: 2 | BG31: 1 | BH31: 0 | BI31: 0 | BJ31: 0 | BK31: 0 | BL31: 0 | BM31: 0 | BN31: 0 | BO31: 0 | BP31: 0 | BQ31: 0 | BR31: 0 | BS31: 0 | BT31: 0 | BU31: 0 | BV31: 0 | BW31: 0 | BX31: 0 | BY31: 0 | BZ31: 0 | CA31: 0 | CB31: 0 | CC31: 0 | CD31: 0 | CE31: 0 | CF31: 0 | CG31: 0 | CH31: 0 | CI31: 0 | CJ31: 0 | CK31: 0 | CL31: 0 | CM31: 0 | CN31: 0 | CO31: 0 | CP31: 0 | CQ31: 0 | CR31: 0 | CS31: 0 | CT31: 0 | CU31: 0 | CV31: 0 | CX31: 0 | CY31: 12.0464 | CZ31: 24.0928 | DA31: 204.7888 | DB31: 60.232 | DC31: 108.4176 | DD31: 60.232 | DE31: 24.0928 | DF31: 168.6496 | DG31: 228.8816 | DH31: 0 | DI31: 0 | DJ31: 192.7424 | DK31: 60.232 | DL31: 40632.5072 | DM31: 29019.7776 | DN31: 265.0208 | DO31: 156.6032 | DP31: 674.5984 | DQ31: 2469.512 | DR31: 1855.1456 | DS31: 1481.7072 | DT31: 2264.7232 | DU31: 2614.0688 | DV31: 3360.9456 | DW31: 8938.4288 | DX31: 1421.4752 | DY31: 373.4384 | DZ31: 855.2944 | EA31: 831.2016 | EB31: 72.2784 | EC31: 48.1856 | ED31: 24.0928 | EE31: 48.1856 | EF31: 36.1392 | EG31: 12.0464 | EH31: 24.0928 | EI31: 12.0464 | EJ31: 12.0464 | EK31: 24.0928 | EL31: 12.0464 | EM31: 12.0464 | EN31: 24.0928 | EO31: 0 | EP31: 0 | EQ31: 24.0928 | ER31: 12.0464 | ES31: 0 | ET31: 24.0928 | EU31: 12.0464 | EV31: 0 | EW31: 0 | EX31: 0 | EY31: 0 | EZ31: 0 | FA31: 0 | FB31: 0 | FC31: 0 | FD31: 0 | FE31: 0 | FF31: 0 | FG31: 0 | FH31: 0 | FI31: 0 | FJ31: 0 | FK31: 0 | FL31: 0 | FM31: 0 | FN31: 0 | FO31: 0 | FP31: 0 | FQ31: 0 | FR31: 0 | FS31: 0 | FT31: 0 | FU31: 0 | FV31: 0 | FW31: 0 | FX31: 0 | FY31: 0 | FZ31: 0 | GA31: 0 | GB31: 0 | GC31: 0 | GD31: 0 | GE31: 0 | GF31: 0 | GG31: 0 | GH31: 0 | GI31: 0 | GJ31: 0
A32: 1 | D32: POLES | E32: > 22 kv & < = 66 kv; concrete | F32: 20.1887 | G32: 43.63518228 | H32: 6.605693172 | I32: 2 | J32: 1 | K32: 6 | L32: 37 | M32: 35 | N32: 36 | O32: 95 | P32: 175 | Q32: 300 | R32: 252 | S32: 234 | T32: 366 | U32: 71 | V32: 327 | W32: 198 | X32: 444 | Y32: 878 | Z32: 319 | AA32: 945 | AB32: 253 | AC32: 437 | AD32: 130 | AE32: 106 | AF32: 50 | AG32: 149 | AH32: 1355 | AI32: 235 | AJ32: 478 | AK32: 1064 | AL32: 2239 | AM32: 1013 | AN32: 730 | AO32: 151 | AP32: 228 | AQ32: 6 | AR32: 8 | AS32: 0 | AT32: 4 | AU32: 2 | AV32: 3 | AW32: 0 | AX32: 1 | AY32: 0 | AZ32: 5 | BA32: 1 | BB32: 1 | BC32: 0 | BD32: 0 | BE32: 0 | BF32: 2 | BG32: 1 | BH32: 0 | BI32: 0 | BJ32: 0 | BK32: 0 | BL32: 0 | BM32: 0 | BN32: 0 | BO32: 0 | BP32: 0 | BQ32: 0 | BR32: 0 | BS32: 0 | BT32: 0 | BU32: 0 | BV32: 0 | BW32: 0 | BX32: 0 | BY32: 0 | BZ32: 0 | CA32: 0 | CB32: 0 | CC32: 0 | CD32: 0 | CE32: 0 | CF32: 0 | CG32: 0 | CH32: 0 | CI32: 0 | CJ32: 0 | CK32: 0 | CL32: 0 | CM32: 0 | CN32: 0 | CO32: 0 | CP32: 0 | CQ32: 0 | CR32: 0 | CS32: 0 | CT32: 0 | CU32: 0 | CV32: 0 | CX32: 20.1887 | CY32: 121.1322 | CZ32: 746.9819 | DA32: 706.6045 | DB32: 726.7932 | DC32: 1917.9265 | DD32: 3533.0225 | DE32: 6056.61 | DF32: 5087.5524 | DG32: 4724.1558 | DH32: 7389.0642 | DI32: 1433.3977 | DJ32: 6601.7049 | DK32: 3997.3626 | DL32: 8963.7828 | DM32: 17725.6786 | DN32: 6440.1953 | DO32: 19078.3215 | DP32: 5107.7411 | DQ32: 8822.4619 | DR32: 2624.531 | DS32: 2140.0022 | DT32: 1009.435 | DU32: 3008.1163 | DV32: 27355.6885 | DW32: 4744.3445 | DX32: 9650.1986 | DY32: 21480.7768 | DZ32: 45202.4993 | EA32: 20451.1531 | EB32: 14737.751 | EC32: 3048.4937 | ED32: 4603.0236 | EE32: 121.1322 | EF32: 161.5096 | EG32: 0 | EH32: 80.7548 | EI32: 40.3774 | EJ32: 60.5661 | EK32: 0 | EL32: 20.1887 | EM32: 0 | EN32: 100.9435 | EO32: 20.1887 | EP32: 20.1887 | EQ32: 0 | ER32: 0 | ES32: 0 | ET32: 40.3774 | EU32: 20.1887 | EV32: 0 | EW32: 0 | EX32: 0 | EY32: 0 | EZ32: 0 | FA32: 0 | FB32: 0 | FC32: 0 | FD32: 0 | FE32: 0 | FF32: 0 | FG32: 0 | FH32: 0 | FI32: 0 | FJ32: 0 | FK32: 0 | FL32: 0 | FM32: 0 | FN32: 0 | FO32: 0 | FP32: 0 | FQ32: 0 | FR32: 0 | FS32: 0 | FT32: 0 | FU32: 0 | FV32: 0 | FW32: 0 | FX32: 0 | FY32: 0 | FZ32: 0 | GA32: 0 | GB32: 0 | GC32: 0 | GD32: 0 | GE32: 0 | GF32: 0 | GG32: 0 | GH32: 0 | GI32: 0 | GJ32: 0
A33: 1 | D33: POLES | E33: > 66 kv & < = 132 kv; concrete | F33: 14.4174 | G33: 38.67900718 | H33: 6.219244905 | I33: 2 | J33: 0 | K33: 9 | L33: 11 | M33: 12 | N33: 33 | O33: 55 | P33: 260 | Q33: 82 | R33: 142 | S33: 254 | T33: 475 | U33: 138 | V33: 448 | W33: 11 | X33: 15 | Y33: 14 | Z33: 13 | AA33: 11 | AB33: 37 | AC33: 81 | AD33: 42 | AE33: 12 | AF33: 23 | AG33: 13 | AH33: 297 | AI33: 16 | AJ33: 30 | AK33: 896 | AL33: 13 | AM33: 757 | AN33: 623 | AO33: 11 | AP33: 9 | AQ33: 10 | AR33: 9 | AS33: 0 | AT33: 0 | AU33: 0 | AV33: 0 | AW33: 0 | AX33: 0 | AY33: 0 | AZ33: 0 | BA33: 0 | BB33: 0 | BC33: 0 | BD33: 0 | BE33: 0 | BF33: 0 | BG33: 0 | BH33: 0 | BI33: 0 | BJ33: 0 | BK33: 0 | BL33: 0 | BM33: 0 | BN33: 0 | BO33: 0 | BP33: 0 | BQ33: 0 | BR33: 0 | BS33: 0 | BT33: 0 | BU33: 0 | BV33: 0 | BW33: 0 | BX33: 0 | BY33: 0 | BZ33: 0 | CA33: 0 | CB33: 0 | CC33: 0 | CD33: 0 | CE33: 0 | CF33: 0 | CG33: 0 | CH33: 0 | CI33: 0 | CJ33: 0 | CK33: 0 | CL33: 0 | CM33: 0 | CN33: 0 | CO33: 0 | CP33: 0 | CQ33: 0 | CR33: 0 | CS33: 0 | CT33: 0 | CU33: 0 | CV33: 0 | CX33: 0 | CY33: 129.7566 | CZ33: 158.5914 | DA33: 173.0088 | DB33: 475.7742 | DC33: 792.957 | DD33: 3748.524 | DE33: 1182.2268 | DF33: 2047.2708 | DG33: 3662.0196 | DH33: 6848.265 | DI33: 1989.6012 | DJ33: 6458.9952 | DK33: 158.5914 | DL33: 216.261 | DM33: 201.8436 | DN33: 187.4262 | DO33: 158.5914 | DP33: 533.4438 | DQ33: 1167.8094 | DR33: 605.5308 | DS33: 173.0088 | DT33: 331.6002 | DU33: 187.4262 | DV33: 4281.9678 | DW33: 230.6784 | DX33: 432.522 | DY33: 12917.9904 | DZ33: 187.4262 | EA33: 10913.9718 | EB33: 8982.0402 | EC33: 158.5914 | ED33: 129.7566 | EE33: 144.174 | EF33: 129.7566 | EG33: 0 | EH33: 0 | EI33: 0 | EJ33: 0 | EK33: 0 | EL33: 0 | EM33: 0 | EN33: 0 | EO33: 0 | EP33: 0 | EQ33: 0 | ER33: 0 | ES33: 0 | ET33: 0 | EU33: 0 | EV33: 0 | EW33: 0 | EX33: 0 | EY33: 0 | EZ33: 0 | FA33: 0 | FB33: 0 | FC33: 0 | FD33: 0 | FE33: 0 | FF33: 0 | FG33: 0 | FH33: 0 | FI33: 0 | FJ33: 0 | FK33: 0 | FL33: 0 | FM33: 0 | FN33: 0 | FO33: 0 | FP33: 0 | FQ33: 0 | FR33: 0 | FS33: 0 | FT33: 0 | FU33: 0 | FV33: 0 | FW33: 0 | FX33: 0 | FY33: 0 | FZ33: 0 | GA33: 0 | GB33: 0 | GC33: 0 | GD33: 0 | GE33: 0 | GF33: 0 | GG33: 0 | GH33: 0 | GI33: 0 | GJ33: 0
E34: > 132 kv; concrete | F34: 0 | G34: 56.9 | H34: 7.543208866 | I34: 2 | J34: 0 | K34: 0 | L34: 0 | M34: 0 | N34: 0 | O34: 0 | P34: 0 | Q34: 0 | R34: 0 | S34: 0 | T34: 0 | U34: 0 | V34: 0 | W34: 0 | X34: 0 | Y34: 0 | Z34: 0 | AA34: 0 | AB34: 0 | AC34: 0 | AD34: 0 | AE34: 0 | AF34: 0 | AG34: 0 | AH34: 0 | AI34: 0 | AJ34: 0 | AK34: 0 | AL34: 0 | AM34: 0 | AN34: 0 | AO34: 0 | AP34: 0 | AQ34: 0 | AR34: 0 | AS34: 0 | AT34: 0 | AU34: 0 | AV34: 0 | AW34: 0 | AX34: 0 | AY34: 0 | AZ34: 0 | BA34: 0 | BB34: 0 | BC34: 0 | BD34: 0 | BE34: 0 | BF34: 0 | BG34: 0 | BH34: 0 | BI34: 0 | BJ34: 0 | BK34: 0 | BL34: 0 | BM34: 0 | BN34: 0 | BO34: 0 | BP34: 0 | BQ34: 0 | BR34: 0 | BS34: 0 | BT34: 0 | BU34: 0 | BV34: 0 | BW34: 0 | BX34: 0 | BY34: 0 | BZ34: 0 | CA34: 0 | CB34: 0 | CC34: 0 | CD34: 0 | CE34: 0 | CF34: 0 | CG34: 0 | CH34: 0 | CI34: 0 | CJ34: 0 | CK34: 0 | CL34: 0 | CM34: 0 | CN34: 0 | CO34: 0 | CP34: 0 | CQ34: 0 | CR34: 0 | CS34: 0 | CT34: 0 | CU34: 0 | CV34: 0 | CX34: 0 | CY34: 0 | CZ34: 0 | DA34: 0 | DB34: 0 | DC34: 0 | DD34: 0 | DE34: 0 | DF34: 0 | DG34: 0 | DH34: 0 | DI34: 0 | DJ34: 0 | DK34: 0 | DL34: 0 | DM34: 0 | DN34: 0 | DO34: 0 | DP34: 0 | DQ34: 0 | DR34: 0 | DS34: 0 | DT34: 0 | DU34: 0 | DV34: 0 | DW34: 0 | DX34: 0 | DY34: 0 | DZ34: 0 | EA34: 0 | EB34: 0 | EC34: 0 | ED34: 0 | EE34: 0 | EF34: 0 | EG34: 0 | EH34: 0 | EI34: 0 | EJ34: 0 | EK34: 0 | EL34: 0 | EM34: 0 | EN34: 0 | EO34: 0 | EP34: 0 | EQ34: 0 | ER34: 0 | ES34: 0 | ET34: 0 | EU34: 0 | EV34: 0 | EW34: 0 | EX34: 0 | EY34: 0 | EZ34: 0 | FA34: 0 | FB34: 0 | FC34: 0 | FD34: 0 | FE34: 0 | FF34: 0 | FG34: 0 | FH34: 0 | FI34: 0 | FJ34: 0 | FK34: 0 | FL34: 0 | FM34: 0 | FN34: 0 | FO34: 0 | FP34: 0 | FQ34: 0 | FR34: 0 | FS34: 0 | FT34: 0 | FU34: 0 | FV34: 0 | FW34: 0 | FX34: 0 | FY34: 0 | FZ34: 0 | GA34: 0 | GB34: 0 | GC34: 0 | GD34: 0 | GE34: 0 | GF34: 0 | GG34: 0 | GH34: 0 | GI34: 0 | GJ34: 0
A35: 1 | D35: POLES | E35: ˂ = 1 kv; steel | F35: 8.3532 | G35: 45.56550809 | H35: 6.750222818 | I35: 2 | J35: 183 | K35: 2157 | L35: 2618 | M35: 2669 | N35: 2568 | O35: 3276 | P35: 5391 | Q35: 4738 | R35: 5092 | S35: 3709 | T35: 3471 | U35: 2545 | V35: 2058 | W35: 2235 | X35: 1943 | Y35: 2026 | Z35: 2137 | AA35: 2040 | AB35: 2074 | AC35: 1804 | AD35: 1551 | AE35: 1518 | AF35: 1492 | AG35: 1426 | AH35: 1441 | AI35: 46 | AJ35: 48 | AK35: 27 | AL35: 60 | AM35: 50 | AN35: 56 | AO35: 39 | AP35: 41 | AQ35: 59 | AR35: 44 | AS35: 45 | AT35: 47 | AU35: 37 | AV35: 36 | AW35: 43 | AX35: 42 | AY35: 31 | AZ35: 40 | BA35: 42 | BB35: 59 | BC35: 48 | BD35: 47 | BE35: 18 | BF35: 21 | BG35: 19 | BH35: 21 | BI35: 13 | BJ35: 5 | BK35: 0 | BL35: 0 | BM35: 0 | BN35: 1 | BO35: 0 | BP35: 0 | BQ35: 0 | BR35: 0 | BS35: 0 | BT35: 0 | BU35: 0 | BV35: 0 | BW35: 0 | BX35: 0 | BY35: 0 | BZ35: 0 | CA35: 0 | CB35: 0 | CC35: 0 | CD35: 0 | CE35: 0 | CF35: 0 | CG35: 0 | CH35: 0 | CI35: 0 | CJ35: 0 | CK35: 0 | CL35: 0 | CM35: 0 | CN35: 0 | CO35: 0 | CP35: 0 | CQ35: 0 | CR35: 0 | CS35: 0 | CT35: 0 | CU35: 0 | CV35: 0 | CX35: 1528.6356 | CY35: 18017.8524 | CZ35: 21868.6776 | DA35: 22294.6908 | DB35: 21451.0176 | DC35: 27365.0832 | DD35: 45032.1012 | DE35: 39577.4616 | DF35: 42534.4944 | DG35: 30982.0188 | DH35: 28993.9572 | DI35: 21258.894 | DJ35: 17190.8856 | DK35: 18669.402 | DL35: 16230.2676 | DM35: 16923.5832 | DN35: 17850.7884 | DO35: 17040.528 | DP35: 17324.5368 | DQ35: 15069.1728 | DR35: 12955.8132 | DS35: 12680.1576 | DT35: 12462.9744 | DU35: 11911.6632 | DV35: 12036.9612 | DW35: 384.2472 | DX35: 400.9536 | DY35: 225.5364 | DZ35: 501.192 | EA35: 417.66 | EB35: 467.7792 | EC35: 325.7748 | ED35: 342.4812 | EE35: 492.8388 | EF35: 367.5408 | EG35: 375.894 | EH35: 392.6004 | EI35: 309.0684 | EJ35: 300.7152 | EK35: 359.1876 | EL35: 350.8344 | EM35: 258.9492 | EN35: 334.128 | EO35: 350.8344 | EP35: 492.8388 | EQ35: 400.9536 | ER35: 392.6004 | ES35: 150.3576 | ET35: 175.4172 | EU35: 158.7108 | EV35: 175.4172 | EW35: 108.5916 | EX35: 41.766 | EY35: 0 | EZ35: 0 | FA35: 0 | FB35: 8.3532 | FC35: 0 | FD35: 0 | FE35: 0 | FF35: 0 | FG35: 0 | FH35: 0 | FI35: 0 | FJ35: 0 | FK35: 0 | FL35: 0 | FM35: 0 | FN35: 0 | FO35: 0 | FP35: 0 | FQ35: 0 | FR35: 0 | FS35: 0 | FT35: 0 | FU35: 0 | FV35: 0 | FW35: 0 | FX35: 0 | FY35: 0 | FZ35: 0 | GA35: 0 | GB35: 0 | GC35: 0 | GD35: 0 | GE35: 0 | GF35: 0 | GG35: 0 | GH35: 0 | GI35: 0 | GJ35: 0
A36: 1 | D36: POLES | E36: > 1 kv & < = 11 kv; steel | F36: 8.5021 | G36: 39.12798294 | H36: 6.255236441 | I36: 2 | J36: 2 | K36: 25 | L36: 36 | M36: 32 | N36: 26 | O36: 36 | P36: 44 | Q36: 74 | R36: 86 | S36: 33 | T36: 59 | U36: 39 | V36: 24 | W36: 39 | X36: 58 | Y36: 47 | Z36: 51 | AA36: 35 | AB36: 48 | AC36: 53 | AD36: 38 | AE36: 49 | AF36: 36 | AG36: 31 | AH36: 23 | AI36: 30 | AJ36: 21 | AK36: 12 | AL36: 14 | AM36: 13 | AN36: 9 | AO36: 7 | AP36: 19 | AQ36: 14 | AR36: 16 | AS36: 7 | AT36: 7 | AU36: 4 | AV36: 8 | AW36: 11 | AX36: 23 | AY36: 13 | AZ36: 13 | BA36: 20 | BB36: 23 | BC36: 14 | BD36: 14 | BE36: 8 | BF36: 5 | BG36: 9 | BH36: 3 | BI36: 0 | BJ36: 0 | BK36: 0 | BL36: 0 | BM36: 0 | BN36: 0 | BO36: 0 | BP36: 0 | BQ36: 0 | BR36: 0 | BS36: 0 | BT36: 0 | BU36: 0 | BV36: 0 | BW36: 0 | BX36: 0 | BY36: 0 | BZ36: 0 | CA36: 0 | CB36: 0 | CC36: 0 | CD36: 0 | CE36: 0 | CF36: 0 | CG36: 0 | CH36: 0 | CI36: 0 | CJ36: 0 | CK36: 0 | CL36: 0 | CM36: 0 | CN36: 0 | CO36: 0 | CP36: 0 | CQ36: 0 | CR36: 0 | CS36: 0 | CT36: 0 | CU36: 0 | CV36: 0 | CX36: 17.0042 | CY36: 212.5525 | CZ36: 306.0756 | DA36: 272.0672 | DB36: 221.0546 | DC36: 306.0756 | DD36: 374.0924 | DE36: 629.1554 | DF36: 731.1806 | DG36: 280.5693 | DH36: 501.6239 | DI36: 331.5819 | DJ36: 204.0504 | DK36: 331.5819 | DL36: 493.1218 | DM36: 399.5987 | DN36: 433.6071 | DO36: 297.5735 | DP36: 408.1008 | DQ36: 450.6113 | DR36: 323.0798 | DS36: 416.6029 | DT36: 306.0756 | DU36: 263.5651 | DV36: 195.5483 | DW36: 255.063 | DX36: 178.5441 | DY36: 102.0252 | DZ36: 119.0294 | EA36: 110.5273 | EB36: 76.5189 | EC36: 59.5147 | ED36: 161.5399 | EE36: 119.0294 | EF36: 136.0336 | EG36: 59.5147 | EH36: 59.5147 | EI36: 34.0084 | EJ36: 68.0168 | EK36: 93.5231 | EL36: 195.5483 | EM36: 110.5273 | EN36: 110.5273 | EO36: 170.042 | EP36: 195.5483 | EQ36: 119.0294 | ER36: 119.0294 | ES36: 68.0168 | ET36: 42.5105 | EU36: 76.5189 | EV36: 25.5063 | EW36: 0 | EX36: 0 | EY36: 0 | EZ36: 0 | FA36: 0 | FB36: 0 | FC36: 0 | FD36: 0 | FE36: 0 | FF36: 0 | FG36: 0 | FH36: 0 | FI36: 0 | FJ36: 0 | FK36: 0 | FL36: 0 | FM36: 0 | FN36: 0 | FO36: 0 | FP36: 0 | FQ36: 0 | FR36: 0 | FS36: 0 | FT36: 0 | FU36: 0 | FV36: 0 | FW36: 0 | FX36: 0 | FY36: 0 | FZ36: 0 | GA36: 0 | GB36: 0 | GC36: 0 | GD36: 0 | GE36: 0 | GF36: 0 | GG36: 0 | GH36: 0 | GI36: 0 | GJ36: 0
A37: 1 | D37: POLES | E37: ˃ 11 kv & < = 22 kv; steel | F37: 9.2244 | G37: 17.80820018 | H37: 4.219976325 | I37: 2 | J37: 0 | K37: 1 | L37: 12 | M37: 6 | N37: 3 | O37: 5 | P37: 47 | Q37: 4 | R37: 1 | S37: 2 | T37: 13 | U37: 4 | V37: 4 | W37: 2 | X37: 3 | Y37: 3 | Z37: 0 | AA37: 6 | AB37: 6 | AC37: 2 | AD37: 2 | AE37: 2 | AF37: 0 | AG37: 1 | AH37: 2 | AI37: 4 | AJ37: 6 | AK37: 2 | AL37: 1 | AM37: 1 | AN37: 1 | AO37: 0 | AP37: 2 | AQ37: 2 | AR37: 1 | AS37: 1 | AT37: 1 | AU37: 0 | AV37: 4 | AW37: 3 | AX37: 0 | AY37: 2 | AZ37: 4 | BA37: 0 | BB37: 2 | BC37: 0 | BD37: 1 | BE37: 0 | BF37: 0 | BG37: 1 | BH37: 0 | BI37: 0 | BJ37: 0 | BK37: 0 | BL37: 0 | BM37: 0 | BN37: 0 | BO37: 0 | BP37: 0 | BQ37: 0 | BR37: 0 | BS37: 0 | BT37: 0 | BU37: 0 | BV37: 0 | BW37: 0 | BX37: 0 | BY37: 0 | BZ37: 0 | CA37: 0 | CB37: 0 | CC37: 0 | CD37: 0 | CE37: 0 | CF37: 0 | CG37: 0 | CH37: 0 | CI37: 0 | CJ37: 0 | CK37: 0 | CL37: 0 | CM37: 0 | CN37: 0 | CO37: 0 | CP37: 0 | CQ37: 0 | CR37: 0 | CS37: 0 | CT37: 0 | CU37: 0 | CV37: 0 | CX37: 0 | CY37: 9.2244 | CZ37: 110.6928 | DA37: 55.3464 | DB37: 27.6732 | DC37: 46.122 | DD37: 433.5468 | DE37: 36.8976 | DF37: 9.2244 | DG37: 18.4488 | DH37: 119.9172 | DI37: 36.8976 | DJ37: 36.8976 | DK37: 18.4488 | DL37: 27.6732 | DM37: 27.6732 | DN37: 0 | DO37: 55.3464 | DP37: 55.3464 | DQ37: 18.4488 | DR37: 18.4488 | DS37: 18.4488 | DT37: 0 | DU37: 9.2244 | DV37: 18.4488 | DW37: 36.8976 | DX37: 55.3464 | DY37: 18.4488 | DZ37: 9.2244 | EA37: 9.2244 | EB37: 9.2244 | EC37: 0 | ED37: 18.4488 | EE37: 18.4488 | EF37: 9.2244 | EG37: 9.2244 | EH37: 9.2244 | EI37: 0 | EJ37: 36.8976 | EK37: 27.6732 | EL37: 0 | EM37: 18.4488 | EN37: 36.8976 | EO37: 0 | EP37: 18.4488 | EQ37: 0 | ER37: 9.2244 | ES37: 0 | ET37: 0 | EU37: 9.2244 | EV37: 0 | EW37: 0 | EX37: 0 | EY37: 0 | EZ37: 0 | FA37: 0 | FB37: 0 | FC37: 0 | FD37: 0 | FE37: 0 | FF37: 0 | FG37: 0 | FH37: 0 | FI37: 0 | FJ37: 0 | FK37: 0 | FL37: 0 | FM37: 0 | FN37: 0 | FO37: 0 | FP37: 0 | FQ37: 0 | FR37: 0 | FS37: 0 | FT37: 0 | FU37: 0 | FV37: 0 | FW37: 0 | FX37: 0 | FY37: 0 | FZ37: 0 | GA37: 0 | GB37: 0 | GC37: 0 | GD37: 0 | GE37: 0 | GF37: 0 | GG37: 0 | GH37: 0 | GI37: 0 | GJ37: 0
A38: 1 | D38: POLES | E38: > 22 kv & < = 66 kv; steel | F38: 19.8345 | G38: 10.31213953 | H38: 3.211252019 | I38: 2 | J38: 1 | K38: 30 | L38: 29 | M38: 35 | N38: 32 | O38: 30 | P38: 34 | Q38: 36 | R38: 34 | S38: 35 | T38: 56 | U38: 35 | V38: 36 | W38: 31 | X38: 38 | Y38: 27 | Z38: 37 | AA38: 30 | AB38: 25 | AC38: 23 | AD38: 25 | AE38: 28 | AF38: 29 | AG38: 26 | AH38: 28 | AI38: 2 | AJ38: 0 | AK38: 0 | AL38: 4 | AM38: 5 | AN38: 2 | AO38: 1 | AP38: 2 | AQ38: 3 | AR38: 4 | AS38: 0 | AT38: 2 | AU38: 0 | AV38: 1 | AW38: 0 | AX38: 0 | AY38: 2 | AZ38: 52 | BA38: 0 | BB38: 1 | BC38: 72 | BD38: 2 | BE38: 0 | BF38: 0 | BG38: 0 | BH38: 2 | BI38: 0 | BJ38: 0 | BK38: 0 | BL38: 0 | BM38: 0 | BN38: 617 | BO38: 468 | BP38: 0 | BQ38: 0 | BR38: 0 | BS38: 0 | BT38: 0 | BU38: 0 | BV38: 49 | BW38: 0 | BX38: 0 | BY38: 0 | BZ38: 0 | CA38: 0 | CB38: 0 | CC38: 0 | CD38: 0 | CE38: 0 | CF38: 0 | CG38: 0 | CH38: 0 | CI38: 0 | CJ38: 0 | CK38: 0 | CL38: 0 | CM38: 0 | CN38: 0 | CO38: 0 | CP38: 0 | CQ38: 0 | CR38: 0 | CS38: 0 | CT38: 0 | CU38: 0 | CV38: 0 | CX38: 19.8345 | CY38: 595.035 | CZ38: 575.2005 | DA38: 694.2075 | DB38: 634.704 | DC38: 595.035 | DD38: 674.373 | DE38: 714.042 | DF38: 674.373 | DG38: 694.2075 | DH38: 1110.732 | DI38: 694.2075 | DJ38: 714.042 | DK38: 614.8695 | DL38: 753.711 | DM38: 535.5315 | DN38: 733.8765 | DO38: 595.035 | DP38: 495.8625 | DQ38: 456.1935 | DR38: 495.8625 | DS38: 555.366 | DT38: 575.2005 | DU38: 515.697 | DV38: 555.366 | DW38: 39.669 | DX38: 0 | DY38: 0 | DZ38: 79.338 | EA38: 99.1725 | EB38: 39.669 | EC38: 19.8345 | ED38: 39.669 | EE38: 59.5035 | EF38: 79.338 | EG38: 0 | EH38: 39.669 | EI38: 0 | EJ38: 19.8345 | EK38: 0 | EL38: 0 | EM38: 39.669 | EN38: 1031.394 | EO38: 0 | EP38: 19.8345 | EQ38: 1428.084 | ER38: 39.669 | ES38: 0 | ET38: 0 | EU38: 0 | EV38: 39.669 | EW38: 0 | EX38: 0 | EY38: 0 | EZ38: 0 | FA38: 0 | FB38: 12237.8865 | FC38: 9282.546 | FD38: 0 | FE38: 0 | FF38: 0 | FG38: 0 | FH38: 0 | FI38: 0 | FJ38: 971.8905 | FK38: 0 | FL38: 0 | FM38: 0 | FN38: 0 | FO38: 0 | FP38: 0 | FQ38: 0 | FR38: 0 | FS38: 0 | FT38: 0 | FU38: 0 | FV38: 0 | FW38: 0 | FX38: 0 | FY38: 0 | FZ38: 0 | GA38: 0 | GB38: 0 | GC38: 0 | GD38: 0 | GE38: 0 | GF38: 0 | GG38: 0 | GH38: 0 | GI38: 0 | GJ38: 0
A39: 1 | D39: POLES | E39: > 66 kv & < = 132 kv; steel | F39: 15.0808 | G39: 92.06183048 | H39: 9.594885642 | I39: 2 | J39: 0 | K39: 4 | L39: 2 | M39: 1 | N39: 1 | O39: 3 | P39: 3 | Q39: 1 | R39: 1 | S39: 2 | T39: 3 | U39: 3 | V39: 1 | W39: 0 | X39: 1 | Y39: 1 | Z39: 2 | AA39: 1 | AB39: 155 | AC39: 17 | AD39: 4 | AE39: 4 | AF39: 5 | AG39: 6 | AH39: 3 | AI39: 6 | AJ39: 0 | AK39: 1 | AL39: 284 | AM39: 0 | AN39: 0 | AO39: 24 | AP39: 197 | AQ39: 0 | AR39: 2 | AS39: 1 | AT39: 0 | AU39: 0 | AV39: 0 | AW39: 0 | AX39: 0 | AY39: 0 | AZ39: 17 | BA39: 0 | BB39: 0 | BC39: 0 | BD39: 0 | BE39: 0 | BF39: 0 | BG39: 48 | BH39: 0 | BI39: 0 | BJ39: 0 | BK39: 0 | BL39: 0 | BM39: 0 | BN39: 0 | BO39: 0 | BP39: 0 | BQ39: 0 | BR39: 0 | BS39: 0 | BT39: 0 | BU39: 0 | BV39: 0 | BW39: 0 | BX39: 0 | BY39: 0 | BZ39: 0 | CA39: 0 | CB39: 0 | CC39: 0 | CD39: 0 | CE39: 0 | CF39: 0 | CG39: 0 | CH39: 0 | CI39: 0 | CJ39: 0 | CK39: 0 | CL39: 0 | CM39: 0 | CN39: 0 | CO39: 0 | CP39: 0 | CQ39: 0 | CR39: 0 | CS39: 0 | CT39: 0 | CU39: 0 | CV39: 0 | CX39: 0 | CY39: 60.3232 | CZ39: 30.1616 | DA39: 15.0808 | DB39: 15.0808 | DC39: 45.2424 | DD39: 45.2424 | DE39: 15.0808 | DF39: 15.0808 | DG39: 30.1616 | DH39: 45.2424 | DI39: 45.2424 | DJ39: 15.0808 | DK39: 0 | DL39: 15.0808 | DM39: 15.0808 | DN39: 30.1616 | DO39: 15.0808 | DP39: 2337.524 | DQ39: 256.3736 | DR39: 60.3232 | DS39: 60.3232 | DT39: 75.404 | DU39: 90.4848 | DV39: 45.2424 | DW39: 90.4848 | DX39: 0 | DY39: 15.0808 | DZ39: 4282.9472 | EA39: 0 | EB39: 0 | EC39: 361.9392 | ED39: 2970.9176 | EE39: 0 | EF39: 30.1616 | EG39: 15.0808 | EH39: 0 | EI39: 0 | EJ39: 0 | EK39: 0 | EL39: 0 | EM39: 0 | EN39: 256.3736 | EO39: 0 | EP39: 0 | EQ39: 0 | ER39: 0 | ES39: 0 | ET39: 0 | EU39: 723.8784 | EV39: 0 | EW39: 0 | EX39: 0 | EY39: 0 | EZ39: 0 | FA39: 0 | FB39: 0 | FC39: 0 | FD39: 0 | FE39: 0 | FF39: 0 | FG39: 0 | FH39: 0 | FI39: 0 | FJ39: 0 | FK39: 0 | FL39: 0 | FM39: 0 | FN39: 0 | FO39: 0 | FP39: 0 | FQ39: 0 | FR39: 0 | FS39: 0 | FT39: 0 | FU39: 0 | FV39: 0 | FW39: 0 | FX39: 0 | FY39: 0 | FZ39: 0 | GA39: 0 | GB39: 0 | GC39: 0 | GD39: 0 | GE39: 0 | GF39: 0 | GG39: 0 | GH39: 0 | GI39: 0 | GJ39: 0
E40: > 132 kv; steel | F40: 0 | G40: 57.1 | H40: 7.556454195 | I40: 2 | J40: 0 | K40: 0 | L40: 0 | M40: 0 | N40: 0 | O40: 0 | P40: 0 | Q40: 0 | R40: 0 | S40: 0 | T40: 0 | U40: 0 | V40: 0 | W40: 0 | X40: 0 | Y40: 0 | Z40: 0 | AA40: 0 | AB40: 0 | AC40: 0 | AD40: 0 | AE40: 0 | AF40: 0 | AG40: 0 | AH40: 0 | AI40: 0 | AJ40: 0 | AK40: 0 | AL40: 0 | AM40: 0 | AN40: 0 | AO40: 0 | AP40: 0 | AQ40: 0 | AR40: 0 | AS40: 0 | AT40: 0 | AU40: 0 | AV40: 0 | AW40: 0 | AX40: 0 | AY40: 0 | AZ40: 0 | BA40: 0 | BB40: 0 | BC40: 0 | BD40: 0 | BE40: 0 | BF40: 0 | BG40: 0 | BH40: 0 | BI40: 0 | BJ40: 0 | BK40: 0 | BL40: 0 | BM40: 0 | BN40: 0 | BO40: 0 | BP40: 0 | BQ40: 0 | BR40: 0 | BS40: 0 | BT40: 0 | BU40: 0 | BV40: 0 | BW40: 0 | BX40: 0 | BY40: 0 | BZ40: 0 | CA40: 0 | CB40: 0 | CC40: 0 | CD40: 0 | CE40: 0 | CF40: 0 | CG40: 0 | CH40: 0 | CI40: 0 | CJ40: 0 | CK40: 0 | CL40: 0 | CM40: 0 | CN40: 0 | CO40: 0 | CP40: 0 | CQ40: 0 | CR40: 0 | CS40: 0 | CT40: 0 | CU40: 0 | CV40: 0 | CX40: 0 | CY40: 0 | CZ40: 0 | DA40: 0 | DB40: 0 | DC40: 0 | DD40: 0 | DE40: 0 | DF40: 0 | DG40: 0 | DH40: 0 | DI40: 0 | DJ40: 0 | DK40: 0 | DL40: 0 | DM40: 0 | DN40: 0 | DO40: 0 | DP40: 0 | DQ40: 0 | DR40: 0 | DS40: 0 | DT40: 0 | DU40: 0 | DV40: 0 | DW40: 0 | DX40: 0 | DY40: 0 | DZ40: 0 | EA40: 0 | EB40: 0 | EC40: 0 | ED40: 0 | EE40: 0 | EF40: 0 | EG40: 0 | EH40: 0 | EI40: 0 | EJ40: 0 | EK40: 0 | EL40: 0 | EM40: 0 | EN40: 0 | EO40: 0 | EP40: 0 | EQ40: 0 | ER40: 0 | ES40: 0 | ET40: 0 | EU40: 0 | EV40: 0 | EW40: 0 | EX40: 0 | EY40: 0 | EZ40: 0 | FA40: 0 | FB40: 0 | FC40: 0 | FD40: 0 | FE40: 0 | FF40: 0 | FG40: 0 | FH40: 0 | FI40: 0 | FJ40: 0 | FK40: 0 | FL40: 0 | FM40: 0 | FN40: 0 | FO40: 0 | FP40: 0 | FQ40: 0 | FR40: 0 | FS40: 0 | FT40: 0 | FU40: 0 | FV40: 0 | FW40: 0 | FX40: 0 | FY40: 0 | FZ40: 0 | GA40: 0 | GB40: 0 | GC40: 0 | GD40: 0 | GE40: 0 | GF40: 0 | GG40: 0 | GH40: 0 | GI40: 0 | GJ40: 0
E41: other | F41: 0 | G41: 0 | H41: 0 | I41: 2 | J41: 0 | K41: 0 | L41: 0 | M41: 0 | N41: 0 | O41: 0 | P41: 0 | Q41: 0 | R41: 0 | S41: 0 | T41: 0 | U41: 0 | V41: 0 | W41: 0 | X41: 0 | Y41: 0 | Z41: 0 | AA41: 0 | AB41: 0 | AC41: 0 | AD41: 0 | AE41: 0 | AF41: 0 | AG41: 0 | AH41: 0 | AI41: 0 | AJ41: 0 | AK41: 0 | AL41: 0 | AM41: 0 | AN41: 0 | AO41: 0 | AP41: 0 | AQ41: 0 | AR41: 0 | AS41: 0 | AT41: 0 | AU41: 0 | AV41: 0 | AW41: 0 | AX41: 0 | AY41: 0 | AZ41: 0 | BA41: 0 | BB41: 0 | BC41: 0 | BD41: 0 | BE41: 0 | BF41: 0 | BG41: 0 | BH41: 0 | BI41: 0 | BJ41: 0 | BK41: 0 | BL41: 0 | BM41: 0 | BN41: 0 | BO41: 0 | BP41: 0 | BQ41: 0 | BR41: 0 | BS41: 0 | BT41: 0 | BU41: 0 | BV41: 0 | BW41: 0 | BX41: 0 | BY41: 0 | BZ41: 0 | CA41: 0 | CB41: 0 | CC41: 0 | CD41: 0 | CE41: 0 | CF41: 0 | CG41: 0 | CH41: 0 | CI41: 0 | CJ41: 0 | CK41: 0 | CL41: 0 | CM41: 0 | CN41: 0 | CO41: 0 | CP41: 0 | CQ41: 0 | CR41: 0 | CS41: 0 | CT41: 0 | CU41: 0 | CV41: 0 | CX41: 0 | CY41: 0 | CZ41: 0 | DA41: 0 | DB41: 0 | DC41: 0 | DD41: 0 | DE41: 0 | DF41: 0 | DG41: 0 | DH41: 0 | DI41: 0 | DJ41: 0 | DK41: 0 | DL41: 0 | DM41: 0 | DN41: 0 | DO41: 0 | DP41: 0 | DQ41: 0 | DR41: 0 | DS41: 0 | DT41: 0 | DU41: 0 | DV41: 0 | DW41: 0 | DX41: 0 | DY41: 0 | DZ41: 0 | EA41: 0 | EB41: 0 | EC41: 0 | ED41: 0 | EE41: 0 | EF41: 0 | EG41: 0 | EH41: 0 | EI41: 0 | EJ41: 0 | EK41: 0 | EL41: 0 | EM41: 0 | EN41: 0 | EO41: 0 | EP41: 0 | EQ41: 0 | ER41: 0 | ES41: 0 | ET41: 0 | EU41: 0 | EV41: 0 | EW41: 0 | EX41: 0 | EY41: 0 | EZ41: 0 | FA41: 0 | FB41: 0 | FC41: 0 | FD41: 0 | FE41: 0 | FF41: 0 | FG41: 0 | FH41: 0 | FI41: 0 | FJ41: 0 | FK41: 0 | FL41: 0 | FM41: 0 | FN41: 0 | FO41: 0 | FP41: 0 | FQ41: 0 | FR41: 0 | FS41: 0 | FT41: 0 | FU41: 0 | FV41: 0 | FW41: 0 | FX41: 0 | FY41: 0 | FZ41: 0 | GA41: 0 | GB41: 0 | GC41: 0 | GD41: 0 | GE41: 0 | GF41: 0 | GG41: 0 | GH41: 0 | GI41: 0 | GJ41: 0
E42: ˂ = 1 kv | F42: 0 | G42: 36 | H42: 6 | I42: 2 | J42: 2526 | K42: 6801 | L42: 8026 | M42: 6787 | N42: 7217 | O42: 7864 | P42: 6906 | Q42: 10254 | R42: 11484 | S42: 11778 | T42: 10435 | U42: 8428 | V42: 6284 | W42: 5952 | X42: 5832 | Y42: 5387 | Z42: 5686 | AA42: 5598 | AB42: 6288 | AC42: 7340 | AD42: 6680 | AE42: 6324 | AF42: 7447 | AG42: 6725 | AH42: 7117 | AI42: 6783 | AJ42: 5221 | AK42: 4964 | AL42: 7062 | AM42: 8511 | AN42: 7931 | AO42: 6606 | AP42: 9193 | AQ42: 7454 | AR42: 6871 | AS42: 5022 | AT42: 6228 | AU42: 6263 | AV42: 5838 | AW42: 5517 | AX42: 5739 | AY42: 4496 | AZ42: 4906 | BA42: 5097 | BB42: 5556 | BC42: 4953 | BD42: 4241 | BE42: 3520 | BF42: 3146 | BG42: 3144 | BH42: 2542 | BI42: 3552 | BJ42: 1961 | BK42: 1953 | BL42: 1992 | BM42: 1894 | BN42: 1955 | BO42: 1855 | BP42: 1850 | BQ42: 1949 | BR42: 1898 | BS42: 1881 | BT42: 1841 | BU42: 1909 | BV42: 1879 | BW42: 6 | BX42: 1 | BY42: 44 | BZ42: 0 | CA42: 0 | CB42: 0 | CC42: 0 | CD42: 0 | CE42: 0 | CF42: 0 | CG42: 0 | CH42: 0 | CI42: 0 | CJ42: 0 | CK42: 0 | CL42: 0 | CM42: 0 | CN42: 0 | CO42: 0 | CP42: 0 | CQ42: 0 | CR42: 0 | CS42: 0 | CT42: 0 | CU42: 0 | CV42: 0 | CX42: 0 | CY42: 0 | CZ42: 0 | DA42: 0 | DB42: 0 | DC42: 0 | DD42: 0 | DE42: 0 | DF42: 0 | DG42: 0 | DH42: 0 | DI42: 0 | DJ42: 0 | DK42: 0 | DL42: 0 | DM42: 0 | DN42: 0 | DO42: 0 | DP42: 0 | DQ42: 0 | DR42: 0 | DS42: 0 | DT42: 0 | DU42: 0 | DV42: 0 | DW42: 0 | DX42: 0 | DY42: 0 | DZ42: 0 | EA42: 0 | EB42: 0 | EC42: 0 | ED42: 0 | EE42: 0 | EF42: 0 | EG42: 0 | EH42: 0 | EI42: 0 | EJ42: 0 | EK42: 0 | EL42: 0 | EM42: 0 | EN42: 0 | EO42: 0 | EP42: 0 | EQ42: 0 | ER42: 0 | ES42: 0 | ET42: 0 | EU42: 0 | EV42: 0 | EW42: 0 | EX42: 0 | EY42: 0 | EZ42: 0 | FA42: 0 | FB42: 0 | FC42: 0 | FD42: 0 | FE42: 0 | FF42: 0 | FG42: 0 | FH42: 0 | FI42: 0 | FJ42: 0 | FK42: 0 | FL42: 0 | FM42: 0 | FN42: 0 | FO42: 0 | FP42: 0 | FQ42: 0 | FR42: 0 | FS42: 0 | FT42: 0 | FU42: 0 | FV42: 0 | FW42: 0 | FX42: 0 | FY42: 0 | FZ42: 0 | GA42: 0 | GB42: 0 | GC42: 0 | GD42: 0 | GE42: 0 | GF42: 0 | GG42: 0 | GH42: 0 | GI42: 0 | GJ42: 0
E43: > 1 kv & < = 11 kv | F43: 0 | G43: 36 | H43: 6 | I43: 2 | J43: 2540 | K43: 6533 | L43: 10743 | M43: 8545 | N43: 9578 | O43: 8781 | P43: 11627 | Q43: 15410 | R43: 13583 | S43: 11328 | T43: 10065 | U43: 10009 | V43: 6513 | W43: 6682 | X43: 6682 | Y43: 5870 | Z43: 7048 | AA43: 7087 | AB43: 8048 | AC43: 10127 | AD43: 8307 | AE43: 7623 | AF43: 8088 | AG43: 7593 | AH43: 7207 | AI43: 6159 | AJ43: 4426 | AK43: 5580 | AL43: 7158 | AM43: 8283 | AN43: 8350 | AO43: 6916 | AP43: 9937 | AQ43: 7720 | AR43: 7814 | AS43: 4960 | AT43: 5598 | AU43: 5484 | AV43: 4915 | AW43: 4462 | AX43: 4859 | AY43: 3275 | AZ43: 4415 | BA43: 4308 | BB43: 4787 | BC43: 4373 | BD43: 3645 | BE43: 4552 | BF43: 3220 | BG43: 4929 | BH43: 3548 | BI43: 3875 | BJ43: 1993 | BK43: 1967 | BL43: 1950 | BM43: 2023 | BN43: 2002 | BO43: 1943 | BP43: 2010 | BQ43: 1936 | BR43: 1908 | BS43: 2205 | BT43: 1905 | BU43: 1985 | BV43: 1972 | BW43: 2 | BX43: 34 | BY43: 65 | BZ43: 0 | CA43: 0 | CB43: 0 | CC43: 0 | CD43: 0 | CE43: 0 | CF43: 0 | CG43: 0 | CH43: 0 | CI43: 0 | CJ43: 0 | CK43: 0 | CL43: 0 | CM43: 0 | CN43: 0 | CO43: 0 | CP43: 0 | CQ43: 0 | CR43: 0 | CS43: 0 | CT43: 0 | CU43: 0 | CV43: 0 | CX43: 0 | CY43: 0 | CZ43: 0 | DA43: 0 | DB43: 0 | DC43: 0 | DD43: 0 | DE43: 0 | DF43: 0 | DG43: 0 | DH43: 0 | DI43: 0 | DJ43: 0 | DK43: 0 | DL43: 0 | DM43: 0 | DN43: 0 | DO43: 0 | DP43: 0 | DQ43: 0 | DR43: 0 | DS43: 0 | DT43: 0 | DU43: 0 | DV43: 0 | DW43: 0 | DX43: 0 | DY43: 0 | DZ43: 0 | EA43: 0 | EB43: 0 | EC43: 0 | ED43: 0 | EE43: 0 | EF43: 0 | EG43: 0 | EH43: 0 | EI43: 0 | EJ43: 0 | EK43: 0 | EL43: 0 | EM43: 0 | EN43: 0 | EO43: 0 | EP43: 0 | EQ43: 0 | ER43: 0 | ES43: 0 | ET43: 0 | EU43: 0 | EV43: 0 | EW43: 0 | EX43: 0 | EY43: 0 | EZ43: 0 | FA43: 0 | FB43: 0 | FC43: 0 | FD43: 0 | FE43: 0 | FF43: 0 | FG43: 0 | FH43: 0 | FI43: 0 | FJ43: 0 | FK43: 0 | FL43: 0 | FM43: 0 | FN43: 0 | FO43: 0 | FP43: 0 | FQ43: 0 | FR43: 0 | FS43: 0 | FT43: 0 | FU43: 0 | FV43: 0 | FW43: 0 | FX43: 0 | FY43: 0 | FZ43: 0 | GA43: 0 | GB43: 0 | GC43: 0 | GD43: 0 | GE43: 0 | GF43: 0 | GG43: 0 | GH43: 0 | GI43: 0 | GJ43: 0
E44: ˃ 11 kv & < = 22 kv | F44: 0 | G44: 36 | H44: 6 | I44: 2 | J44: 1203 | K44: 4643 | L44: 6125 | M44: 5049 | N44: 4180 | O44: 5955 | P44: 6324 | Q44: 8098 | R44: 8626 | S44: 9145 | T44: 7779 | U44: 6675 | V44: 6902 | W44: 6922 | X44: 10016 | Y44: 9482 | Z44: 4400 | AA44: 3720 | AB44: 4017 | AC44: 4876 | AD44: 4578 | AE44: 4555 | AF44: 4712 | AG44: 6112 | AH44: 6753 | AI44: 9399 | AJ44: 7721 | AK44: 10469 | AL44: 13641 | AM44: 8909 | AN44: 9643 | AO44: 9172 | AP44: 13412 | AQ44: 14394 | AR44: 8897 | AS44: 3873 | AT44: 2718 | AU44: 4610 | AV44: 4966 | AW44: 9659 | AX44: 8752 | AY44: 3360 | AZ44: 3756 | BA44: 5237 | BB44: 6888 | BC44: 4814 | BD44: 4321 | BE44: 3786 | BF44: 3987 | BG44: 4277 | BH44: 3569 | BI44: 3161 | BJ44: 1350 | BK44: 1155 | BL44: 997 | BM44: 938 | BN44: 900 | BO44: 876 | BP44: 947 | BQ44: 942 | BR44: 948 | BS44: 912 | BT44: 976 | BU44: 977 | BV44: 977 | BW44: 0 | BX44: 0 | BY44: 0 | BZ44: 0 | CA44: 0 | CB44: 0 | CC44: 0 | CD44: 0 | CE44: 0 | CF44: 0 | CG44: 0 | CH44: 0 | CI44: 0 | CJ44: 0 | CK44: 0 | CL44: 0 | CM44: 0 | CN44: 0 | CO44: 0 | CP44: 0 | CQ44: 0 | CR44: 0 | CS44: 0 | CT44: 0 | CU44: 0 | CV44: 0 | CX44: 0 | CY44: 0 | CZ44: 0 | DA44: 0 | DB44: 0 | DC44: 0 | DD44: 0 | DE44: 0 | DF44: 0 | DG44: 0 | DH44: 0 | DI44: 0 | DJ44: 0 | DK44: 0 | DL44: 0 | DM44: 0 | DN44: 0 | DO44: 0 | DP44: 0 | DQ44: 0 | DR44: 0 | DS44: 0 | DT44: 0 | DU44: 0 | DV44: 0 | DW44: 0 | DX44: 0 | DY44: 0 | DZ44: 0 | EA44: 0 | EB44: 0 | EC44: 0 | ED44: 0 | EE44: 0 | EF44: 0 | EG44: 0 | EH44: 0 | EI44: 0 | EJ44: 0 | EK44: 0 | EL44: 0 | EM44: 0 | EN44: 0 | EO44: 0 | EP44: 0 | EQ44: 0 | ER44: 0 | ES44: 0 | ET44: 0 | EU44: 0 | EV44: 0 | EW44: 0 | EX44: 0 | EY44: 0 | EZ44: 0 | FA44: 0 | FB44: 0 | FC44: 0 | FD44: 0 | FE44: 0 | FF44: 0 | FG44: 0 | FH44: 0 | FI44: 0 | FJ44: 0 | FK44: 0 | FL44: 0 | FM44: 0 | FN44: 0 | FO44: 0 | FP44: 0 | FQ44: 0 | FR44: 0 | FS44: 0 | FT44: 0 | FU44: 0 | FV44: 0 | FW44: 0 | FX44: 0 | FY44: 0 | FZ44: 0 | GA44: 0 | GB44: 0 | GC44: 0 | GD44: 0 | GE44: 0 | GF44: 0 | GG44: 0 | GH44: 0 | GI44: 0 | GJ44: 0
E45: > 22 kv & < = 66 kv | F45: 0 | G45: 36 | H45: 6 | I45: 2 | J45: 268 | K45: 1078 | L45: 857 | M45: 993 | N45: 1060 | O45: 728 | P45: 837 | Q45: 1504 | R45: 1421 | S45: 1008 | T45: 1796 | U45: 1261 | V45: 1336 | W45: 946 | X45: 2101 | Y45: 3015 | Z45: 1402 | AA45: 2409 | AB45: 771 | AC45: 1830 | AD45: 1193 | AE45: 888 | AF45: 719 | AG45: 710 | AH45: 4105 | AI45: 1131 | AJ45: 1812 | AK45: 3122 | AL45: 3641 | AM45: 1303 | AN45: 1547 | AO45: 906 | AP45: 2357 | AQ45: 973 | AR45: 816 | AS45: 722 | AT45: 642 | AU45: 803 | AV45: 1634 | AW45: 1201 | AX45: 743 | AY45: 2063 | AZ45: 869 | BA45: 570 | BB45: 1762 | BC45: 1446 | BD45: 933 | BE45: 1043 | BF45: 278 | BG45: 927 | BH45: 550 | BI45: 1628 | BJ45: 97 | BK45: 97 | BL45: 121 | BM45: 175 | BN45: 1810 | BO45: 1489 | BP45: 196 | BQ45: 340 | BR45: 261 | BS45: 488 | BT45: 278 | BU45: 176 | BV45: 581 | BW45: 64 | BX45: 74 | BY45: 0 | BZ45: 0 | CA45: 0 | CB45: 0 | CC45: 0 | CD45: 0 | CE45: 0 | CF45: 0 | CG45: 0 | CH45: 0 | CI45: 0 | CJ45: 0 | CK45: 0 | CL45: 0 | CM45: 0 | CN45: 0 | CO45: 0 | CP45: 0 | CQ45: 0 | CR45: 0 | CS45: 0 | CT45: 0 | CU45: 0 | CV45: 0 | CX45: 0 | CY45: 0 | CZ45: 0 | DA45: 0 | DB45: 0 | DC45: 0 | DD45: 0 | DE45: 0 | DF45: 0 | DG45: 0 | DH45: 0 | DI45: 0 | DJ45: 0 | DK45: 0 | DL45: 0 | DM45: 0 | DN45: 0 | DO45: 0 | DP45: 0 | DQ45: 0 | DR45: 0 | DS45: 0 | DT45: 0 | DU45: 0 | DV45: 0 | DW45: 0 | DX45: 0 | DY45: 0 | DZ45: 0 | EA45: 0 | EB45: 0 | EC45: 0 | ED45: 0 | EE45: 0 | EF45: 0 | EG45: 0 | EH45: 0 | EI45: 0 | EJ45: 0 | EK45: 0 | EL45: 0 | EM45: 0 | EN45: 0 | EO45: 0 | EP45: 0 | EQ45: 0 | ER45: 0 | ES45: 0 | ET45: 0 | EU45: 0 | EV45: 0 | EW45: 0 | EX45: 0 | EY45: 0 | EZ45: 0 | FA45: 0 | FB45: 0 | FC45: 0 | FD45: 0 | FE45: 0 | FF45: 0 | FG45: 0 | FH45: 0 | FI45: 0 | FJ45: 0 | FK45: 0 | FL45: 0 | FM45: 0 | FN45: 0 | FO45: 0 | FP45: 0 | FQ45: 0 | FR45: 0 | FS45: 0 | FT45: 0 | FU45: 0 | FV45: 0 | FW45: 0 | FX45: 0 | FY45: 0 | FZ45: 0 | GA45: 0 | GB45: 0 | GC45: 0 | GD45: 0 | GE45: 0 | GF45: 0 | GG45: 0 | GH45: 0 | GI45: 0 | GJ45: 0
E46: > 66 kv & < = 132 kv | F46: 0 | G46: 36 | H46: 6 | I46: 2 | J46: 22 | K46: 92 | L46: 175 | M46: 121 | N46: 438 | O46: 222 | P46: 717 | Q46: 383 | R46: 456 | S46: 756 | T46: 1388 | U46: 408 | V46: 1453 | W46: 116 | X46: 60 | Y46: 51 | Z46: 55 | AA46: 51 | AB46: 1289 | AC46: 146 | AD46: 93 | AE46: 344 | AF46: 80 | AG46: 89 | AH46: 899 | AI46: 62 | AJ46: 83 | AK46: 2244 | AL46: 886 | AM46: 2194 | AN46: 1819 | AO46: 162 | AP46: 1294 | AQ46: 71 | AR46: 38 | AS46: 293 | AT46: 76 | AU46: 276 | AV46: 94 | AW46: 561 | AX46: 140 | AY46: 16 | AZ46: 63 | BA46: 683 | BB46: 159 | BC46: 609 | BD46: 740 | BE46: 19 | BF46: 1257 | BG46: 214 | BH46: 2 | BI46: 3 | BJ46: 0 | BK46: 1 | BL46: 0 | BM46: 1 | BN46: 281 | BO46: 5 | BP46: 3 | BQ46: 3 | BR46: 0 | BS46: 4 | BT46: 3 | BU46: 2 | BV46: 0 | BW46: 0 | BX46: 0 | BY46: 0 | BZ46: 0 | CA46: 0 | CB46: 0 | CC46: 0 | CD46: 0 | CE46: 0 | CF46: 0 | CG46: 0 | CH46: 0 | CI46: 0 | CJ46: 0 | CK46: 0 | CL46: 0 | CM46: 0 | CN46: 0 | CO46: 0 | CP46: 0 | CQ46: 0 | CR46: 0 | CS46: 0 | CT46: 0 | CU46: 0 | CV46: 0 | CX46: 0 | CY46: 0 | CZ46: 0 | DA46: 0 | DB46: 0 | DC46: 0 | DD46: 0 | DE46: 0 | DF46: 0 | DG46: 0 | DH46: 0 | DI46: 0 | DJ46: 0 | DK46: 0 | DL46: 0 | DM46: 0 | DN46: 0 | DO46: 0 | DP46: 0 | DQ46: 0 | DR46: 0 | DS46: 0 | DT46: 0 | DU46: 0 | DV46: 0 | DW46: 0 | DX46: 0 | DY46: 0 | DZ46: 0 | EA46: 0 | EB46: 0 | EC46: 0 | ED46: 0 | EE46: 0 | EF46: 0 | EG46: 0 | EH46: 0 | EI46: 0 | EJ46: 0 | EK46: 0 | EL46: 0 | EM46: 0 | EN46: 0 | EO46: 0 | EP46: 0 | EQ46: 0 | ER46: 0 | ES46: 0 | ET46: 0 | EU46: 0 | EV46: 0 | EW46: 0 | EX46: 0 | EY46: 0 | EZ46: 0 | FA46: 0 | FB46: 0 | FC46: 0 | FD46: 0 | FE46: 0 | FF46: 0 | FG46: 0 | FH46: 0 | FI46: 0 | FJ46: 0 | FK46: 0 | FL46: 0 | FM46: 0 | FN46: 0 | FO46: 0 | FP46: 0 | FQ46: 0 | FR46: 0 | FS46: 0 | FT46: 0 | FU46: 0 | FV46: 0 | FW46: 0 | FX46: 0 | FY46: 0 | FZ46: 0 | GA46: 0 | GB46: 0 | GC46: 0 | GD46: 0 | GE46: 0 | GF46: 0 | GG46: 0 | GH46: 0 | GI46: 0 | GJ46: 0
E47: > 132 kv | F47: 0 | G47: 36 | H47: 6 | I47: 2 | J47: 0 | K47: 0 | L47: 0 | M47: 0 | N47: 0 | O47: 0 | P47: 0 | Q47: 0 | R47: 0 | S47: 0 | T47: 0 | U47: 0 | V47: 0 | W47: 0 | X47: 0 | Y47: 0 | Z47: 0 | AA47: 0 | AB47: 0 | AC47: 0 | AD47: 0 | AE47: 0 | AF47: 0 | AG47: 0 | AH47: 0 | AI47: 0 | AJ47: 0 | AK47: 0 | AL47: 0 | AM47: 0 | AN47: 0 | AO47: 0 | AP47: 0 | AQ47: 0 | AR47: 0 | AS47: 0 | AT47: 0 | AU47: 0 | AV47: 0 | AW47: 0 | AX47: 0 | AY47: 0 | AZ47: 0 | BA47: 0 | BB47: 0 | BC47: 0 | BD47: 0 | BE47: 0 | BF47: 0 | BG47: 0 | BH47: 0 | BI47: 0 | BJ47: 0 | BK47: 0 | BL47: 0 | BM47: 0 | BN47: 0 | BO47: 0 | BP47: 0 | BQ47: 0 | BR47: 0 | BS47: 0 | BT47: 0 | BU47: 0 | BV47: 0 | BW47: 0 | BX47: 0 | BY47: 0 | BZ47: 0 | CA47: 0 | CB47: 0 | CC47: 0 | CD47: 0 | CE47: 0 | CF47: 0 | CG47: 0 | CH47: 0 | CI47: 0 | CJ47: 0 | CK47: 0 | CL47: 0 | CM47: 0 | CN47: 0 | CO47: 0 | CP47: 0 | CQ47: 0 | CR47: 0 | CS47: 0 | CT47: 0 | CU47: 0 | CV47: 0 | CX47: 0 | CY47: 0 | CZ47: 0 | DA47: 0 | DB47: 0 | DC47: 0 | DD47: 0 | DE47: 0 | DF47: 0 | DG47: 0 | DH47: 0 | DI47: 0 | DJ47: 0 | DK47: 0 | DL47: 0 | DM47: 0 | DN47: 0 | DO47: 0 | DP47: 0 | DQ47: 0 | DR47: 0 | DS47: 0 | DT47: 0 | DU47: 0 | DV47: 0 | DW47: 0 | DX47: 0 | DY47: 0 | DZ47: 0 | EA47: 0 | EB47: 0 | EC47: 0 | ED47: 0 | EE47: 0 | EF47: 0 | EG47: 0 | EH47: 0 | EI47: 0 | EJ47: 0 | EK47: 0 | EL47: 0 | EM47: 0 | EN47: 0 | EO47: 0 | EP47: 0 | EQ47: 0 | ER47: 0 | ES47: 0 | ET47: 0 | EU47: 0 | EV47: 0 | EW47: 0 | EX47: 0 | EY47: 0 | EZ47: 0 | FA47: 0 | FB47: 0 | FC47: 0 | FD47: 0 | FE47: 0 | FF47: 0 | FG47: 0 | FH47: 0 | FI47: 0 | FJ47: 0 | FK47: 0 | FL47: 0 | FM47: 0 | FN47: 0 | FO47: 0 | FP47: 0 | FQ47: 0 | FR47: 0 | FS47: 0 | FT47: 0 | FU47: 0 | FV47: 0 | FW47: 0 | FX47: 0 | FY47: 0 | FZ47: 0 | GA47: 0 | GB47: 0 | GC47: 0 | GD47: 0 | GE47: 0 | GF47: 0 | GG47: 0 | GH47: 0 | GI47: 0 | GJ47: 0
E48: other | F48: 0 | G48: 0 | H48: 0 | I48: 2 | J48: 0 | K48: 0 | L48: 0 | M48: 0 | N48: 0 | O48: 0 | P48: 0 | Q48: 0 | R48: 0 | S48: 0 | T48: 0 | U48: 0 | V48: 0 | W48: 0 | X48: 0 | Y48: 0 | Z48: 0 | AA48: 0 | AB48: 0 | AC48: 0 | AD48: 0 | AE48: 0 | AF48: 0 | AG48: 0 | AH48: 0 | AI48: 0 | AJ48: 0 | AK48: 0 | AL48: 0 | AM48: 0 | AN48: 0 | AO48: 0 | AP48: 0 | AQ48: 0 | AR48: 0 | AS48: 0 | AT48: 0 | AU48: 0 | AV48: 0 | AW48: 0 | AX48: 0 | AY48: 0 | AZ48: 0 | BA48: 0 | BB48: 0 | BC48: 0 | BD48: 0 | BE48: 0 | BF48: 0 | BG48: 0 | BH48: 0 | BI48: 0 | BJ48: 0 | BK48: 0 | BL48: 0 | BM48: 0 | BN48: 0 | BO48: 0 | BP48: 0 | BQ48: 0 | BR48: 0 | BS48: 0 | BT48: 0 | BU48: 0 | BV48: 0 | BW48: 0 | BX48: 0 | BY48: 0 | BZ48: 0 | CA48: 0 | CB48: 0 | CC48: 0 | CD48: 0 | CE48: 0 | CF48: 0 | CG48: 0 | CH48: 0 | CI48: 0 | CJ48: 0 | CK48: 0 | CL48: 0 | CM48: 0 | CN48: 0 | CO48: 0 | CP48: 0 | CQ48: 0 | CR48: 0 | CS48: 0 | CT48: 0 | CU48: 0 | CV48: 0 | CX48: 0 | CY48: 0 | CZ48: 0 | DA48: 0 | DB48: 0 | DC48: 0 | DD48: 0 | DE48: 0 | DF48: 0 | DG48: 0 | DH48: 0 | DI48: 0 | DJ48: 0 | DK48: 0 | DL48: 0 | DM48: 0 | DN48: 0 | DO48: 0 | DP48: 0 | DQ48: 0 | DR48: 0 | DS48: 0 | DT48: 0 | DU48: 0 | DV48: 0 | DW48: 0 | DX48: 0 | DY48: 0 | DZ48: 0 | EA48: 0 | EB48: 0 | EC48: 0 | ED48: 0 | EE48: 0 | EF48: 0 | EG48: 0 | EH48: 0 | EI48: 0 | EJ48: 0 | EK48: 0 | EL48: 0 | EM48: 0 | EN48: 0 | EO48: 0 | EP48: 0 | EQ48: 0 | ER48: 0 | ES48: 0 | ET48: 0 | EU48: 0 | EV48: 0 | EW48: 0 | EX48: 0 | EY48: 0 | EZ48: 0 | FA48: 0 | FB48: 0 | FC48: 0 | FD48: 0 | FE48: 0 | FF48: 0 | FG48: 0 | FH48: 0 | FI48: 0 | FJ48: 0 | FK48: 0 | FL48: 0 | FM48: 0 | FN48: 0 | FO48: 0 | FP48: 0 | FQ48: 0 | FR48: 0 | FS48: 0 | FT48: 0 | FU48: 0 | FV48: 0 | FW48: 0 | FX48: 0 | FY48: 0 | FZ48: 0 | GA48: 0 | GB48: 0 | GC48: 0 | GD48: 0 | GE48: 0 | GF48: 0 | GG48: 0 | GH48: 0 | GI48: 0 | GJ48: 0
A49: 2 | D49: OVERHEAD CONDUCTORS | E49: ˂ = 1 kv | F49: 58.8903 | G49: 77.71918519 | H49: 8.815848523 | I49: 2 | J49: 98.041 | K49: 221.539 | L49: 267.518 | M49: 242.517 | N49: 257.033 | O49: 320.092 | P49: 303.18 | Q49: 369.804 | R49: 323.31 | S49: 277.483 | T49: 155.45 | U49: 144.347 | V49: 176.292 | W49: 178.897 | X49: 193.278 | Y49: 187.754 | Z49: 206.616 | AA49: 209.874 | AB49: 222.606 | AC49: 294.558 | AD49: 287.551 | AE49: 278.613 | AF49: 340.478 | AG49: 326.044 | AH49: 373.305 | AI49: 381.358 | AJ49: 271.29 | AK49: 269.558 | AL49: 375.599 | AM49: 474.788 | AN49: 465.396 | AO49: 405.397 | AP49: 532.915 | AQ49: 526.4 | AR49: 461.259 | AS49: 337.526 | AT49: 424.301 | AU49: 472.022 | AV49: 460.176 | AW49: 447.18 | AX49: 481.443 | AY49: 422.071 | AZ49: 473.39 | BA49: 446.651 | BB49: 520.22 | BC49: 457.937 | BD49: 444.813 | BE49: 352.612 | BF49: 346.309 | BG49: 379.12 | BH49: 323.352 | BI49: 418.781 | BJ49: 243.527 | BK49: 257.494 | BL49: 270.325 | BM49: 291.467 | BN49: 283.317 | BO49: 303.956 | BP49: 329.57 | BQ49: 354.662 | BR49: 383.79 | BS49: 375.593 | BT49: 386.25 | BU49: 431.243 | BV49: 536.397 | BW49: 1.281 | BX49: 0.13 | BY49: 13.209 | BZ49: 0 | CA49: 0 | CB49: 0 | CC49: 0 | CD49: 0 | CE49: 0 | CF49: 0 | CG49: 0 | CH49: 0 | CI49: 0 | CJ49: 0 | CK49: 0 | CL49: 0 | CM49: 0 | CN49: 0 | CO49: 0 | CP49: 0 | CQ49: 0 | CR49: 0 | CS49: 0 | CT49: 0 | CU49: 0 | CV49: 0 | CX49: 5773.663902 | CY49: 13046.49817 | CZ49: 15754.21528 | DA49: 14281.89889 | DB49: 15136.75048 | DC49: 18850.31391 | DD49: 17854.36115 | DE49: 21777.8685 | DF49: 19039.82289 | DG49: 16341.05711 | DH49: 9154.497135 | DI49: 8500.638134 | DJ49: 10381.88877 | DK49: 10535.298 | DL49: 11382.1994 | DM49: 11056.88939 | DN49: 12167.67822 | DO49: 12359.54282 | DP49: 13109.33412 | DQ49: 17346.60899 | DR49: 16933.96466 | DS49: 16407.60315 | DT49: 20050.85156 | DU49: 19200.82897 | DV49: 21984.04344 | DW49: 22458.28703 | DX49: 15976.34949 | DY49: 15874.35149 | DZ49: 22119.13779 | EA49: 27960.40776 | EB49: 27407.31006 | EC49: 23873.95095 | ED49: 31383.52422 | EE49: 30999.85392 | EF49: 27163.68089 | EG49: 19877.0074 | EH49: 24987.21318 | EI49: 27797.51719 | EJ49: 27099.90269 | EK49: 26334.56435 | EL49: 28352.3227 | EM49: 24855.88781 | EN49: 27878.07912 | EO49: 26303.41139 | EP49: 30635.91187 | EQ49: 26968.04731 | ER49: 26195.17101 | ES49: 20765.42646 | ET49: 20394.2409 | EU49: 22326.49054 | EV49: 19042.29629 | EW49: 24662.13872 | EX49: 14341.37809 | EY49: 15163.89891 | EZ49: 15919.52035 | FA49: 17164.57907 | FB49: 16684.62313 | FC49: 17900.06003 | FD49: 19408.47617 | FE49: 20886.15158 | FF49: 22601.50824 | FG49: 22118.78445 | FH49: 22746.37838 | FI49: 25396.02964 | FJ49: 31588.58025 | FK49: 75.4384743 | FL49: 7.655739 | FM49: 777.8819727 | FN49: 0 | FO49: 0 | FP49: 0 | FQ49: 0 | FR49: 0 | FS49: 0 | FT49: 0 | FU49: 0 | FV49: 0 | FW49: 0 | FX49: 0 | FY49: 0 | FZ49: 0 | GA49: 0 | GB49: 0 | GC49: 0 | GD49: 0 | GE49: 0 | GF49: 0 | GG49: 0 | GH49: 0 | GI49: 0 | GJ49: 0
A50: 2 | D50: OVERHEAD CONDUCTORS | E50: > 1 kv & < = 11 kv | F50: 70.1647 | G50: 72.96604648 | H50: 8.542016535 | I50: 2 | J50: 185.887 | K50: 427.539 | L50: 508.451 | M50: 444.078 | N50: 432.099 | O50: 616.042 | P50: 520.658 | Q50: 652.868 | R50: 417.605 | S50: 284.043 | T50: 126.294 | U50: 105.071 | V50: 147.61 | W50: 202.567 | X50: 235.046 | Y50: 220.757 | Z50: 285.709 | AA50: 321.062 | AB50: 382.258 | AC50: 615.364 | AD50: 447.93 | AE50: 461.143 | AF50: 557.914 | AG50: 518.513 | AH50: 500.393 | AI50: 448.022 | AJ50: 265.838 | AK50: 348.1 | AL50: 497.975 | AM50: 621.559 | AN50: 635.759 | AO50: 563.651 | AP50: 908.923 | AQ50: 828.264 | AR50: 929.341 | AS50: 486.352 | AT50: 549.424 | AU50: 601.839 | AV50: 608.442 | AW50: 498.503 | AX50: 651.22 | AY50: 352.216 | AZ50: 519.312 | BA50: 628.518 | BB50: 788.917 | BC50: 688.012 | BD50: 730.962 | BE50: 779.374 | BF50: 666.827 | BG50: 1029.342 | BH50: 1097.002 | BI50: 742.215 | BJ50: 314.904 | BK50: 340.495 | BL50: 402.84 | BM50: 461.442 | BN50: 475.321 | BO50: 522.844 | BP50: 574.482 | BQ50: 620.908 | BR50: 701.018 | BS50: 873.609 | BT50: 902.415 | BU50: 990.891 | BV50: 1950.252 | BW50: 0.23 | BX50: 17.174 | BY50: 5.317 | BZ50: 0 | CA50: 0 | CB50: 0 | CC50: 0 | CD50: 0 | CE50: 0 | CF50: 0 | CG50: 0 | CH50: 0 | CI50: 0 | CJ50: 0 | CK50: 0 | CL50: 0 | CM50: 0 | CN50: 0 | CO50: 0 | CP50: 0 | CQ50: 0 | CR50: 0 | CS50: 0 | CT50: 0 | CU50: 0 | CV50: 0 | CX50: 13042.70559 | CY50: 29998.14567 | CZ50: 35675.31188 | DA50: 31158.59965 | DB50: 30318.09671 | DC50: 43224.40212 | DD50: 36531.81237 | DE50: 45808.28736 | DF50: 29301.12954 | DG50: 19929.79188 | DH50: 8861.380622 | DI50: 7372.275194 | DJ50: 10357.01137 | DK50: 14213.05278 | DL50: 16491.93208 | DM50: 15489.34868 | DN50: 20046.68627 | DO50: 22527.21891 | DP50: 26821.01789 | DQ50: 43176.83045 | DR50: 31428.87407 | DS50: 32355.96025 | DT50: 39145.86844 | DU50: 36381.30909 | DV50: 35109.92473 | DW50: 31435.32922 | DX50: 18652.44352 | DY50: 24424.33207 | DZ50: 34940.26648 | EA50: 43611.50077 | EB50: 44607.83951 | EC50: 39548.40332 | ED50: 63774.30962 | EE50: 58114.89508 | EF50: 65206.93246 | EG50: 34124.74217 | EH50: 38550.17013 | EI50: 42227.85288 | EJ50: 42691.1504 | EK50: 34977.31344 | EL50: 45692.65593 | EM50: 24713.12998 | EN50: 36437.37069 | EO50: 44099.77691 | EP50: 55354.12463 | EQ50: 48274.15558 | ER50: 51287.72944 | ES50: 54684.5429 | ET50: 46787.71641 | EU50: 72223.47263 | EV50: 76970.81623 | EW50: 52077.29281 | EX50: 22095.14469 | EY50: 23890.72953 | EZ50: 28265.14775 | FA50: 32376.9395 | FB50: 33350.75537 | FC50: 36685.19241 | FD50: 40308.35719 | FE50: 43565.82355 | FF50: 49186.71766 | FG50: 61296.5134 | FH50: 63317.67775 | FI50: 69525.56975 | FJ50: 136838.8465 | FK50: 16.137881 | FL50: 1205.008558 | FM50: 373.0657099 | FN50: 0 | FO50: 0 | FP50: 0 | FQ50: 0 | FR50: 0 | FS50: 0 | FT50: 0 | FU50: 0 | FV50: 0 | FW50: 0 | FX50: 0 | FY50: 0 | FZ50: 0 | GA50: 0 | GB50: 0 | GC50: 0 | GD50: 0 | GE50: 0 | GF50: 0 | GG50: 0 | GH50: 0 | GI50: 0 | GJ50: 0
A51: 2 | D51: OVERHEAD CONDUCTORS | E51: ˃ 11 kv & < = 22 kv ; swer | F51: 36.2408 | G51: 87.94502172 | H51: 9.37790071 | I51: 2 | J51: 82.494 | K51: 242.461 | L51: 231.063 | M51: 182.732 | N51: 168.374 | O51: 195.869 | P51: 199.222 | Q51: 276.049 | R51: 253.561 | S51: 231.723 | T51: 56.208 | U51: 132.601 | V51: 230.437 | W51: 192.488 | X51: 1065.965 | Y51: 1887.311 | Z51: 210.08 | AA51: 216.845 | AB51: 203.389 | AC51: 277.59 | AD51: 366.971 | AE51: 339.478 | AF51: 668.67 | AG51: 656.137 | AH51: 702.078 | AI51: 1395.985 | AJ51: 1269.236 | AK51: 1572.319 | AL51: 3412.626 | AM51: 2314.808 | AN51: 1992.831 | AO51: 2471.255 | AP51: 3969.317 | AQ51: 5013.425 | AR51: 3040.706 | AS51: 1056.766 | AT51: 702.283 | AU51: 803.358 | AV51: 1345.745 | AW51: 2012.74 | AX51: 2890.449 | AY51: 1170.552 | AZ51: 1091.294 | BA51: 1777.616 | BB51: 2161.211 | BC51: 1611.02 | BD51: 1212.57 | BE51: 1610.806 | BF51: 1266.735 | BG51: 1551.1 | BH51: 1447.33 | BI51: 1665.912 | BJ51: 297.269 | BK51: 184.156 | BL51: 207.196 | BM51: 173.747 | BN51: 230.164 | BO51: 263.939 | BP51: 263.28 | BQ51: 314.982 | BR51: 348.633 | BS51: 417.443 | BT51: 464.638 | BU51: 515.231 | BV51: 961.319 | BW51: 0 | BX51: 0 | BY51: 0 | BZ51: 0 | CA51: 0 | CB51: 0 | CC51: 0 | CD51: 0 | CE51: 0 | CF51: 0 | CG51: 0 | CH51: 0 | CI51: 0 | CJ51: 0 | CK51: 0 | CL51: 0 | CM51: 0 | CN51: 0 | CO51: 0 | CP51: 0 | CQ51: 0 | CR51: 0 | CS51: 0 | CT51: 0 | CU51: 0 | CV51: 0 | CX51: 2989.648555 | CY51: 8786.980609 | CZ51: 8373.90797 | DA51: 6622.353866 | DB51: 6102.008459 | DC51: 7098.449255 | DD51: 7219.964658 | DE51: 10004.2366 | DF51: 9189.253489 | DG51: 8397.826898 | DH51: 2037.022886 | DI51: 4805.566321 | DJ51: 8351.22123 | DK51: 6975.91911 | DL51: 38631.42437 | DM51: 68397.66049 | DN51: 7613.467264 | DO51: 7858.636276 | DP51: 7370.980071 | DQ51: 10060.08367 | DR51: 13299.32262 | DS51: 12302.9543 | DT51: 24233.13574 | DU51: 23778.92979 | DV51: 25443.86838 | DW51: 50591.61319 | DX51: 45998.12803 | DY51: 56982.09842 | DZ51: 123676.2963 | EA51: 83890.49377 | EB51: 72221.7897 | EC51: 89560.2582 | ED51: 143851.2235 | EE51: 181690.5327 | EF51: 110197.618 | EG51: 38298.04525 | EH51: 25451.29775 | EI51: 29114.33661 | EJ51: 48770.8754 | EK51: 72943.30779 | EL51: 104752.1841 | EM51: 42421.74092 | EN51: 39549.3676 | EO51: 64422.22593 | EP51: 78324.01561 | EQ51: 58384.65362 | ER51: 43944.50686 | ES51: 58376.89808 | ET51: 45907.48979 | EU51: 56213.10488 | EV51: 52452.39706 | EW51: 60373.98361 | EX51: 10773.26638 | EY51: 6673.960765 | EZ51: 7508.948797 | FA51: 6296.730278 | FB51: 8341.327491 | FC51: 9565.360511 | FD51: 9541.477824 | FE51: 11415.19967 | FF51: 12634.73883 | FG51: 15128.46827 | FH51: 16838.85283 | FI51: 18672.38362 | FJ51: 34838.96962 | FK51: 0 | FL51: 0 | FM51: 0 | FN51: 0 | FO51: 0 | FP51: 0 | FQ51: 0 | FR51: 0 | FS51: 0 | FT51: 0 | FU51: 0 | FV51: 0 | FW51: 0 | FX51: 0 | FY51: 0 | FZ51: 0 | GA51: 0 | GB51: 0 | GC51: 0 | GD51: 0 | GE51: 0 | GF51: 0 | GG51: 0 | GH51: 0 | GI51: 0 | GJ51: 0
A52: 2 | D52: OVERHEAD CONDUCTORS | E52: ˃ 11 kv & < = 22 kv ; single-phase | F52: 73.2346 | G52: 61.67866068 | H52: 7.853576299 | I52: 2 | J52: 15.294 | K52: 41.473 | L52: 97.274 | M52: 48.689 | N52: 42.576 | O52: 30.72 | P52: 40.47 | Q52: 60.913 | R52: 56.739 | S52: 30.39 | T52: 17.067 | U52: 12.307 | V52: 15.714 | W52: 13.172 | X52: 20.314 | Y52: 19.992 | Z52: 45.207 | AA52: 21.947 | AB52: 22.71 | AC52: 59.233 | AD52: 52.864 | AE52: 32.194 | AF52: 36.838 | AG52: 38.896 | AH52: 51.359 | AI52: 93.35 | AJ52: 46.4 | AK52: 38.723 | AL52: 92.763 | AM52: 69.913 | AN52: 67.991 | AO52: 60.749 | AP52: 94.715 | AQ52: 116.328 | AR52: 89.894 | AS52: 57.691 | AT52: 51.342 | AU52: 40.442 | AV52: 34.776 | AW52: 49.21 | AX52: 53.984 | AY52: 76.59 | AZ52: 34.031 | BA52: 90.737 | BB52: 65.426 | BC52: 50.835 | BD52: 46.247 | BE52: 58.534 | BF52: 49.756 | BG52: 53.294 | BH52: 41.809 | BI52: 37.132 | BJ52: 17.208 | BK52: 14.067 | BL52: 11.797 | BM52: 15.505 | BN52: 8.597 | BO52: 16.808 | BP52: 22.962 | BQ52: 15.771 | BR52: 24.631 | BS52: 16.769 | BT52: 20.009 | BU52: 12.22 | BV52: 41.328 | BW52: 0 | BX52: 0 | BY52: 0 | BZ52: 0 | CA52: 0 | CB52: 0 | CC52: 0 | CD52: 0 | CE52: 0 | CF52: 0 | CG52: 0 | CH52: 0 | CI52: 0 | CJ52: 0 | CK52: 0 | CL52: 0 | CM52: 0 | CN52: 0 | CO52: 0 | CP52: 0 | CQ52: 0 | CR52: 0 | CS52: 0 | CT52: 0 | CU52: 0 | CV52: 0 | CX52: 1120.049972 | CY52: 3037.258566 | CZ52: 7123.82248 | DA52: 3565.719439 | DB52: 3118.03633 | DC52: 2249.766912 | DD52: 2963.804262 | DE52: 4460.93919 | DF52: 4155.257969 | DG52: 2225.599494 | DH52: 1249.894918 | DI52: 901.2982222 | DJ52: 1150.808504 | DK52: 964.6461512 | DL52: 1487.687664 | DM52: 1464.106123 | DN52: 3310.716562 | DO52: 1607.279766 | DP52: 1663.157766 | DQ52: 4337.905062 | DR52: 3871.473894 | DS52: 2357.714712 | DT52: 2697.816195 | DU52: 2848.533002 | DV52: 3761.255821 | DW52: 6836.44991 | DX52: 3398.08544 | DY52: 2835.863416 | DZ52: 6793.4612 | EA52: 5120.05059 | EB52: 4979.293689 | EC52: 4448.928715 | ED52: 6936.415139 | EE52: 8519.234549 | EF52: 6583.351132 | EG52: 4224.977309 | EH52: 3760.010833 | EI52: 2961.753693 | EJ52: 2546.80645 | EK52: 3603.874666 | EL52: 3953.496646 | EM52: 5609.038014 | EN52: 2492.246673 | EO52: 6645.0879 | EP52: 4791.44694 | EQ52: 3722.880891 | ER52: 3386.880546 | ES52: 4286.714076 | ET52: 3643.860758 | EU52: 3902.964772 | EV52: 3061.865391 | EW52: 2719.347167 | EX52: 1260.220997 | EY52: 1030.191118 | EZ52: 863.9485762 | FA52: 1135.502473 | FB52: 629.5978562 | FC52: 1230.927157 | FD52: 1681.612885 | FE52: 1154.982877 | FF52: 1803.841433 | FG52: 1228.071007 | FH52: 1465.351111 | FI52: 894.926812 | FJ52: 3026.639549 | FK52: 0 | FL52: 0 | FM52: 0 | FN52: 0 | FO52: 0 | FP52: 0 | FQ52: 0 | FR52: 0 | FS52: 0 | FT52: 0 | FU52: 0 | FV52: 0 | FW52: 0 | FX52: 0 | FY52: 0 | FZ52: 0 | GA52: 0 | GB52: 0 | GC52: 0 | GD52: 0 | GE52: 0 | GF52: 0 | GG52: 0 | GH52: 0 | GI52: 0 | GJ52: 0
A53: 2 | D53: OVERHEAD CONDUCTORS | E53: ˃ 11 kv & < = 22 kv ; multiple-phase | F53: 62.5223 | G53: 75.61549736 | H53: 8.695717185 | I53: 2 | J53: 73.687 | K53: 122.422 | L53: 207.478 | M53: 143.267 | N53: 147.396 | O53: 155.778 | P53: 136.038 | Q53: 129.173 | R53: 101.509 | S53: 83.888 | T53: 28.121 | U53: 67.235 | V53: 45.538 | W53: 78.589 | X53: 146.197 | Y53: 105.388 | Z53: 70.07 | AA53: 80.821 | AB53: 45.423 | AC53: 157.142 | AD53: 130.106 | AE53: 136.586 | AF53: 119.137 | AG53: 233.798 | AH53: 192.157 | AI53: 399.16 | AJ53: 273.676 | AK53: 230.556 | AL53: 326.69 | AM53: 250.144 | AN53: 228.695 | AO53: 186.46 | AP53: 286.01 | AQ53: 368.566 | AR53: 298.241 | AS53: 169.559 | AT53: 157.159 | AU53: 151.573 | AV53: 155.044 | AW53: 214.73 | AX53: 319.551 | AY53: 184.324 | AZ53: 235.161 | BA53: 273.175 | BB53: 308.996 | BC53: 392.469 | BD53: 363.312 | BE53: 327.36 | BF53: 334.931 | BG53: 396.001 | BH53: 303.99 | BI53: 213.794 | BJ53: 119.251 | BK53: 82.866 | BL53: 89.456 | BM53: 85.502 | BN53: 115.21 | BO53: 92.329 | BP53: 132.378 | BQ53: 121.547 | BR53: 165.786 | BS53: 132.414 | BT53: 172.652 | BU53: 242.919 | BV53: 442.06 | BW53: 0 | BX53: 0 | BY53: 0 | BZ53: 0 | CA53: 0 | CB53: 0 | CC53: 0 | CD53: 0 | CE53: 0 | CF53: 0 | CG53: 0 | CH53: 0 | CI53: 0 | CJ53: 0 | CK53: 0 | CL53: 0 | CM53: 0 | CN53: 0 | CO53: 0 | CP53: 0 | CQ53: 0 | CR53: 0 | CS53: 0 | CT53: 0 | CU53: 0 | CV53: 0 | CX53: 4607.08072 | CY53: 7654.105011 | CZ53: 12972.00176 | DA53: 8957.382354 | DB53: 9215.536931 | DC53: 9739.598849 | DD53: 8505.408647 | DE53: 8076.193058 | DF53: 6346.576151 | DG53: 5244.870702 | DH53: 1758.189598 | DI53: 4203.686841 | DJ53: 2847.140497 | DK53: 4913.565035 | DL53: 9140.572693 | DM53: 6589.100152 | DN53: 4380.937561 | DO53: 5053.114808 | DP53: 2839.950433 | DQ53: 9824.879267 | DR53: 8134.526364 | DS53: 8539.670868 | DT53: 7448.719255 | DU53: 14617.5887 | DV53: 12014.0976 | DW53: 24956.40127 | DX53: 17110.85297 | DY53: 14414.8914 | DZ53: 20425.41019 | EA53: 15639.57821 | EB53: 14298.5374 | EC53: 11657.90806 | ED53: 17882.00302 | EE53: 23043.59402 | EF53: 18646.71327 | EG53: 10601.21867 | EH53: 9825.942146 | EI53: 9476.692578 | EJ53: 9693.707481 | EK53: 13425.41348 | EL53: 19979.06349 | EM53: 11524.36043 | EN53: 14702.80659 | EO53: 17079.5293 | EP53: 19319.14061 | EQ53: 24538.06456 | ER53: 22715.10186 | ES53: 20467.30013 | ET53: 20940.65646 | EU53: 24758.89332 | EV53: 19006.15398 | EW53: 13366.89261 | EX53: 7455.846797 | EY53: 5180.972912 | EZ53: 5592.994869 | FA53: 5345.781695 | FB53: 7203.194183 | FC53: 5772.621437 | FD53: 8276.577029 | FE53: 7599.397998 | FF53: 10365.32203 | FG53: 8278.827832 | FH53: 10794.60014 | FI53: 15187.85459 | FJ53: 27638.60794 | FK53: 0 | FL53: 0 | FM53: 0 | FN53: 0 | FO53: 0 | FP53: 0 | FQ53: 0 | FR53: 0 | FS53: 0 | FT53: 0 | FU53: 0 | FV53: 0 | FW53: 0 | FX53: 0 | FY53: 0 | FZ53: 0 | GA53: 0 | GB53: 0 | GC53: 0 | GD53: 0 | GE53: 0 | GF53: 0 | GG53: 0 | GH53: 0 | GI53: 0 | GJ53: 0
A54: 2 | D54: OVERHEAD CONDUCTORS | E54: > 22 kv & < = 66 kv | F54: 228.5222 | G54: 82.18034612 | H54: 9.065337617 | I54: 2 | J54: 30.719 | K54: 54.876 | L54: 85.153 | M54: 141.712 | N54: 149.05 | O54: 114.267 | P54: 64.97 | Q54: 179.093 | R54: 132.754 | S54: 44.757 | T54: 29.073 | U54: 39.653 | V54: 77.64 | W54: 79.822 | X54: 118.979 | Y54: 403.171 | Z54: 66.597 | AA54: 371.622 | AB54: 43.396 | AC54: 170.731 | AD54: 101.171 | AE54: 36.008 | AF54: 220.301 | AG54: 70.696 | AH54: 539.043 | AI54: 195.291 | AJ54: 46.861 | AK54: 231.706 | AL54: 625.25 | AM54: 225.233 | AN54: 465.117 | AO54: 114.431 | AP54: 309.356 | AQ54: 195.38 | AR54: 135.76 | AS54: 142.275 | AT54: 94.579 | AU54: 164.559 | AV54: 76.971 | AW54: 100.25 | AX54: 81.645 | AY54: 155.238 | AZ54: 215.068 | BA54: 78.969 | BB54: 258.139 | BC54: 262.92 | BD54: 351.061 | BE54: 407.509 | BF54: 232.977 | BG54: 497.98 | BH54: 387.284 | BI54: 453.574 | BJ54: 73.793 | BK54: 83.132 | BL54: 40.571 | BM54: 87.818 | BN54: 347.108 | BO54: 146.248 | BP54: 61.616 | BQ54: 147.528 | BR54: 134.018 | BS54: 264.499 | BT54: 114.41 | BU54: 237.5 | BV54: 823.346 | BW54: 19.079 | BX54: 26.628 | BY54: 6.466 | BZ54: 0 | CA54: 0 | CB54: 0 | CC54: 0 | CD54: 0 | CE54: 0 | CF54: 0 | CG54: 0 | CH54: 0 | CI54: 0 | CJ54: 0 | CK54: 0 | CL54: 0 | CM54: 0 | CN54: 0 | CO54: 0 | CP54: 0 | CQ54: 0 | CR54: 0 | CS54: 0 | CT54: 0 | CU54: 0 | CV54: 0 | CX54: 7019.973462 | CY54: 12540.38425 | CZ54: 19459.3509 | DA54: 32384.33801 | DB54: 34061.23391 | DC54: 26112.54623 | DD54: 14847.08733 | DE54: 40926.72636 | DF54: 30337.23614 | DG54: 10227.96811 | DH54: 6643.825921 | DI54: 9061.590797 | DJ54: 17742.46361 | DK54: 18241.09905 | DL54: 27189.34283 | DM54: 92133.5239 | DN54: 15218.89295 | DO54: 84923.87701 | DP54: 9916.949391 | DQ54: 39015.82373 | DR54: 23119.8195 | DS54: 8228.627378 | DT54: 50343.66918 | DU54: 16155.60545 | DV54: 123183.2923 | DW54: 44628.32896 | DX54: 10708.77881 | DY54: 52949.96487 | DZ54: 142883.5056 | EA54: 51470.74067 | EB54: 106289.5601 | EC54: 26150.02387 | ED54: 70694.7137 | EE54: 44648.66744 | EF54: 31024.17387 | EG54: 32512.99601 | EH54: 21613.40115 | EI54: 37605.38471 | EJ54: 17589.58226 | EK54: 22909.35055 | EL54: 18657.69502 | EM54: 35475.32928 | EN54: 49147.81251 | EO54: 18046.16961 | EP54: 58990.49219 | EQ54: 60083.05682 | ER54: 80225.23205 | ES54: 93124.8532 | ET54: 53240.41659 | EU54: 113799.4852 | EV54: 88502.9917 | EW54: 103651.7283 | EX54: 16863.3387 | EY54: 18997.50753 | EZ54: 9271.374176 | FA54: 20068.36256 | FB54: 79321.8838 | FC54: 33420.91471 | FD54: 14080.62388 | FE54: 33713.42312 | FF54: 30626.0882 | FG54: 60443.89338 | FH54: 26145.2249 | FI54: 54274.0225 | FJ54: 188152.8393 | FK54: 4359.975054 | FL54: 6085.089142 | FM54: 1477.624545 | FN54: 0 | FO54: 0 | FP54: 0 | FQ54: 0 | FR54: 0 | FS54: 0 | FT54: 0 | FU54: 0 | FV54: 0 | FW54: 0 | FX54: 0 | FY54: 0 | FZ54: 0 | GA54: 0 | GB54: 0 | GC54: 0 | GD54: 0 | GE54: 0 | GF54: 0 | GG54: 0 | GH54: 0 | GI54: 0 | GJ54: 0
A55: 2 | D55: OVERHEAD CONDUCTORS | E55: > 66 kv & < = 132 kv | F55: 57.8335 | G55: 76.8277065 | H55: 8.765141556 | I55: 2 | J55: 4.193 | K55: 4.267 | L55: 0.398 | M55: 87.512 | N55: 63.162 | O55: 5.748 | P55: 178.97 | Q55: 113.336 | R55: 1.987 | S55: 0.133 | T55: 0.019 | U55: 10.197 | V55: 183.231 | W55: 3.442 | X55: 0 | Y55: 0 | Z55: 0 | AA55: 0 | AB55: 100.899 | AC55: 70.287 | AD55: 0.107 | AE55: 28.394 | AF55: 6.102 | AG55: 0 | AH55: 99.659 | AI55: 5.835 | AJ55: 3.032 | AK55: 212.159 | AL55: 305.01 | AM55: 246.826 | AN55: 0 | AO55: 10.504 | AP55: 96.514 | AQ55: 5.089 | AR55: 337.267 | AS55: 28.259 | AT55: 4.957 | AU55: 4.952 | AV55: 56.691 | AW55: 8.529 | AX55: 6.657 | AY55: 28.189 | AZ55: 5.699 | BA55: 72.794 | BB55: 0.863 | BC55: 3.97 | BD55: 52.406 | BE55: 0.001 | BF55: 80.49 | BG55: 236.416 | BH55: 43.279 | BI55: 0 | BJ55: 0 | BK55: 41.994 | BL55: 0 | BM55: 0 | BN55: 71.816 | BO55: 0 | BP55: 0 | BQ55: 0.002 | BR55: 0 | BS55: 15.601 | BT55: 0.001 | BU55: 70.721 | BV55: 35.65 | BW55: 0 | BX55: 0 | BY55: 0 | BZ55: 0 | CA55: 0 | CB55: 0 | CC55: 0 | CD55: 0 | CE55: 0 | CF55: 0 | CG55: 0 | CH55: 0 | CI55: 0 | CJ55: 0 | CK55: 0 | CL55: 0 | CM55: 0 | CN55: 0 | CO55: 0 | CP55: 0 | CQ55: 0 | CR55: 0 | CS55: 0 | CT55: 0 | CU55: 0 | CV55: 0 | CX55: 242.4958655 | CY55: 246.7755445 | CZ55: 23.017733 | DA55: 5061.125252 | DB55: 3652.879527 | DC55: 332.426958 | DD55: 10350.46149 | DE55: 6554.617556 | DF55: 114.9151645 | DG55: 7.6918555 | DH55: 1.0988365 | DI55: 589.7281995 | DJ55: 10596.89004 | DK55: 199.062907 | DL55: 0 | DM55: 0 | DN55: 0 | DO55: 0 | DP55: 5835.342317 | DQ55: 4064.943215 | DR55: 6.1881845 | DS55: 1642.124399 | DT55: 352.900017 | DU55: 0 | DV55: 5763.628777 | DW55: 337.4584725 | DX55: 175.351172 | DY55: 12269.89753 | DZ55: 17639.79584 | EA55: 14274.81147 | EB55: 0 | EC55: 607.483084 | ED55: 5581.742419 | EE55: 294.3146815 | EF55: 19505.33104 | EG55: 1634.316877 | EH55: 286.6806595 | EI55: 286.391492 | EJ55: 3278.638948 | EK55: 493.2619215 | EL55: 384.9976095 | EM55: 1630.268532 | EN55: 329.5931165 | EO55: 4209.931799 | EP55: 49.9103105 | EQ55: 229.598995 | ER55: 3030.822401 | ES55: 0.0578335 | ET55: 4655.018415 | EU55: 13672.76474 | EV55: 2502.976047 | EW55: 0 | EX55: 0 | EY55: 2428.659999 | EZ55: 0 | FA55: 0 | FB55: 4153.370636 | FC55: 0 | FD55: 0 | FE55: 0.115667 | FF55: 0 | FG55: 902.2604335 | FH55: 0.0578335 | FI55: 4090.042954 | FJ55: 2061.764275 | FK55: 0 | FL55: 0 | FM55: 0 | FN55: 0 | FO55: 0 | FP55: 0 | FQ55: 0 | FR55: 0 | FS55: 0 | FT55: 0 | FU55: 0 | FV55: 0 | FW55: 0 | FX55: 0 | FY55: 0 | FZ55: 0 | GA55: 0 | GB55: 0 | GC55: 0 | GD55: 0 | GE55: 0 | GF55: 0 | GG55: 0 | GH55: 0 | GI55: 0 | GJ55: 0
E56: > 132 kv | F56: 1101.501908 | G56: 54 | H56: 7.348469228 | I56: 2 | J56: 0 | K56: 0 | L56: 0 | M56: 0 | N56: 0 | O56: 0 | P56: 0 | Q56: 0 | R56: 0 | S56: 0 | T56: 0 | U56: 0 | V56: 0 | W56: 0 | X56: 0 | Y56: 0 | Z56: 0 | AA56: 0 | AB56: 0 | AC56: 0 | AD56: 0 | AE56: 0 | AF56: 0 | AG56: 0 | AH56: 0 | AI56: 0 | AJ56: 0 | AK56: 0 | AL56: 0 | AM56: 0 | AN56: 0 | AO56: 0 | AP56: 0 | AQ56: 0 | AR56: 0 | AS56: 0 | AT56: 0 | AU56: 0 | AV56: 0 | AW56: 0 | AX56: 0 | AY56: 0 | AZ56: 0 | BA56: 0 | BB56: 0 | BC56: 0 | BD56: 0 | BE56: 0 | BF56: 0 | BG56: 0 | BH56: 0 | BI56: 0 | BJ56: 0 | BK56: 0 | BL56: 0 | BM56: 0 | BN56: 0 | BO56: 0 | BP56: 0 | BQ56: 0 | BR56: 0 | BS56: 0 | BT56: 0 | BU56: 0 | BV56: 0 | BW56: 0 | BX56: 0 | BY56: 0 | BZ56: 0 | CA56: 0 | CB56: 0 | CC56: 0 | CD56: 0 | CE56: 0 | CF56: 0 | CG56: 0 | CH56: 0 | CI56: 0 | CJ56: 0 | CK56: 0 | CL56: 0 | CM56: 0 | CN56: 0 | CO56: 0 | CP56: 0 | CQ56: 0 | CR56: 0 | CS56: 0 | CT56: 0 | CU56: 0 | CV56: 0 | CX56: 0 | CY56: 0 | CZ56: 0 | DA56: 0 | DB56: 0 | DC56: 0 | DD56: 0 | DE56: 0 | DF56: 0 | DG56: 0 | DH56: 0 | DI56: 0 | DJ56: 0 | DK56: 0 | DL56: 0 | DM56: 0 | DN56: 0 | DO56: 0 | DP56: 0 | DQ56: 0 | DR56: 0 | DS56: 0 | DT56: 0 | DU56: 0 | DV56: 0 | DW56: 0 | DX56: 0 | DY56: 0 | DZ56: 0 | EA56: 0 | EB56: 0 | EC56: 0 | ED56: 0 | EE56: 0 | EF56: 0 | EG56: 0 | EH56: 0 | EI56: 0 | EJ56: 0 | EK56: 0 | EL56: 0 | EM56: 0 | EN56: 0 | EO56: 0 | EP56: 0 | EQ56: 0 | ER56: 0 | ES56: 0 | ET56: 0 | EU56: 0 | EV56: 0 | EW56: 0 | EX56: 0 | EY56: 0 | EZ56: 0 | FA56: 0 | FB56: 0 | FC56: 0 | FD56: 0 | FE56: 0 | FF56: 0 | FG56: 0 | FH56: 0 | FI56: 0 | FJ56: 0 | FK56: 0 | FL56: 0 | FM56: 0 | FN56: 0 | FO56: 0 | FP56: 0 | FQ56: 0 | FR56: 0 | FS56: 0 | FT56: 0 | FU56: 0 | FV56: 0 | FW56: 0 | FX56: 0 | FY56: 0 | FZ56: 0 | GA56: 0 | GB56: 0 | GC56: 0 | GD56: 0 | GE56: 0 | GF56: 0 | GG56: 0 | GH56: 0 | GI56: 0 | GJ56: 0
E57: other | F57: 0 | G57: 0 | H57: 0 | I57: 2 | J57: 0 | K57: 0 | L57: 0 | M57: 0 | N57: 0 | O57: 0 | P57: 0 | Q57: 0 | R57: 0 | S57: 0 | T57: 0 | U57: 0 | V57: 0 | W57: 0 | X57: 0 | Y57: 0 | Z57: 0 | AA57: 0 | AB57: 0 | AC57: 0 | AD57: 0 | AE57: 0 | AF57: 0 | AG57: 0 | AH57: 0 | AI57: 0 | AJ57: 0 | AK57: 0 | AL57: 0 | AM57: 0 | AN57: 0 | AO57: 0 | AP57: 0 | AQ57: 0 | AR57: 0 | AS57: 0 | AT57: 0 | AU57: 0 | AV57: 0 | AW57: 0 | AX57: 0 | AY57: 0 | AZ57: 0 | BA57: 0 | BB57: 0 | BC57: 0 | BD57: 0 | BE57: 0 | BF57: 0 | BG57: 0 | BH57: 0 | BI57: 0 | BJ57: 0 | BK57: 0 | BL57: 0 | BM57: 0 | BN57: 0 | BO57: 0 | BP57: 0 | BQ57: 0 | BR57: 0 | BS57: 0 | BT57: 0 | BU57: 0 | BV57: 0 | BW57: 0 | BX57: 0 | BY57: 0 | BZ57: 0 | CA57: 0 | CB57: 0 | CC57: 0 | CD57: 0 | CE57: 0 | CF57: 0 | CG57: 0 | CH57: 0 | CI57: 0 | CJ57: 0 | CK57: 0 | CL57: 0 | CM57: 0 | CN57: 0 | CO57: 0 | CP57: 0 | CQ57: 0 | CR57: 0 | CS57: 0 | CT57: 0 | CU57: 0 | CV57: 0 | CX57: 0 | CY57: 0 | CZ57: 0 | DA57: 0 | DB57: 0 | DC57: 0 | DD57: 0 | DE57: 0 | DF57: 0 | DG57: 0 | DH57: 0 | DI57: 0 | DJ57: 0 | DK57: 0 | DL57: 0 | DM57: 0 | DN57: 0 | DO57: 0 | DP57: 0 | DQ57: 0 | DR57: 0 | DS57: 0 | DT57: 0 | DU57: 0 | DV57: 0 | DW57: 0 | DX57: 0 | DY57: 0 | DZ57: 0 | EA57: 0 | EB57: 0 | EC57: 0 | ED57: 0 | EE57: 0 | EF57: 0 | EG57: 0 | EH57: 0 | EI57: 0 | EJ57: 0 | EK57: 0 | EL57: 0 | EM57: 0 | EN57: 0 | EO57: 0 | EP57: 0 | EQ57: 0 | ER57: 0 | ES57: 0 | ET57: 0 | EU57: 0 | EV57: 0 | EW57: 0 | EX57: 0 | EY57: 0 | EZ57: 0 | FA57: 0 | FB57: 0 | FC57: 0 | FD57: 0 | FE57: 0 | FF57: 0 | FG57: 0 | FH57: 0 | FI57: 0 | FJ57: 0 | FK57: 0 | FL57: 0 | FM57: 0 | FN57: 0 | FO57: 0 | FP57: 0 | FQ57: 0 | FR57: 0 | FS57: 0 | FT57: 0 | FU57: 0 | FV57: 0 | FW57: 0 | FX57: 0 | FY57: 0 | FZ57: 0 | GA57: 0 | GB57: 0 | GC57: 0 | GD57: 0 | GE57: 0 | GF57: 0 | GG57: 0 | GH57: 0 | GI57: 0 | GJ57: 0
A58: 3 | D58: UNDERGROUND CABLES | E58: ˂ = 1 kv | F58: 206.7606 | G58: 69.81082087 | H58: 8.355287001 | I58: 2 | J58: 23.671 | K58: 338.511 | L58: 444.748 | M58: 406.552 | N58: 619.685 | O58: 1312.261 | P58: 1462.506 | Q58: 673.97 | R58: 267.292 | S58: 370.276 | T58: 94.387 | U58: 18.389 | V58: 13.899 | W58: 4.489 | X58: 6.456 | Y58: 3.193 | Z58: 2.227 | AA58: 3.722 | AB58: 0.065 | AC58: 3.379 | AD58: 11.497 | AE58: 8.474 | AF58: 1.747 | AG58: 5.635 | AH58: 0 | AI58: 1.278 | AJ58: 0.575 | AK58: 0 | AL58: 0.761 | AM58: 0 | AN58: 0.535 | AO58: 0 | AP58: 0 | AQ58: 0.271 | AR58: 0 | AS58: 0 | AT58: 0 | AU58: 0.046 | AV58: 0 | AW58: 0 | AX58: 0 | AY58: 0 | AZ58: 0 | BA58: 0 | BB58: 0.468 | BC58: 0 | BD58: 0 | BE58: 0 | BF58: 0 | BG58: 0 | BH58: 0 | BI58: 0 | BJ58: 0.523 | BK58: 0 | BL58: 0 | BM58: 0 | BN58: 0 | BO58: 0 | BP58: 0 | BQ58: 0 | BR58: 0 | BS58: 0 | BT58: 0 | BU58: 0 | BV58: 0 | BW58: 0 | BX58: 0 | BY58: 0 | BZ58: 0 | CA58: 0 | CB58: 0 | CC58: 0 | CD58: 0 | CE58: 0 | CF58: 0 | CG58: 0 | CH58: 0 | CI58: 0 | CJ58: 0 | CK58: 0 | CL58: 0 | CM58: 0 | CN58: 0 | CO58: 0 | CP58: 0 | CQ58: 0 | CR58: 0 | CS58: 0 | CT58: 0 | CU58: 0 | CV58: 0 | CX58: 4894.230163 | CY58: 69990.73747 | CZ58: 91956.36333 | DA58: 84058.93545 | DB58: 128126.4424 | DC58: 271323.8717 | DD58: 302388.6181 | DE58: 139350.4416 | DF58: 55265.4543 | DG58: 76558.48793 | DH58: 19515.51275 | DI58: 3802.120673 | DJ58: 2873.765579 | DK58: 928.1483334 | DL58: 1334.846434 | DM58: 660.1865958 | DN58: 460.4558562 | DO58: 769.5629532 | DP58: 13.439439 | DQ58: 698.6440674 | DR58: 2377.126618 | DS58: 1752.089324 | DT58: 361.2107682 | DU58: 1165.095981 | DV58: 0 | DW58: 264.2400468 | DX58: 118.887345 | DY58: 0 | DZ58: 157.3448166 | EA58: 0 | EB58: 110.616921 | EC58: 0 | ED58: 0 | EE58: 56.0321226 | EF58: 0 | EG58: 0 | EH58: 0 | EI58: 9.5109876 | EJ58: 0 | EK58: 0 | EL58: 0 | EM58: 0 | EN58: 0 | EO58: 0 | EP58: 96.7639608 | EQ58: 0 | ER58: 0 | ES58: 0 | ET58: 0 | EU58: 0 | EV58: 0 | EW58: 0 | EX58: 108.1357938 | EY58: 0 | EZ58: 0 | FA58: 0 | FB58: 0 | FC58: 0 | FD58: 0 | FE58: 0 | FF58: 0 | FG58: 0 | FH58: 0 | FI58: 0 | FJ58: 0 | FK58: 0 | FL58: 0 | FM58: 0 | FN58: 0 | FO58: 0 | FP58: 0 | FQ58: 0 | FR58: 0 | FS58: 0 | FT58: 0 | FU58: 0 | FV58: 0 | FW58: 0 | FX58: 0 | FY58: 0 | FZ58: 0 | GA58: 0 | GB58: 0 | GC58: 0 | GD58: 0 | GE58: 0 | GF58: 0 | GG58: 0 | GH58: 0 | GI58: 0 | GJ58: 0
A59: 3 | D59: UNDERGROUND CABLES | E59: > 1 kv & < = 11 kv | F59: 572.7903 | G59: 75.24821662 | H59: 8.674572993 | I59: 2 | J59: 3.784 | K59: 88.408 | L59: 86.605 | M59: 109.755 | N59: 151.058 | O59: 189.077 | P59: 174.646 | Q59: 91.796 | R59: 51.301 | S59: 62.386 | T59: 48.28 | U59: 63.155 | V59: 44.389 | W59: 17.552 | X59: 33.407 | Y59: 107.665 | Z59: 19.451 | AA59: 20.389 | AB59: 12.715 | AC59: 13.264 | AD59: 23.001 | AE59: 19.4 | AF59: 23.459 | AG59: 14.12 | AH59: 9.774 | AI59: 8.818 | AJ59: 3.932 | AK59: 5.098 | AL59: 22.407 | AM59: 19.599 | AN59: 10.911 | AO59: 6.817 | AP59: 9.9 | AQ59: 14.115 | AR59: 7.627 | AS59: 3.016 | AT59: 6.081 | AU59: 2.452 | AV59: 4.649 | AW59: 27.169 | AX59: 0.928 | AY59: 0.913 | AZ59: 2.655 | BA59: 2.453 | BB59: 2.362 | BC59: 2.273 | BD59: 0.37 | BE59: 0.535 | BF59: 0.718 | BG59: 3.368 | BH59: 0.35 | BI59: 0.45 | BJ59: 0 | BK59: 0 | BL59: 0.345 | BM59: 0.047 | BN59: 0 | BO59: 0.34 | BP59: 0 | BQ59: 1.576 | BR59: 0.152 | BS59: 0 | BT59: 0 | BU59: 0 | BV59: 0 | BW59: 0 | BX59: 0 | BY59: 0 | BZ59: 0.018 | CA59: 0 | CB59: 0 | CC59: 0 | CD59: 0 | CE59: 0 | CF59: 0 | CG59: 0 | CH59: 0 | CI59: 0 | CJ59: 0.352 | CK59: 0 | CL59: 0 | CM59: 0 | CN59: 0 | CO59: 0 | CP59: 0 | CQ59: 0 | CR59: 0 | CS59: 0 | CT59: 0 | CU59: 0 | CV59: 0 | CX59: 2167.438495 | CY59: 50639.24484 | CZ59: 49606.50393 | DA59: 62866.59938 | DB59: 86524.55714 | DC59: 108301.4716 | DD59: 100035.5347 | DE59: 52579.85838 | DF59: 29384.71518 | DG59: 35734.09566 | DH59: 27654.31568 | DI59: 36174.5714 | DJ59: 25425.58863 | DK59: 10053.61535 | DL59: 19135.20555 | DM59: 61669.46765 | DN59: 11141.34413 | DO59: 11678.62143 | DP59: 7283.028664 | DQ59: 7597.490539 | DR59: 13174.74969 | DS59: 11112.13182 | DT59: 13437.08765 | DU59: 8087.799036 | DV59: 5598.452392 | DW59: 5050.864865 | DX59: 2252.21146 | DY59: 2920.084949 | DZ59: 12834.51225 | EA59: 11226.11709 | EB59: 6249.714963 | EC59: 3904.711475 | ED59: 5670.62397 | EE59: 8084.935084 | EF59: 4368.671618 | EG59: 1727.535545 | EH59: 3483.137814 | EI59: 1404.481816 | EJ59: 2662.902105 | EK59: 15562.13966 | EL59: 531.5493984 | EM59: 522.9575439 | EN59: 1520.758246 | EO59: 1405.054606 | EP59: 1352.930689 | EQ59: 1301.952352 | ER59: 211.932411 | ES59: 306.4428105 | ET59: 411.2634354 | EU59: 1929.15773 | EV59: 200.476605 | EW59: 257.755635 | EX59: 0 | EY59: 0 | EZ59: 197.6126535 | FA59: 26.9211441 | FB59: 0 | FC59: 194.748702 | FD59: 0 | FE59: 902.7175128 | FF59: 87.0641256 | FG59: 0 | FH59: 0 | FI59: 0 | FJ59: 0 | FK59: 0 | FL59: 0 | FM59: 0 | FN59: 10.3102254 | FO59: 0 | FP59: 0 | FQ59: 0 | FR59: 0 | FS59: 0 | FT59: 0 | FU59: 0 | FV59: 0 | FW59: 0 | FX59: 201.6221856 | FY59: 0 | FZ59: 0 | GA59: 0 | GB59: 0 | GC59: 0 | GD59: 0 | GE59: 0 | GF59: 0 | GG59: 0 | GH59: 0 | GI59: 0 | GJ59: 0
A60: 3 | D60: UNDERGROUND CABLES | E60: > 11 kv & < = 22 kv | F60: 588.1384 | G60: 66.509986 | H60: 8.155365473 | I60: 2 | J60: 2.888 | K60: 12.741 | L60: 26.196 | M60: 23.321 | N60: 37.907 | O60: 78.852 | P60: 104.438 | Q60: 33.972 | R60: 16.894 | S60: 24.402 | T60: 14.318 | U60: 4.828 | V60: 9.658 | W60: 5.163 | X60: 20.218 | Y60: 9.359 | Z60: 14.77 | AA60: 13.832 | AB60: 10.927 | AC60: 19.271 | AD60: 15.901 | AE60: 11.396 | AF60: 15.583 | AG60: 7.092 | AH60: 9.591 | AI60: 13.283 | AJ60: 2.214 | AK60: 12.858 | AL60: 3.778 | AM60: 49.135 | AN60: 4.871 | AO60: 3.604 | AP60: 5.938 | AQ60: 3.354 | AR60: 11.677 | AS60: 1.203 | AT60: 0.065 | AU60: 0.221 | AV60: 0.073 | AW60: 4.868 | AX60: 0.073 | AY60: 0 | AZ60: 0.325 | BA60: 0.863 | BB60: 1.789 | BC60: 1.665 | BD60: 0.309 | BE60: 0.14 | BF60: 0 | BG60: 2.279 | BH60: 0 | BI60: 0.15 | BJ60: 0 | BK60: 0 | BL60: 0 | BM60: 0.238 | BN60: 0 | BO60: 0.67 | BP60: 0 | BQ60: 1.297 | BR60: 0 | BS60: 0.13 | BT60: 0.342 | BU60: 0.193 | BV60: 0.401 | BW60: 0 | BX60: 0 | BY60: 0 | BZ60: 0 | CA60: 0 | CB60: 0 | CC60: 0 | CD60: 0 | CE60: 0 | CF60: 0 | CG60: 0 | CH60: 0 | CI60: 0 | CJ60: 0 | CK60: 0 | CL60: 0 | CM60: 0 | CN60: 0 | CO60: 0 | CP60: 0 | CQ60: 0 | CR60: 0 | CS60: 0 | CT60: 0 | CU60: 0 | CV60: 0 | CX60: 1698.543699 | CY60: 7493.471354 | CZ60: 15406.87353 | DA60: 13715.97563 | DB60: 22294.56233 | DC60: 46375.88912 | DD60: 61423.99822 | DE60: 19980.23772 | DF60: 9936.01013 | DG60: 14351.75324 | DH60: 8420.965611 | DI60: 2839.532195 | DJ60: 5680.240667 | DK60: 3036.558559 | DL60: 11890.98217 | DM60: 5504.387286 | DN60: 8686.804168 | DO60: 8135.130349 | DP60: 6426.588297 | DQ60: 11334.01511 | DR60: 9351.988698 | DS60: 6702.425206 | DT60: 9164.960687 | DU60: 4171.077533 | DV60: 5640.835394 | DW60: 7812.242367 | DX60: 1302.138418 | DY60: 7562.283547 | DZ60: 2221.986875 | EA60: 28898.18028 | EB60: 2864.822146 | EC60: 2119.650794 | ED60: 3492.365819 | EE60: 1972.616194 | EF60: 6867.692097 | EG60: 707.5304952 | EH60: 38.228996 | EI60: 129.9785864 | EJ60: 42.9341032 | EK60: 2863.057731 | EL60: 42.9341032 | EM60: 0 | EN60: 191.14498 | EO60: 507.5634392 | EP60: 1052.179598 | EQ60: 979.250436 | ER60: 181.7347656 | ES60: 82.339376 | ET60: 0 | EU60: 1340.367414 | EV60: 0 | EW60: 88.22076 | EX60: 0 | EY60: 0 | EZ60: 0 | FA60: 139.9769392 | FB60: 0 | FC60: 394.052728 | FD60: 0 | FE60: 762.8155048 | FF60: 0 | FG60: 76.457992 | FH60: 201.1433328 | FI60: 113.5107112 | FJ60: 235.8434984 | FK60: 0 | FL60: 0 | FM60: 0 | FN60: 0 | FO60: 0 | FP60: 0 | FQ60: 0 | FR60: 0 | FS60: 0 | FT60: 0 | FU60: 0 | FV60: 0 | FW60: 0 | FX60: 0 | FY60: 0 | FZ60: 0 | GA60: 0 | GB60: 0 | GC60: 0 | GD60: 0 | GE60: 0 | GF60: 0 | GG60: 0 | GH60: 0 | GI60: 0 | GJ60: 0
A61: 3 | D61: UNDERGROUND CABLES | E61: > 22 kv & < = 33 kv | F61: 488.4063 | G61: 63.84500055 | H61: 7.990306662 | I61: 2 | J61: 0 | K61: 3.026 | L61: 2.454 | M61: 7.521 | N61: 6.192 | O61: 4.579 | P61: 0.754 | Q61: 1.539 | R61: 0.43 | S61: 6.255 | T61: 1.506 | U61: 0.266 | V61: 2.471 | W61: 0 | X61: 0 | Y61: 0.322 | Z61: 0.196 | AA61: 0.346 | AB61: 0 | AC61: 0.008 | AD61: 1.306 | AE61: 0 | AF61: 0.063 | AG61: 0.262 | AH61: 0.06 | AI61: 0.679 | AJ61: 0 | AK61: 0.131 | AL61: 0.089 | AM61: 0.411 | AN61: 0 | AO61: 0.301 | AP61: 1.25 | AQ61: 0.255 | AR61: 0 | AS61: 0 | AT61: 0 | AU61: 0 | AV61: 0 | AW61: 6.533 | AX61: 0.08 | AY61: 0.174 | AZ61: 0 | BA61: 0.513 | BB61: 0 | BC61: 0 | BD61: 0 | BE61: 0.365 | BF61: 0 | BG61: 1.648 | BH61: 0 | BI61: 0 | BJ61: 0 | BK61: 0 | BL61: 0 | BM61: 0 | BN61: 0 | BO61: 0 | BP61: 0 | BQ61: 0 | BR61: 0 | BS61: 0 | BT61: 0 | BU61: 0 | BV61: 0.051 | BW61: 0 | BX61: 0 | BY61: 0 | BZ61: 0 | CA61: 0 | CB61: 0 | CC61: 0 | CD61: 0 | CE61: 0 | CF61: 0 | CG61: 0 | CH61: 0 | CI61: 0 | CJ61: 0 | CK61: 0 | CL61: 0 | CM61: 0 | CN61: 0 | CO61: 0 | CP61: 0 | CQ61: 0 | CR61: 0 | CS61: 0 | CT61: 0 | CU61: 0 | CV61: 0 | CX61: 0 | CY61: 1477.917464 | CZ61: 1198.54906 | DA61: 3673.303782 | DB61: 3024.21181 | DC61: 2236.412448 | DD61: 368.2583502 | DE61: 751.6572957 | DF61: 210.014709 | DG61: 3054.981407 | DH61: 735.5398878 | DI61: 129.9160758 | DJ61: 1206.851967 | DK61: 0 | DL61: 0 | DM61: 157.2668286 | DN61: 95.7276348 | DO61: 168.9885798 | DP61: 0 | DQ61: 3.9072504 | DR61: 637.8586278 | DS61: 0 | DT61: 30.7695969 | DU61: 127.9624506 | DV61: 29.304378 | DW61: 331.6278777 | DX61: 0 | DY61: 63.9812253 | DZ61: 43.4681607 | EA61: 200.7349893 | EB61: 0 | EC61: 147.0102963 | ED61: 610.507875 | EE61: 124.5436065 | EF61: 0 | EG61: 0 | EH61: 0 | EI61: 0 | EJ61: 0 | EK61: 3190.758358 | EL61: 39.072504 | EM61: 84.9826962 | EN61: 0 | EO61: 250.5524319 | EP61: 0 | EQ61: 0 | ER61: 0 | ES61: 178.2682995 | ET61: 0 | EU61: 804.8935824 | EV61: 0 | EW61: 0 | EX61: 0 | EY61: 0 | EZ61: 0 | FA61: 0 | FB61: 0 | FC61: 0 | FD61: 0 | FE61: 0 | FF61: 0 | FG61: 0 | FH61: 0 | FI61: 0 | FJ61: 24.9087213 | FK61: 0 | FL61: 0 | FM61: 0 | FN61: 0 | FO61: 0 | FP61: 0 | FQ61: 0 | FR61: 0 | FS61: 0 | FT61: 0 | FU61: 0 | FV61: 0 | FW61: 0 | FX61: 0 | FY61: 0 | FZ61: 0 | GA61: 0 | GB61: 0 | GC61: 0 | GD61: 0 | GE61: 0 | GF61: 0 | GG61: 0 | GH61: 0 | GI61: 0 | GJ61: 0
A62: 3 | D62: UNDERGROUND CABLES | E62: > 33 kv & < = 66 kv | F62: 0.0001 | G62: 71.72855854 | H62: 8.469271429 | I62: 2 | J62: 0 | K62: 0 | L62: 0 | M62: 0 | N62: 1.273 | O62: 7.281 | P62: 2.835 | Q62: 0.927 | R62: 0 | S62: 0 | T62: 0 | U62: 0 | V62: 0 | W62: 0 | X62: 0 | Y62: 2.746 | Z62: 0 | AA62: 0 | AB62: 0 | AC62: 0.17 | AD62: 0 | AE62: 0 | AF62: 0.175 | AG62: 0 | AH62: 0.373 | AI62: 0 | AJ62: 0.378 | AK62: 0.775 | AL62: 0 | AM62: 0 | AN62: 0 | AO62: 0 | AP62: 0 | AQ62: 0 | AR62: 0 | AS62: 0 | AT62: 0 | AU62: 0 | AV62: 0 | AW62: 0 | AX62: 0 | AY62: 0 | AZ62: 0.759 | BA62: 0 | BB62: 0 | BC62: 0 | BD62: 0 | BE62: 0 | BF62: 0 | BG62: 0 | BH62: 0 | BI62: 0 | BJ62: 0 | BK62: 0 | BL62: 0 | BM62: 0 | BN62: 0 | BO62: 0 | BP62: 0 | BQ62: 0 | BR62: 0 | BS62: 0 | BT62: 0 | BU62: 0 | BV62: 0 | BW62: 0 | BX62: 0 | BY62: 0 | BZ62: 0 | CA62: 0 | CB62: 0 | CC62: 0 | CD62: 0 | CE62: 0 | CF62: 0 | CG62: 0 | CH62: 0 | CI62: 0 | CJ62: 0 | CK62: 0 | CL62: 0 | CM62: 0 | CN62: 0 | CO62: 0 | CP62: 0 | CQ62: 0 | CR62: 0 | CS62: 0 | CT62: 0 | CU62: 0 | CV62: 0 | CX62: 0 | CY62: 0 | CZ62: 0 | DA62: 0 | DB62: 0.0001273 | DC62: 0.0007281 | DD62: 0.0002835 | DE62: 9.27e-05 | DF62: 0 | DG62: 0 | DH62: 0 | DI62: 0 | DJ62: 0 | DK62: 0 | DL62: 0 | DM62: 0.0002746 | DN62: 0 | DO62: 0 | DP62: 0 | DQ62: 1.7e-05 | DR62: 0 | DS62: 0 | DT62: 1.75e-05 | DU62: 0 | DV62: 3.73e-05 | DW62: 0 | DX62: 3.78e-05 | DY62: 7.75e-05 | DZ62: 0 | EA62: 0 | EB62: 0 | EC62: 0 | ED62: 0 | EE62: 0 | EF62: 0 | EG62: 0 | EH62: 0 | EI62: 0 | EJ62: 0 | EK62: 0 | EL62: 0 | EM62: 0 | EN62: 7.59e-05 | EO62: 0 | EP62: 0 | EQ62: 0 | ER62: 0 | ES62: 0 | ET62: 0 | EU62: 0 | EV62: 0 | EW62: 0 | EX62: 0 | EY62: 0 | EZ62: 0 | FA62: 0 | FB62: 0 | FC62: 0 | FD62: 0 | FE62: 0 | FF62: 0 | FG62: 0 | FH62: 0 | FI62: 0 | FJ62: 0 | FK62: 0 | FL62: 0 | FM62: 0 | FN62: 0 | FO62: 0 | FP62: 0 | FQ62: 0 | FR62: 0 | FS62: 0 | FT62: 0 | FU62: 0 | FV62: 0 | FW62: 0 | FX62: 0 | FY62: 0 | FZ62: 0 | GA62: 0 | GB62: 0 | GC62: 0 | GD62: 0 | GE62: 0 | GF62: 0 | GG62: 0 | GH62: 0 | GI62: 0 | GJ62: 0
A63: 3 | D63: UNDERGROUND CABLES | E63: > 66 kv & < = 132 kv | F63: 0.0001 | G63: 45.08567255 | H63: 6.714586551 | I63: 2 | J63: 0 | K63: 0 | L63: 0 | M63: 0 | N63: 0 | O63: 9.126 | P63: 0.045 | Q63: 0 | R63: 0 | S63: 0 | T63: 0 | U63: 0 | V63: 0 | W63: 0 | X63: 0 | Y63: 0 | Z63: 0 | AA63: 0 | AB63: 0 | AC63: 0 | AD63: 0 | AE63: 0 | AF63: 0 | AG63: 0 | AH63: 0 | AI63: 0 | AJ63: 0 | AK63: 0 | AL63: 0 | AM63: 0 | AN63: 0 | AO63: 0 | AP63: 0 | AQ63: 0 | AR63: 0 | AS63: 0 | AT63: 0 | AU63: 0 | AV63: 0 | AW63: 0 | AX63: 0 | AY63: 0 | AZ63: 0 | BA63: 0 | BB63: 0 | BC63: 0 | BD63: 0 | BE63: 0 | BF63: 0 | BG63: 0 | BH63: 0 | BI63: 0 | BJ63: 0 | BK63: 0 | BL63: 0 | BM63: 0 | BN63: 0 | BO63: 0 | BP63: 0 | BQ63: 0 | BR63: 0 | BS63: 0 | BT63: 0 | BU63: 0 | BV63: 0 | BW63: 0 | BX63: 0 | BY63: 0 | BZ63: 0 | CA63: 0 | CB63: 0 | CC63: 0 | CD63: 0 | CE63: 0 | CF63: 0 | CG63: 0 | CH63: 0 | CI63: 0 | CJ63: 0 | CK63: 0 | CL63: 0 | CM63: 0 | CN63: 0 | CO63: 0 | CP63: 0 | CQ63: 0 | CR63: 0 | CS63: 0 | CT63: 0 | CU63: 0 | CV63: 0 | CX63: 0 | CY63: 0 | CZ63: 0 | DA63: 0 | DB63: 0 | DC63: 0.0009126 | DD63: 4.5e-06 | DE63: 0 | DF63: 0 | DG63: 0 | DH63: 0 | DI63: 0 | DJ63: 0 | DK63: 0 | DL63: 0 | DM63: 0 | DN63: 0 | DO63: 0 | DP63: 0 | DQ63: 0 | DR63: 0 | DS63: 0 | DT63: 0 | DU63: 0 | DV63: 0 | DW63: 0 | DX63: 0 | DY63: 0 | DZ63: 0 | EA63: 0 | EB63: 0 | EC63: 0 | ED63: 0 | EE63: 0 | EF63: 0 | EG63: 0 | EH63: 0 | EI63: 0 | EJ63: 0 | EK63: 0 | EL63: 0 | EM63: 0 | EN63: 0 | EO63: 0 | EP63: 0 | EQ63: 0 | ER63: 0 | ES63: 0 | ET63: 0 | EU63: 0 | EV63: 0 | EW63: 0 | EX63: 0 | EY63: 0 | EZ63: 0 | FA63: 0 | FB63: 0 | FC63: 0 | FD63: 0 | FE63: 0 | FF63: 0 | FG63: 0 | FH63: 0 | FI63: 0 | FJ63: 0 | FK63: 0 | FL63: 0 | FM63: 0 | FN63: 0 | FO63: 0 | FP63: 0 | FQ63: 0 | FR63: 0 | FS63: 0 | FT63: 0 | FU63: 0 | FV63: 0 | FW63: 0 | FX63: 0 | FY63: 0 | FZ63: 0 | GA63: 0 | GB63: 0 | GC63: 0 | GD63: 0 | GE63: 0 | GF63: 0 | GG63: 0 | GH63: 0 | GI63: 0 | GJ63: 0
E64: > 132 kv | G64: 43.2 | H64: 6.57267069 | I64: 2 | J64: 0 | K64: 0 | L64: 0 | M64: 0 | N64: 0 | O64: 0 | P64: 0 | Q64: 0 | R64: 0 | S64: 0 | T64: 0 | U64: 0 | V64: 0 | W64: 0 | X64: 0 | Y64: 0 | Z64: 0 | AA64: 0 | AB64: 0 | AC64: 0 | AD64: 0 | AE64: 0 | AF64: 0 | AG64: 0 | AH64: 0 | AI64: 0 | AJ64: 0 | AK64: 0 | AL64: 0 | AM64: 0 | AN64: 0 | AO64: 0 | AP64: 0 | AQ64: 0 | AR64: 0 | AS64: 0 | AT64: 0 | AU64: 0 | AV64: 0 | AW64: 0 | AX64: 0 | AY64: 0 | AZ64: 0 | BA64: 0 | BB64: 0 | BC64: 0 | BD64: 0 | BE64: 0 | BF64: 0 | BG64: 0 | BH64: 0 | BI64: 0 | BJ64: 0 | BK64: 0 | BL64: 0 | BM64: 0 | BN64: 0 | BO64: 0 | BP64: 0 | BQ64: 0 | BR64: 0 | BS64: 0 | BT64: 0 | BU64: 0 | BV64: 0 | BW64: 0 | BX64: 0 | BY64: 0 | BZ64: 0 | CA64: 0 | CB64: 0 | CC64: 0 | CD64: 0 | CE64: 0 | CF64: 0 | CG64: 0 | CH64: 0 | CI64: 0 | CJ64: 0 | CK64: 0 | CL64: 0 | CM64: 0 | CN64: 0 | CO64: 0 | CP64: 0 | CQ64: 0 | CR64: 0 | CS64: 0 | CT64: 0 | CU64: 0 | CV64: 0
E65: other | F65: 0 | G65: 0 | H65: 0 | I65: 2 | J65: 0 | K65: 0 | L65: 0 | M65: 0 | N65: 0 | O65: 0 | P65: 0 | Q65: 0 | R65: 0 | S65: 0 | T65: 0 | U65: 0 | V65: 0 | W65: 0 | X65: 0 | Y65: 0 | Z65: 0 | AA65: 0 | AB65: 0 | AC65: 0 | AD65: 0 | AE65: 0 | AF65: 0 | AG65: 0 | AH65: 0 | AI65: 0 | AJ65: 0 | AK65: 0 | AL65: 0 | AM65: 0 | AN65: 0 | AO65: 0 | AP65: 0 | AQ65: 0 | AR65: 0 | AS65: 0 | AT65: 0 | AU65: 0 | AV65: 0 | AW65: 0 | AX65: 0 | AY65: 0 | AZ65: 0 | BA65: 0 | BB65: 0 | BC65: 0 | BD65: 0 | BE65: 0 | BF65: 0 | BG65: 0 | BH65: 0 | BI65: 0 | BJ65: 0 | BK65: 0 | BL65: 0 | BM65: 0 | BN65: 0 | BO65: 0 | BP65: 0 | BQ65: 0 | BR65: 0 | BS65: 0 | BT65: 0 | BU65: 0 | BV65: 0 | BW65: 0 | BX65: 0 | BY65: 0 | BZ65: 0 | CA65: 0 | CB65: 0 | CC65: 0 | CD65: 0 | CE65: 0 | CF65: 0 | CG65: 0 | CH65: 0 | CI65: 0 | CJ65: 0 | CK65: 0 | CL65: 0 | CM65: 0 | CN65: 0 | CO65: 0 | CP65: 0 | CQ65: 0 | CR65: 0 | CS65: 0 | CT65: 0 | CU65: 0 | CV65: 0 | CX65: 0 | CY65: 0 | CZ65: 0 | DA65: 0 | DB65: 0 | DC65: 0 | DD65: 0 | DE65: 0 | DF65: 0 | DG65: 0 | DH65: 0 | DI65: 0 | DJ65: 0 | DK65: 0 | DL65: 0 | DM65: 0 | DN65: 0 | DO65: 0 | DP65: 0 | DQ65: 0 | DR65: 0 | DS65: 0 | DT65: 0 | DU65: 0 | DV65: 0 | DW65: 0 | DX65: 0 | DY65: 0 | DZ65: 0 | EA65: 0 | EB65: 0 | EC65: 0 | ED65: 0 | EE65: 0 | EF65: 0 | EG65: 0 | EH65: 0 | EI65: 0 | EJ65: 0 | EK65: 0 | EL65: 0 | EM65: 0 | EN65: 0 | EO65: 0 | EP65: 0 | EQ65: 0 | ER65: 0 | ES65: 0 | ET65: 0 | EU65: 0 | EV65: 0 | EW65: 0 | EX65: 0 | EY65: 0 | EZ65: 0 | FA65: 0 | FB65: 0 | FC65: 0 | FD65: 0 | FE65: 0 | FF65: 0 | FG65: 0 | FH65: 0 | FI65: 0 | FJ65: 0 | FK65: 0 | FL65: 0 | FM65: 0 | FN65: 0 | FO65: 0 | FP65: 0 | FQ65: 0 | FR65: 0 | FS65: 0 | FT65: 0 | FU65: 0 | FV65: 0 | FW65: 0 | FX65: 0 | FY65: 0 | FZ65: 0 | GA65: 0 | GB65: 0 | GC65: 0 | GD65: 0 | GE65: 0 | GF65: 0 | GG65: 0 | GH65: 0 | GI65: 0 | GJ65: 0
A66: 4 | D66: SERVICE LINES | E66: ˂ = 11 kv ; residential ; simple type | F66: 0.8119 | G66: 62.45972627 | H66: 7.903146606 | I66: 2 | J66: 211.367 | K66: 1696.948 | L66: 2852.955 | M66: 2705.7 | N66: 3117.415 | O66: 3288.712 | P66: 4132.177 | Q66: 6405.125 | R66: 7271.63 | S66: 7860.654 | T66: 8075.026 | U66: 6577.425 | V66: 6760.743 | W66: 6251.859 | X66: 5878.21 | Y66: 5461.486 | Z66: 5945.327 | AA66: 5692.888 | AB66: 6503.296 | AC66: 7290.663 | AD66: 6741.71 | AE66: 6829.863 | AF66: 8347.499 | AG66: 7505.036 | AH66: 7206.517 | AI66: 6772.764 | AJ66: 5586.704 | AK66: 4897.507 | AL66: 7379.818 | AM66: 9608.69 | AN66: 9092.794 | AO66: 7551.116 | AP66: 11040.176 | AQ66: 9051.722 | AR66: 7834.608 | AS66: 5693.89 | AT66: 7348.764 | AU66: 8290.4 | AV66: 8192.229 | AW66: 8245.322 | AX66: 9048.717 | AY66: 7421.891 | AZ66: 7343.756 | BA66: 7478.991 | BB66: 8082.038 | BC66: 6930.037 | BD66: 5808.088 | BE66: 4321.506 | BF66: 4377.604 | BG66: 3837.666 | BH66: 2869.985 | BI66: 4589.973 | BJ66: 2656.614 | BK66: 2655.613 | BL66: 2508.357 | BM66: 2546.423 | BN66: 2504.35 | BO66: 2501.345 | BP66: 2539.411 | BQ66: 2435.23 | BR66: 2452.259 | BS66: 2473.296 | BT66: 2581.484 | BU66: 2452.259 | BV66: 2411.188 | BW66: 9.016 | BX66: 0 | BY66: 96.167 | BZ66: 0 | CA66: 0 | CB66: 0 | CC66: 0 | CD66: 0 | CE66: 0 | CF66: 0 | CG66: 0 | CH66: 0 | CI66: 0 | CJ66: 0 | CK66: 0 | CL66: 0 | CM66: 0 | CN66: 0 | CO66: 0 | CP66: 0 | CQ66: 0 | CR66: 0 | CS66: 0 | CT66: 0 | CU66: 0 | CV66: 0 | CX66: 171.6088673 | CY66: 1377.752081 | CZ66: 2316.314164 | DA66: 2196.75783 | DB66: 2531.029238 | DC66: 2670.105273 | DD66: 3354.914506 | DE66: 5200.320987 | DF66: 5903.836397 | DG66: 6382.064983 | DH66: 6556.113609 | DI66: 5340.211358 | DJ66: 5489.047242 | DK66: 5075.884322 | DL66: 4772.518699 | DM66: 4434.180483 | DN66: 4827.010991 | DO66: 4622.055767 | DP66: 5280.026022 | DQ66: 5919.28929 | DR66: 5473.594349 | DS66: 5545.16577 | DT66: 6777.334438 | DU66: 6093.338728 | DV66: 5850.971152 | DW66: 5498.807092 | DX66: 4535.844978 | DY66: 3976.285933 | DZ66: 5991.674234 | EA66: 7801.295411 | EB66: 7382.439449 | EC66: 6130.75108 | ED66: 8963.518894 | EE66: 7349.093092 | EF66: 6360.918235 | EG66: 4622.869291 | EH66: 5966.461492 | EI66: 6730.97576 | EJ66: 6651.270725 | EK66: 6694.376932 | EL66: 7346.653332 | EM66: 6025.833303 | EN66: 5962.395496 | EO66: 6072.192793 | EP66: 6561.806652 | EQ66: 5626.49704 | ER66: 4715.586647 | ES66: 3508.630721 | ET66: 3554.176688 | EU66: 3115.801025 | EV66: 2330.140822 | EW66: 3726.599079 | EX66: 2156.904907 | EY66: 2156.092195 | EZ66: 2036.535048 | FA66: 2067.440834 | FB66: 2033.281765 | FC66: 2030.842005 | FD66: 2061.747791 | FE66: 1977.163237 | FF66: 1990.989082 | FG66: 2008.069022 | FH66: 2095.90686 | FI66: 1990.989082 | FJ66: 1957.643537 | FK66: 7.3200904 | FL66: 0 | FM66: 78.0779873 | FN66: 0 | FO66: 0 | FP66: 0 | FQ66: 0 | FR66: 0 | FS66: 0 | FT66: 0 | FU66: 0 | FV66: 0 | FW66: 0 | FX66: 0 | FY66: 0 | FZ66: 0 | GA66: 0 | GB66: 0 | GC66: 0 | GD66: 0 | GE66: 0 | GF66: 0 | GG66: 0 | GH66: 0 | GI66: 0 | GJ66: 0
A67: 4 | D67: SERVICE LINES | E67: ˂ = 11 kv ; commercial & industrial ; simple type | F67: 0.8444 | G67: 59.76908414 | H67: 7.731046769 | I67: 2 | J67: 25.085 | K67: 225.761 | L67: 412.391 | M67: 341.15 | N67: 444.499 | O67: 536.81 | P67: 785.649 | Q67: 1181.986 | R67: 937.16 | S67: 1000.373 | T67: 912.076 | U67: 933.147 | V67: 964.252 | W67: 902.042 | X67: 882.978 | Y67: 783.643 | Z67: 892.008 | AA67: 834.815 | AB67: 1020.441 | AC67: 1239.179 | AD67: 871.94 | AE67: 808.727 | AF67: 873.947 | AG67: 826.788 | AH67: 876.957 | AI67: 859.9 | AJ67: 645.176 | AK67: 775.616 | AL67: 896.022 | AM67: 1086.664 | AN67: 947.194 | AO67: 740.497 | AP67: 941.174 | AQ67: 929.133 | AR67: 859.9 | AS67: 616.078 | AT67: 810.734 | AU67: 714.409 | AV67: 661.23 | AW67: 586.979 | AX67: 582.966 | AY67: 584.973 | AZ67: 584.973 | BA67: 632.132 | BB67: 692.335 | BC67: 674.274 | BD67: 557.881 | BE67: 446.506 | BF67: 410.384 | BG67: 375.265 | BH67: 311.049 | BI67: 387.306 | BJ67: 241.815 | BK67: 217.734 | BL67: 234.792 | BM67: 241.815 | BN67: 208.704 | BO67: 227.768 | BP67: 263.89 | BQ67: 256.866 | BR67: 215.727 | BS67: 237.802 | BT67: 253.856 | BU67: 251.849 | BV67: 240.812 | BW67: 2.007 | BX67: 0 | BY67: 3.01 | BZ67: 0 | CA67: 0 | CB67: 0 | CC67: 0 | CD67: 0 | CE67: 0 | CF67: 0 | CG67: 0 | CH67: 0 | CI67: 0 | CJ67: 0 | CK67: 0 | CL67: 0 | CM67: 0 | CN67: 0 | CO67: 0 | CP67: 0 | CQ67: 0 | CR67: 0 | CS67: 0 | CT67: 0 | CU67: 0 | CV67: 0 | CX67: 21.181774 | CY67: 190.6325884 | CZ67: 348.2229604 | DA67: 288.06706 | DB67: 375.3349556 | DC67: 453.282364 | DD67: 663.4020156 | DE67: 998.0689784 | DF67: 791.337904 | DG67: 844.7149612 | DH67: 770.1569744 | DI67: 787.9493268 | DJ67: 814.2143888 | DK67: 761.6842648 | DL67: 745.5866232 | DM67: 661.7081492 | DN67: 753.2115552 | DO67: 704.917786 | DP67: 861.6603804 | DQ67: 1046.362748 | DR67: 736.266136 | DS67: 682.8890788 | DT67: 737.9608468 | DU67: 698.1397872 | DV67: 740.5024908 | DW67: 726.09956 | DX67: 544.7866144 | DY67: 654.9301504 | DZ67: 756.6009768 | EA67: 917.5790816 | EB67: 799.8106136 | EC67: 625.2756668 | ED67: 794.7273256 | EE67: 784.5599052 | EF67: 726.09956 | EG67: 520.2162632 | EH67: 684.5837896 | EI67: 603.2469596 | EJ67: 558.342612 | EK67: 495.6450676 | EL67: 492.2564904 | EM67: 493.9512012 | EN67: 493.9512012 | EO67: 533.7722608 | EP67: 584.607674 | EQ67: 569.3569656 | ER67: 471.0747164 | ES67: 377.0296664 | ET67: 346.5282496 | EU67: 316.873766 | EV67: 262.6497756 | EW67: 327.0411864 | EX67: 204.188586 | EY67: 183.8545896 | EZ67: 198.2583648 | FA67: 204.188586 | FB67: 176.2296576 | FC67: 192.3272992 | FD67: 222.828716 | FE67: 216.8976504 | FF67: 182.1598788 | FG67: 200.8000088 | FH67: 214.3560064 | FI67: 212.6612956 | FJ67: 203.3416528 | FK67: 1.6947108 | FL67: 0 | FM67: 2.541644 | FN67: 0 | FO67: 0 | FP67: 0 | FQ67: 0 | FR67: 0 | FS67: 0 | FT67: 0 | FU67: 0 | FV67: 0 | FW67: 0 | FX67: 0 | FY67: 0 | FZ67: 0 | GA67: 0 | GB67: 0 | GC67: 0 | GD67: 0 | GE67: 0 | GF67: 0 | GG67: 0 | GH67: 0 | GI67: 0 | GJ67: 0
E68: ˂ = 11 kv ; residential ; complex type | F68: 0 | G68: 36 | H68: 6 | I68: 2 | J68: 0 | K68: 0 | L68: 0 | M68: 0 | N68: 0 | O68: 0 | P68: 0 | Q68: 0 | R68: 0 | S68: 0 | T68: 0 | U68: 0 | V68: 0 | W68: 0 | X68: 0 | Y68: 0 | Z68: 0 | AA68: 0 | AB68: 0 | AC68: 0 | AD68: 0 | AE68: 0 | AF68: 0 | AG68: 0 | AH68: 0 | AI68: 0 | AJ68: 0 | AK68: 0 | AL68: 0 | AM68: 0 | AN68: 0 | AO68: 0 | AP68: 0 | AQ68: 0 | AR68: 0 | AS68: 0 | AT68: 0 | AU68: 0 | AV68: 0 | AW68: 0 | AX68: 0 | AY68: 0 | AZ68: 0 | BA68: 0 | BB68: 0 | BC68: 0 | BD68: 0 | BE68: 0 | BF68: 0 | BG68: 0 | BH68: 0 | BI68: 0 | BJ68: 0 | BK68: 0 | BL68: 0 | BM68: 0 | BN68: 0 | BO68: 0 | BP68: 0 | BQ68: 0 | BR68: 0 | BS68: 0 | BT68: 0 | BU68: 0 | BV68: 0 | BW68: 0 | BX68: 0 | BY68: 0 | BZ68: 0 | CA68: 0 | CB68: 0 | CC68: 0 | CD68: 0 | CE68: 0 | CF68: 0 | CG68: 0 | CH68: 0 | CI68: 0 | CJ68: 0 | CK68: 0 | CL68: 0 | CM68: 0 | CN68: 0 | CO68: 0 | CP68: 0 | CQ68: 0 | CR68: 0 | CS68: 0 | CT68: 0 | CU68: 0 | CV68: 0 | CX68: 0 | CY68: 0 | CZ68: 0 | DA68: 0 | DB68: 0 | DC68: 0 | DD68: 0 | DE68: 0 | DF68: 0 | DG68: 0 | DH68: 0 | DI68: 0 | DJ68: 0 | DK68: 0 | DL68: 0 | DM68: 0 | DN68: 0 | DO68: 0 | DP68: 0 | DQ68: 0 | DR68: 0 | DS68: 0 | DT68: 0 | DU68: 0 | DV68: 0 | DW68: 0 | DX68: 0 | DY68: 0 | DZ68: 0 | EA68: 0 | EB68: 0 | EC68: 0 | ED68: 0 | EE68: 0 | EF68: 0 | EG68: 0 | EH68: 0 | EI68: 0 | EJ68: 0 | EK68: 0 | EL68: 0 | EM68: 0 | EN68: 0 | EO68: 0 | EP68: 0 | EQ68: 0 | ER68: 0 | ES68: 0 | ET68: 0 | EU68: 0 | EV68: 0 | EW68: 0 | EX68: 0 | EY68: 0 | EZ68: 0 | FA68: 0 | FB68: 0 | FC68: 0 | FD68: 0 | FE68: 0 | FF68: 0 | FG68: 0 | FH68: 0 | FI68: 0 | FJ68: 0 | FK68: 0 | FL68: 0 | FM68: 0 | FN68: 0 | FO68: 0 | FP68: 0 | FQ68: 0 | FR68: 0 | FS68: 0 | FT68: 0 | FU68: 0 | FV68: 0 | FW68: 0 | FX68: 0 | FY68: 0 | FZ68: 0 | GA68: 0 | GB68: 0 | GC68: 0 | GD68: 0 | GE68: 0 | GF68: 0 | GG68: 0 | GH68: 0 | GI68: 0 | GJ68: 0
E69: ˂ = 11 kv ; commercial & industrial ; complex type | F69: 0 | G69: 36 | H69: 6 | I69: 2 | J69: 0 | K69: 0 | L69: 0 | M69: 0 | N69: 0 | O69: 0 | P69: 0 | Q69: 0 | R69: 0 | S69: 0 | T69: 0 | U69: 0 | V69: 0 | W69: 0 | X69: 0 | Y69: 0 | Z69: 0 | AA69: 0 | AB69: 0 | AC69: 0 | AD69: 0 | AE69: 0 | AF69: 0 | AG69: 0 | AH69: 0 | AI69: 0 | AJ69: 0 | AK69: 0 | AL69: 0 | AM69: 0 | AN69: 0 | AO69: 0 | AP69: 0 | AQ69: 0 | AR69: 0 | AS69: 0 | AT69: 0 | AU69: 0 | AV69: 0 | AW69: 0 | AX69: 0 | AY69: 0 | AZ69: 0 | BA69: 0 | BB69: 0 | BC69: 0 | BD69: 0 | BE69: 0 | BF69: 0 | BG69: 0 | BH69: 0 | BI69: 0 | BJ69: 0 | BK69: 0 | BL69: 0 | BM69: 0 | BN69: 0 | BO69: 0 | BP69: 0 | BQ69: 0 | BR69: 0 | BS69: 0 | BT69: 0 | BU69: 0 | BV69: 0 | BW69: 0 | BX69: 0 | BY69: 0 | BZ69: 0 | CA69: 0 | CB69: 0 | CC69: 0 | CD69: 0 | CE69: 0 | CF69: 0 | CG69: 0 | CH69: 0 | CI69: 0 | CJ69: 0 | CK69: 0 | CL69: 0 | CM69: 0 | CN69: 0 | CO69: 0 | CP69: 0 | CQ69: 0 | CR69: 0 | CS69: 0 | CT69: 0 | CU69: 0 | CV69: 0 | CX69: 0 | CY69: 0 | CZ69: 0 | DA69: 0 | DB69: 0 | DC69: 0 | DD69: 0 | DE69: 0 | DF69: 0 | DG69: 0 | DH69: 0 | DI69: 0 | DJ69: 0 | DK69: 0 | DL69: 0 | DM69: 0 | DN69: 0 | DO69: 0 | DP69: 0 | DQ69: 0 | DR69: 0 | DS69: 0 | DT69: 0 | DU69: 0 | DV69: 0 | DW69: 0 | DX69: 0 | DY69: 0 | DZ69: 0 | EA69: 0 | EB69: 0 | EC69: 0 | ED69: 0 | EE69: 0 | EF69: 0 | EG69: 0 | EH69: 0 | EI69: 0 | EJ69: 0 | EK69: 0 | EL69: 0 | EM69: 0 | EN69: 0 | EO69: 0 | EP69: 0 | EQ69: 0 | ER69: 0 | ES69: 0 | ET69: 0 | EU69: 0 | EV69: 0 | EW69: 0 | EX69: 0 | EY69: 0 | EZ69: 0 | FA69: 0 | FB69: 0 | FC69: 0 | FD69: 0 | FE69: 0 | FF69: 0 | FG69: 0 | FH69: 0 | FI69: 0 | FJ69: 0 | FK69: 0 | FL69: 0 | FM69: 0 | FN69: 0 | FO69: 0 | FP69: 0 | FQ69: 0 | FR69: 0 | FS69: 0 | FT69: 0 | FU69: 0 | FV69: 0 | FW69: 0 | FX69: 0 | FY69: 0 | FZ69: 0 | GA69: 0 | GB69: 0 | GC69: 0 | GD69: 0 | GE69: 0 | GF69: 0 | GG69: 0 | GH69: 0 | GI69: 0 | GJ69: 0
E70: ˂ = 11 kv ; subdivision ; complex type | F70: 0 | G70: 36 | H70: 6 | I70: 2 | J70: 0 | K70: 0 | L70: 0 | M70: 0 | N70: 0 | O70: 0 | P70: 0 | Q70: 0 | R70: 0 | S70: 0 | T70: 0 | U70: 0 | V70: 0 | W70: 0 | X70: 0 | Y70: 0 | Z70: 0 | AA70: 0 | AB70: 0 | AC70: 0 | AD70: 0 | AE70: 0 | AF70: 0 | AG70: 0 | AH70: 0 | AI70: 0 | AJ70: 0 | AK70: 0 | AL70: 0 | AM70: 0 | AN70: 0 | AO70: 0 | AP70: 0 | AQ70: 0 | AR70: 0 | AS70: 0 | AT70: 0 | AU70: 0 | AV70: 0 | AW70: 0 | AX70: 0 | AY70: 0 | AZ70: 0 | BA70: 0 | BB70: 0 | BC70: 0 | BD70: 0 | BE70: 0 | BF70: 0 | BG70: 0 | BH70: 0 | BI70: 0 | BJ70: 0 | BK70: 0 | BL70: 0 | BM70: 0 | BN70: 0 | BO70: 0 | BP70: 0 | BQ70: 0 | BR70: 0 | BS70: 0 | BT70: 0 | BU70: 0 | BV70: 0 | BW70: 0 | BX70: 0 | BY70: 0 | BZ70: 0 | CA70: 0 | CB70: 0 | CC70: 0 | CD70: 0 | CE70: 0 | CF70: 0 | CG70: 0 | CH70: 0 | CI70: 0 | CJ70: 0 | CK70: 0 | CL70: 0 | CM70: 0 | CN70: 0 | CO70: 0 | CP70: 0 | CQ70: 0 | CR70: 0 | CS70: 0 | CT70: 0 | CU70: 0 | CV70: 0 | CX70: 0 | CY70: 0 | CZ70: 0 | DA70: 0 | DB70: 0 | DC70: 0 | DD70: 0 | DE70: 0 | DF70: 0 | DG70: 0 | DH70: 0 | DI70: 0 | DJ70: 0 | DK70: 0 | DL70: 0 | DM70: 0 | DN70: 0 | DO70: 0 | DP70: 0 | DQ70: 0 | DR70: 0 | DS70: 0 | DT70: 0 | DU70: 0 | DV70: 0 | DW70: 0 | DX70: 0 | DY70: 0 | DZ70: 0 | EA70: 0 | EB70: 0 | EC70: 0 | ED70: 0 | EE70: 0 | EF70: 0 | EG70: 0 | EH70: 0 | EI70: 0 | EJ70: 0 | EK70: 0 | EL70: 0 | EM70: 0 | EN70: 0 | EO70: 0 | EP70: 0 | EQ70: 0 | ER70: 0 | ES70: 0 | ET70: 0 | EU70: 0 | EV70: 0 | EW70: 0 | EX70: 0 | EY70: 0 | EZ70: 0 | FA70: 0 | FB70: 0 | FC70: 0 | FD70: 0 | FE70: 0 | FF70: 0 | FG70: 0 | FH70: 0 | FI70: 0 | FJ70: 0 | FK70: 0 | FL70: 0 | FM70: 0 | FN70: 0 | FO70: 0 | FP70: 0 | FQ70: 0 | FR70: 0 | FS70: 0 | FT70: 0 | FU70: 0 | FV70: 0 | FW70: 0 | FX70: 0 | FY70: 0 | FZ70: 0 | GA70: 0 | GB70: 0 | GC70: 0 | GD70: 0 | GE70: 0 | GF70: 0 | GG70: 0 | GH70: 0 | GI70: 0 | GJ70: 0
E71: > 11 kv & < = 22 kv ; commercial & industrial | F71: 0 | G71: 36 | H71: 6 | I71: 2 | J71: 0 | K71: 0 | L71: 0 | M71: 0 | N71: 0 | O71: 0 | P71: 0 | Q71: 0 | R71: 0 | S71: 0 | T71: 0 | U71: 0 | V71: 0 | W71: 0 | X71: 0 | Y71: 0 | Z71: 0 | AA71: 0 | AB71: 0 | AC71: 0 | AD71: 0 | AE71: 0 | AF71: 0 | AG71: 0 | AH71: 0 | AI71: 0 | AJ71: 0 | AK71: 0 | AL71: 0 | AM71: 0 | AN71: 0 | AO71: 0 | AP71: 0 | AQ71: 0 | AR71: 0 | AS71: 0 | AT71: 0 | AU71: 0 | AV71: 0 | AW71: 0 | AX71: 0 | AY71: 0 | AZ71: 0 | BA71: 0 | BB71: 0 | BC71: 0 | BD71: 0 | BE71: 0 | BF71: 0 | BG71: 0 | BH71: 0 | BI71: 0 | BJ71: 0 | BK71: 0 | BL71: 0 | BM71: 0 | BN71: 0 | BO71: 0 | BP71: 0 | BQ71: 0 | BR71: 0 | BS71: 0 | BT71: 0 | BU71: 0 | BV71: 0 | BW71: 0 | BX71: 0 | BY71: 0 | BZ71: 0 | CA71: 0 | CB71: 0 | CC71: 0 | CD71: 0 | CE71: 0 | CF71: 0 | CG71: 0 | CH71: 0 | CI71: 0 | CJ71: 0 | CK71: 0 | CL71: 0 | CM71: 0 | CN71: 0 | CO71: 0 | CP71: 0 | CQ71: 0 | CR71: 0 | CS71: 0 | CT71: 0 | CU71: 0 | CV71: 0 | CX71: 0 | CY71: 0 | CZ71: 0 | DA71: 0 | DB71: 0 | DC71: 0 | DD71: 0 | DE71: 0 | DF71: 0 | DG71: 0 | DH71: 0 | DI71: 0 | DJ71: 0 | DK71: 0 | DL71: 0 | DM71: 0 | DN71: 0 | DO71: 0 | DP71: 0 | DQ71: 0 | DR71: 0 | DS71: 0 | DT71: 0 | DU71: 0 | DV71: 0 | DW71: 0 | DX71: 0 | DY71: 0 | DZ71: 0 | EA71: 0 | EB71: 0 | EC71: 0 | ED71: 0 | EE71: 0 | EF71: 0 | EG71: 0 | EH71: 0 | EI71: 0 | EJ71: 0 | EK71: 0 | EL71: 0 | EM71: 0 | EN71: 0 | EO71: 0 | EP71: 0 | EQ71: 0 | ER71: 0 | ES71: 0 | ET71: 0 | EU71: 0 | EV71: 0 | EW71: 0 | EX71: 0 | EY71: 0 | EZ71: 0 | FA71: 0 | FB71: 0 | FC71: 0 | FD71: 0 | FE71: 0 | FF71: 0 | FG71: 0 | FH71: 0 | FI71: 0 | FJ71: 0 | FK71: 0 | FL71: 0 | FM71: 0 | FN71: 0 | FO71: 0 | FP71: 0 | FQ71: 0 | FR71: 0 | FS71: 0 | FT71: 0 | FU71: 0 | FV71: 0 | FW71: 0 | FX71: 0 | FY71: 0 | FZ71: 0 | GA71: 0 | GB71: 0 | GC71: 0 | GD71: 0 | GE71: 0 | GF71: 0 | GG71: 0 | GH71: 0 | GI71: 0 | GJ71: 0
E72: > 11 kv & < = 22 kv ; subdivision | F72: 0 | G72: 36 | H72: 6 | I72: 2 | J72: 0 | K72: 0 | L72: 0 | M72: 0 | N72: 0 | O72: 0 | P72: 0 | Q72: 0 | R72: 0 | S72: 0 | T72: 0 | U72: 0 | V72: 0 | W72: 0 | X72: 0 | Y72: 0 | Z72: 0 | AA72: 0 | AB72: 0 | AC72: 0 | AD72: 0 | AE72: 0 | AF72: 0 | AG72: 0 | AH72: 0 | AI72: 0 | AJ72: 0 | AK72: 0 | AL72: 0 | AM72: 0 | AN72: 0 | AO72: 0 | AP72: 0 | AQ72: 0 | AR72: 0 | AS72: 0 | AT72: 0 | AU72: 0 | AV72: 0 | AW72: 0 | AX72: 0 | AY72: 0 | AZ72: 0 | BA72: 0 | BB72: 0 | BC72: 0 | BD72: 0 | BE72: 0 | BF72: 0 | BG72: 0 | BH72: 0 | BI72: 0 | BJ72: 0 | BK72: 0 | BL72: 0 | BM72: 0 | BN72: 0 | BO72: 0 | BP72: 0 | BQ72: 0 | BR72: 0 | BS72: 0 | BT72: 0 | BU72: 0 | BV72: 0 | BW72: 0 | BX72: 0 | BY72: 0 | BZ72: 0 | CA72: 0 | CB72: 0 | CC72: 0 | CD72: 0 | CE72: 0 | CF72: 0 | CG72: 0 | CH72: 0 | CI72: 0 | CJ72: 0 | CK72: 0 | CL72: 0 | CM72: 0 | CN72: 0 | CO72: 0 | CP72: 0 | CQ72: 0 | CR72: 0 | CS72: 0 | CT72: 0 | CU72: 0 | CV72: 0 | CX72: 0 | CY72: 0 | CZ72: 0 | DA72: 0 | DB72: 0 | DC72: 0 | DD72: 0 | DE72: 0 | DF72: 0 | DG72: 0 | DH72: 0 | DI72: 0 | DJ72: 0 | DK72: 0 | DL72: 0 | DM72: 0 | DN72: 0 | DO72: 0 | DP72: 0 | DQ72: 0 | DR72: 0 | DS72: 0 | DT72: 0 | DU72: 0 | DV72: 0 | DW72: 0 | DX72: 0 | DY72: 0 | DZ72: 0 | EA72: 0 | EB72: 0 | EC72: 0 | ED72: 0 | EE72: 0 | EF72: 0 | EG72: 0 | EH72: 0 | EI72: 0 | EJ72: 0 | EK72: 0 | EL72: 0 | EM72: 0 | EN72: 0 | EO72: 0 | EP72: 0 | EQ72: 0 | ER72: 0 | ES72: 0 | ET72: 0 | EU72: 0 | EV72: 0 | EW72: 0 | EX72: 0 | EY72: 0 | EZ72: 0 | FA72: 0 | FB72: 0 | FC72: 0 | FD72: 0 | FE72: 0 | FF72: 0 | FG72: 0 | FH72: 0 | FI72: 0 | FJ72: 0 | FK72: 0 | FL72: 0 | FM72: 0 | FN72: 0 | FO72: 0 | FP72: 0 | FQ72: 0 | FR72: 0 | FS72: 0 | FT72: 0 | FU72: 0 | FV72: 0 | FW72: 0 | FX72: 0 | FY72: 0 | FZ72: 0 | GA72: 0 | GB72: 0 | GC72: 0 | GD72: 0 | GE72: 0 | GF72: 0 | GG72: 0 | GH72: 0 | GI72: 0 | GJ72: 0
E73: > 22 kv & < = 33 kv ; commercial & industrial | F73: 0 | G73: 36 | H73: 6 | I73: 2 | J73: 0 | K73: 0 | L73: 0 | M73: 0 | N73: 0 | O73: 0 | P73: 0 | Q73: 0 | R73: 0 | S73: 0 | T73: 0 | U73: 0 | V73: 0 | W73: 0 | X73: 0 | Y73: 0 | Z73: 0 | AA73: 0 | AB73: 0 | AC73: 0 | AD73: 0 | AE73: 0 | AF73: 0 | AG73: 0 | AH73: 0 | AI73: 0 | AJ73: 0 | AK73: 0 | AL73: 0 | AM73: 0 | AN73: 0 | AO73: 0 | AP73: 0 | AQ73: 0 | AR73: 0 | AS73: 0 | AT73: 0 | AU73: 0 | AV73: 0 | AW73: 0 | AX73: 0 | AY73: 0 | AZ73: 0 | BA73: 0 | BB73: 0 | BC73: 0 | BD73: 0 | BE73: 0 | BF73: 0 | BG73: 0 | BH73: 0 | BI73: 0 | BJ73: 0 | BK73: 0 | BL73: 0 | BM73: 0 | BN73: 0 | BO73: 0 | BP73: 0 | BQ73: 0 | BR73: 0 | BS73: 0 | BT73: 0 | BU73: 0 | BV73: 0 | BW73: 0 | BX73: 0 | BY73: 0 | BZ73: 0 | CA73: 0 | CB73: 0 | CC73: 0 | CD73: 0 | CE73: 0 | CF73: 0 | CG73: 0 | CH73: 0 | CI73: 0 | CJ73: 0 | CK73: 0 | CL73: 0 | CM73: 0 | CN73: 0 | CO73: 0 | CP73: 0 | CQ73: 0 | CR73: 0 | CS73: 0 | CT73: 0 | CU73: 0 | CV73: 0 | CX73: 0 | CY73: 0 | CZ73: 0 | DA73: 0 | DB73: 0 | DC73: 0 | DD73: 0 | DE73: 0 | DF73: 0 | DG73: 0 | DH73: 0 | DI73: 0 | DJ73: 0 | DK73: 0 | DL73: 0 | DM73: 0 | DN73: 0 | DO73: 0 | DP73: 0 | DQ73: 0 | DR73: 0 | DS73: 0 | DT73: 0 | DU73: 0 | DV73: 0 | DW73: 0 | DX73: 0 | DY73: 0 | DZ73: 0 | EA73: 0 | EB73: 0 | EC73: 0 | ED73: 0 | EE73: 0 | EF73: 0 | EG73: 0 | EH73: 0 | EI73: 0 | EJ73: 0 | EK73: 0 | EL73: 0 | EM73: 0 | EN73: 0 | EO73: 0 | EP73: 0 | EQ73: 0 | ER73: 0 | ES73: 0 | ET73: 0 | EU73: 0 | EV73: 0 | EW73: 0 | EX73: 0 | EY73: 0 | EZ73: 0 | FA73: 0 | FB73: 0 | FC73: 0 | FD73: 0 | FE73: 0 | FF73: 0 | FG73: 0 | FH73: 0 | FI73: 0 | FJ73: 0 | FK73: 0 | FL73: 0 | FM73: 0 | FN73: 0 | FO73: 0 | FP73: 0 | FQ73: 0 | FR73: 0 | FS73: 0 | FT73: 0 | FU73: 0 | FV73: 0 | FW73: 0 | FX73: 0 | FY73: 0 | FZ73: 0 | GA73: 0 | GB73: 0 | GC73: 0 | GD73: 0 | GE73: 0 | GF73: 0 | GG73: 0 | GH73: 0 | GI73: 0 | GJ73: 0
E74: > 22 kv & < = 33 kv ; subdivision | F74: 0 | G74: 36 | H74: 6 | I74: 2 | J74: 0 | K74: 0 | L74: 0 | M74: 0 | N74: 0 | O74: 0 | P74: 0 | Q74: 0 | R74: 0 | S74: 0 | T74: 0 | U74: 0 | V74: 0 | W74: 0 | X74: 0 | Y74: 0 | Z74: 0 | AA74: 0 | AB74: 0 | AC74: 0 | AD74: 0 | AE74: 0 | AF74: 0 | AG74: 0 | AH74: 0 | AI74: 0 | AJ74: 0 | AK74: 0 | AL74: 0 | AM74: 0 | AN74: 0 | AO74: 0 | AP74: 0 | AQ74: 0 | AR74: 0 | AS74: 0 | AT74: 0 | AU74: 0 | AV74: 0 | AW74: 0 | AX74: 0 | AY74: 0 | AZ74: 0 | BA74: 0 | BB74: 0 | BC74: 0 | BD74: 0 | BE74: 0 | BF74: 0 | BG74: 0 | BH74: 0 | BI74: 0 | BJ74: 0 | BK74: 0 | BL74: 0 | BM74: 0 | BN74: 0 | BO74: 0 | BP74: 0 | BQ74: 0 | BR74: 0 | BS74: 0 | BT74: 0 | BU74: 0 | BV74: 0 | BW74: 0 | BX74: 0 | BY74: 0 | BZ74: 0 | CA74: 0 | CB74: 0 | CC74: 0 | CD74: 0 | CE74: 0 | CF74: 0 | CG74: 0 | CH74: 0 | CI74: 0 | CJ74: 0 | CK74: 0 | CL74: 0 | CM74: 0 | CN74: 0 | CO74: 0 | CP74: 0 | CQ74: 0 | CR74: 0 | CS74: 0 | CT74: 0 | CU74: 0 | CV74: 0 | CX74: 0 | CY74: 0 | CZ74: 0 | DA74: 0 | DB74: 0 | DC74: 0 | DD74: 0 | DE74: 0 | DF74: 0 | DG74: 0 | DH74: 0 | DI74: 0 | DJ74: 0 | DK74: 0 | DL74: 0 | DM74: 0 | DN74: 0 | DO74: 0 | DP74: 0 | DQ74: 0 | DR74: 0 | DS74: 0 | DT74: 0 | DU74: 0 | DV74: 0 | DW74: 0 | DX74: 0 | DY74: 0 | DZ74: 0 | EA74: 0 | EB74: 0 | EC74: 0 | ED74: 0 | EE74: 0 | EF74: 0 | EG74: 0 | EH74: 0 | EI74: 0 | EJ74: 0 | EK74: 0 | EL74: 0 | EM74: 0 | EN74: 0 | EO74: 0 | EP74: 0 | EQ74: 0 | ER74: 0 | ES74: 0 | ET74: 0 | EU74: 0 | EV74: 0 | EW74: 0 | EX74: 0 | EY74: 0 | EZ74: 0 | FA74: 0 | FB74: 0 | FC74: 0 | FD74: 0 | FE74: 0 | FF74: 0 | FG74: 0 | FH74: 0 | FI74: 0 | FJ74: 0 | FK74: 0 | FL74: 0 | FM74: 0 | FN74: 0 | FO74: 0 | FP74: 0 | FQ74: 0 | FR74: 0 | FS74: 0 | FT74: 0 | FU74: 0 | FV74: 0 | FW74: 0 | FX74: 0 | FY74: 0 | FZ74: 0 | GA74: 0 | GB74: 0 | GC74: 0 | GD74: 0 | GE74: 0 | GF74: 0 | GG74: 0 | GH74: 0 | GI74: 0 | GJ74: 0
E75: > 33 kv & < = 66 kv ; commercial & industrial | F75: 0 | G75: 36 | H75: 6 | I75: 2 | J75: 0 | K75: 0 | L75: 0 | M75: 0 | N75: 0 | O75: 0 | P75: 0 | Q75: 0 | R75: 0 | S75: 0 | T75: 0 | U75: 0 | V75: 0 | W75: 0 | X75: 0 | Y75: 0 | Z75: 0 | AA75: 0 | AB75: 0 | AC75: 0 | AD75: 0 | AE75: 0 | AF75: 0 | AG75: 0 | AH75: 0 | AI75: 0 | AJ75: 0 | AK75: 0 | AL75: 0 | AM75: 0 | AN75: 0 | AO75: 0 | AP75: 0 | AQ75: 0 | AR75: 0 | AS75: 0 | AT75: 0 | AU75: 0 | AV75: 0 | AW75: 0 | AX75: 0 | AY75: 0 | AZ75: 0 | BA75: 0 | BB75: 0 | BC75: 0 | BD75: 0 | BE75: 0 | BF75: 0 | BG75: 0 | BH75: 0 | BI75: 0 | BJ75: 0 | BK75: 0 | BL75: 0 | BM75: 0 | BN75: 0 | BO75: 0 | BP75: 0 | BQ75: 0 | BR75: 0 | BS75: 0 | BT75: 0 | BU75: 0 | BV75: 0 | BW75: 0 | BX75: 0 | BY75: 0 | BZ75: 0 | CA75: 0 | CB75: 0 | CC75: 0 | CD75: 0 | CE75: 0 | CF75: 0 | CG75: 0 | CH75: 0 | CI75: 0 | CJ75: 0 | CK75: 0 | CL75: 0 | CM75: 0 | CN75: 0 | CO75: 0 | CP75: 0 | CQ75: 0 | CR75: 0 | CS75: 0 | CT75: 0 | CU75: 0 | CV75: 0 | CX75: 0 | CY75: 0 | CZ75: 0 | DA75: 0 | DB75: 0 | DC75: 0 | DD75: 0 | DE75: 0 | DF75: 0 | DG75: 0 | DH75: 0 | DI75: 0 | DJ75: 0 | DK75: 0 | DL75: 0 | DM75: 0 | DN75: 0 | DO75: 0 | DP75: 0 | DQ75: 0 | DR75: 0 | DS75: 0 | DT75: 0 | DU75: 0 | DV75: 0 | DW75: 0 | DX75: 0 | DY75: 0 | DZ75: 0 | EA75: 0 | EB75: 0 | EC75: 0 | ED75: 0 | EE75: 0 | EF75: 0 | EG75: 0 | EH75: 0 | EI75: 0 | EJ75: 0 | EK75: 0 | EL75: 0 | EM75: 0 | EN75: 0 | EO75: 0 | EP75: 0 | EQ75: 0 | ER75: 0 | ES75: 0 | ET75: 0 | EU75: 0 | EV75: 0 | EW75: 0 | EX75: 0 | EY75: 0 | EZ75: 0 | FA75: 0 | FB75: 0 | FC75: 0 | FD75: 0 | FE75: 0 | FF75: 0 | FG75: 0 | FH75: 0 | FI75: 0 | FJ75: 0 | FK75: 0 | FL75: 0 | FM75: 0 | FN75: 0 | FO75: 0 | FP75: 0 | FQ75: 0 | FR75: 0 | FS75: 0 | FT75: 0 | FU75: 0 | FV75: 0 | FW75: 0 | FX75: 0 | FY75: 0 | FZ75: 0 | GA75: 0 | GB75: 0 | GC75: 0 | GD75: 0 | GE75: 0 | GF75: 0 | GG75: 0 | GH75: 0 | GI75: 0 | GJ75: 0
E76: > 33 kv & < = 66 kv ; subdivision | F76: 0 | G76: 36 | H76: 6 | I76: 2 | J76: 0 | K76: 0 | L76: 0 | M76: 0 | N76: 0 | O76: 0 | P76: 0 | Q76: 0 | R76: 0 | S76: 0 | T76: 0 | U76: 0 | V76: 0 | W76: 0 | X76: 0 | Y76: 0 | Z76: 0 | AA76: 0 | AB76: 0 | AC76: 0 | AD76: 0 | AE76: 0 | AF76: 0 | AG76: 0 | AH76: 0 | AI76: 0 | AJ76: 0 | AK76: 0 | AL76: 0 | AM76: 0 | AN76: 0 | AO76: 0 | AP76: 0 | AQ76: 0 | AR76: 0 | AS76: 0 | AT76: 0 | AU76: 0 | AV76: 0 | AW76: 0 | AX76: 0 | AY76: 0 | AZ76: 0 | BA76: 0 | BB76: 0 | BC76: 0 | BD76: 0 | BE76: 0 | BF76: 0 | BG76: 0 | BH76: 0 | BI76: 0 | BJ76: 0 | BK76: 0 | BL76: 0 | BM76: 0 | BN76: 0 | BO76: 0 | BP76: 0 | BQ76: 0 | BR76: 0 | BS76: 0 | BT76: 0 | BU76: 0 | BV76: 0 | BW76: 0 | BX76: 0 | BY76: 0 | BZ76: 0 | CA76: 0 | CB76: 0 | CC76: 0 | CD76: 0 | CE76: 0 | CF76: 0 | CG76: 0 | CH76: 0 | CI76: 0 | CJ76: 0 | CK76: 0 | CL76: 0 | CM76: 0 | CN76: 0 | CO76: 0 | CP76: 0 | CQ76: 0 | CR76: 0 | CS76: 0 | CT76: 0 | CU76: 0 | CV76: 0 | CX76: 0 | CY76: 0 | CZ76: 0 | DA76: 0 | DB76: 0 | DC76: 0 | DD76: 0 | DE76: 0 | DF76: 0 | DG76: 0 | DH76: 0 | DI76: 0 | DJ76: 0 | DK76: 0 | DL76: 0 | DM76: 0 | DN76: 0 | DO76: 0 | DP76: 0 | DQ76: 0 | DR76: 0 | DS76: 0 | DT76: 0 | DU76: 0 | DV76: 0 | DW76: 0 | DX76: 0 | DY76: 0 | DZ76: 0 | EA76: 0 | EB76: 0 | EC76: 0 | ED76: 0 | EE76: 0 | EF76: 0 | EG76: 0 | EH76: 0 | EI76: 0 | EJ76: 0 | EK76: 0 | EL76: 0 | EM76: 0 | EN76: 0 | EO76: 0 | EP76: 0 | EQ76: 0 | ER76: 0 | ES76: 0 | ET76: 0 | EU76: 0 | EV76: 0 | EW76: 0 | EX76: 0 | EY76: 0 | EZ76: 0 | FA76: 0 | FB76: 0 | FC76: 0 | FD76: 0 | FE76: 0 | FF76: 0 | FG76: 0 | FH76: 0 | FI76: 0 | FJ76: 0 | FK76: 0 | FL76: 0 | FM76: 0 | FN76: 0 | FO76: 0 | FP76: 0 | FQ76: 0 | FR76: 0 | FS76: 0 | FT76: 0 | FU76: 0 | FV76: 0 | FW76: 0 | FX76: 0 | FY76: 0 | FZ76: 0 | GA76: 0 | GB76: 0 | GC76: 0 | GD76: 0 | GE76: 0 | GF76: 0 | GG76: 0 | GH76: 0 | GI76: 0 | GJ76: 0
E77: > 66 kv & < = 132 kv ; commercial & industrial | F77: 0 | G77: 36 | H77: 6 | I77: 2 | J77: 0 | K77: 0 | L77: 0 | M77: 0 | N77: 0 | O77: 0 | P77: 0 | Q77: 0 | R77: 0 | S77: 0 | T77: 0 | U77: 0 | V77: 0 | W77: 0 | X77: 0 | Y77: 0 | Z77: 0 | AA77: 0 | AB77: 0 | AC77: 0 | AD77: 0 | AE77: 0 | AF77: 0 | AG77: 0 | AH77: 0 | AI77: 0 | AJ77: 0 | AK77: 0 | AL77: 0 | AM77: 0 | AN77: 0 | AO77: 0 | AP77: 0 | AQ77: 0 | AR77: 0 | AS77: 0 | AT77: 0 | AU77: 0 | AV77: 0 | AW77: 0 | AX77: 0 | AY77: 0 | AZ77: 0 | BA77: 0 | BB77: 0 | BC77: 0 | BD77: 0 | BE77: 0 | BF77: 0 | BG77: 0 | BH77: 0 | BI77: 0 | BJ77: 0 | BK77: 0 | BL77: 0 | BM77: 0 | BN77: 0 | BO77: 0 | BP77: 0 | BQ77: 0 | BR77: 0 | BS77: 0 | BT77: 0 | BU77: 0 | BV77: 0 | BW77: 0 | BX77: 0 | BY77: 0 | BZ77: 0 | CA77: 0 | CB77: 0 | CC77: 0 | CD77: 0 | CE77: 0 | CF77: 0 | CG77: 0 | CH77: 0 | CI77: 0 | CJ77: 0 | CK77: 0 | CL77: 0 | CM77: 0 | CN77: 0 | CO77: 0 | CP77: 0 | CQ77: 0 | CR77: 0 | CS77: 0 | CT77: 0 | CU77: 0 | CV77: 0 | CX77: 0 | CY77: 0 | CZ77: 0 | DA77: 0 | DB77: 0 | DC77: 0 | DD77: 0 | DE77: 0 | DF77: 0 | DG77: 0 | DH77: 0 | DI77: 0 | DJ77: 0 | DK77: 0 | DL77: 0 | DM77: 0 | DN77: 0 | DO77: 0 | DP77: 0 | DQ77: 0 | DR77: 0 | DS77: 0 | DT77: 0 | DU77: 0 | DV77: 0 | DW77: 0 | DX77: 0 | DY77: 0 | DZ77: 0 | EA77: 0 | EB77: 0 | EC77: 0 | ED77: 0 | EE77: 0 | EF77: 0 | EG77: 0 | EH77: 0 | EI77: 0 | EJ77: 0 | EK77: 0 | EL77: 0 | EM77: 0 | EN77: 0 | EO77: 0 | EP77: 0 | EQ77: 0 | ER77: 0 | ES77: 0 | ET77: 0 | EU77: 0 | EV77: 0 | EW77: 0 | EX77: 0 | EY77: 0 | EZ77: 0 | FA77: 0 | FB77: 0 | FC77: 0 | FD77: 0 | FE77: 0 | FF77: 0 | FG77: 0 | FH77: 0 | FI77: 0 | FJ77: 0 | FK77: 0 | FL77: 0 | FM77: 0 | FN77: 0 | FO77: 0 | FP77: 0 | FQ77: 0 | FR77: 0 | FS77: 0 | FT77: 0 | FU77: 0 | FV77: 0 | FW77: 0 | FX77: 0 | FY77: 0 | FZ77: 0 | GA77: 0 | GB77: 0 | GC77: 0 | GD77: 0 | GE77: 0 | GF77: 0 | GG77: 0 | GH77: 0 | GI77: 0 | GJ77: 0
